Workbook

Sheet Schedule
A1: ART.NR. | B1: ART.BEZ. | C1: GEBINDE | D1: MENGE | E1: GEBINDE | F1: BEUTEL | G1: PROD NR. | H1: BEUTEL / H | I1: DAUER | J1: ANMERKUNG | K1: BEM EK | L1: ROH1 | M1: BES ROH1 | N1: ROH2 | O1: BES ROH2

Sheet Mischungen
A1: Mischungsplanung | K1: =A1 -> Mischungsplanung | U1: =K1 -> Mischungsplanung | AE1: =U1 -> Mischungsplanung | AO1: =AE1 -> Mischungsplanung | AY1: =AO1 -> Mischungsplanung
A2: KW | B2: 36 | C2: Montag: | G2: =DATE($B$3,1,4)-WEEKDAY(DATE($B$3,1,4),2)+($B$2-1)*7+1 -> 2021-09-06 | K2: KW | L2: =$B$2 -> 36 | M2: Dienstag: | Q2: =DATE($B$3,1,4)-WEEKDAY(DATE($B$3,1,4),2)+($B$2-1)*7+2 -> 2021-09-07 | U2: KW | V2: =$B$2 -> 36 | W2: Mittwoch: | AA2: =DATE($B$3,1,4)-WEEKDAY(DATE($B$3,1,4),2)+($B$2-1)*7+3 -> 2021-09-08 | AE2: KW | AF2: =$B$2 -> 36 | AG2: Donnerstag: | AK2: =DATE($B$3,1,4)-WEEKDAY(DATE($B$3,1,4),2)+($B$2-1)*7+4 -> 2021-09-09 | AO2: KW | AP2: =$B$2 -> 36 | AQ2: Freitag: | AU2: =DATE($B$3,1,4)-WEEKDAY(DATE($B$3,1,4),2)+($B$2-1)*7+5 -> 2021-09-10 | AY2: KW | AZ2: =$B$2 -> 36 | BA2: Samstag: | BE2: =DATE($B$3,1,4)-WEEKDAY(DATE($B$3,1,4),2)+($B$2-1)*7+6 -> 2021-09-11
A3: 1-Schicht | B3: 2021 | C3: Stückzahl | D3: Gebinde- anzahl | E3: Gebinde-größe | F3: P-Artikel | G3: Produkt | H3: Lager | I3: Pal- Anz. | J3: Gewicht | K3: =$A$3 -> 1-Schicht | L3: =$B$3 -> 2021 | M3: Stückzahl | N3: Gebinde-anzahl | O3: Gebinde-größe | P3: P-Artikel | Q3: Produkt | R3: Lager | S3: Pal- Anz. | T3: Gewicht | U3: =$A$3 -> 1-Schicht | V3: =$B$3 -> 2021 | W3: Stückzahl | X3: Gebinde- anzahl | Y3: Gebinde-größe | Z3: P-Artikel | AA3: Produkt | AB3: Lager | AC3: Pal- Anz. | AD3: Gewicht | AE3: =$A$3 -> 1-Schicht | AF3: =$B$3 -> 2021 | AG3: Stückzahl | AH3: Gebinde- anzahl | AI3: Gebinde-größe | AJ3: P-Artikel | AK3: Produkt | AL3: Lager | AM3: Pal- Anz. | AN3: Gewicht | AO3: =$A$3 -> 1-Schicht | AP3: =$B$3 -> 2021 | AQ3: Stückzahl | AR3: Gebinde- anzahl | AS3: Gebinde-größe | AT3: P-Artikel | AU3: Produkt | AV3: Lager | AW3: Pal- Anz. | AX3: Gewicht | AY3: =$A$3 -> 1-Schicht | AZ3: =$B$3 -> 2021 | BA3: Stückzahl | BB3: Gebinde- anzahl | BC3: Gebinde-größe | BD3: P-Artikel | BE3: Produkt | BF3: Lager | BG3: Pal- Anz. | BH3: Gewicht
A4: Brackenheim | B4: Nachreinigung | C4: Für | D4: Mischung | E4: Produkt | F4: Prod.-Nr. | J4: Menge | L4: =B4 -> Nachreinigung | M4: Für | N4: Mischung | O4: Produkt | P4: Prod.-Nr. | T4: Menge | V4: =L4 -> Nachreinigung | W4: Für | X4: Mischung | Y4: Produkt | Z4: Prod.-Nr. | AD4: Menge | AF4: =V4 -> Nachreinigung | AG4: Für | AH4: Mischung | AI4: Produkt | AJ4: Prod.-Nr. | AN4: Menge | AP4: =AF4 -> Nachreinigung | AQ4: Für | AR4: Mischung | AS4: Produkt | AT4: Prod.-Nr. | AX4: Menge | AZ4: =AP4 -> Nachreinigung | BA4: Für | BB4: Mischung | BC4: Produkt | BD4: Prod.-Nr. | BH4: Menge
E5: =VLOOKUP(F5,Artikelstamm!$A:$EV,4,FALSE) ->  | O5: =VLOOKUP(P5,Artikelstamm!$A:$EV,4,FALSE) ->  | Y5: =VLOOKUP(Z5,Artikelstamm!$A:$EV,4,FALSE) ->  | AI5: =VLOOKUP(AJ5,Artikelstamm!$A:$EV,4,FALSE) ->  | AS5: =VLOOKUP(AT5,Artikelstamm!$A:$EV,4,FALSE) ->  | BC5: =VLOOKUP(BD5,Artikelstamm!$A:$EV,4,FALSE) -> 
E6: =VLOOKUP(F6,Artikelstamm!$A:$EV,4,FALSE) ->  | O6: =VLOOKUP(P6,Artikelstamm!$A:$EV,4,FALSE) ->  | Y6: =VLOOKUP(Z6,Artikelstamm!$A:$EV,4,FALSE) ->  | AI6: =VLOOKUP(AJ6,Artikelstamm!$A:$EV,4,FALSE) ->  | AS6: =VLOOKUP(AT6,Artikelstamm!$A:$EV,4,FALSE) ->  | BC6: =VLOOKUP(BD6,Artikelstamm!$A:$EV,4,FALSE) -> 
E7: =VLOOKUP(F7,Artikelstamm!$A:$EV,4,FALSE) ->  | O7: =VLOOKUP(P7,Artikelstamm!$A:$EV,4,FALSE) ->  | Y7: =VLOOKUP(Z7,Artikelstamm!$A:$EV,4,FALSE) ->  | AI7: =VLOOKUP(AJ7,Artikelstamm!$A:$EV,4,FALSE) ->  | AS7: =VLOOKUP(AT7,Artikelstamm!$A:$EV,4,FALSE) ->  | BC7: =VLOOKUP(BD7,Artikelstamm!$A:$EV,4,FALSE) -> 
E8: =VLOOKUP(F8,Artikelstamm!$A:$EV,4,FALSE) ->  | O8: =VLOOKUP(P8,Artikelstamm!$A:$EV,4,FALSE) ->  | Y8: =VLOOKUP(Z8,Artikelstamm!$A:$EV,4,FALSE) ->  | AI8: =VLOOKUP(AJ8,Artikelstamm!$A:$EV,4,FALSE) ->  | AS8: =VLOOKUP(AT8,Artikelstamm!$A:$EV,4,FALSE) ->  | BC8: =VLOOKUP(BD8,Artikelstamm!$A:$EV,4,FALSE) -> 
E9: =VLOOKUP(F9,Artikelstamm!$A:$EV,4,FALSE) ->  | O9: =VLOOKUP(P9,Artikelstamm!$A:$EV,4,FALSE) ->  | Y9: =VLOOKUP(Z9,Artikelstamm!$A:$EV,4,FALSE) ->  | AI9: =VLOOKUP(AJ9,Artikelstamm!$A:$EV,4,FALSE) ->  | AS9: =VLOOKUP(AT9,Artikelstamm!$A:$EV,4,FALSE) ->  | BC9: =VLOOKUP(BD9,Artikelstamm!$A:$EV,4,FALSE) -> 
E10: =VLOOKUP(F10,Artikelstamm!$A:$EV,4,FALSE) ->  | O10: =VLOOKUP(P10,Artikelstamm!$A:$EV,4,FALSE) ->  | Y10: =VLOOKUP(Z10,Artikelstamm!$A:$EV,4,FALSE) ->  | AI10: =VLOOKUP(AJ10,Artikelstamm!$A:$EV,4,FALSE) ->  | AS10: =VLOOKUP(AT10,Artikelstamm!$A:$EV,4,FALSE) ->  | BC10: =VLOOKUP(BD10,Artikelstamm!$A:$EV,4,FALSE) -> 
B12: Vormischungen H. Frank | C12: Für | D12: Mischung | E12: Produkt | F12: Prod.-Nr. | J12: Menge | L12: =B12 -> Vormischungen H. Frank | M12: Für | N12: Mischung | O12: Produkt | P12: Prod.-Nr. | T12: Menge | V12: =L12 -> Vormischungen H. Frank | W12: Für | X12: Mischung | Y12: Produkt | Z12: Prod.-Nr. | AD12: Menge | AF12: =V12 -> Vormischungen H. Frank | AG12: Für | AH12: Mischung | AI12: Produkt | AJ12: Prod.-Nr. | AN12: Menge | AP12: =AF12 -> Vormischungen H. Frank | AQ12: Für | AR12: Mischung | AS12: Produkt | AT12: Prod.-Nr. | AX12: Menge | AZ12: =AP12 -> Vormischungen H. Frank | BA12: Für | BB12: Mischung | BC12: Produkt | BD12: Prod.-Nr. | BH12: Menge
E13: =VLOOKUP(F13,Artikelstamm!$A:$EV,4,FALSE) ->  | O13: =VLOOKUP(P13,Artikelstamm!$A:$EV,4,FALSE) ->  | Y13: =VLOOKUP(Z13,Artikelstamm!$A:$EV,4,FALSE) ->  | AI13: =VLOOKUP(AJ13,Artikelstamm!$A:$EV,4,FALSE) ->  | AS13: =VLOOKUP(AT13,Artikelstamm!$A:$EV,4,FALSE) ->  | BC13: =VLOOKUP(BD13,Artikelstamm!$A:$EV,4,FALSE) -> 
E14: =VLOOKUP(F14,Artikelstamm!$A:$EV,4,FALSE) ->  | O14: =VLOOKUP(P14,Artikelstamm!$A:$EV,4,FALSE) ->  | Y14: =VLOOKUP(Z14,Artikelstamm!$A:$EV,4,FALSE) ->  | AI14: =VLOOKUP(AJ14,Artikelstamm!$A:$EV,4,FALSE) ->  | AS14: =VLOOKUP(AT14,Artikelstamm!$A:$EV,4,FALSE) ->  | BC14: =VLOOKUP(BD14,Artikelstamm!$A:$EV,4,FALSE) -> 
E15: =VLOOKUP(F15,Artikelstamm!$A:$EV,4,FALSE) ->  | O15: =VLOOKUP(P15,Artikelstamm!$A:$EV,4,FALSE) ->  | Y15: =VLOOKUP(Z15,Artikelstamm!$A:$EV,4,FALSE) ->  | AI15: =VLOOKUP(AJ15,Artikelstamm!$A:$EV,4,FALSE) ->  | AS15: =VLOOKUP(AT15,Artikelstamm!$A:$EV,4,FALSE) ->  | BC15: =VLOOKUP(BD15,Artikelstamm!$A:$EV,4,FALSE) -> 
E16: =VLOOKUP(F16,Artikelstamm!$A:$EV,4,FALSE) ->  | O16: =VLOOKUP(P16,Artikelstamm!$A:$EV,4,FALSE) ->  | Y16: =VLOOKUP(Z16,Artikelstamm!$A:$EV,4,FALSE) ->  | AI16: =VLOOKUP(AJ16,Artikelstamm!$A:$EV,4,FALSE) ->  | AS16: =VLOOKUP(AT16,Artikelstamm!$A:$EV,4,FALSE) ->  | BC16: =VLOOKUP(BD16,Artikelstamm!$A:$EV,4,FALSE) -> 
E17: =VLOOKUP(F17,Artikelstamm!$A:$EV,4,FALSE) ->  | O17: =VLOOKUP(P17,Artikelstamm!$A:$EV,4,FALSE) ->  | Y17: =VLOOKUP(Z17,Artikelstamm!$A:$EV,4,FALSE) ->  | AI17: =VLOOKUP(AJ17,Artikelstamm!$A:$EV,4,FALSE) ->  | AS17: =VLOOKUP(AT17,Artikelstamm!$A:$EV,4,FALSE) ->  | BC17: =VLOOKUP(BD17,Artikelstamm!$A:$EV,4,FALSE) -> 
E18: =VLOOKUP(F18,Artikelstamm!$A:$EV,4,FALSE) ->  | O18: =VLOOKUP(P18,Artikelstamm!$A:$EV,4,FALSE) ->  | Y18: =VLOOKUP(Z18,Artikelstamm!$A:$EV,4,FALSE) ->  | AI18: =VLOOKUP(AJ18,Artikelstamm!$A:$EV,4,FALSE) ->  | AS18: =VLOOKUP(AT18,Artikelstamm!$A:$EV,4,FALSE) ->  | BC18: =VLOOKUP(BD18,Artikelstamm!$A:$EV,4,FALSE) -> 
C21: =C2 -> Montag: | G21: =G2 -> 2021-09-06 | M21: =M2 -> Dienstag: | Q21: =Q2 -> 2021-09-07 | W21: =W2 -> Mittwoch: | AA21: =AA2 -> 2021-09-08 | AG21: =AG2 -> Donnerstag: | AK21: =AK2 -> 2021-09-09 | AQ21: =AQ2 -> Freitag: | AU21: =AU2 -> 2021-09-10 | BA21: =BA2 -> Samstag: | BE21: =BE2 -> 2021-09-11
A22: Würzburg | B22: Mischerei | C22: Für | D22: Mischung | E22: Produkt | F22: Prod.-Nr. | J22: Menge | L22: =B22 -> Mischerei | M22: Für | N22: Mischung | O22: Produkt | P22: Prod.-Nr. | T22: Menge | V22: =L22 -> Mischerei | W22: Für | X22: Mischung | Y22: Produkt | Z22: Prod.-Nr. | AD22: Menge | AF22: =V22 -> Mischerei | AG22: Für | AH22: Mischung | AI22: Produkt | AJ22: Prod.-Nr. | AN22: Menge | AP22: =AF22 -> Mischerei | AQ22: Für | AR22: Mischung | AS22: Produkt | AT22: Prod.-Nr. | AX22: Menge | AZ22: =AP22 -> Mischerei | BA22: Für | BB22: Mischung | BC22: Produkt | BD22: Prod.-Nr. | BH22: Menge
E23: =VLOOKUP(F23,Artikelstamm!$A:$EV,4,FALSE) ->  | O23: =VLOOKUP(P23,Artikelstamm!$A:$EV,4,FALSE) ->  | Y23: =VLOOKUP(Z23,Artikelstamm!$A:$EV,4,FALSE) ->  | AI23: =VLOOKUP(AJ23,Artikelstamm!$A:$EV,4,FALSE) ->  | AS23: =VLOOKUP(AT23,Artikelstamm!$A:$EV,4,FALSE) ->  | BC23: =VLOOKUP(BD23,Artikelstamm!$A:$EV,4,FALSE) -> 
E24: =VLOOKUP(F24,Artikelstamm!$A:$EV,4,FALSE) ->  | O24: =VLOOKUP(P24,Artikelstamm!$A:$EV,4,FALSE) ->  | Y24: =VLOOKUP(Z24,Artikelstamm!$A:$EV,4,FALSE) ->  | AI24: =VLOOKUP(AJ24,Artikelstamm!$A:$EV,4,FALSE) ->  | AS24: =VLOOKUP(AT24,Artikelstamm!$A:$EV,4,FALSE) ->  | BC24: =VLOOKUP(BD24,Artikelstamm!$A:$EV,4,FALSE) -> 
E25: =VLOOKUP(F25,Artikelstamm!$A:$EV,4,FALSE) ->  | O25: =VLOOKUP(P25,Artikelstamm!$A:$EV,4,FALSE) ->  | Y25: =VLOOKUP(Z25,Artikelstamm!$A:$EV,4,FALSE) ->  | AI25: =VLOOKUP(AJ25,Artikelstamm!$A:$EV,4,FALSE) ->  | AS25: =VLOOKUP(AT25,Artikelstamm!$A:$EV,4,FALSE) ->  | BC25: =VLOOKUP(BD25,Artikelstamm!$A:$EV,4,FALSE) -> 
E26: =VLOOKUP(F26,Artikelstamm!$A:$EV,4,FALSE) ->  | O26: =VLOOKUP(P26,Artikelstamm!$A:$EV,4,FALSE) ->  | Y26: =VLOOKUP(Z26,Artikelstamm!$A:$EV,4,FALSE) ->  | AI26: =VLOOKUP(AJ26,Artikelstamm!$A:$EV,4,FALSE) ->  | AS26: =VLOOKUP(AT26,Artikelstamm!$A:$EV,4,FALSE) ->  | BC26: =VLOOKUP(BD26,Artikelstamm!$A:$EV,4,FALSE) -> 
E27: =VLOOKUP(F27,Artikelstamm!$A:$EV,4,FALSE) ->  | O27: =VLOOKUP(P27,Artikelstamm!$A:$EV,4,FALSE) ->  | Y27: =VLOOKUP(Z27,Artikelstamm!$A:$EV,4,FALSE) ->  | AI27: =VLOOKUP(AJ27,Artikelstamm!$A:$EV,4,FALSE) ->  | AS27: =VLOOKUP(AT27,Artikelstamm!$A:$EV,4,FALSE) ->  | BC27: =VLOOKUP(BD27,Artikelstamm!$A:$EV,4,FALSE) -> 
E28: =VLOOKUP(F28,Artikelstamm!$A:$EV,4,FALSE) ->  | O28: =VLOOKUP(P28,Artikelstamm!$A:$EV,4,FALSE) ->  | Y28: =VLOOKUP(Z28,Artikelstamm!$A:$EV,4,FALSE) ->  | AI28: =VLOOKUP(AJ28,Artikelstamm!$A:$EV,4,FALSE) ->  | AS28: =VLOOKUP(AT28,Artikelstamm!$A:$EV,4,FALSE) ->  | BC28: =VLOOKUP(BD28,Artikelstamm!$A:$EV,4,FALSE) -> 
E29: =VLOOKUP(F29,Artikelstamm!$A:$EV,4,FALSE) ->  | O29: =VLOOKUP(P29,Artikelstamm!$A:$EV,4,FALSE) ->  | Y29: =VLOOKUP(Z29,Artikelstamm!$A:$EV,4,FALSE) ->  | AI29: =VLOOKUP(AJ29,Artikelstamm!$A:$EV,4,FALSE) ->  | AS29: =VLOOKUP(AT29,Artikelstamm!$A:$EV,4,FALSE) ->  | BC29: =VLOOKUP(BD29,Artikelstamm!$A:$EV,4,FALSE) -> 
E30: =VLOOKUP(F30,Artikelstamm!$A:$EV,4,FALSE) ->  | O30: =VLOOKUP(P30,Artikelstamm!$A:$EV,4,FALSE) ->  | Y30: =VLOOKUP(Z30,Artikelstamm!$A:$EV,4,FALSE) ->  | AI30: =VLOOKUP(AJ30,Artikelstamm!$A:$EV,4,FALSE) ->  | AS30: =VLOOKUP(AT30,Artikelstamm!$A:$EV,4,FALSE) ->  | BC30: =VLOOKUP(BD30,Artikelstamm!$A:$EV,4,FALSE) -> 
E31: =VLOOKUP(F31,Artikelstamm!$A:$EV,4,FALSE) ->  | O31: =VLOOKUP(P31,Artikelstamm!$A:$EV,4,FALSE) ->  | Y31: =VLOOKUP(Z31,Artikelstamm!$A:$EV,4,FALSE) ->  | AI31: =VLOOKUP(AJ31,Artikelstamm!$A:$EV,4,FALSE) ->  | AS31: =VLOOKUP(AT31,Artikelstamm!$A:$EV,4,FALSE) ->  | BC31: =VLOOKUP(BD31,Artikelstamm!$A:$EV,4,FALSE) -> 
E32: =VLOOKUP(F32,Artikelstamm!$A:$EV,4,FALSE) ->  | O32: =VLOOKUP(P32,Artikelstamm!$A:$EV,4,FALSE) ->  | Y32: =VLOOKUP(Z32,Artikelstamm!$A:$EV,4,FALSE) ->  | AI32: =VLOOKUP(AJ32,Artikelstamm!$A:$EV,4,FALSE) ->  | AS32: =VLOOKUP(AT32,Artikelstamm!$A:$EV,4,FALSE) ->  | BC32: =VLOOKUP(BD32,Artikelstamm!$A:$EV,4,FALSE) -> 
E33: =VLOOKUP(F33,Artikelstamm!$A:$EV,4,FALSE) ->  | O33: =VLOOKUP(P33,Artikelstamm!$A:$EV,4,FALSE) ->  | Y33: =VLOOKUP(Z33,Artikelstamm!$A:$EV,4,FALSE) ->  | AI33: =VLOOKUP(AJ33,Artikelstamm!$A:$EV,4,FALSE) ->  | AS33: =VLOOKUP(AT33,Artikelstamm!$A:$EV,4,FALSE) ->  | BC33: =VLOOKUP(BD33,Artikelstamm!$A:$EV,4,FALSE) -> 
E34: =VLOOKUP(F34,Artikelstamm!$A:$EV,4,FALSE) ->  | O34: =VLOOKUP(P34,Artikelstamm!$A:$EV,4,FALSE) ->  | Y34: =VLOOKUP(Z34,Artikelstamm!$A:$EV,4,FALSE) ->  | AI34: =VLOOKUP(AJ34,Artikelstamm!$A:$EV,4,FALSE) ->  | AS34: =VLOOKUP(AT34,Artikelstamm!$A:$EV,4,FALSE) ->  | BC34: =VLOOKUP(BD34,Artikelstamm!$A:$EV,4,FALSE) -> 
E35: =VLOOKUP(F35,Artikelstamm!$A:$EV,4,FALSE) ->  | O35: =VLOOKUP(P35,Artikelstamm!$A:$EV,4,FALSE) ->  | Y35: =VLOOKUP(Z35,Artikelstamm!$A:$EV,4,FALSE) ->  | AI35: =VLOOKUP(AJ35,Artikelstamm!$A:$EV,4,FALSE) ->  | AS35: =VLOOKUP(AT35,Artikelstamm!$A:$EV,4,FALSE) ->  | BC35: =VLOOKUP(BD35,Artikelstamm!$A:$EV,4,FALSE) -> 

Sheet 1-Schicht
A1: Produktionsplanung Packerei | K1: Produktionsplanung Packerei | U1: Produktionsplanung Packerei | AE1: Produktionsplanung Packerei | AO1: Produktionsplanung Packerei | AY1: Produktionsplanung Packerei
A2: KW | B2: 39 | C2: Montag: | G2: =DATE($B$3,1,4)-WEEKDAY(DATE($B$3,1,4),2)+($B$2-1)*7+1 -> 2021-09-27 | K2: KW | L2: =$B$2 -> 39 | M2: Dienstag: | Q2: =DATE($B$3,1,4)-WEEKDAY(DATE($B$3,1,4),2)+($B$2-1)*7+2 -> 2021-09-28 | U2: KW | V2: =$B$2 -> 39 | W2: Mittwoch: | AA2: =DATE($B$3,1,4)-WEEKDAY(DATE($B$3,1,4),2)+($B$2-1)*7+3 -> 2021-09-29 | AE2: KW | AF2: =$B$2 -> 39 | AG2: Donnerstag: | AK2: =DATE($B$3,1,4)-WEEKDAY(DATE($B$3,1,4),2)+($B$2-1)*7+4 -> 2021-09-30 | AO2: KW | AP2: =$B$2 -> 39 | AQ2: Freitag: | AU2: =DATE($B$3,1,4)-WEEKDAY(DATE($B$3,1,4),2)+($B$2-1)*7+5 -> 2021-10-01 | AY2: KW | AZ2: =$B$2 -> 39 | BA2: Samstag: | BE2: =DATE($B$3,1,4)-WEEKDAY(DATE($B$3,1,4),2)+($B$2-1)*7+6 -> 2021-10-02
A3: 1-Schicht | B3: 2021 | C3: Stückzahl | D3: Gebinde- anzahl | E3: Gebinde-größe | F3: P-Artikel | G3: Produkt | H3: Lager | I3: Pal- Anz. | J3: Gewicht | K3: =$A$3 -> 1-Schicht | L3: =$B$3 -> 2021 | M3: Stückzahl | N3: Gebinde-anzahl | O3: Gebinde-größe | P3: P-Artikel | Q3: Produkt | R3: Lager | S3: Pal- Anz. | T3: Gewicht | U3: =$A$3 -> 1-Schicht | V3: =$B$3 -> 2021 | W3: Stückzahl | X3: Gebinde- anzahl | Y3: Gebinde-größe | Z3: P-Artikel | AA3: Produkt | AB3: Lager | AC3: Pal- Anz. | AD3: Gewicht | AE3: =$A$3 -> 1-Schicht | AF3: =$B$3 -> 2021 | AG3: Stückzahl | AH3: Gebinde- anzahl | AI3: Gebinde-größe | AJ3: P-Artikel | AK3: Produkt | AL3: Lager | AM3: Pal- Anz. | AN3: Gewicht | AO3: =$A$3 -> 1-Schicht | AP3: =$B$3 -> 2021 | AQ3: Stückzahl | AR3: Gebinde- anzahl | AS3: Gebinde-größe | AT3: P-Artikel | AU3: Produkt | AV3: Lager | AW3: Pal- Anz. | AX3: Gewicht | AY3: =$A$3 -> 1-Schicht | AZ3: =$B$3 -> 2021 | BA3: Stückzahl | BB3: Gebinde- anzahl | BC3: Gebinde-größe | BD3: P-Artikel | BE3: Produkt | BF3: Lager | BG3: Pal- Anz. | BH3: Gewicht
A4: Normalschicht | B4: 7:00 - 7:30 | E4: =VLOOKUP(F4,Artikelstamm!$A:$EV,15,FALSE) ->  | G4: =VLOOKUP(F4,Artikelstamm!$A:$EV,4,FALSE) ->  | K4: =$A4 -> Normalschicht | L4: =$B4 -> 7:00 - 7:30 | O4: =VLOOKUP(P4,Artikelstamm!$A:$EV,15,FALSE) ->  | Q4: =VLOOKUP(P4,Artikelstamm!$A:$EV,4,FALSE) ->  | U4: =$A4 -> Normalschicht | V4: =$B4 -> 7:00 - 7:30 | Y4: =VLOOKUP(Z4,Artikelstamm!$A:$EV,15,FALSE) ->  | AA4: =VLOOKUP(Z4,Artikelstamm!$A:$EV,4,FALSE) ->  | AE4: =$A4 -> Normalschicht | AF4: =$B4 -> 7:00 - 7:30 | AI4: =VLOOKUP(AJ4,Artikelstamm!$A:$EV,15,FALSE) ->  | AK4: =VLOOKUP(AJ4,Artikelstamm!$A:$EV,4,FALSE) ->  | AO4: =$A4 -> Normalschicht | AP4: =$B4 -> 7:00 - 7:30 | AS4: =VLOOKUP(AT4,Artikelstamm!$A:$EV,15,FALSE) ->  | AU4: =VLOOKUP(AT4,Artikelstamm!$A:$EV,4,FALSE) ->  | AY4: =$A4 -> Normalschicht | AZ4: =$B4 -> 7:00 - 7:30 | BC4: =VLOOKUP(BD4,Artikelstamm!$A:$EV,15,FALSE) ->  | BE4: =VLOOKUP(BD4,Artikelstamm!$A:$EV,4,FALSE) ->  | BF4: =VLOOKUP(BE4,#REF!,109,FALSE) -> 
B5: 7:30 - 8:00 | E5: =VLOOKUP(F5,Artikelstamm!$A:$EV,15,FALSE) ->  | G5: =VLOOKUP(F5,Artikelstamm!$A:$EV,4,FALSE) ->  | L5: 7:30 - 8:00 | O5: =VLOOKUP(P5,Artikelstamm!$A:$EV,15,FALSE) ->  | Q5: =VLOOKUP(P5,Artikelstamm!$A:$EV,4,FALSE) ->  | V5: 7:30 - 8:00 | Y5: =VLOOKUP(Z5,Artikelstamm!$A:$EV,15,FALSE) ->  | AA5: =VLOOKUP(Z5,Artikelstamm!$A:$EV,4,FALSE) ->  | AF5: 7:30 - 8:00 | AI5: =VLOOKUP(AJ5,Artikelstamm!$A:$EV,15,FALSE) ->  | AK5: =VLOOKUP(AJ5,Artikelstamm!$A:$EV,4,FALSE) ->  | AP5: 7:30 - 8:00 | AS5: =VLOOKUP(AT5,Artikelstamm!$A:$EV,15,FALSE) ->  | AU5: =VLOOKUP(AT5,Artikelstamm!$A:$EV,4,FALSE) ->  | AZ5: 7:30 - 8:00 | BC5: =VLOOKUP(BD5,Artikelstamm!$A:$EV,15,FALSE) ->  | BE5: =VLOOKUP(BD5,Artikelstamm!$A:$EV,4,FALSE) -> 
B6: 08:00 - 8:30 | E6: =VLOOKUP(F6,Artikelstamm!$A:$EV,15,FALSE) ->  | G6: =VLOOKUP(F6,Artikelstamm!$A:$EV,4,FALSE) ->  | L6: 08:00 - 8:30 | O6: =VLOOKUP(P6,Artikelstamm!$A:$EV,15,FALSE) ->  | Q6: =VLOOKUP(P6,Artikelstamm!$A:$EV,4,FALSE) ->  | V6: 08:00 - 8:30 | Y6: =VLOOKUP(Z6,Artikelstamm!$A:$EV,15,FALSE) ->  | AA6: =VLOOKUP(Z6,Artikelstamm!$A:$EV,4,FALSE) ->  | AF6: 08:00 - 8:30 | AI6: =VLOOKUP(AJ6,Artikelstamm!$A:$EV,15,FALSE) ->  | AK6: =VLOOKUP(AJ6,Artikelstamm!$A:$EV,4,FALSE) ->  | AP6: 08:00 - 8:30 | AS6: =VLOOKUP(AT6,Artikelstamm!$A:$EV,15,FALSE) ->  | AU6: =VLOOKUP(AT6,Artikelstamm!$A:$EV,4,FALSE) ->  | AZ6: 08:00 - 8:30 | BC6: =VLOOKUP(BD6,Artikelstamm!$A:$EV,15,FALSE) ->  | BE6: =VLOOKUP(BD6,Artikelstamm!$A:$EV,4,FALSE) -> 
B7: 08:30 - 9:00 | E7: =VLOOKUP(F7,Artikelstamm!$A:$EV,15,FALSE) ->  | G7: =VLOOKUP(F7,Artikelstamm!$A:$EV,4,FALSE) ->  | L7: 08:30 - 9:00 | O7: =VLOOKUP(P7,Artikelstamm!$A:$EV,15,FALSE) ->  | Q7: =VLOOKUP(P7,Artikelstamm!$A:$EV,4,FALSE) ->  | V7: 08:30 - 9:00 | Y7: =VLOOKUP(Z7,Artikelstamm!$A:$EV,15,FALSE) ->  | AA7: =VLOOKUP(Z7,Artikelstamm!$A:$EV,4,FALSE) ->  | AF7: 08:30 - 9:00 | AI7: =VLOOKUP(AJ7,Artikelstamm!$A:$EV,15,FALSE) ->  | AK7: =VLOOKUP(AJ7,Artikelstamm!$A:$EV,4,FALSE) ->  | AP7: 08:30 - 9:00 | AS7: =VLOOKUP(AT7,Artikelstamm!$A:$EV,15,FALSE) ->  | AU7: =VLOOKUP(AT7,Artikelstamm!$A:$EV,4,FALSE) ->  | AZ7: 08:30 - 9:00 | BC7: =VLOOKUP(BD7,Artikelstamm!$A:$EV,15,FALSE) ->  | BE7: =VLOOKUP(BD7,Artikelstamm!$A:$EV,4,FALSE) -> 
B8: 09:00 - 9:30 | E8: =VLOOKUP(F8,Artikelstamm!$A:$EV,15,FALSE) ->  | G8: =VLOOKUP(F8,Artikelstamm!$A:$EV,4,FALSE) ->  | L8: 09:00 - 9:30 | O8: =VLOOKUP(P8,Artikelstamm!$A:$EV,15,FALSE) ->  | Q8: =VLOOKUP(P8,Artikelstamm!$A:$EV,4,FALSE) ->  | V8: 09:00 - 9:30 | Y8: =VLOOKUP(Z8,Artikelstamm!$A:$EV,15,FALSE) ->  | AA8: =VLOOKUP(Z8,Artikelstamm!$A:$EV,4,FALSE) ->  | AF8: 09:00 - 9:30 | AI8: =VLOOKUP(AJ8,Artikelstamm!$A:$EV,15,FALSE) ->  | AK8: =VLOOKUP(AJ8,Artikelstamm!$A:$EV,4,FALSE) ->  | AP8: 09:00 - 9:30 | AS8: =VLOOKUP(AT8,Artikelstamm!$A:$EV,15,FALSE) ->  | AU8: =VLOOKUP(AT8,Artikelstamm!$A:$EV,4,FALSE) ->  | AZ8: 09:00 - 9:30 | BC8: =VLOOKUP(BD8,Artikelstamm!$A:$EV,15,FALSE) ->  | BE8: =VLOOKUP(BD8,Artikelstamm!$A:$EV,4,FALSE) -> 
B9: 09:30 - 10:00 | D9: Pause | G9: Pause | L9: 09:30 - 10:00 | N9: Pause | Q9: Pause | V9: 09:30 - 10:00 | X9: Pause | AA9: Pause | AF9: 09:30 - 10:00 | AH9: Pause | AK9: Pause | AP9: 09:30 - 10:00 | AR9: Pause | AU9: Pause | AZ9: 09:30 - 10:00 | BB9: Pause | BE9: Pause
B10: 10:00 - 10:30 | E10: =VLOOKUP(F10,Artikelstamm!$A:$EV,15,FALSE) ->  | G10: =VLOOKUP(F10,Artikelstamm!$A:$EV,4,FALSE) ->  | L10: 10:00 - 10:30 | O10: =VLOOKUP(P10,Artikelstamm!$A:$EV,15,FALSE) ->  | Q10: =VLOOKUP(P10,Artikelstamm!$A:$EV,4,FALSE) ->  | V10: 10:00 - 10:30 | Y10: =VLOOKUP(Z10,Artikelstamm!$A:$EV,15,FALSE) ->  | AA10: =VLOOKUP(Z10,Artikelstamm!$A:$EV,4,FALSE) ->  | AF10: 10:00 - 10:30 | AI10: =VLOOKUP(AJ10,Artikelstamm!$A:$EV,15,FALSE) ->  | AK10: =VLOOKUP(AJ10,Artikelstamm!$A:$EV,4,FALSE) ->  | AP10: 10:00 - 10:30 | AS10: =VLOOKUP(AT10,Artikelstamm!$A:$EV,15,FALSE) ->  | AU10: =VLOOKUP(AT10,Artikelstamm!$A:$EV,4,FALSE) ->  | AZ10: 10:00 - 10:30 | BC10: =VLOOKUP(BD10,Artikelstamm!$A:$EV,15,FALSE) ->  | BE10: =VLOOKUP(BD10,Artikelstamm!$A:$EV,4,FALSE) -> 
B11: 10:30 - 11:00 | E11: =VLOOKUP(F11,Artikelstamm!$A:$EV,15,FALSE) ->  | G11: =VLOOKUP(F11,Artikelstamm!$A:$EV,4,FALSE) ->  | L11: 10:30 - 11:00 | O11: =VLOOKUP(P11,Artikelstamm!$A:$EV,15,FALSE) ->  | Q11: =VLOOKUP(P11,Artikelstamm!$A:$EV,4,FALSE) ->  | V11: 10:30 - 11:00 | Y11: =VLOOKUP(Z11,Artikelstamm!$A:$EV,15,FALSE) ->  | AA11: =VLOOKUP(Z11,Artikelstamm!$A:$EV,4,FALSE) ->  | AF11: 10:30 - 11:00 | AI11: =VLOOKUP(AJ11,Artikelstamm!$A:$EV,15,FALSE) ->  | AK11: =VLOOKUP(AJ11,Artikelstamm!$A:$EV,4,FALSE) ->  | AP11: 10:30 - 11:00 | AS11: =VLOOKUP(AT11,Artikelstamm!$A:$EV,15,FALSE) ->  | AU11: =VLOOKUP(AT11,Artikelstamm!$A:$EV,4,FALSE) ->  | AZ11: 10:30 - 11:00 | BC11: =VLOOKUP(BD11,Artikelstamm!$A:$EV,15,FALSE) ->  | BE11: =VLOOKUP(BD11,Artikelstamm!$A:$EV,4,FALSE) -> 
B12: 11:00 - 11:30 | E12: =VLOOKUP(F12,Artikelstamm!$A:$EV,15,FALSE) ->  | G12: =VLOOKUP(F12,Artikelstamm!$A:$EV,4,FALSE) ->  | L12: 11:00 - 11:30 | O12: =VLOOKUP(P12,Artikelstamm!$A:$EV,15,FALSE) ->  | Q12: =VLOOKUP(P12,Artikelstamm!$A:$EV,4,FALSE) ->  | V12: 11:00 - 11:30 | Y12: =VLOOKUP(Z12,Artikelstamm!$A:$EV,15,FALSE) ->  | AA12: =VLOOKUP(Z12,Artikelstamm!$A:$EV,4,FALSE) ->  | AF12: 11:00 - 11:30 | AI12: =VLOOKUP(AJ12,Artikelstamm!$A:$EV,15,FALSE) ->  | AK12: =VLOOKUP(AJ12,Artikelstamm!$A:$EV,4,FALSE) ->  | AP12: 11:00 - 11:30 | AS12: =VLOOKUP(AT12,Artikelstamm!$A:$EV,15,FALSE) ->  | AU12: =VLOOKUP(AT12,Artikelstamm!$A:$EV,4,FALSE) ->  | AZ12: 11:00 - 11:30 | BC12: =VLOOKUP(BD12,Artikelstamm!$A:$EV,15,FALSE) ->  | BE12: =VLOOKUP(BD12,Artikelstamm!$A:$EV,4,FALSE) -> 
B13: 11:30 - 12:00 | E13: =VLOOKUP(F13,Artikelstamm!$A:$EV,15,FALSE) ->  | G13: =VLOOKUP(F13,Artikelstamm!$A:$EV,4,FALSE) ->  | L13: 11:30 - 12:00 | O13: =VLOOKUP(P13,Artikelstamm!$A:$EV,15,FALSE) ->  | Q13: =VLOOKUP(P13,Artikelstamm!$A:$EV,4,FALSE) ->  | V13: 11:30 - 12:00 | Y13: =VLOOKUP(Z13,Artikelstamm!$A:$EV,15,FALSE) ->  | AA13: =VLOOKUP(Z13,Artikelstamm!$A:$EV,4,FALSE) ->  | AF13: 11:30 - 12:00 | AI13: =VLOOKUP(AJ13,Artikelstamm!$A:$EV,15,FALSE) ->  | AK13: =VLOOKUP(AJ13,Artikelstamm!$A:$EV,4,FALSE) ->  | AP13: 11:30 - 12:00 | AS13: =VLOOKUP(AT13,Artikelstamm!$A:$EV,15,FALSE) ->  | AU13: =VLOOKUP(AT13,Artikelstamm!$A:$EV,4,FALSE) ->  | AZ13: 11:30 - 12:00 | BC13: =VLOOKUP(BD13,Artikelstamm!$A:$EV,15,FALSE) ->  | BE13: =VLOOKUP(BD13,Artikelstamm!$A:$EV,4,FALSE) -> 
B14: 12:00 - 12:30 | E14: =VLOOKUP(F14,Artikelstamm!$A:$EV,15,FALSE) ->  | G14: =VLOOKUP(F14,Artikelstamm!$A:$EV,4,FALSE) ->  | L14: 12:00 - 12:30 | O14: =VLOOKUP(P14,Artikelstamm!$A:$EV,15,FALSE) ->  | Q14: =VLOOKUP(P14,Artikelstamm!$A:$EV,4,FALSE) ->  | V14: 12:00 - 12:30 | Y14: =VLOOKUP(Z14,Artikelstamm!$A:$EV,15,FALSE) ->  | AA14: =VLOOKUP(Z14,Artikelstamm!$A:$EV,4,FALSE) ->  | AF14: =$B14 -> 12:00 - 12:30 | AI14: =VLOOKUP(AJ14,Artikelstamm!$A:$EV,15,FALSE) ->  | AK14: =VLOOKUP(AJ14,Artikelstamm!$A:$EV,4,FALSE) ->  | AP14: 12:00 - 12:30 | AS14: =VLOOKUP(AT14,Artikelstamm!$A:$EV,15,FALSE) ->  | AU14: =VLOOKUP(AT14,Artikelstamm!$A:$EV,4,FALSE) ->  | AZ14: 12:00 - 12:30 | BC14: =VLOOKUP(BD14,Artikelstamm!$A:$EV,15,FALSE) ->  | BE14: =VLOOKUP(BD14,Artikelstamm!$A:$EV,4,FALSE) -> 
B15: 12:30 - 13:00 | E15: =VLOOKUP(F15,Artikelstamm!$A:$EV,15,FALSE) ->  | G15: =VLOOKUP(F15,Artikelstamm!$A:$EV,4,FALSE) ->  | L15: 12:30 - 13:00 | O15: =VLOOKUP(P15,Artikelstamm!$A:$EV,15,FALSE) ->  | Q15: =VLOOKUP(P15,Artikelstamm!$A:$EV,4,FALSE) ->  | V15: 12:30 - 13:00 | Y15: =VLOOKUP(Z15,Artikelstamm!$A:$EV,15,FALSE) ->  | AA15: =VLOOKUP(Z15,Artikelstamm!$A:$EV,4,FALSE) ->  | AF15: 12:30 - 13:00 | AI15: =VLOOKUP(AJ15,Artikelstamm!$A:$EV,15,FALSE) ->  | AK15: =VLOOKUP(AJ15,Artikelstamm!$A:$EV,4,FALSE) ->  | AP15: 12:30 - 13:00 | AS15: =VLOOKUP(AT15,Artikelstamm!$A:$EV,15,FALSE) ->  | AU15: =VLOOKUP(AT15,Artikelstamm!$A:$EV,4,FALSE) ->  | AZ15: 12:30 - 13:00 | BC15: =VLOOKUP(BD15,Artikelstamm!$A:$EV,15,FALSE) ->  | BE15: =VLOOKUP(BD15,Artikelstamm!$A:$EV,4,FALSE) -> 
B16: 13:00 - 13:30 | D16: Pause | G16: Pause | L16: 13:00 - 13:30 | N16: Pause | Q16: Pause | V16: 13:00 - 13:30 | X16: Pause | AA16: Pause | AF16: 13:00 - 13:30 | AH16: Pause | AK16: Pause | AP16: 13:00 - 13:30 | AR16: Pause | AU16: Pause | AZ16: 13:00 - 13:30 | BB16: Pause | BE16: Pause
B17: 13:30 - 14:00 | E17: =VLOOKUP(F17,Artikelstamm!$A:$EV,15,FALSE) ->  | G17: =VLOOKUP(F17,Artikelstamm!$A:$EV,4,FALSE) ->  | L17: 13:30 - 14:00 | O17: =VLOOKUP(P17,Artikelstamm!$A:$EV,15,FALSE) ->  | Q17: =VLOOKUP(P17,Artikelstamm!$A:$EV,4,FALSE) ->  | V17: 13:30 - 14:00 | Y17: =VLOOKUP(Z17,Artikelstamm!$A:$EV,15,FALSE) ->  | AA17: =VLOOKUP(Z17,Artikelstamm!$A:$EV,4,FALSE) ->  | AF17: 13:30 - 14:00 | AI17: =VLOOKUP(AJ17,Artikelstamm!$A:$EV,15,FALSE) ->  | AK17: =VLOOKUP(AJ17,Artikelstamm!$A:$EV,4,FALSE) ->  | AP17: 13:30 - 14:00 | AS17: =VLOOKUP(AT17,Artikelstamm!$A:$EV,15,FALSE) ->  | AU17: =VLOOKUP(AT17,Artikelstamm!$A:$EV,4,FALSE) ->  | AZ17: 13:30 - 14:00 | BC17: =VLOOKUP(BD17,Artikelstamm!$A:$EV,15,FALSE) ->  | BE17: =VLOOKUP(BD17,Artikelstamm!$A:$EV,4,FALSE) -> 
B18: 14:00 - 14:30 | E18: =VLOOKUP(F18,Artikelstamm!$A:$EV,15,FALSE) ->  | G18: =VLOOKUP(F18,Artikelstamm!$A:$EV,4,FALSE) ->  | L18: 14:00 - 14:30 | O18: =VLOOKUP(P18,Artikelstamm!$A:$EV,15,FALSE) ->  | Q18: =VLOOKUP(P18,Artikelstamm!$A:$EV,4,FALSE) ->  | V18: 14:00 - 14:30 | Y18: =VLOOKUP(Z18,Artikelstamm!$A:$EV,15,FALSE) ->  | AA18: =VLOOKUP(Z18,Artikelstamm!$A:$EV,4,FALSE) ->  | AF18: 14:00 - 14:30 | AI18: =VLOOKUP(AJ18,Artikelstamm!$A:$EV,15,FALSE) ->  | AK18: =VLOOKUP(AJ18,Artikelstamm!$A:$EV,4,FALSE) ->  | AP18: 14:00 - 14:30 | AS18: =VLOOKUP(AT18,Artikelstamm!$A:$EV,15,FALSE) ->  | AU18: =VLOOKUP(AT18,Artikelstamm!$A:$EV,4,FALSE) ->  | AZ18: 14:00 - 14:30 | BC18: =VLOOKUP(BD18,Artikelstamm!$A:$EV,15,FALSE) ->  | BE18: =VLOOKUP(BD18,Artikelstamm!$A:$EV,4,FALSE) -> 
B19: 14:30 - 15:00 | E19: =VLOOKUP(F19,Artikelstamm!$A:$EV,15,FALSE) ->  | G19: =VLOOKUP(F19,Artikelstamm!$A:$EV,4,FALSE) ->  | L19: 14:30 - 15:00 | O19: =VLOOKUP(P19,Artikelstamm!$A:$EV,15,FALSE) ->  | Q19: =VLOOKUP(P19,Artikelstamm!$A:$EV,4,FALSE) ->  | V19: 14:30 - 15:00 | Y19: =VLOOKUP(Z19,Artikelstamm!$A:$EV,15,FALSE) ->  | AA19: =VLOOKUP(Z19,Artikelstamm!$A:$EV,4,FALSE) ->  | AF19: 14:30 - 15:00 | AI19: =VLOOKUP(AJ19,Artikelstamm!$A:$EV,15,FALSE) ->  | AK19: =VLOOKUP(AJ19,Artikelstamm!$A:$EV,4,FALSE) ->  | AP19: 14:30 - 15:00 | AS19: =VLOOKUP(AT19,Artikelstamm!$A:$EV,15,FALSE) ->  | AU19: =VLOOKUP(AT19,Artikelstamm!$A:$EV,4,FALSE) ->  | AZ19: 14:30 - 15:00 | BC19: =VLOOKUP(BD19,Artikelstamm!$A:$EV,15,FALSE) ->  | BE19: =VLOOKUP(BD19,Artikelstamm!$A:$EV,4,FALSE) -> 
B20: 15:00 - 15:30 | E20: =VLOOKUP(F20,Artikelstamm!$A:$EV,15,FALSE) ->  | G20: =VLOOKUP(F20,Artikelstamm!$A:$EV,4,FALSE) ->  | L20: 15:00 - 15:30 | O20: =VLOOKUP(P20,Artikelstamm!$A:$EV,15,FALSE) ->  | Q20: =VLOOKUP(P20,Artikelstamm!$A:$EV,4,FALSE) ->  | V20: 15:00 - 15:30 | Y20: =VLOOKUP(Z20,Artikelstamm!$A:$EV,15,FALSE) ->  | AA20: =VLOOKUP(Z20,Artikelstamm!$A:$EV,4,FALSE) ->  | AF20: 15:00 - 15:30 | AI20: =VLOOKUP(AJ20,Artikelstamm!$A:$EV,15,FALSE) ->  | AK20: =VLOOKUP(AJ20,Artikelstamm!$A:$EV,4,FALSE) ->  | AP20: 15:00 - 15:30 | AS20: =VLOOKUP(AT20,Artikelstamm!$A:$EV,15,FALSE) ->  | AU20: =VLOOKUP(AT20,Artikelstamm!$A:$EV,4,FALSE) ->  | AZ20: 15:00 - 15:30 | BC20: =VLOOKUP(BD20,Artikelstamm!$A:$EV,15,FALSE) ->  | BE20: =VLOOKUP(BD20,Artikelstamm!$A:$EV,4,FALSE) -> 
B21: 15:30 - 16:00 | E21: =VLOOKUP(F21,Artikelstamm!$A:$EV,15,FALSE) ->  | G21: =VLOOKUP(F21,Artikelstamm!$A:$EV,4,FALSE) ->  | L21: 15:30 - 16:00 | O21: =VLOOKUP(P21,Artikelstamm!$A:$EV,15,FALSE) ->  | Q21: =VLOOKUP(P21,Artikelstamm!$A:$EV,4,FALSE) ->  | V21: 15:30 - 16:00 | Y21: =VLOOKUP(Z21,Artikelstamm!$A:$EV,15,FALSE) ->  | AA21: =VLOOKUP(Z21,Artikelstamm!$A:$EV,4,FALSE) ->  | AF21: 15:30 - 16:00 | AI21: =VLOOKUP(AJ21,Artikelstamm!$A:$EV,15,FALSE) ->  | AK21: =VLOOKUP(AJ21,Artikelstamm!$A:$EV,4,FALSE) ->  | AP21: 15:30 - 16:00 | AS21: =VLOOKUP(AT21,Artikelstamm!$A:$EV,15,FALSE) ->  | AU21: =VLOOKUP(AT21,Artikelstamm!$A:$EV,4,FALSE) ->  | AZ21: 15:30 - 16:00 | BC21: =VLOOKUP(BD21,Artikelstamm!$A:$EV,15,FALSE) ->  | BE21: =VLOOKUP(BD21,Artikelstamm!$A:$EV,4,FALSE) -> 
B22: 16:00 - 16:30 | E22: =VLOOKUP(F22,Artikelstamm!$A:$EV,15,FALSE) ->  | G22: =VLOOKUP(F22,Artikelstamm!$A:$EV,4,FALSE) ->  | L22: 16:00 - 16:30 | O22: =VLOOKUP(P22,Artikelstamm!$A:$EV,15,FALSE) ->  | Q22: =VLOOKUP(P22,Artikelstamm!$A:$EV,4,FALSE) ->  | V22: 16:00 - 16:30 | Y22: =VLOOKUP(Z22,Artikelstamm!$A:$EV,15,FALSE) ->  | AA22: =VLOOKUP(Z22,Artikelstamm!$A:$EV,4,FALSE) ->  | AF22: 16:00 - 16:30 | AI22: =VLOOKUP(AJ22,Artikelstamm!$A:$EV,15,FALSE) ->  | AK22: =VLOOKUP(AJ22,Artikelstamm!$A:$EV,4,FALSE) ->  | AP22: 16:00 - 16:30 | AS22: =VLOOKUP(AT22,Artikelstamm!$A:$EV,15,FALSE) ->  | AU22: =VLOOKUP(AT22,Artikelstamm!$A:$EV,4,FALSE) ->  | AZ22: 16:00 - 16:30 | BC22: =VLOOKUP(BD22,Artikelstamm!$A:$EV,15,FALSE) ->  | BE22: =VLOOKUP(BD22,Artikelstamm!$A:$EV,4,FALSE) -> 
A23: Übertrag: | K23: =$A23 -> Übertrag: | U23: =$A23 -> Übertrag: | AE23: =$A23 -> Übertrag: | AO23: =$A23 -> Übertrag: | AY23: =$A23 -> Übertrag:
A24: Summe: | C24: =SUM(C4:C23) -> 0 | D24: =SUM(D4:D23) -> 0 | I24: =SUM(I4:I22) -> 0 | K24: =$A24 -> Summe: | M24: =SUM(M4:M23) -> 0 | N24: =SUM(N4:N23) -> 0 | S24: =SUM(S4:S22) -> 0 | U24: =$A24 -> Summe: | W24: =SUM(W4:W23) -> 0 | X24: =SUM(X4:X23) -> 0 | AC24: =SUM(AC4:AC22) -> 0 | AE24: =$A24 -> Summe: | AG24: =SUM(AG4:AG23) -> 0 | AH24: =SUM(AH4:AH23) -> 0 | AM24: =SUM(AM4:AM22) -> 0 | AO24: =$A24 -> Summe: | AQ24: =SUM(AQ4:AQ23) -> 0 | AR24: =SUM(AR4:AR23) -> 0 | AW24: =SUM(AW4:AW22) -> 0 | AY24: =$A24 -> Summe: | BA24: =SUM(BA4:BA23) -> 0 | BB24: =SUM(BB4:BB23) -> 0 | BG24: =SUM(BG4:BG22) -> 0
A26: Wochenleistung | K26: Wochenleistung | U26: Wochenleistung | AE26: Wochenleistung | AO26: Wochenleistung | AY26: Wochenleistung
A27: Gebinde | B27: =$C$24+$M$24+$W$24+$AG$24+$AQ$24 -> 0 | K27: Gebinde | L27: =$B27 -> 0 | U27: Gebinde | V27: =$B27 -> 0 | AE27: Gebinde | AF27: =$B27 -> 0 | AO27: Gebinde | AP27: =$B27 -> 0 | AY27: Gebinde | AZ27: =$B27 -> 0
A28: Paletten | B28: =$I$24+$S$24+$AC$24+$AM$24+$AW$24 -> 0 | K28: Paletten | L28: =$B28 -> 0 | U28: Paletten | V28: =$B28 -> 0 | AE28: Paletten | AF28: =$B28 -> 0 | AO28: Paletten | AP28: =$B28 -> 0 | AY28: Paletten | AZ28: =$B28 -> 0
A29: Zusatzleistung | K29: Zusatzleistung | U29: Zusatzleistung | AE29: Zusatzleistung | AO29: Zusatzleistung | AY29: Zusatzleistung
A30: Gebinde | B30: =$BA$24 -> 0 | K30: Gebinde | L30: =$B30 -> 0 | U30: Gebinde | V30: =$B30 -> 0 | AE30: Gebinde | AF30: =$B30 -> 0 | AO30: Gebinde | AP30: =$B30 -> 0 | AY30: Gebinde | AZ30: =$B30 -> 0
A31: Paletten | B31: =$BG$25 -> 0 | K31: Paletten | L31: =$B31 -> 0 | U31: Paletten | V31: =$B31 -> 0 | AE31: Paletten | AF31: =$B31 -> 0 | AO31: Paletten | AP31: =$B31 -> 0 | AY31: Paletten | AZ31: =$B31 -> 0

Sheet 1-Schicht+Mischungen
A1: Produktionsplanung Packerei | K1: Produktionsplanung Packerei | U1: Produktionsplanung Packerei | AE1: Produktionsplanung Packerei | AO1: Produktionsplanung Packerei | AY1: Produktionsplanung Packerei
A2: KW | B2: 39 | C2: Montag: | G2: =DATE($B$3,1,4)-WEEKDAY(DATE($B$3,1,4),2)+($B$2-1)*7+1 -> 2021-09-27 | K2: KW | L2: =$B$2 -> 39 | M2: Dienstag: | Q2: =DATE($B$3,1,4)-WEEKDAY(DATE($B$3,1,4),2)+($B$2-1)*7+2 -> 2021-09-28 | U2: KW | V2: =$B$2 -> 39 | W2: Mittwoch: | AA2: =DATE($B$3,1,4)-WEEKDAY(DATE($B$3,1,4),2)+($B$2-1)*7+3 -> 2021-09-29 | AE2: KW | AF2: =$B$2 -> 39 | AG2: Donnerstag: | AK2: =DATE($B$3,1,4)-WEEKDAY(DATE($B$3,1,4),2)+($B$2-1)*7+4 -> 2021-09-30 | AO2: KW | AP2: =$B$2 -> 39 | AQ2: Freitag: | AU2: =DATE($B$3,1,4)-WEEKDAY(DATE($B$3,1,4),2)+($B$2-1)*7+5 -> 2021-10-01 | AY2: KW | AZ2: =$B$2 -> 39 | BA2: Samstag: | BE2: =DATE($B$3,1,4)-WEEKDAY(DATE($B$3,1,4),2)+($B$2-1)*7+6 -> 2021-10-02
A3: 1-Schicht | B3: 2021 | C3: Stückzahl | D3: Gebinde- anzahl | E3: Gebinde-größe | F3: P-Artikel | G3: Produkt | H3: Lager | I3: Pal- Anz. | J3: Gewicht | K3: =$A$3 -> 1-Schicht | L3: =$B$3 -> 2021 | M3: Stückzahl | N3: Gebinde-anzahl | O3: Gebinde-größe | P3: P-Artikel | Q3: Produkt | R3: Lager | S3: Pal- Anz. | T3: Gewicht | U3: =$A$3 -> 1-Schicht | V3: =$B$3 -> 2021 | W3: Stückzahl | X3: Gebinde- anzahl | Y3: Gebinde-größe | Z3: P-Artikel | AA3: Produkt | AB3: Lager | AC3: Pal- Anz. | AD3: Gewicht | AE3: =$A$3 -> 1-Schicht | AF3: =$B$3 -> 2021 | AG3: Stückzahl | AH3: Gebinde- anzahl | AI3: Gebinde-größe | AJ3: P-Artikel | AK3: Produkt | AL3: Lager | AM3: Pal- Anz. | AN3: Gewicht | AO3: =$A$3 -> 1-Schicht | AP3: =$B$3 -> 2021 | AQ3: Stückzahl | AR3: Gebinde- anzahl | AS3: Gebinde-größe | AT3: P-Artikel | AU3: Produkt | AV3: Lager | AW3: Pal- Anz. | AX3: Gewicht | AY3: =$A$3 -> 1-Schicht | AZ3: =$B$3 -> 2021 | BA3: Stückzahl | BB3: Gebinde- anzahl | BC3: Gebinde-größe | BD3: P-Artikel | BE3: Produkt | BF3: Lager | BG3: Pal- Anz. | BH3: Gewicht
A4: Normalschicht | B4: 7:00 - 7:30 | E4: =VLOOKUP(F4,Artikelstamm!$A:$EV,15,FALSE) ->  | G4: =VLOOKUP(F4,Artikelstamm!$A:$EV,4,FALSE) ->  | K4: =$A4 -> Normalschicht | L4: =$B4 -> 7:00 - 7:30 | O4: =VLOOKUP(P4,Artikelstamm!$A:$EV,15,FALSE) ->  | Q4: =VLOOKUP(P4,Artikelstamm!$A:$EV,4,FALSE) ->  | U4: =$A4 -> Normalschicht | V4: =$B4 -> 7:00 - 7:30 | Y4: =VLOOKUP(Z4,Artikelstamm!$A:$EV,15,FALSE) ->  | AA4: =VLOOKUP(Z4,Artikelstamm!$A:$EV,4,FALSE) ->  | AE4: =$A4 -> Normalschicht | AF4: =$B4 -> 7:00 - 7:30 | AI4: =VLOOKUP(AJ4,Artikelstamm!$A:$EV,15,FALSE) ->  | AK4: =VLOOKUP(AJ4,Artikelstamm!$A:$EV,4,FALSE) ->  | AO4: =$A4 -> Normalschicht | AP4: =$B4 -> 7:00 - 7:30 | AS4: =VLOOKUP(AT4,Artikelstamm!$A:$EV,15,FALSE) ->  | AU4: =VLOOKUP(AT4,Artikelstamm!$A:$EV,4,FALSE) ->  | AY4: =$A4 -> Normalschicht | AZ4: =$B4 -> 7:00 - 7:30 | BC4: =VLOOKUP(BD4,Artikelstamm!$A:$EV,15,FALSE) ->  | BE4: =VLOOKUP(BD4,Artikelstamm!$A:$EV,4,FALSE) ->  | BF4: =VLOOKUP(BE4,#REF!,109,FALSE) -> 
B5: 7:30 - 8:00 | E5: =VLOOKUP(F5,Artikelstamm!$A:$EV,15,FALSE) ->  | G5: =VLOOKUP(F5,Artikelstamm!$A:$EV,4,FALSE) ->  | L5: 7:30 - 8:00 | O5: =VLOOKUP(P5,Artikelstamm!$A:$EV,15,FALSE) ->  | Q5: =VLOOKUP(P5,Artikelstamm!$A:$EV,4,FALSE) ->  | V5: 7:30 - 8:00 | Y5: =VLOOKUP(Z5,Artikelstamm!$A:$EV,15,FALSE) ->  | AA5: =VLOOKUP(Z5,Artikelstamm!$A:$EV,4,FALSE) ->  | AF5: 7:30 - 8:00 | AI5: =VLOOKUP(AJ5,Artikelstamm!$A:$EV,15,FALSE) ->  | AK5: =VLOOKUP(AJ5,Artikelstamm!$A:$EV,4,FALSE) ->  | AP5: 7:30 - 8:00 | AS5: =VLOOKUP(AT5,Artikelstamm!$A:$EV,15,FALSE) ->  | AU5: =VLOOKUP(AT5,Artikelstamm!$A:$EV,4,FALSE) ->  | AZ5: 7:30 - 8:00 | BC5: =VLOOKUP(BD5,Artikelstamm!$A:$EV,15,FALSE) ->  | BE5: =VLOOKUP(BD5,Artikelstamm!$A:$EV,4,FALSE) -> 
B6: 08:00 - 8:30 | E6: =VLOOKUP(F6,Artikelstamm!$A:$EV,15,FALSE) ->  | G6: =VLOOKUP(F6,Artikelstamm!$A:$EV,4,FALSE) ->  | L6: 08:00 - 8:30 | O6: =VLOOKUP(P6,Artikelstamm!$A:$EV,15,FALSE) ->  | Q6: =VLOOKUP(P6,Artikelstamm!$A:$EV,4,FALSE) ->  | V6: 08:00 - 8:30 | Y6: =VLOOKUP(Z6,Artikelstamm!$A:$EV,15,FALSE) ->  | AA6: =VLOOKUP(Z6,Artikelstamm!$A:$EV,4,FALSE) ->  | AF6: 08:00 - 8:30 | AI6: =VLOOKUP(AJ6,Artikelstamm!$A:$EV,15,FALSE) ->  | AK6: =VLOOKUP(AJ6,Artikelstamm!$A:$EV,4,FALSE) ->  | AP6: 08:00 - 8:30 | AS6: =VLOOKUP(AT6,Artikelstamm!$A:$EV,15,FALSE) ->  | AU6: =VLOOKUP(AT6,Artikelstamm!$A:$EV,4,FALSE) ->  | AZ6: 08:00 - 8:30 | BC6: =VLOOKUP(BD6,Artikelstamm!$A:$EV,15,FALSE) ->  | BE6: =VLOOKUP(BD6,Artikelstamm!$A:$EV,4,FALSE) -> 
B7: 08:30 - 9:00 | E7: =VLOOKUP(F7,Artikelstamm!$A:$EV,15,FALSE) ->  | G7: =VLOOKUP(F7,Artikelstamm!$A:$EV,4,FALSE) ->  | L7: 08:30 - 9:00 | O7: =VLOOKUP(P7,Artikelstamm!$A:$EV,15,FALSE) ->  | Q7: =VLOOKUP(P7,Artikelstamm!$A:$EV,4,FALSE) ->  | V7: 08:30 - 9:00 | Y7: =VLOOKUP(Z7,Artikelstamm!$A:$EV,15,FALSE) ->  | AA7: =VLOOKUP(Z7,Artikelstamm!$A:$EV,4,FALSE) ->  | AF7: 08:30 - 9:00 | AI7: =VLOOKUP(AJ7,Artikelstamm!$A:$EV,15,FALSE) ->  | AK7: =VLOOKUP(AJ7,Artikelstamm!$A:$EV,4,FALSE) ->  | AP7: 08:30 - 9:00 | AS7: =VLOOKUP(AT7,Artikelstamm!$A:$EV,15,FALSE) ->  | AU7: =VLOOKUP(AT7,Artikelstamm!$A:$EV,4,FALSE) ->  | AZ7: 08:30 - 9:00 | BC7: =VLOOKUP(BD7,Artikelstamm!$A:$EV,15,FALSE) ->  | BE7: =VLOOKUP(BD7,Artikelstamm!$A:$EV,4,FALSE) -> 
B8: 09:00 - 9:30 | E8: =VLOOKUP(F8,Artikelstamm!$A:$EV,15,FALSE) ->  | G8: =VLOOKUP(F8,Artikelstamm!$A:$EV,4,FALSE) ->  | L8: 09:00 - 9:30 | O8: =VLOOKUP(P8,Artikelstamm!$A:$EV,15,FALSE) ->  | Q8: =VLOOKUP(P8,Artikelstamm!$A:$EV,4,FALSE) ->  | V8: 09:00 - 9:30 | Y8: =VLOOKUP(Z8,Artikelstamm!$A:$EV,15,FALSE) ->  | AA8: =VLOOKUP(Z8,Artikelstamm!$A:$EV,4,FALSE) ->  | AF8: 09:00 - 9:30 | AI8: =VLOOKUP(AJ8,Artikelstamm!$A:$EV,15,FALSE) ->  | AK8: =VLOOKUP(AJ8,Artikelstamm!$A:$EV,4,FALSE) ->  | AP8: 09:00 - 9:30 | AS8: =VLOOKUP(AT8,Artikelstamm!$A:$EV,15,FALSE) ->  | AU8: =VLOOKUP(AT8,Artikelstamm!$A:$EV,4,FALSE) ->  | AZ8: 09:00 - 9:30 | BC8: =VLOOKUP(BD8,Artikelstamm!$A:$EV,15,FALSE) ->  | BE8: =VLOOKUP(BD8,Artikelstamm!$A:$EV,4,FALSE) -> 
B9: 09:30 - 10:00 | D9: Pause | G9: Pause | L9: 09:30 - 10:00 | N9: Pause | Q9: Pause | V9: 09:30 - 10:00 | X9: Pause | AA9: Pause | AF9: 09:30 - 10:00 | AH9: Pause | AK9: Pause | AP9: 09:30 - 10:00 | AR9: Pause | AU9: Pause | AZ9: 09:30 - 10:00 | BB9: Pause | BE9: Pause
B10: 10:00 - 10:30 | E10: =VLOOKUP(F10,Artikelstamm!$A:$EV,15,FALSE) ->  | G10: =VLOOKUP(F10,Artikelstamm!$A:$EV,4,FALSE) ->  | L10: 10:00 - 10:30 | O10: =VLOOKUP(P10,Artikelstamm!$A:$EV,15,FALSE) ->  | Q10: =VLOOKUP(P10,Artikelstamm!$A:$EV,4,FALSE) ->  | V10: 10:00 - 10:30 | Y10: =VLOOKUP(Z10,Artikelstamm!$A:$EV,15,FALSE) ->  | AA10: =VLOOKUP(Z10,Artikelstamm!$A:$EV,4,FALSE) ->  | AF10: 10:00 - 10:30 | AI10: =VLOOKUP(AJ10,Artikelstamm!$A:$EV,15,FALSE) ->  | AK10: =VLOOKUP(AJ10,Artikelstamm!$A:$EV,4,FALSE) ->  | AP10: 10:00 - 10:30 | AS10: =VLOOKUP(AT10,Artikelstamm!$A:$EV,15,FALSE) ->  | AU10: =VLOOKUP(AT10,Artikelstamm!$A:$EV,4,FALSE) ->  | AZ10: 10:00 - 10:30 | BC10: =VLOOKUP(BD10,Artikelstamm!$A:$EV,15,FALSE) ->  | BE10: =VLOOKUP(BD10,Artikelstamm!$A:$EV,4,FALSE) -> 
B11: 10:30 - 11:00 | E11: =VLOOKUP(F11,Artikelstamm!$A:$EV,15,FALSE) ->  | G11: =VLOOKUP(F11,Artikelstamm!$A:$EV,4,FALSE) ->  | L11: 10:30 - 11:00 | O11: =VLOOKUP(P11,Artikelstamm!$A:$EV,15,FALSE) ->  | Q11: =VLOOKUP(P11,Artikelstamm!$A:$EV,4,FALSE) ->  | V11: 10:30 - 11:00 | Y11: =VLOOKUP(Z11,Artikelstamm!$A:$EV,15,FALSE) ->  | AA11: =VLOOKUP(Z11,Artikelstamm!$A:$EV,4,FALSE) ->  | AF11: 10:30 - 11:00 | AI11: =VLOOKUP(AJ11,Artikelstamm!$A:$EV,15,FALSE) ->  | AK11: =VLOOKUP(AJ11,Artikelstamm!$A:$EV,4,FALSE) ->  | AP11: 10:30 - 11:00 | AS11: =VLOOKUP(AT11,Artikelstamm!$A:$EV,15,FALSE) ->  | AU11: =VLOOKUP(AT11,Artikelstamm!$A:$EV,4,FALSE) ->  | AZ11: 10:30 - 11:00 | BC11: =VLOOKUP(BD11,Artikelstamm!$A:$EV,15,FALSE) ->  | BE11: =VLOOKUP(BD11,Artikelstamm!$A:$EV,4,FALSE) -> 
B12: 11:00 - 11:30 | E12: =VLOOKUP(F12,Artikelstamm!$A:$EV,15,FALSE) ->  | G12: =VLOOKUP(F12,Artikelstamm!$A:$EV,4,FALSE) ->  | L12: 11:00 - 11:30 | O12: =VLOOKUP(P12,Artikelstamm!$A:$EV,15,FALSE) ->  | Q12: =VLOOKUP(P12,Artikelstamm!$A:$EV,4,FALSE) ->  | V12: 11:00 - 11:30 | Y12: =VLOOKUP(Z12,Artikelstamm!$A:$EV,15,FALSE) ->  | AA12: =VLOOKUP(Z12,Artikelstamm!$A:$EV,4,FALSE) ->  | AF12: 11:00 - 11:30 | AI12: =VLOOKUP(AJ12,Artikelstamm!$A:$EV,15,FALSE) ->  | AK12: =VLOOKUP(AJ12,Artikelstamm!$A:$EV,4,FALSE) ->  | AP12: 11:00 - 11:30 | AS12: =VLOOKUP(AT12,Artikelstamm!$A:$EV,15,FALSE) ->  | AU12: =VLOOKUP(AT12,Artikelstamm!$A:$EV,4,FALSE) ->  | AZ12: 11:00 - 11:30 | BC12: =VLOOKUP(BD12,Artikelstamm!$A:$EV,15,FALSE) ->  | BE12: =VLOOKUP(BD12,Artikelstamm!$A:$EV,4,FALSE) -> 
B13: 11:30 - 12:00 | E13: =VLOOKUP(F13,Artikelstamm!$A:$EV,15,FALSE) ->  | G13: =VLOOKUP(F13,Artikelstamm!$A:$EV,4,FALSE) ->  | L13: 11:30 - 12:00 | O13: =VLOOKUP(P13,Artikelstamm!$A:$EV,15,FALSE) ->  | Q13: =VLOOKUP(P13,Artikelstamm!$A:$EV,4,FALSE) ->  | V13: 11:30 - 12:00 | Y13: =VLOOKUP(Z13,Artikelstamm!$A:$EV,15,FALSE) ->  | AA13: =VLOOKUP(Z13,Artikelstamm!$A:$EV,4,FALSE) ->  | AF13: 11:30 - 12:00 | AI13: =VLOOKUP(AJ13,Artikelstamm!$A:$EV,15,FALSE) ->  | AK13: =VLOOKUP(AJ13,Artikelstamm!$A:$EV,4,FALSE) ->  | AP13: 11:30 - 12:00 | AS13: =VLOOKUP(AT13,Artikelstamm!$A:$EV,15,FALSE) ->  | AU13: =VLOOKUP(AT13,Artikelstamm!$A:$EV,4,FALSE) ->  | AZ13: 11:30 - 12:00 | BC13: =VLOOKUP(BD13,Artikelstamm!$A:$EV,15,FALSE) ->  | BE13: =VLOOKUP(BD13,Artikelstamm!$A:$EV,4,FALSE) -> 
B14: 12:00 - 12:30 | E14: =VLOOKUP(F14,Artikelstamm!$A:$EV,15,FALSE) ->  | G14: =VLOOKUP(F14,Artikelstamm!$A:$EV,4,FALSE) ->  | L14: 12:00 - 12:30 | O14: =VLOOKUP(P14,Artikelstamm!$A:$EV,15,FALSE) ->  | Q14: =VLOOKUP(P14,Artikelstamm!$A:$EV,4,FALSE) ->  | V14: 12:00 - 12:30 | Y14: =VLOOKUP(Z14,Artikelstamm!$A:$EV,15,FALSE) ->  | AA14: =VLOOKUP(Z14,Artikelstamm!$A:$EV,4,FALSE) ->  | AF14: =$B14 -> 12:00 - 12:30 | AI14: =VLOOKUP(AJ14,Artikelstamm!$A:$EV,15,FALSE) ->  | AK14: =VLOOKUP(AJ14,Artikelstamm!$A:$EV,4,FALSE) ->  | AP14: 12:00 - 12:30 | AS14: =VLOOKUP(AT14,Artikelstamm!$A:$EV,15,FALSE) ->  | AU14: =VLOOKUP(AT14,Artikelstamm!$A:$EV,4,FALSE) ->  | AZ14: 12:00 - 12:30 | BC14: =VLOOKUP(BD14,Artikelstamm!$A:$EV,15,FALSE) ->  | BE14: =VLOOKUP(BD14,Artikelstamm!$A:$EV,4,FALSE) -> 
B15: 12:30 - 13:00 | E15: =VLOOKUP(F15,Artikelstamm!$A:$EV,15,FALSE) ->  | G15: =VLOOKUP(F15,Artikelstamm!$A:$EV,4,FALSE) ->  | L15: 12:30 - 13:00 | O15: =VLOOKUP(P15,Artikelstamm!$A:$EV,15,FALSE) ->  | Q15: =VLOOKUP(P15,Artikelstamm!$A:$EV,4,FALSE) ->  | V15: 12:30 - 13:00 | Y15: =VLOOKUP(Z15,Artikelstamm!$A:$EV,15,FALSE) ->  | AA15: =VLOOKUP(Z15,Artikelstamm!$A:$EV,4,FALSE) ->  | AF15: 12:30 - 13:00 | AI15: =VLOOKUP(AJ15,Artikelstamm!$A:$EV,15,FALSE) ->  | AK15: =VLOOKUP(AJ15,Artikelstamm!$A:$EV,4,FALSE) ->  | AP15: 12:30 - 13:00 | AS15: =VLOOKUP(AT15,Artikelstamm!$A:$EV,15,FALSE) ->  | AU15: =VLOOKUP(AT15,Artikelstamm!$A:$EV,4,FALSE) ->  | AZ15: 12:30 - 13:00 | BC15: =VLOOKUP(BD15,Artikelstamm!$A:$EV,15,FALSE) ->  | BE15: =VLOOKUP(BD15,Artikelstamm!$A:$EV,4,FALSE) -> 
B16: 13:00 - 13:30 | D16: Pause | G16: Pause | L16: 13:00 - 13:30 | N16: Pause | Q16: Pause | V16: 13:00 - 13:30 | X16: Pause | AA16: Pause | AF16: 13:00 - 13:30 | AH16: Pause | AK16: Pause | AP16: 13:00 - 13:30 | AR16: Pause | AU16: Pause | AZ16: 13:00 - 13:30 | BB16: Pause | BE16: Pause
B17: 13:30 - 14:00 | E17: =VLOOKUP(F17,Artikelstamm!$A:$EV,15,FALSE) ->  | G17: =VLOOKUP(F17,Artikelstamm!$A:$EV,4,FALSE) ->  | L17: 13:30 - 14:00 | O17: =VLOOKUP(P17,Artikelstamm!$A:$EV,15,FALSE) ->  | Q17: =VLOOKUP(P17,Artikelstamm!$A:$EV,4,FALSE) ->  | V17: 13:30 - 14:00 | Y17: =VLOOKUP(Z17,Artikelstamm!$A:$EV,15,FALSE) ->  | AA17: =VLOOKUP(Z17,Artikelstamm!$A:$EV,4,FALSE) ->  | AF17: 13:30 - 14:00 | AI17: =VLOOKUP(AJ17,Artikelstamm!$A:$EV,15,FALSE) ->  | AK17: =VLOOKUP(AJ17,Artikelstamm!$A:$EV,4,FALSE) ->  | AP17: 13:30 - 14:00 | AS17: =VLOOKUP(AT17,Artikelstamm!$A:$EV,15,FALSE) ->  | AU17: =VLOOKUP(AT17,Artikelstamm!$A:$EV,4,FALSE) ->  | AZ17: 13:30 - 14:00 | BC17: =VLOOKUP(BD17,Artikelstamm!$A:$EV,15,FALSE) ->  | BE17: =VLOOKUP(BD17,Artikelstamm!$A:$EV,4,FALSE) -> 
B18: 14:00 - 14:30 | E18: =VLOOKUP(F18,Artikelstamm!$A:$EV,15,FALSE) ->  | G18: =VLOOKUP(F18,Artikelstamm!$A:$EV,4,FALSE) ->  | L18: 14:00 - 14:30 | O18: =VLOOKUP(P18,Artikelstamm!$A:$EV,15,FALSE) ->  | Q18: =VLOOKUP(P18,Artikelstamm!$A:$EV,4,FALSE) ->  | V18: 14:00 - 14:30 | Y18: =VLOOKUP(Z18,Artikelstamm!$A:$EV,15,FALSE) ->  | AA18: =VLOOKUP(Z18,Artikelstamm!$A:$EV,4,FALSE) ->  | AF18: 14:00 - 14:30 | AI18: =VLOOKUP(AJ18,Artikelstamm!$A:$EV,15,FALSE) ->  | AK18: =VLOOKUP(AJ18,Artikelstamm!$A:$EV,4,FALSE) ->  | AP18: 14:00 - 14:30 | AS18: =VLOOKUP(AT18,Artikelstamm!$A:$EV,15,FALSE) ->  | AU18: =VLOOKUP(AT18,Artikelstamm!$A:$EV,4,FALSE) ->  | AZ18: 14:00 - 14:30 | BC18: =VLOOKUP(BD18,Artikelstamm!$A:$EV,15,FALSE) ->  | BE18: =VLOOKUP(BD18,Artikelstamm!$A:$EV,4,FALSE) -> 
B19: 14:30 - 15:00 | E19: =VLOOKUP(F19,Artikelstamm!$A:$EV,15,FALSE) ->  | G19: =VLOOKUP(F19,Artikelstamm!$A:$EV,4,FALSE) ->  | L19: 14:30 - 15:00 | O19: =VLOOKUP(P19,Artikelstamm!$A:$EV,15,FALSE) ->  | Q19: =VLOOKUP(P19,Artikelstamm!$A:$EV,4,FALSE) ->  | V19: 14:30 - 15:00 | Y19: =VLOOKUP(Z19,Artikelstamm!$A:$EV,15,FALSE) ->  | AA19: =VLOOKUP(Z19,Artikelstamm!$A:$EV,4,FALSE) ->  | AF19: 14:30 - 15:00 | AI19: =VLOOKUP(AJ19,Artikelstamm!$A:$EV,15,FALSE) ->  | AK19: =VLOOKUP(AJ19,Artikelstamm!$A:$EV,4,FALSE) ->  | AP19: 14:30 - 15:00 | AS19: =VLOOKUP(AT19,Artikelstamm!$A:$EV,15,FALSE) ->  | AU19: =VLOOKUP(AT19,Artikelstamm!$A:$EV,4,FALSE) ->  | AZ19: 14:30 - 15:00 | BC19: =VLOOKUP(BD19,Artikelstamm!$A:$EV,15,FALSE) ->  | BE19: =VLOOKUP(BD19,Artikelstamm!$A:$EV,4,FALSE) -> 
B20: 15:00 - 15:30 | E20: =VLOOKUP(F20,Artikelstamm!$A:$EV,15,FALSE) ->  | G20: =VLOOKUP(F20,Artikelstamm!$A:$EV,4,FALSE) ->  | L20: 15:00 - 15:30 | O20: =VLOOKUP(P20,Artikelstamm!$A:$EV,15,FALSE) ->  | Q20: =VLOOKUP(P20,Artikelstamm!$A:$EV,4,FALSE) ->  | V20: 15:00 - 15:30 | Y20: =VLOOKUP(Z20,Artikelstamm!$A:$EV,15,FALSE) ->  | AA20: =VLOOKUP(Z20,Artikelstamm!$A:$EV,4,FALSE) ->  | AF20: 15:00 - 15:30 | AI20: =VLOOKUP(AJ20,Artikelstamm!$A:$EV,15,FALSE) ->  | AK20: =VLOOKUP(AJ20,Artikelstamm!$A:$EV,4,FALSE) ->  | AP20: 15:00 - 15:30 | AS20: =VLOOKUP(AT20,Artikelstamm!$A:$EV,15,FALSE) ->  | AU20: =VLOOKUP(AT20,Artikelstamm!$A:$EV,4,FALSE) ->  | AZ20: 15:00 - 15:30 | BC20: =VLOOKUP(BD20,Artikelstamm!$A:$EV,15,FALSE) ->  | BE20: =VLOOKUP(BD20,Artikelstamm!$A:$EV,4,FALSE) -> 
B21: 15:30 - 16:00 | E21: =VLOOKUP(F21,Artikelstamm!$A:$EV,15,FALSE) ->  | G21: =VLOOKUP(F21,Artikelstamm!$A:$EV,4,FALSE) ->  | L21: 15:30 - 16:00 | O21: =VLOOKUP(P21,Artikelstamm!$A:$EV,15,FALSE) ->  | Q21: =VLOOKUP(P21,Artikelstamm!$A:$EV,4,FALSE) ->  | V21: 15:30 - 16:00 | Y21: =VLOOKUP(Z21,Artikelstamm!$A:$EV,15,FALSE) ->  | AA21: =VLOOKUP(Z21,Artikelstamm!$A:$EV,4,FALSE) ->  | AF21: 15:30 - 16:00 | AI21: =VLOOKUP(AJ21,Artikelstamm!$A:$EV,15,FALSE) ->  | AK21: =VLOOKUP(AJ21,Artikelstamm!$A:$EV,4,FALSE) ->  | AP21: 15:30 - 16:00 | AS21: =VLOOKUP(AT21,Artikelstamm!$A:$EV,15,FALSE) ->  | AU21: =VLOOKUP(AT21,Artikelstamm!$A:$EV,4,FALSE) ->  | AZ21: 15:30 - 16:00 | BC21: =VLOOKUP(BD21,Artikelstamm!$A:$EV,15,FALSE) ->  | BE21: =VLOOKUP(BD21,Artikelstamm!$A:$EV,4,FALSE) -> 
B22: 16:00 - 16:30 | E22: =VLOOKUP(F22,Artikelstamm!$A:$EV,15,FALSE) ->  | G22: =VLOOKUP(F22,Artikelstamm!$A:$EV,4,FALSE) ->  | L22: 16:00 - 16:30 | O22: =VLOOKUP(P22,Artikelstamm!$A:$EV,15,FALSE) ->  | Q22: =VLOOKUP(P22,Artikelstamm!$A:$EV,4,FALSE) ->  | V22: 16:00 - 16:30 | Y22: =VLOOKUP(Z22,Artikelstamm!$A:$EV,15,FALSE) ->  | AA22: =VLOOKUP(Z22,Artikelstamm!$A:$EV,4,FALSE) ->  | AF22: 16:00 - 16:30 | AI22: =VLOOKUP(AJ22,Artikelstamm!$A:$EV,15,FALSE) ->  | AK22: =VLOOKUP(AJ22,Artikelstamm!$A:$EV,4,FALSE) ->  | AP22: 16:00 - 16:30 | AS22: =VLOOKUP(AT22,Artikelstamm!$A:$EV,15,FALSE) ->  | AU22: =VLOOKUP(AT22,Artikelstamm!$A:$EV,4,FALSE) ->  | AZ22: 16:00 - 16:30 | BC22: =VLOOKUP(BD22,Artikelstamm!$A:$EV,15,FALSE) ->  | BE22: =VLOOKUP(BD22,Artikelstamm!$A:$EV,4,FALSE) -> 
A23: Übertrag: | K23: =$A23 -> Übertrag: | U23: =$A23 -> Übertrag: | AE23: =$A23 -> Übertrag: | AO23: =$A23 -> Übertrag: | AY23: =$A23 -> Übertrag:
A24: Summe: | C24: =SUM(C4:C23) -> 0 | D24: =SUM(D4:D23) -> 0 | I24: =SUM(I4:I22) -> 0 | K24: =$A24 -> Summe: | M24: =SUM(M4:M23) -> 0 | N24: =SUM(N4:N23) -> 0 | S24: =SUM(S4:S22) -> 0 | U24: =$A24 -> Summe: | W24: =SUM(W4:W23) -> 0 | X24: =SUM(X4:X23) -> 0 | AC24: =SUM(AC4:AC22) -> 0 | AE24: =$A24 -> Summe: | AG24: =SUM(AG4:AG23) -> 0 | AH24: =SUM(AH4:AH23) -> 0 | AM24: =SUM(AM4:AM22) -> 0 | AO24: =$A24 -> Summe: | AQ24: =SUM(AQ4:AQ23) -> 0 | AR24: =SUM(AR4:AR23) -> 0 | AW24: =SUM(AW4:AW22) -> 0 | AY24: =$A24 -> Summe: | BA24: =SUM(BA4:BA23) -> 0 | BB24: =SUM(BB4:BB23) -> 0 | BG24: =SUM(BG4:BG22) -> 0
A26: Wochenleistung | K26: Wochenleistung | U26: Wochenleistung | AE26: Wochenleistung | AO26: Wochenleistung | AY26: Wochenleistung
A27: Gebinde | B27: =$C$24+$M$24+$W$24+$AG$24+$AQ$24 -> 0 | K27: Gebinde | L27: =$B27 -> 0 | U27: Gebinde | V27: =$B27 -> 0 | AE27: Gebinde | AF27: =$B27 -> 0 | AO27: Gebinde | AP27: =$B27 -> 0 | AY27: Gebinde | AZ27: =$B27 -> 0
A28: Paletten | B28: =$I$24+$S$24+$AC$24+$AM$24+$AW$24 -> 0 | K28: Paletten | L28: =$B28 -> 0 | U28: Paletten | V28: =$B28 -> 0 | AE28: Paletten | AF28: =$B28 -> 0 | AO28: Paletten | AP28: =$B28 -> 0 | AY28: Paletten | AZ28: =$B28 -> 0
A29: Zusatzleistung | K29: Zusatzleistung | U29: Zusatzleistung | AE29: Zusatzleistung | AO29: Zusatzleistung | AY29: Zusatzleistung
A30: Gebinde | B30: =$BA$24 -> 0 | K30: Gebinde | L30: =$B30 -> 0 | U30: Gebinde | V30: =$B30 -> 0 | AE30: Gebinde | AF30: =$B30 -> 0 | AO30: Gebinde | AP30: =$B30 -> 0 | AY30: Gebinde | AZ30: =$B30 -> 0
A31: Paletten | B31: =$BG$25 -> 0 | K31: Paletten | L31: =$B31 -> 0 | U31: Paletten | V31: =$B31 -> 0 | AE31: Paletten | AF31: =$B31 -> 0 | AO31: Paletten | AP31: =$B31 -> 0 | AY31: Paletten | AZ31: =$B31 -> 0
B36: Mischungen | C36: Für | D36: Mischung | E36: Produkt | F36: Prod.-Nr. | J36: Menge | L36: Mischungen | M36: Für | N36: Mischung | O36: Produkt | P36: Prod.-Nr. | T36: Menge | V36: Mischungen | W36: Für | X36: Mischung | Y36: Produkt | Z36: Prod.-Nr. | AD36: Menge | AF36: Mischungen | AG36: Für | AH36: Mischung | AI36: Produkt | AJ36: Prod.-Nr. | AN36: Menge | AP36: Mischungen | AQ36: Für | AR36: Mischung | AS36: Produkt | AT36: Prod.-Nr. | AX36: Menge | AZ36: Mischungen | BA36: Für | BB36: Mischung | BC36: Produkt | BD36: Prod.-Nr. | BH36: Menge
E37: =VLOOKUP(F37,Artikelstamm!$A:$EV,4,FALSE) ->  | O37: =VLOOKUP(P37,Artikelstamm!$A:$EV,4,FALSE) ->  | Y37: =VLOOKUP(Z37,Artikelstamm!$A:$EV,4,FALSE) ->  | AI37: =VLOOKUP(AJ37,Artikelstamm!$A:$EV,4,FALSE) ->  | AS37: =VLOOKUP(AT37,Artikelstamm!$A:$EV,4,FALSE) ->  | BC37: =VLOOKUP(BD37,Artikelstamm!$A:$EV,4,FALSE) -> 
E38: =VLOOKUP(F38,Artikelstamm!$A:$EV,4,FALSE) ->  | O38: =VLOOKUP(P38,Artikelstamm!$A:$EV,4,FALSE) ->  | Y38: =VLOOKUP(Z38,Artikelstamm!$A:$EV,4,FALSE) ->  | AI38: =VLOOKUP(AJ38,Artikelstamm!$A:$EV,4,FALSE) ->  | AS38: =VLOOKUP(AT38,Artikelstamm!$A:$EV,4,FALSE) ->  | BC38: =VLOOKUP(BD38,Artikelstamm!$A:$EV,4,FALSE) -> 
E39: =VLOOKUP(F39,Artikelstamm!$A:$EV,4,FALSE) ->  | O39: =VLOOKUP(P39,Artikelstamm!$A:$EV,4,FALSE) ->  | Y39: =VLOOKUP(Z39,Artikelstamm!$A:$EV,4,FALSE) ->  | AI39: =VLOOKUP(AJ39,Artikelstamm!$A:$EV,4,FALSE) ->  | AS39: =VLOOKUP(AT39,Artikelstamm!$A:$EV,4,FALSE) ->  | BC39: =VLOOKUP(BD39,Artikelstamm!$A:$EV,4,FALSE) -> 
E40: =VLOOKUP(F40,Artikelstamm!$A:$EV,4,FALSE) ->  | O40: =VLOOKUP(P40,Artikelstamm!$A:$EV,4,FALSE) ->  | Y40: =VLOOKUP(Z40,Artikelstamm!$A:$EV,4,FALSE) ->  | AI40: =VLOOKUP(AJ40,Artikelstamm!$A:$EV,4,FALSE) ->  | AS40: =VLOOKUP(AT40,Artikelstamm!$A:$EV,4,FALSE) ->  | BC40: =VLOOKUP(BD40,Artikelstamm!$A:$EV,4,FALSE) -> 
B43: Mischungen Mühle | D43: Mischung | E43: Produkt | F43: Prod.-Nr. | J43: Menge | L43: Mischungen Mühle | N43: Mischung | O43: Produkt | P43: Prod.-Nr. | T43: Menge | V43: Mischungen Mühle | X43: Mischung | Y43: Produkt | Z43: Prod.-Nr. | AD43: Menge | AF43: Mischungen Mühle | AH43: Mischung | AI43: Produkt | AJ43: Prod.-Nr. | AN43: Menge | AP43: Mischungen Mühle | AR43: Mischung | AS43: Produkt | AT43: Prod.-Nr. | AX43: Menge | AZ43: Mischungen Mühle | BB43: Mischung | BC43: Produkt | BD43: Prod.-Nr. | BH43: Menge
C44: Früh-schicht | E44: =VLOOKUP(F44,Artikelstamm!$A:$EV,4,FALSE) ->  | M44: Früh-schicht | O44: =VLOOKUP(P44,Artikelstamm!$A:$EV,4,FALSE) ->  | W44: Früh-schicht | Y44: =VLOOKUP(Z44,Artikelstamm!$A:$EV,4,FALSE) ->  | AG44: Früh-schicht | AI44: =VLOOKUP(AJ44,Artikelstamm!$A:$EV,4,FALSE) ->  | AQ44: Früh-schicht | AS44: =VLOOKUP(AT44,Artikelstamm!$A:$EV,4,FALSE) ->  | BA44: Früh-schicht | BC44: =VLOOKUP(BD44,Artikelstamm!$A:$EV,4,FALSE) -> 
E45: =VLOOKUP(F45,Artikelstamm!$A:$EV,4,FALSE) ->  | O45: =VLOOKUP(P45,Artikelstamm!$A:$EV,4,FALSE) ->  | Y45: =VLOOKUP(Z45,Artikelstamm!$A:$EV,4,FALSE) ->  | AI45: =VLOOKUP(AJ45,Artikelstamm!$A:$EV,4,FALSE) ->  | AS45: =VLOOKUP(AT45,Artikelstamm!$A:$EV,4,FALSE) ->  | BC45: =VLOOKUP(BD45,Artikelstamm!$A:$EV,4,FALSE) -> 
E46: =VLOOKUP(F46,Artikelstamm!$A:$EV,4,FALSE) ->  | O46: =VLOOKUP(P46,Artikelstamm!$A:$EV,4,FALSE) ->  | Y46: =VLOOKUP(Z46,Artikelstamm!$A:$EV,4,FALSE) ->  | AI46: =VLOOKUP(AJ46,Artikelstamm!$A:$EV,4,FALSE) ->  | AS46: =VLOOKUP(AT46,Artikelstamm!$A:$EV,4,FALSE) ->  | BC46: =VLOOKUP(BD46,Artikelstamm!$A:$EV,4,FALSE) -> 
C47: Spät-schicht | E47: =VLOOKUP(F47,Artikelstamm!$A:$EV,4,FALSE) ->  | M47: Spät-schicht | O47: =VLOOKUP(P47,Artikelstamm!$A:$EV,4,FALSE) ->  | W47: Spät-schicht | Y47: =VLOOKUP(Z47,Artikelstamm!$A:$EV,4,FALSE) ->  | AG47: Spät-schicht | AI47: =VLOOKUP(AJ47,Artikelstamm!$A:$EV,4,FALSE) ->  | AQ47: Spät-schicht | AS47: =VLOOKUP(AT47,Artikelstamm!$A:$EV,4,FALSE) ->  | BA47: Spät-schicht | BC47: =VLOOKUP(BD47,Artikelstamm!$A:$EV,4,FALSE) -> 
E48: =VLOOKUP(F48,Artikelstamm!$A:$EV,4,FALSE) ->  | O48: =VLOOKUP(P48,Artikelstamm!$A:$EV,4,FALSE) ->  | Y48: =VLOOKUP(Z48,Artikelstamm!$A:$EV,4,FALSE) ->  | AI48: =VLOOKUP(AJ48,Artikelstamm!$A:$EV,4,FALSE) ->  | AS48: =VLOOKUP(AT48,Artikelstamm!$A:$EV,4,FALSE) ->  | BC48: =VLOOKUP(BD48,Artikelstamm!$A:$EV,4,FALSE) -> 
E49: =VLOOKUP(F49,Artikelstamm!$A:$EV,4,FALSE) ->  | O49: =VLOOKUP(P49,Artikelstamm!$A:$EV,4,FALSE) ->  | Y49: =VLOOKUP(Z49,Artikelstamm!$A:$EV,4,FALSE) ->  | AI49: =VLOOKUP(AJ49,Artikelstamm!$A:$EV,4,FALSE) ->  | AS49: =VLOOKUP(AT49,Artikelstamm!$A:$EV,4,FALSE) ->  | BC49: =VLOOKUP(BD49,Artikelstamm!$A:$EV,4,FALSE) -> 

Sheet 1-Schicht-WU
A1: Produktionsplanung Packerei | K1: Produktionsplanung Packerei | U1: Produktionsplanung Packerei | AE1: Produktionsplanung Packerei | AO1: Produktionsplanung Packerei | AY1: Produktionsplanung Packerei
A2: KW | B2: 39 | C2: Montag: | G2: =DATE($B$3,1,4)-WEEKDAY(DATE($B$3,1,4),2)+($B$2-1)*7+1 -> 2021-09-27 | K2: KW | L2: =$B$2 -> 39 | M2: Dienstag: | Q2: =DATE($B$3,1,4)-WEEKDAY(DATE($B$3,1,4),2)+($B$2-1)*7+2 -> 2021-09-28 | U2: KW | V2: =$B$2 -> 39 | W2: Mittwoch: | AA2: =DATE($B$3,1,4)-WEEKDAY(DATE($B$3,1,4),2)+($B$2-1)*7+3 -> 2021-09-29 | AE2: KW | AF2: =$B$2 -> 39 | AG2: Donnerstag: | AK2: =DATE($B$3,1,4)-WEEKDAY(DATE($B$3,1,4),2)+($B$2-1)*7+4 -> 2021-09-30 | AO2: KW | AP2: =$B$2 -> 39 | AQ2: Freitag: | AU2: =DATE($B$3,1,4)-WEEKDAY(DATE($B$3,1,4),2)+($B$2-1)*7+5 -> 2021-10-01 | AY2: KW | AZ2: =$B$2 -> 39 | BA2: Samstag: | BE2: =DATE($B$3,1,4)-WEEKDAY(DATE($B$3,1,4),2)+($B$2-1)*7+6 -> 2021-10-02
A3: 1-Schicht | B3: 2021 | C3: Stückzahl | D3: Gebinde- anzahl | E3: Gebinde-größe | F3: P-Artikel | G3: Produkt | H3: Lager | I3: Pal- Anz. | J3: Gewicht | K3: =$A$3 -> 1-Schicht | L3: =$B$3 -> 2021 | M3: Stückzahl | N3: Gebinde-anzahl | O3: Gebinde-größe | P3: P-Artikel | Q3: Produkt | R3: Lager | S3: Pal- Anz. | T3: Gewicht | U3: =$A$3 -> 1-Schicht | V3: =$B$3 -> 2021 | W3: Stückzahl | X3: Gebinde- anzahl | Y3: Gebinde-größe | Z3: P-Artikel | AA3: Produkt | AB3: Lager | AC3: Pal- Anz. | AD3: Gewicht | AE3: =$A$3 -> 1-Schicht | AF3: =$B$3 -> 2021 | AG3: Stückzahl | AH3: Gebinde- anzahl | AI3: Gebinde-größe | AJ3: P-Artikel | AK3: Produkt | AL3: Lager | AM3: Pal- Anz. | AN3: Gewicht | AO3: =$A$3 -> 1-Schicht | AP3: =$B$3 -> 2021 | AQ3: Stückzahl | AR3: Gebinde- anzahl | AS3: Gebinde-größe | AT3: P-Artikel | AU3: Produkt | AV3: Lager | AW3: Pal- Anz. | AX3: Gewicht | AY3: =$A$3 -> 1-Schicht | AZ3: =$B$3 -> 2021 | BA3: Stückzahl | BB3: Gebinde- anzahl | BC3: Gebinde-größe | BD3: P-Artikel | BE3: Produkt | BF3: Lager | BG3: Pal- Anz. | BH3: Gewicht
A4: Normalschicht | B4: 7:00 - 7:30 | E4: =VLOOKUP(F4,Artikelstamm!$A:$EV,15,FALSE) ->  | G4: =VLOOKUP(F4,Artikelstamm!$A:$EV,4,FALSE) ->  | K4: =$A4 -> Normalschicht | L4: =$B4 -> 7:00 - 7:30 | O4: =VLOOKUP(P4,Artikelstamm!$A:$EV,15,FALSE) ->  | Q4: =VLOOKUP(P4,Artikelstamm!$A:$EV,4,FALSE) ->  | U4: =$A4 -> Normalschicht | V4: =$B4 -> 7:00 - 7:30 | Y4: =VLOOKUP(Z4,Artikelstamm!$A:$EV,15,FALSE) ->  | AA4: =VLOOKUP(Z4,Artikelstamm!$A:$EV,4,FALSE) ->  | AE4: =$A4 -> Normalschicht | AF4: =$B4 -> 7:00 - 7:30 | AI4: =VLOOKUP(AJ4,Artikelstamm!$A:$EV,15,FALSE) ->  | AK4: =VLOOKUP(AJ4,Artikelstamm!$A:$EV,4,FALSE) ->  | AO4: =$A4 -> Normalschicht | AP4: =$B4 -> 7:00 - 7:30 | AS4: =VLOOKUP(AT4,Artikelstamm!$A:$EV,15,FALSE) ->  | AU4: =VLOOKUP(AT4,Artikelstamm!$A:$EV,4,FALSE) ->  | AY4: =$A4 -> Normalschicht | AZ4: =$B4 -> 7:00 - 7:30 | BC4: =VLOOKUP(BD4,Artikelstamm!$A:$EV,15,FALSE) ->  | BE4: =VLOOKUP(BD4,Artikelstamm!$A:$EV,4,FALSE) ->  | BF4: =VLOOKUP(BE4,#REF!,109,FALSE) -> 
B5: 7:30 - 8:00 | E5: =VLOOKUP(F5,Artikelstamm!$A:$EV,15,FALSE) ->  | G5: =VLOOKUP(F5,Artikelstamm!$A:$EV,4,FALSE) ->  | L5: 7:30 - 8:00 | O5: =VLOOKUP(P5,Artikelstamm!$A:$EV,15,FALSE) ->  | Q5: =VLOOKUP(P5,Artikelstamm!$A:$EV,4,FALSE) ->  | V5: 7:30 - 8:00 | Y5: =VLOOKUP(Z5,Artikelstamm!$A:$EV,15,FALSE) ->  | AA5: =VLOOKUP(Z5,Artikelstamm!$A:$EV,4,FALSE) ->  | AF5: 7:30 - 8:00 | AI5: =VLOOKUP(AJ5,Artikelstamm!$A:$EV,15,FALSE) ->  | AK5: =VLOOKUP(AJ5,Artikelstamm!$A:$EV,4,FALSE) ->  | AP5: 7:30 - 8:00 | AS5: =VLOOKUP(AT5,Artikelstamm!$A:$EV,15,FALSE) ->  | AU5: =VLOOKUP(AT5,Artikelstamm!$A:$EV,4,FALSE) ->  | AZ5: 7:30 - 8:00 | BC5: =VLOOKUP(BD5,Artikelstamm!$A:$EV,15,FALSE) ->  | BE5: =VLOOKUP(BD5,Artikelstamm!$A:$EV,4,FALSE) -> 
B6: 08:00 - 8:30 | E6: =VLOOKUP(F6,Artikelstamm!$A:$EV,15,FALSE) ->  | G6: =VLOOKUP(F6,Artikelstamm!$A:$EV,4,FALSE) ->  | L6: 08:00 - 8:30 | O6: =VLOOKUP(P6,Artikelstamm!$A:$EV,15,FALSE) ->  | Q6: =VLOOKUP(P6,Artikelstamm!$A:$EV,4,FALSE) ->  | V6: 08:00 - 8:30 | Y6: =VLOOKUP(Z6,Artikelstamm!$A:$EV,15,FALSE) ->  | AA6: =VLOOKUP(Z6,Artikelstamm!$A:$EV,4,FALSE) ->  | AF6: 08:00 - 8:30 | AI6: =VLOOKUP(AJ6,Artikelstamm!$A:$EV,15,FALSE) ->  | AK6: =VLOOKUP(AJ6,Artikelstamm!$A:$EV,4,FALSE) ->  | AP6: 08:00 - 8:30 | AS6: =VLOOKUP(AT6,Artikelstamm!$A:$EV,15,FALSE) ->  | AU6: =VLOOKUP(AT6,Artikelstamm!$A:$EV,4,FALSE) ->  | AZ6: 08:00 - 8:30 | BC6: =VLOOKUP(BD6,Artikelstamm!$A:$EV,15,FALSE) ->  | BE6: =VLOOKUP(BD6,Artikelstamm!$A:$EV,4,FALSE) -> 
B7: 08:30 - 9:00 | E7: =VLOOKUP(F7,Artikelstamm!$A:$EV,15,FALSE) ->  | G7: =VLOOKUP(F7,Artikelstamm!$A:$EV,4,FALSE) ->  | L7: 08:30 - 9:00 | O7: =VLOOKUP(P7,Artikelstamm!$A:$EV,15,FALSE) ->  | Q7: =VLOOKUP(P7,Artikelstamm!$A:$EV,4,FALSE) ->  | V7: 08:30 - 9:00 | Y7: =VLOOKUP(Z7,Artikelstamm!$A:$EV,15,FALSE) ->  | AA7: =VLOOKUP(Z7,Artikelstamm!$A:$EV,4,FALSE) ->  | AF7: 08:30 - 9:00 | AI7: =VLOOKUP(AJ7,Artikelstamm!$A:$EV,15,FALSE) ->  | AK7: =VLOOKUP(AJ7,Artikelstamm!$A:$EV,4,FALSE) ->  | AP7: 08:30 - 9:00 | AS7: =VLOOKUP(AT7,Artikelstamm!$A:$EV,15,FALSE) ->  | AU7: =VLOOKUP(AT7,Artikelstamm!$A:$EV,4,FALSE) ->  | AZ7: 08:30 - 9:00 | BC7: =VLOOKUP(BD7,Artikelstamm!$A:$EV,15,FALSE) ->  | BE7: =VLOOKUP(BD7,Artikelstamm!$A:$EV,4,FALSE) -> 
B8: 09:00 - 9:30 | E8: =VLOOKUP(F8,Artikelstamm!$A:$EV,15,FALSE) ->  | G8: =VLOOKUP(F8,Artikelstamm!$A:$EV,4,FALSE) ->  | L8: 09:00 - 9:30 | O8: =VLOOKUP(P8,Artikelstamm!$A:$EV,15,FALSE) ->  | Q8: =VLOOKUP(P8,Artikelstamm!$A:$EV,4,FALSE) ->  | V8: 09:00 - 9:30 | Y8: =VLOOKUP(Z8,Artikelstamm!$A:$EV,15,FALSE) ->  | AA8: =VLOOKUP(Z8,Artikelstamm!$A:$EV,4,FALSE) ->  | AF8: 09:00 - 9:30 | AI8: =VLOOKUP(AJ8,Artikelstamm!$A:$EV,15,FALSE) ->  | AK8: =VLOOKUP(AJ8,Artikelstamm!$A:$EV,4,FALSE) ->  | AP8: 09:00 - 9:30 | AS8: =VLOOKUP(AT8,Artikelstamm!$A:$EV,15,FALSE) ->  | AU8: =VLOOKUP(AT8,Artikelstamm!$A:$EV,4,FALSE) ->  | AZ8: 09:00 - 9:30 | BC8: =VLOOKUP(BD8,Artikelstamm!$A:$EV,15,FALSE) ->  | BE8: =VLOOKUP(BD8,Artikelstamm!$A:$EV,4,FALSE) -> 
B9: 09:30 - 10:00 | E9: =VLOOKUP(F9,Artikelstamm!$A:$EV,15,FALSE) ->  | G9: =VLOOKUP(F9,Artikelstamm!$A:$EV,4,FALSE) ->  | L9: 09:30 - 10:00 | O9: =VLOOKUP(P9,Artikelstamm!$A:$EV,15,FALSE) ->  | Q9: =VLOOKUP(P9,Artikelstamm!$A:$EV,4,FALSE) ->  | V9: 09:30 - 10:00 | Y9: =VLOOKUP(Z9,Artikelstamm!$A:$EV,15,FALSE) ->  | AA9: =VLOOKUP(Z9,Artikelstamm!$A:$EV,4,FALSE) ->  | AF9: 09:30 - 10:00 | AI9: =VLOOKUP(AJ9,Artikelstamm!$A:$EV,15,FALSE) ->  | AK9: =VLOOKUP(AJ9,Artikelstamm!$A:$EV,4,FALSE) ->  | AP9: 09:30 - 10:00 | AS9: =VLOOKUP(AT9,Artikelstamm!$A:$EV,15,FALSE) ->  | AU9: =VLOOKUP(AT9,Artikelstamm!$A:$EV,4,FALSE) ->  | AZ9: 09:30 - 10:00 | BC9: =VLOOKUP(BD9,Artikelstamm!$A:$EV,15,FALSE) ->  | BE9: =VLOOKUP(BD9,Artikelstamm!$A:$EV,4,FALSE) -> 
B10: 10:00 - 10:30 | D10: Pause | G10: Pause | L10: 10:00 - 10:30 | N10: Pause | Q10: Pause | V10: 10:00 - 10:30 | X10: Pause | AA10: Pause | AF10: 10:00 - 10:30 | AH10: Pause | AK10: Pause | AP10: 10:00 - 10:30 | AR10: Pause | AU10: Pause | AZ10: 10:00 - 10:30 | BB10: Pause | BE10: Pause
B11: 10:30 - 11:00 | E11: =VLOOKUP(F11,Artikelstamm!$A:$EV,15,FALSE) ->  | G11: =VLOOKUP(F11,Artikelstamm!$A:$EV,4,FALSE) ->  | L11: 10:30 - 11:00 | O11: =VLOOKUP(P11,Artikelstamm!$A:$EV,15,FALSE) ->  | Q11: =VLOOKUP(P11,Artikelstamm!$A:$EV,4,FALSE) ->  | V11: 10:30 - 11:00 | Y11: =VLOOKUP(Z11,Artikelstamm!$A:$EV,15,FALSE) ->  | AA11: =VLOOKUP(Z11,Artikelstamm!$A:$EV,4,FALSE) ->  | AF11: 10:30 - 11:00 | AI11: =VLOOKUP(AJ11,Artikelstamm!$A:$EV,15,FALSE) ->  | AK11: =VLOOKUP(AJ11,Artikelstamm!$A:$EV,4,FALSE) ->  | AP11: 10:30 - 11:00 | AS11: =VLOOKUP(AT11,Artikelstamm!$A:$EV,15,FALSE) ->  | AU11: =VLOOKUP(AT11,Artikelstamm!$A:$EV,4,FALSE) ->  | AZ11: 10:30 - 11:00 | BC11: =VLOOKUP(BD11,Artikelstamm!$A:$EV,15,FALSE) ->  | BE11: =VLOOKUP(BD11,Artikelstamm!$A:$EV,4,FALSE) -> 
B12: 11:00 - 11:30 | E12: =VLOOKUP(F12,Artikelstamm!$A:$EV,15,FALSE) ->  | G12: =VLOOKUP(F12,Artikelstamm!$A:$EV,4,FALSE) ->  | L12: 11:00 - 11:30 | O12: =VLOOKUP(P12,Artikelstamm!$A:$EV,15,FALSE) ->  | Q12: =VLOOKUP(P12,Artikelstamm!$A:$EV,4,FALSE) ->  | V12: 11:00 - 11:30 | Y12: =VLOOKUP(Z12,Artikelstamm!$A:$EV,15,FALSE) ->  | AA12: =VLOOKUP(Z12,Artikelstamm!$A:$EV,4,FALSE) ->  | AF12: 11:00 - 11:30 | AI12: =VLOOKUP(AJ12,Artikelstamm!$A:$EV,15,FALSE) ->  | AK12: =VLOOKUP(AJ12,Artikelstamm!$A:$EV,4,FALSE) ->  | AP12: 11:00 - 11:30 | AS12: =VLOOKUP(AT12,Artikelstamm!$A:$EV,15,FALSE) ->  | AU12: =VLOOKUP(AT12,Artikelstamm!$A:$EV,4,FALSE) ->  | AZ12: 11:00 - 11:30 | BC12: =VLOOKUP(BD12,Artikelstamm!$A:$EV,15,FALSE) ->  | BE12: =VLOOKUP(BD12,Artikelstamm!$A:$EV,4,FALSE) -> 
B13: 11:30 - 12:00 | E13: =VLOOKUP(F13,Artikelstamm!$A:$EV,15,FALSE) ->  | G13: =VLOOKUP(F13,Artikelstamm!$A:$EV,4,FALSE) ->  | L13: 11:30 - 12:00 | O13: =VLOOKUP(P13,Artikelstamm!$A:$EV,15,FALSE) ->  | Q13: =VLOOKUP(P13,Artikelstamm!$A:$EV,4,FALSE) ->  | V13: 11:30 - 12:00 | Y13: =VLOOKUP(Z13,Artikelstamm!$A:$EV,15,FALSE) ->  | AA13: =VLOOKUP(Z13,Artikelstamm!$A:$EV,4,FALSE) ->  | AF13: 11:30 - 12:00 | AI13: =VLOOKUP(AJ13,Artikelstamm!$A:$EV,15,FALSE) ->  | AK13: =VLOOKUP(AJ13,Artikelstamm!$A:$EV,4,FALSE) ->  | AP13: 11:30 - 12:00 | AS13: =VLOOKUP(AT13,Artikelstamm!$A:$EV,15,FALSE) ->  | AU13: =VLOOKUP(AT13,Artikelstamm!$A:$EV,4,FALSE) ->  | AZ13: 11:30 - 12:00 | BC13: =VLOOKUP(BD13,Artikelstamm!$A:$EV,15,FALSE) ->  | BE13: =VLOOKUP(BD13,Artikelstamm!$A:$EV,4,FALSE) -> 
B14: 12:00 - 12:30 | E14: =VLOOKUP(F14,Artikelstamm!$A:$EV,15,FALSE) ->  | G14: =VLOOKUP(F14,Artikelstamm!$A:$EV,4,FALSE) ->  | L14: 12:00 - 12:30 | O14: =VLOOKUP(P14,Artikelstamm!$A:$EV,15,FALSE) ->  | Q14: =VLOOKUP(P14,Artikelstamm!$A:$EV,4,FALSE) ->  | V14: 12:00 - 12:30 | Y14: =VLOOKUP(Z14,Artikelstamm!$A:$EV,15,FALSE) ->  | AA14: =VLOOKUP(Z14,Artikelstamm!$A:$EV,4,FALSE) ->  | AF14: =$B14 -> 12:00 - 12:30 | AI14: =VLOOKUP(AJ14,Artikelstamm!$A:$EV,15,FALSE) ->  | AK14: =VLOOKUP(AJ14,Artikelstamm!$A:$EV,4,FALSE) ->  | AP14: 12:00 - 12:30 | AS14: =VLOOKUP(AT14,Artikelstamm!$A:$EV,15,FALSE) ->  | AU14: =VLOOKUP(AT14,Artikelstamm!$A:$EV,4,FALSE) ->  | AZ14: 12:00 - 12:30 | BC14: =VLOOKUP(BD14,Artikelstamm!$A:$EV,15,FALSE) ->  | BE14: =VLOOKUP(BD14,Artikelstamm!$A:$EV,4,FALSE) -> 
B15: 12:30 - 13:00 | E15: =VLOOKUP(F15,Artikelstamm!$A:$EV,15,FALSE) ->  | G15: =VLOOKUP(F15,Artikelstamm!$A:$EV,4,FALSE) ->  | L15: 12:30 - 13:00 | O15: =VLOOKUP(P15,Artikelstamm!$A:$EV,15,FALSE) ->  | Q15: =VLOOKUP(P15,Artikelstamm!$A:$EV,4,FALSE) ->  | V15: 12:30 - 13:00 | Y15: =VLOOKUP(Z15,Artikelstamm!$A:$EV,15,FALSE) ->  | AA15: =VLOOKUP(Z15,Artikelstamm!$A:$EV,4,FALSE) ->  | AF15: 12:30 - 13:00 | AI15: =VLOOKUP(AJ15,Artikelstamm!$A:$EV,15,FALSE) ->  | AK15: =VLOOKUP(AJ15,Artikelstamm!$A:$EV,4,FALSE) ->  | AP15: 12:30 - 13:00 | AS15: =VLOOKUP(AT15,Artikelstamm!$A:$EV,15,FALSE) ->  | AU15: =VLOOKUP(AT15,Artikelstamm!$A:$EV,4,FALSE) ->  | AZ15: 12:30 - 13:00 | BC15: =VLOOKUP(BD15,Artikelstamm!$A:$EV,15,FALSE) ->  | BE15: =VLOOKUP(BD15,Artikelstamm!$A:$EV,4,FALSE) -> 
B16: 13:00 - 13:30 | D16: Pause | G16: Pause | L16: 13:00 - 13:30 | N16: Pause | Q16: Pause | V16: 13:00 - 13:30 | X16: Pause | AA16: Pause | AF16: 13:00 - 13:30 | AH16: Pause | AK16: Pause | AP16: 13:00 - 13:30 | AR16: Pause | AU16: Pause | AZ16: 13:00 - 13:30 | BB16: Pause | BE16: Pause
B17: 13:30 - 14:00 | E17: =VLOOKUP(F17,Artikelstamm!$A:$EV,15,FALSE) ->  | G17: =VLOOKUP(F17,Artikelstamm!$A:$EV,4,FALSE) ->  | L17: 13:30 - 14:00 | O17: =VLOOKUP(P17,Artikelstamm!$A:$EV,15,FALSE) ->  | Q17: =VLOOKUP(P17,Artikelstamm!$A:$EV,4,FALSE) ->  | V17: 13:30 - 14:00 | Y17: =VLOOKUP(Z17,Artikelstamm!$A:$EV,15,FALSE) ->  | AA17: =VLOOKUP(Z17,Artikelstamm!$A:$EV,4,FALSE) ->  | AF17: 13:30 - 14:00 | AI17: =VLOOKUP(AJ17,Artikelstamm!$A:$EV,15,FALSE) ->  | AK17: =VLOOKUP(AJ17,Artikelstamm!$A:$EV,4,FALSE) ->  | AP17: 13:30 - 14:00 | AS17: =VLOOKUP(AT17,Artikelstamm!$A:$EV,15,FALSE) ->  | AU17: =VLOOKUP(AT17,Artikelstamm!$A:$EV,4,FALSE) ->  | AZ17: 13:30 - 14:00 | BC17: =VLOOKUP(BD17,Artikelstamm!$A:$EV,15,FALSE) ->  | BE17: =VLOOKUP(BD17,Artikelstamm!$A:$EV,4,FALSE) -> 
B18: 14:00 - 14:30 | E18: =VLOOKUP(F18,Artikelstamm!$A:$EV,15,FALSE) ->  | G18: =VLOOKUP(F18,Artikelstamm!$A:$EV,4,FALSE) ->  | L18: 14:00 - 14:30 | O18: =VLOOKUP(P18,Artikelstamm!$A:$EV,15,FALSE) ->  | Q18: =VLOOKUP(P18,Artikelstamm!$A:$EV,4,FALSE) ->  | V18: 14:00 - 14:30 | Y18: =VLOOKUP(Z18,Artikelstamm!$A:$EV,15,FALSE) ->  | AA18: =VLOOKUP(Z18,Artikelstamm!$A:$EV,4,FALSE) ->  | AF18: 14:00 - 14:30 | AI18: =VLOOKUP(AJ18,Artikelstamm!$A:$EV,15,FALSE) ->  | AK18: =VLOOKUP(AJ18,Artikelstamm!$A:$EV,4,FALSE) ->  | AP18: 14:00 - 14:30 | AS18: =VLOOKUP(AT18,Artikelstamm!$A:$EV,15,FALSE) ->  | AU18: =VLOOKUP(AT18,Artikelstamm!$A:$EV,4,FALSE) ->  | AZ18: 14:00 - 14:30 | BC18: =VLOOKUP(BD18,Artikelstamm!$A:$EV,15,FALSE) ->  | BE18: =VLOOKUP(BD18,Artikelstamm!$A:$EV,4,FALSE) -> 
B19: 14:30 - 15:00 | E19: =VLOOKUP(F19,Artikelstamm!$A:$EV,15,FALSE) ->  | G19: =VLOOKUP(F19,Artikelstamm!$A:$EV,4,FALSE) ->  | L19: 14:30 - 15:00 | O19: =VLOOKUP(P19,Artikelstamm!$A:$EV,15,FALSE) ->  | Q19: =VLOOKUP(P19,Artikelstamm!$A:$EV,4,FALSE) ->  | V19: 14:30 - 15:00 | Y19: =VLOOKUP(Z19,Artikelstamm!$A:$EV,15,FALSE) ->  | AA19: =VLOOKUP(Z19,Artikelstamm!$A:$EV,4,FALSE) ->  | AF19: 14:30 - 15:00 | AI19: =VLOOKUP(AJ19,Artikelstamm!$A:$EV,15,FALSE) ->  | AK19: =VLOOKUP(AJ19,Artikelstamm!$A:$EV,4,FALSE) ->  | AP19: 14:30 - 15:00 | AS19: =VLOOKUP(AT19,Artikelstamm!$A:$EV,15,FALSE) ->  | AU19: =VLOOKUP(AT19,Artikelstamm!$A:$EV,4,FALSE) ->  | AZ19: 14:30 - 15:00 | BC19: =VLOOKUP(BD19,Artikelstamm!$A:$EV,15,FALSE) ->  | BE19: =VLOOKUP(BD19,Artikelstamm!$A:$EV,4,FALSE) -> 
B20: 15:00 - 15:30 | E20: =VLOOKUP(F20,Artikelstamm!$A:$EV,15,FALSE) ->  | G20: =VLOOKUP(F20,Artikelstamm!$A:$EV,4,FALSE) ->  | L20: 15:00 - 15:30 | O20: =VLOOKUP(P20,Artikelstamm!$A:$EV,15,FALSE) ->  | Q20: =VLOOKUP(P20,Artikelstamm!$A:$EV,4,FALSE) ->  | V20: 15:00 - 15:30 | Y20: =VLOOKUP(Z20,Artikelstamm!$A:$EV,15,FALSE) ->  | AA20: =VLOOKUP(Z20,Artikelstamm!$A:$EV,4,FALSE) ->  | AF20: 15:00 - 15:30 | AI20: =VLOOKUP(AJ20,Artikelstamm!$A:$EV,15,FALSE) ->  | AK20: =VLOOKUP(AJ20,Artikelstamm!$A:$EV,4,FALSE) ->  | AP20: 15:00 - 15:30 | AS20: =VLOOKUP(AT20,Artikelstamm!$A:$EV,15,FALSE) ->  | AU20: =VLOOKUP(AT20,Artikelstamm!$A:$EV,4,FALSE) ->  | AZ20: 15:00 - 15:30 | BC20: =VLOOKUP(BD20,Artikelstamm!$A:$EV,15,FALSE) ->  | BE20: =VLOOKUP(BD20,Artikelstamm!$A:$EV,4,FALSE) -> 
B21: 15:30 - 16:00 | E21: =VLOOKUP(F21,Artikelstamm!$A:$EV,15,FALSE) ->  | G21: =VLOOKUP(F21,Artikelstamm!$A:$EV,4,FALSE) ->  | L21: 15:30 - 16:00 | O21: =VLOOKUP(P21,Artikelstamm!$A:$EV,15,FALSE) ->  | Q21: =VLOOKUP(P21,Artikelstamm!$A:$EV,4,FALSE) ->  | V21: 15:30 - 16:00 | Y21: =VLOOKUP(Z21,Artikelstamm!$A:$EV,15,FALSE) ->  | AA21: =VLOOKUP(Z21,Artikelstamm!$A:$EV,4,FALSE) ->  | AF21: 15:30 - 16:00 | AI21: =VLOOKUP(AJ21,Artikelstamm!$A:$EV,15,FALSE) ->  | AK21: =VLOOKUP(AJ21,Artikelstamm!$A:$EV,4,FALSE) ->  | AP21: 15:30 - 16:00 | AS21: =VLOOKUP(AT21,Artikelstamm!$A:$EV,15,FALSE) ->  | AU21: =VLOOKUP(AT21,Artikelstamm!$A:$EV,4,FALSE) ->  | AZ21: 15:30 - 16:00 | BC21: =VLOOKUP(BD21,Artikelstamm!$A:$EV,15,FALSE) ->  | BE21: =VLOOKUP(BD21,Artikelstamm!$A:$EV,4,FALSE) -> 
A22: Übertrag: | K22: =$A22 -> Übertrag: | U22: =$A22 -> Übertrag: | AE22: =$A22 -> Übertrag: | AO22: =$A22 -> Übertrag: | AY22: =$A22 -> Übertrag:
A23: Summe: | C23: =SUM(C4:C22) -> 0 | D23: =SUM(D4:D22) -> 0 | I23: =SUM(I4:I21) -> 0 | K23: =$A23 -> Summe: | M23: =SUM(M4:M22) -> 0 | N23: =SUM(N4:N22) -> 0 | S23: =SUM(S4:S21) -> 0 | U23: =$A23 -> Summe: | W23: =SUM(W4:W22) -> 0 | X23: =SUM(X4:X22) -> 0 | AC23: =SUM(AC4:AC21) -> 0 | AE23: =$A23 -> Summe: | AG23: =SUM(AG4:AG22) -> 0 | AH23: =SUM(AH4:AH22) -> 0 | AM23: =SUM(AM4:AM21) -> 0 | AO23: =$A23 -> Summe: | AQ23: =SUM(AQ4:AQ22) -> 0 | AR23: =SUM(AR4:AR22) -> 0 | AW23: =SUM(AW4:AW21) -> 0 | AY23: =$A23 -> Summe: | BA23: =SUM(BA4:BA22) -> 0 | BB23: =SUM(BB4:BB22) -> 0 | BG23: =SUM(BG4:BG21) -> 0
A25: Wochenleistung | K25: Wochenleistung | U25: Wochenleistung | AE25: Wochenleistung | AO25: Wochenleistung | AY25: Wochenleistung
A26: Gebinde | B26: =$C$23+$M$23+$W$23+$AG$23+$AQ$23 -> 0 | K26: Gebinde | L26: =$B26 -> 0 | U26: Gebinde | V26: =$B26 -> 0 | AE26: Gebinde | AF26: =$B26 -> 0 | AO26: Gebinde | AP26: =$B26 -> 0 | AY26: Gebinde | AZ26: =$B26 -> 0
A27: Paletten | B27: =$I$23+$S$23+$AC$23+$AM$23+$AW$23 -> 0 | K27: Paletten | L27: =$B27 -> 0 | U27: Paletten | V27: =$B27 -> 0 | AE27: Paletten | AF27: =$B27 -> 0 | AO27: Paletten | AP27: =$B27 -> 0 | AY27: Paletten | AZ27: =$B27 -> 0
A28: Zusatzleistung | K28: Zusatzleistung | U28: Zusatzleistung | AE28: Zusatzleistung | AO28: Zusatzleistung | AY28: Zusatzleistung
A29: Gebinde | B29: =$BA$23 -> 0 | K29: Gebinde | L29: =$B29 -> 0 | U29: Gebinde | V29: =$B29 -> 0 | AE29: Gebinde | AF29: =$B29 -> 0 | AO29: Gebinde | AP29: =$B29 -> 0 | AY29: Gebinde | AZ29: =$B29 -> 0
A30: Paletten | B30: =$BG$24 -> 0 | K30: Paletten | L30: =$B30 -> 0 | U30: Paletten | V30: =$B30 -> 0 | AE30: Paletten | AF30: =$B30 -> 0 | AO30: Paletten | AP30: =$B30 -> 0 | AY30: Paletten | AZ30: =$B30 -> 0

Sheet 2-Schicht
A1: Produktionsplanung Packerei | K1: Produktionsplanung Packerei | U1: Produktionsplanung Packerei | AE1: Produktionsplanung Packerei | AO1: Produktionsplanung Packerei | AY1: Produktionsplanung Packerei
A2: KW | B2: 39 | C2: Montag: | G2: =DATE($B$3,1,4)-WEEKDAY(DATE($B$3,1,4),2)+($B$2-1)*7+1 -> 2021-09-27 | K2: KW | L2: =$B2 -> 39 | M2: Dienstag: | Q2: =DATE($B$3,1,4)-WEEKDAY(DATE($B$3,1,4),2)+($B$2-1)*7+2 -> 2021-09-28 | U2: KW | V2: =$B2 -> 39 | W2: Mittwoch: | AA2: =DATE($B$3,1,4)-WEEKDAY(DATE($B$3,1,4),2)+($B$2-1)*7+3 -> 2021-09-29 | AE2: KW | AF2: =$B2 -> 39 | AG2: Donnerstag: | AK2: =DATE($B$3,1,4)-WEEKDAY(DATE($B$3,1,4),2)+($B$2-1)*7+4 -> 2021-09-30 | AO2: KW | AP2: =$B2 -> 39 | AQ2: Freitag: | AU2: =DATE($B$3,1,4)-WEEKDAY(DATE($B$3,1,4),2)+($B$2-1)*7+5 -> 2021-10-01 | AY2: KW | AZ2: =$B2 -> 39 | BA2: Samstag: | BE2: =DATE($B$3,1,4)-WEEKDAY(DATE($B$3,1,4),2)+($B$2-1)*7+6 -> 2021-10-02
A3: 2-Schicht | B3: 2021 | C3: Stückzahl | D3: Gebinde- anzahl | E3: Gebinde-größe | F3: P-Artikel | G3: Produkt | H3: Lager | I3: Pal- Anz. | J3: Gewicht | K3: =$A3 -> 2-Schicht | L3: 2021 | M3: Stückzahl | N3: Gebinde-anzahl | O3: Gebinde-größe | P3: P-Artikel | Q3: Produkt | R3: Lager | S3: Pal- Anz. | T3: Gewicht | U3: =$A3 -> 2-Schicht | V3: 2021 | W3: Stückzahl | X3: Gebinde- anzahl | Y3: Gebinde-größe | Z3: P-Artikel | AA3: Produkt | AB3: Lager | AC3: Pal- Anz. | AD3: Gewicht | AE3: =$A3 -> 2-Schicht | AF3: 2021 | AG3: Stückzahl | AH3: Gebinde-anzahl | AI3: Gebinde-größe | AJ3: P-Artikel | AK3: Produkt | AL3: Lager | AM3: Pal- Anz. | AN3: Gewicht | AO3: =$A3 -> 2-Schicht | AP3: 2021 | AQ3: Stückzahl | AR3: Gebinde- anzahl | AS3: Gebinde-größe | AT3: P-Artikel | AU3: Produkt | AV3: Lager | AW3: Pal- Anz. | AX3: Gewicht | AY3: =$A3 -> 2-Schicht | AZ3: 2021 | BA3: Stückzahl | BB3: Gebinde- anzahl | BC3: Gebinde-größe | BD3: P-Artikel | BE3: Produkt | BF3: Lager | BG3: Pal- Anz. | BH3: Gewicht
A4: Frühschicht | B4: 5:00 - 5:30 | E4: =VLOOKUP(F4,Artikelstamm!$A:$EV,15,FALSE) ->  | G4: =VLOOKUP(F4,Artikelstamm!$A:$EV,4,FALSE) ->  | K4: =$A4 -> Frühschicht | L4: 5:00 - 5:30 | O4: =VLOOKUP(P4,Artikelstamm!$A:$EV,15,FALSE) ->  | Q4: =VLOOKUP(P4,Artikelstamm!$A:$EV,4,FALSE) ->  | U4: =$A4 -> Frühschicht | V4: 5:00 - 5:30 | Y4: =VLOOKUP(Z4,Artikelstamm!$A:$EV,15,FALSE) ->  | AA4: =VLOOKUP(Z4,Artikelstamm!$A:$EV,4,FALSE) ->  | AE4: =$A4 -> Frühschicht | AF4: 5:00 - 5:30 | AI4: =VLOOKUP(AJ4,Artikelstamm!$A:$EV,15,FALSE) ->  | AK4: =VLOOKUP(AJ4,Artikelstamm!$A:$EV,4,FALSE) ->  | AO4: =$A4 -> Frühschicht | AP4: 5:00 - 5:30 | AS4: =VLOOKUP(AT4,Artikelstamm!$A:$EV,15,FALSE) ->  | AU4: =VLOOKUP(AT4,Artikelstamm!$A:$EV,4,FALSE) ->  | AY4: =$A4 -> Frühschicht | AZ4: 5:00 - 5:30 | BC4: =VLOOKUP(BD4,Artikelstamm!$A:$EV,15,FALSE) ->  | BE4: =VLOOKUP(BD4,Artikelstamm!$A:$EV,4,FALSE) -> 
B5: 5:30 - 6:00 | E5: =VLOOKUP(F5,Artikelstamm!$A:$EV,15,FALSE) ->  | G5: =VLOOKUP(F5,Artikelstamm!$A:$EV,4,FALSE) ->  | L5: 5:30 - 6:00 | O5: =VLOOKUP(P5,Artikelstamm!$A:$EV,15,FALSE) ->  | Q5: =VLOOKUP(P5,Artikelstamm!$A:$EV,4,FALSE) ->  | V5: 5:30 - 6:00 | Y5: =VLOOKUP(Z5,Artikelstamm!$A:$EV,15,FALSE) ->  | AA5: =VLOOKUP(Z5,Artikelstamm!$A:$EV,4,FALSE) ->  | AF5: 5:30 - 6:00 | AI5: =VLOOKUP(AJ5,Artikelstamm!$A:$EV,15,FALSE) ->  | AK5: =VLOOKUP(AJ5,Artikelstamm!$A:$EV,4,FALSE) ->  | AP5: 5:30 - 6:00 | AS5: =VLOOKUP(AT5,Artikelstamm!$A:$EV,15,FALSE) ->  | AU5: =VLOOKUP(AT5,Artikelstamm!$A:$EV,4,FALSE) ->  | AZ5: 5:30 - 6:00 | BC5: =VLOOKUP(BD5,Artikelstamm!$A:$EV,15,FALSE) ->  | BE5: =VLOOKUP(BD5,Artikelstamm!$A:$EV,4,FALSE) -> 
B6: 6:00 - 6:30 | E6: =VLOOKUP(F6,Artikelstamm!$A:$EV,15,FALSE) ->  | G6: =VLOOKUP(F6,Artikelstamm!$A:$EV,4,FALSE) ->  | L6: 6:00 - 6:30 | O6: =VLOOKUP(P6,Artikelstamm!$A:$EV,15,FALSE) ->  | Q6: =VLOOKUP(P6,Artikelstamm!$A:$EV,4,FALSE) ->  | V6: 6:00 - 6:30 | Y6: =VLOOKUP(Z6,Artikelstamm!$A:$EV,15,FALSE) ->  | AA6: =VLOOKUP(Z6,Artikelstamm!$A:$EV,4,FALSE) ->  | AF6: 6:00 - 6:30 | AI6: =VLOOKUP(AJ6,Artikelstamm!$A:$EV,15,FALSE) ->  | AK6: =VLOOKUP(AJ6,Artikelstamm!$A:$EV,4,FALSE) ->  | AP6: 6:00 - 6:30 | AS6: =VLOOKUP(AT6,Artikelstamm!$A:$EV,15,FALSE) ->  | AU6: =VLOOKUP(AT6,Artikelstamm!$A:$EV,4,FALSE) ->  | AZ6: 6:00 - 6:30 | BC6: =VLOOKUP(BD6,Artikelstamm!$A:$EV,15,FALSE) ->  | BE6: =VLOOKUP(BD6,Artikelstamm!$A:$EV,4,FALSE) -> 
B7: 6:30 - 7:00 | E7: =VLOOKUP(F7,Artikelstamm!$A:$EV,15,FALSE) ->  | G7: =VLOOKUP(F7,Artikelstamm!$A:$EV,4,FALSE) ->  | L7: 6:30 - 7:00 | O7: =VLOOKUP(P7,Artikelstamm!$A:$EV,15,FALSE) ->  | Q7: =VLOOKUP(P7,Artikelstamm!$A:$EV,4,FALSE) ->  | V7: 6:30 - 7:00 | Y7: =VLOOKUP(Z7,Artikelstamm!$A:$EV,15,FALSE) ->  | AA7: =VLOOKUP(Z7,Artikelstamm!$A:$EV,4,FALSE) ->  | AF7: 6:30 - 7:00 | AI7: =VLOOKUP(AJ7,Artikelstamm!$A:$EV,15,FALSE) ->  | AK7: =VLOOKUP(AJ7,Artikelstamm!$A:$EV,4,FALSE) ->  | AP7: 6:30 - 7:00 | AS7: =VLOOKUP(AT7,Artikelstamm!$A:$EV,15,FALSE) ->  | AU7: =VLOOKUP(AT7,Artikelstamm!$A:$EV,4,FALSE) ->  | AZ7: 6:30 - 7:00 | BC7: =VLOOKUP(BD7,Artikelstamm!$A:$EV,15,FALSE) ->  | BE7: =VLOOKUP(BD7,Artikelstamm!$A:$EV,4,FALSE) -> 
B8: 7:00 - 7:30 | E8: =VLOOKUP(F8,Artikelstamm!$A:$EV,15,FALSE) ->  | G8: =VLOOKUP(F8,Artikelstamm!$A:$EV,4,FALSE) ->  | L8: 7:00 - 7:30 | O8: =VLOOKUP(P8,Artikelstamm!$A:$EV,15,FALSE) ->  | Q8: =VLOOKUP(P8,Artikelstamm!$A:$EV,4,FALSE) ->  | V8: 7:00 - 7:30 | Y8: =VLOOKUP(Z8,Artikelstamm!$A:$EV,15,FALSE) ->  | AA8: =VLOOKUP(Z8,Artikelstamm!$A:$EV,4,FALSE) ->  | AF8: 7:00 - 7:30 | AI8: =VLOOKUP(AJ8,Artikelstamm!$A:$EV,15,FALSE) ->  | AK8: =VLOOKUP(AJ8,Artikelstamm!$A:$EV,4,FALSE) ->  | AP8: 7:00 - 7:30 | AS8: =VLOOKUP(AT8,Artikelstamm!$A:$EV,15,FALSE) ->  | AU8: =VLOOKUP(AT8,Artikelstamm!$A:$EV,4,FALSE) ->  | AZ8: 7:00 - 7:30 | BC8: =VLOOKUP(BD8,Artikelstamm!$A:$EV,15,FALSE) ->  | BE8: =VLOOKUP(BD8,Artikelstamm!$A:$EV,4,FALSE) -> 
B9: 7:30 - 8:00 | E9: =VLOOKUP(F9,Artikelstamm!$A:$EV,15,FALSE) ->  | G9: =VLOOKUP(F9,Artikelstamm!$A:$EV,4,FALSE) ->  | L9: 7:30 - 8:00 | O9: =VLOOKUP(P9,Artikelstamm!$A:$EV,15,FALSE) ->  | Q9: =VLOOKUP(P9,Artikelstamm!$A:$EV,4,FALSE) ->  | V9: 7:30 - 8:00 | Y9: =VLOOKUP(Z9,Artikelstamm!$A:$EV,15,FALSE) ->  | AA9: =VLOOKUP(Z9,Artikelstamm!$A:$EV,4,FALSE) ->  | AF9: 7:30 - 8:00 | AI9: =VLOOKUP(AJ9,Artikelstamm!$A:$EV,15,FALSE) ->  | AK9: =VLOOKUP(AJ9,Artikelstamm!$A:$EV,4,FALSE) ->  | AP9: 7:30 - 8:00 | AS9: =VLOOKUP(AT9,Artikelstamm!$A:$EV,15,FALSE) ->  | AU9: =VLOOKUP(AT9,Artikelstamm!$A:$EV,4,FALSE) ->  | AZ9: 7:30 - 8:00 | BC9: =VLOOKUP(BD9,Artikelstamm!$A:$EV,15,FALSE) ->  | BE9: =VLOOKUP(BD9,Artikelstamm!$A:$EV,4,FALSE) -> 
B10: 8:00 - 8:30 | D10: Pause | G10: Pause | L10: 8:00 - 8:30 | N10: Pause | Q10: Pause | V10: 8:00 - 8:30 | X10: Pause | AA10: Pause | AF10: 8:00 - 8:30 | AH10: Pause | AK10: Pause | AP10: 8:00 - 8:30 | AR10: Pause | AU10: Pause | AZ10: 8:00 - 8:30 | BB10: Pause | BE10: Pause
B11: 8:30 - 9:00 | E11: =VLOOKUP(F11,Artikelstamm!$A:$EV,15,FALSE) ->  | G11: =VLOOKUP(F11,Artikelstamm!$A:$EV,4,FALSE) ->  | L11: 8:30 - 9:00 | O11: =VLOOKUP(P11,Artikelstamm!$A:$EV,15,FALSE) ->  | Q11: =VLOOKUP(P11,Artikelstamm!$A:$EV,4,FALSE) ->  | V11: 8:30 - 9:00 | Y11: =VLOOKUP(Z11,Artikelstamm!$A:$EV,15,FALSE) ->  | AA11: =VLOOKUP(Z11,Artikelstamm!$A:$EV,4,FALSE) ->  | AF11: 8:30 - 9:00 | AI11: =VLOOKUP(AJ11,Artikelstamm!$A:$EV,15,FALSE) ->  | AK11: =VLOOKUP(AJ11,Artikelstamm!$A:$EV,4,FALSE) ->  | AP11: 8:30 - 9:00 | AS11: =VLOOKUP(AT11,Artikelstamm!$A:$EV,15,FALSE) ->  | AU11: =VLOOKUP(AT11,Artikelstamm!$A:$EV,4,FALSE) ->  | AZ11: 8:30 - 9:00 | BC11: =VLOOKUP(BD11,Artikelstamm!$A:$EV,15,FALSE) ->  | BE11: =VLOOKUP(BD11,Artikelstamm!$A:$EV,4,FALSE) -> 
B12: 9:00 - 9:30 | E12: =VLOOKUP(F12,Artikelstamm!$A:$EV,15,FALSE) ->  | G12: =VLOOKUP(F12,Artikelstamm!$A:$EV,4,FALSE) ->  | L12: 9:00 - 9:30 | O12: =VLOOKUP(P12,Artikelstamm!$A:$EV,15,FALSE) ->  | Q12: =VLOOKUP(P12,Artikelstamm!$A:$EV,4,FALSE) ->  | V12: 9:00 - 9:30 | Y12: =VLOOKUP(Z12,Artikelstamm!$A:$EV,15,FALSE) ->  | AA12: =VLOOKUP(Z12,Artikelstamm!$A:$EV,4,FALSE) ->  | AF12: 9:00 - 9:30 | AI12: =VLOOKUP(AJ12,Artikelstamm!$A:$EV,15,FALSE) ->  | AK12: =VLOOKUP(AJ12,Artikelstamm!$A:$EV,4,FALSE) ->  | AP12: 9:00 - 9:30 | AS12: =VLOOKUP(AT12,Artikelstamm!$A:$EV,15,FALSE) ->  | AU12: =VLOOKUP(AT12,Artikelstamm!$A:$EV,4,FALSE) ->  | AZ12: 9:00 - 9:30 | BC12: =VLOOKUP(BD12,Artikelstamm!$A:$EV,15,FALSE) ->  | BE12: =VLOOKUP(BD12,Artikelstamm!$A:$EV,4,FALSE) -> 
B13: 9:30 - 10:00 | E13: =VLOOKUP(F13,Artikelstamm!$A:$EV,15,FALSE) ->  | G13: =VLOOKUP(F13,Artikelstamm!$A:$EV,4,FALSE) ->  | L13: 9:30 - 10:00 | O13: =VLOOKUP(P13,Artikelstamm!$A:$EV,15,FALSE) ->  | Q13: =VLOOKUP(P13,Artikelstamm!$A:$EV,4,FALSE) ->  | V13: 9:30 - 10:00 | Y13: =VLOOKUP(Z13,Artikelstamm!$A:$EV,15,FALSE) ->  | AA13: =VLOOKUP(Z13,Artikelstamm!$A:$EV,4,FALSE) ->  | AF13: 9:30 - 10:00 | AI13: =VLOOKUP(AJ13,Artikelstamm!$A:$EV,15,FALSE) ->  | AK13: =VLOOKUP(AJ13,Artikelstamm!$A:$EV,4,FALSE) ->  | AP13: 9:30 - 10:00 | AS13: =VLOOKUP(AT13,Artikelstamm!$A:$EV,15,FALSE) ->  | AU13: =VLOOKUP(AT13,Artikelstamm!$A:$EV,4,FALSE) ->  | AZ13: 9:30 - 10:00 | BC13: =VLOOKUP(BD13,Artikelstamm!$A:$EV,15,FALSE) ->  | BE13: =VLOOKUP(BD13,Artikelstamm!$A:$EV,4,FALSE) -> 
B14: 10:00 - 10:30 | E14: =VLOOKUP(F14,Artikelstamm!$A:$EV,15,FALSE) ->  | G14: =VLOOKUP(F14,Artikelstamm!$A:$EV,4,FALSE) ->  | L14: 10:00 - 10:30 | O14: =VLOOKUP(P14,Artikelstamm!$A:$EV,15,FALSE) ->  | Q14: =VLOOKUP(P14,Artikelstamm!$A:$EV,4,FALSE) ->  | V14: 10:00 - 10:30 | Y14: =VLOOKUP(Z14,Artikelstamm!$A:$EV,15,FALSE) ->  | AA14: =VLOOKUP(Z14,Artikelstamm!$A:$EV,4,FALSE) ->  | AF14: 10:00 - 10:30 | AI14: =VLOOKUP(AJ14,Artikelstamm!$A:$EV,15,FALSE) ->  | AK14: =VLOOKUP(AJ14,Artikelstamm!$A:$EV,4,FALSE) ->  | AP14: 10:00 - 10:30 | AS14: =VLOOKUP(AT14,Artikelstamm!$A:$EV,15,FALSE) ->  | AU14: =VLOOKUP(AT14,Artikelstamm!$A:$EV,4,FALSE) ->  | AZ14: 10:00 - 10:30 | BC14: =VLOOKUP(BD14,Artikelstamm!$A:$EV,15,FALSE) ->  | BE14: =VLOOKUP(BD14,Artikelstamm!$A:$EV,4,FALSE) -> 
B15: 10:30 - 11:00 | E15: =VLOOKUP(F15,Artikelstamm!$A:$EV,15,FALSE) ->  | G15: =VLOOKUP(F15,Artikelstamm!$A:$EV,4,FALSE) ->  | L15: 10:30 - 11:00 | O15: =VLOOKUP(P15,Artikelstamm!$A:$EV,15,FALSE) ->  | Q15: =VLOOKUP(P15,Artikelstamm!$A:$EV,4,FALSE) ->  | V15: 10:30 - 11:00 | Y15: =VLOOKUP(Z15,Artikelstamm!$A:$EV,15,FALSE) ->  | AA15: =VLOOKUP(Z15,Artikelstamm!$A:$EV,4,FALSE) ->  | AF15: 10:30 - 11:00 | AI15: =VLOOKUP(AJ15,Artikelstamm!$A:$EV,15,FALSE) ->  | AK15: =VLOOKUP(AJ15,Artikelstamm!$A:$EV,4,FALSE) ->  | AP15: 10:30 - 11:00 | AS15: =VLOOKUP(AT15,Artikelstamm!$A:$EV,15,FALSE) ->  | AU15: =VLOOKUP(AT15,Artikelstamm!$A:$EV,4,FALSE) ->  | AZ15: 10:30 - 11:00 | BC15: =VLOOKUP(BD15,Artikelstamm!$A:$EV,15,FALSE) ->  | BE15: =VLOOKUP(BD15,Artikelstamm!$A:$EV,4,FALSE) -> 
B16: 11:00 - 11:30 | E16: =VLOOKUP(F16,Artikelstamm!$A:$EV,15,FALSE) ->  | G16: =VLOOKUP(F16,Artikelstamm!$A:$EV,4,FALSE) ->  | L16: 11:00 - 11:30 | O16: =VLOOKUP(P16,Artikelstamm!$A:$EV,15,FALSE) ->  | Q16: =VLOOKUP(P16,Artikelstamm!$A:$EV,4,FALSE) ->  | V16: 11:00 - 11:30 | Y16: =VLOOKUP(Z16,Artikelstamm!$A:$EV,15,FALSE) ->  | AA16: =VLOOKUP(Z16,Artikelstamm!$A:$EV,4,FALSE) ->  | AF16: 11:00 - 11:30 | AI16: =VLOOKUP(AJ16,Artikelstamm!$A:$EV,15,FALSE) ->  | AK16: =VLOOKUP(AJ16,Artikelstamm!$A:$EV,4,FALSE) ->  | AP16: 11:00 - 11:30 | AS16: =VLOOKUP(AT16,Artikelstamm!$A:$EV,15,FALSE) ->  | AU16: =VLOOKUP(AT16,Artikelstamm!$A:$EV,4,FALSE) ->  | AZ16: 11:00 - 11:30 | BC16: =VLOOKUP(BD16,Artikelstamm!$A:$EV,15,FALSE) ->  | BE16: =VLOOKUP(BD16,Artikelstamm!$A:$EV,4,FALSE) -> 
B17: 11:30 - 12:00 | D17: Pause | G17: Pause | L17: 11:30 - 12:00 | N17: Pause | Q17: Pause | V17: 11:30 - 12:00 | X17: Pause | AA17: Pause | AF17: 11:30 - 12:00 | AH17: Pause | AK17: Pause | AP17: 11:30 - 12:00 | AR17: Pause | AU17: Pause | AZ17: 11:30 - 12:00 | BB17: Pause | BE17: Pause
B18: 12:00 - 12:30 | E18: =VLOOKUP(F18,Artikelstamm!$A:$EV,15,FALSE) ->  | G18: =VLOOKUP(F18,Artikelstamm!$A:$EV,4,FALSE) ->  | L18: 12:00 - 12:30 | O18: =VLOOKUP(P18,Artikelstamm!$A:$EV,15,FALSE) ->  | Q18: =VLOOKUP(P18,Artikelstamm!$A:$EV,4,FALSE) ->  | V18: 12:00 - 12:30 | Y18: =VLOOKUP(Z18,Artikelstamm!$A:$EV,15,FALSE) ->  | AA18: =VLOOKUP(Z18,Artikelstamm!$A:$EV,4,FALSE) ->  | AF18: 12:00 - 12:30 | AI18: =VLOOKUP(AJ18,Artikelstamm!$A:$EV,15,FALSE) ->  | AK18: =VLOOKUP(AJ18,Artikelstamm!$A:$EV,4,FALSE) ->  | AP18: 12:00 - 12:30 | AS18: =VLOOKUP(AT18,Artikelstamm!$A:$EV,15,FALSE) ->  | AU18: =VLOOKUP(AT18,Artikelstamm!$A:$EV,4,FALSE) ->  | AZ18: 12:00 - 12:30 | BC18: =VLOOKUP(BD18,Artikelstamm!$A:$EV,15,FALSE) ->  | BE18: =VLOOKUP(BD18,Artikelstamm!$A:$EV,4,FALSE) -> 
B19: 12:30 - 13:00 | E19: =VLOOKUP(F19,Artikelstamm!$A:$EV,15,FALSE) ->  | G19: =VLOOKUP(F19,Artikelstamm!$A:$EV,4,FALSE) ->  | L19: 12:30 - 13:00 | O19: =VLOOKUP(P19,Artikelstamm!$A:$EV,15,FALSE) ->  | Q19: =VLOOKUP(P19,Artikelstamm!$A:$EV,4,FALSE) ->  | V19: 12:30 - 13:00 | Y19: =VLOOKUP(Z19,Artikelstamm!$A:$EV,15,FALSE) ->  | AA19: =VLOOKUP(Z19,Artikelstamm!$A:$EV,4,FALSE) ->  | AF19: 12:30 - 13:00 | AI19: =VLOOKUP(AJ19,Artikelstamm!$A:$EV,15,FALSE) ->  | AK19: =VLOOKUP(AJ19,Artikelstamm!$A:$EV,4,FALSE) ->  | AP19: 12:30 - 13:00 | AS19: =VLOOKUP(AT19,Artikelstamm!$A:$EV,15,FALSE) ->  | AU19: =VLOOKUP(AT19,Artikelstamm!$A:$EV,4,FALSE) ->  | AZ19: 12:30 - 13:00 | BC19: =VLOOKUP(BD19,Artikelstamm!$A:$EV,15,FALSE) ->  | BE19: =VLOOKUP(BD19,Artikelstamm!$A:$EV,4,FALSE) -> 
B20: 13:00 - 13:30 | E20: =VLOOKUP(F20,Artikelstamm!$A:$EV,15,FALSE) ->  | G20: =VLOOKUP(F20,Artikelstamm!$A:$EV,4,FALSE) ->  | L20: 13:00 - 13:30 | O20: =VLOOKUP(P20,Artikelstamm!$A:$EV,15,FALSE) ->  | Q20: =VLOOKUP(P20,Artikelstamm!$A:$EV,4,FALSE) ->  | V20: 13:00 - 13:30 | Y20: =VLOOKUP(Z20,Artikelstamm!$A:$EV,15,FALSE) ->  | AA20: =VLOOKUP(Z20,Artikelstamm!$A:$EV,4,FALSE) ->  | AF20: 13:00 - 13:30 | AI20: =VLOOKUP(AJ20,Artikelstamm!$A:$EV,15,FALSE) ->  | AK20: =VLOOKUP(AJ20,Artikelstamm!$A:$EV,4,FALSE) ->  | AP20: 13:00 - 13:30 | AS20: =VLOOKUP(AT20,Artikelstamm!$A:$EV,15,FALSE) ->  | AU20: =VLOOKUP(AT20,Artikelstamm!$A:$EV,4,FALSE) ->  | AZ20: 13:00 - 13:30 | BC20: =VLOOKUP(BD20,Artikelstamm!$A:$EV,15,FALSE) ->  | BE20: =VLOOKUP(BD20,Artikelstamm!$A:$EV,4,FALSE) -> 
B21: 13:30 - 14:00 | E21: =VLOOKUP(F21,Artikelstamm!$A:$EV,15,FALSE) ->  | G21: =VLOOKUP(F21,Artikelstamm!$A:$EV,4,FALSE) ->  | L21: 13:30 - 14:00 | O21: =VLOOKUP(P21,Artikelstamm!$A:$EV,15,FALSE) ->  | Q21: =VLOOKUP(P21,Artikelstamm!$A:$EV,4,FALSE) ->  | V21: 13:30 - 14:00 | Y21: =VLOOKUP(Z21,Artikelstamm!$A:$EV,15,FALSE) ->  | AA21: =VLOOKUP(Z21,Artikelstamm!$A:$EV,4,FALSE) ->  | AF21: 13:30 - 14:00 | AI21: =VLOOKUP(AJ21,Artikelstamm!$A:$EV,15,FALSE) ->  | AK21: =VLOOKUP(AJ21,Artikelstamm!$A:$EV,4,FALSE) ->  | AP21: 13:30 - 14:00 | AS21: =VLOOKUP(AT21,Artikelstamm!$A:$EV,15,FALSE) ->  | AU21: =VLOOKUP(AT21,Artikelstamm!$A:$EV,4,FALSE) ->  | AZ21: 13:30 - 14:00 | BC21: =VLOOKUP(BD21,Artikelstamm!$A:$EV,15,FALSE) ->  | BE21: =VLOOKUP(BD21,Artikelstamm!$A:$EV,4,FALSE) -> 
A22: Spätschicht | B22: 14:00 - 14:30 | E22: =VLOOKUP(F22,Artikelstamm!$A:$EV,15,FALSE) ->  | G22: =VLOOKUP(F22,Artikelstamm!$A:$EV,4,FALSE) ->  | K22: =$A22 -> Spätschicht | L22: 14:00 - 14:30 | O22: =VLOOKUP(P22,Artikelstamm!$A:$EV,15,FALSE) ->  | Q22: =VLOOKUP(P22,Artikelstamm!$A:$EV,4,FALSE) ->  | U22: =$A22 -> Spätschicht | V22: 14:00 - 14:30 | Y22: =VLOOKUP(Z22,Artikelstamm!$A:$EV,15,FALSE) ->  | AA22: =VLOOKUP(Z22,Artikelstamm!$A:$EV,4,FALSE) ->  | AE22: =$A22 -> Spätschicht | AF22: 14:00 - 14:30 | AI22: =VLOOKUP(AJ22,Artikelstamm!$A:$EV,15,FALSE) ->  | AK22: =VLOOKUP(AJ22,Artikelstamm!$A:$EV,4,FALSE) ->  | AO22: =$A22 -> Spätschicht | AP22: 14:00 - 14:30 | AS22: =VLOOKUP(AT22,Artikelstamm!$A:$EV,15,FALSE) ->  | AU22: =VLOOKUP(AT22,Artikelstamm!$A:$EV,4,FALSE) ->  | AY22: =$A22 -> Spätschicht | AZ22: 14:00 - 14:30 | BC22: =VLOOKUP(BD22,Artikelstamm!$A:$EV,15,FALSE) ->  | BE22: =VLOOKUP(BD22,Artikelstamm!$A:$EV,4,FALSE) -> 
B23: 14:30 - 15:00 | E23: =VLOOKUP(F23,Artikelstamm!$A:$EV,15,FALSE) ->  | G23: =VLOOKUP(F23,Artikelstamm!$A:$EV,4,FALSE) ->  | L23: 14:30 - 15:00 | O23: =VLOOKUP(P23,Artikelstamm!$A:$EV,15,FALSE) ->  | Q23: =VLOOKUP(P23,Artikelstamm!$A:$EV,4,FALSE) ->  | V23: 14:30 - 15:00 | Y23: =VLOOKUP(Z23,Artikelstamm!$A:$EV,15,FALSE) ->  | AA23: =VLOOKUP(Z23,Artikelstamm!$A:$EV,4,FALSE) ->  | AF23: 14:30 - 15:00 | AI23: =VLOOKUP(AJ23,Artikelstamm!$A:$EV,15,FALSE) ->  | AK23: =VLOOKUP(AJ23,Artikelstamm!$A:$EV,4,FALSE) ->  | AP23: 14:30 - 15:00 | AS23: =VLOOKUP(AT23,Artikelstamm!$A:$EV,15,FALSE) ->  | AU23: =VLOOKUP(AT23,Artikelstamm!$A:$EV,4,FALSE) ->  | AZ23: 14:30 - 15:00 | BC23: =VLOOKUP(BD23,Artikelstamm!$A:$EV,15,FALSE) ->  | BE23: =VLOOKUP(BD23,Artikelstamm!$A:$EV,4,FALSE) -> 
B24: 15:00 - 15:30 | E24: =VLOOKUP(F24,Artikelstamm!$A:$EV,15,FALSE) ->  | G24: =VLOOKUP(F24,Artikelstamm!$A:$EV,4,FALSE) ->  | L24: 15:00 - 15:30 | O24: =VLOOKUP(P24,Artikelstamm!$A:$EV,15,FALSE) ->  | Q24: =VLOOKUP(P24,Artikelstamm!$A:$EV,4,FALSE) ->  | V24: 15:00 - 15:30 | Y24: =VLOOKUP(Z24,Artikelstamm!$A:$EV,15,FALSE) ->  | AA24: =VLOOKUP(Z24,Artikelstamm!$A:$EV,4,FALSE) ->  | AF24: 15:00 - 15:30 | AI24: =VLOOKUP(AJ24,Artikelstamm!$A:$EV,15,FALSE) ->  | AK24: =VLOOKUP(AJ24,Artikelstamm!$A:$EV,4,FALSE) ->  | AP24: 15:00 - 15:30 | AS24: =VLOOKUP(AT24,Artikelstamm!$A:$EV,15,FALSE) ->  | AU24: =VLOOKUP(AT24,Artikelstamm!$A:$EV,4,FALSE) ->  | AZ24: 15:00 - 15:30 | BC24: =VLOOKUP(BD24,Artikelstamm!$A:$EV,15,FALSE) ->  | BE24: =VLOOKUP(BD24,Artikelstamm!$A:$EV,4,FALSE) -> 
B25: 15:30 - 16:00 | E25: =VLOOKUP(F25,Artikelstamm!$A:$EV,15,FALSE) ->  | G25: =VLOOKUP(F25,Artikelstamm!$A:$EV,4,FALSE) ->  | L25: 15:30 - 16:00 | O25: =VLOOKUP(P25,Artikelstamm!$A:$EV,15,FALSE) ->  | Q25: =VLOOKUP(P25,Artikelstamm!$A:$EV,4,FALSE) ->  | V25: 15:30 - 16:00 | Y25: =VLOOKUP(Z25,Artikelstamm!$A:$EV,15,FALSE) ->  | AA25: =VLOOKUP(Z25,Artikelstamm!$A:$EV,4,FALSE) ->  | AF25: 15:30 - 16:00 | AI25: =VLOOKUP(AJ25,Artikelstamm!$A:$EV,15,FALSE) ->  | AK25: =VLOOKUP(AJ25,Artikelstamm!$A:$EV,4,FALSE) ->  | AP25: 15:30 - 16:00 | AS25: =VLOOKUP(AT25,Artikelstamm!$A:$EV,15,FALSE) ->  | AU25: =VLOOKUP(AT25,Artikelstamm!$A:$EV,4,FALSE) ->  | AZ25: 15:30 - 16:00 | BC25: =VLOOKUP(BD25,Artikelstamm!$A:$EV,15,FALSE) ->  | BE25: =VLOOKUP(BD25,Artikelstamm!$A:$EV,4,FALSE) -> 
B26: 16:00 - 16:30 | E26: =VLOOKUP(F26,Artikelstamm!$A:$EV,15,FALSE) ->  | G26: =VLOOKUP(F26,Artikelstamm!$A:$EV,4,FALSE) ->  | L26: 16:00 - 16:30 | O26: =VLOOKUP(P26,Artikelstamm!$A:$EV,15,FALSE) ->  | Q26: =VLOOKUP(P26,Artikelstamm!$A:$EV,4,FALSE) ->  | V26: 16:00 - 16:30 | Y26: =VLOOKUP(Z26,Artikelstamm!$A:$EV,15,FALSE) ->  | AA26: =VLOOKUP(Z26,Artikelstamm!$A:$EV,4,FALSE) ->  | AF26: 16:00 - 16:30 | AI26: =VLOOKUP(AJ26,Artikelstamm!$A:$EV,15,FALSE) ->  | AK26: =VLOOKUP(AJ26,Artikelstamm!$A:$EV,4,FALSE) ->  | AP26: 16:00 - 16:30 | AS26: =VLOOKUP(AT26,Artikelstamm!$A:$EV,15,FALSE) ->  | AU26: =VLOOKUP(AT26,Artikelstamm!$A:$EV,4,FALSE) ->  | AZ26: 16:00 - 16:30 | BC26: =VLOOKUP(BD26,Artikelstamm!$A:$EV,15,FALSE) ->  | BE26: =VLOOKUP(BD26,Artikelstamm!$A:$EV,4,FALSE) -> 
B27: 16:30 - 17:00 | E27: =VLOOKUP(F27,Artikelstamm!$A:$EV,15,FALSE) ->  | G27: =VLOOKUP(F27,Artikelstamm!$A:$EV,4,FALSE) ->  | L27: 16:30 - 17:00 | O27: =VLOOKUP(P27,Artikelstamm!$A:$EV,15,FALSE) ->  | Q27: =VLOOKUP(P27,Artikelstamm!$A:$EV,4,FALSE) ->  | V27: 16:30 - 17:00 | Y27: =VLOOKUP(Z27,Artikelstamm!$A:$EV,15,FALSE) ->  | AA27: =VLOOKUP(Z27,Artikelstamm!$A:$EV,4,FALSE) ->  | AF27: 16:30 - 17:00 | AI27: =VLOOKUP(AJ27,Artikelstamm!$A:$EV,15,FALSE) ->  | AK27: =VLOOKUP(AJ27,Artikelstamm!$A:$EV,4,FALSE) ->  | AP27: 16:30 - 17:00 | AS27: =VLOOKUP(AT27,Artikelstamm!$A:$EV,15,FALSE) ->  | AU27: =VLOOKUP(AT27,Artikelstamm!$A:$EV,4,FALSE) ->  | AZ27: 16:30 - 17:00 | BC27: =VLOOKUP(BD27,Artikelstamm!$A:$EV,15,FALSE) ->  | BE27: =VLOOKUP(BD27,Artikelstamm!$A:$EV,4,FALSE) -> 
B28: 17:00 - 17:30 | D28: Pause | G28: Pause | L28: 17:00 - 17:30 | N28: Pause | Q28: Pause | V28: 17:00 - 17:30 | X28: Pause | AA28: Pause | AF28: 17:00 - 17:30 | AH28: Pause | AK28: Pause | AP28: 17:00 - 17:30 | AR28: Pause | AU28: Pause | AZ28: 17:00 - 17:30 | BB28: Pause | BE28: Pause
B29: 17:30 - 18:00 | E29: =VLOOKUP(F29,Artikelstamm!$A:$EV,15,FALSE) ->  | G29: =VLOOKUP(F29,Artikelstamm!$A:$EV,4,FALSE) ->  | L29: 17:30 - 18:00 | O29: =VLOOKUP(P29,Artikelstamm!$A:$EV,15,FALSE) ->  | Q29: =VLOOKUP(P29,Artikelstamm!$A:$EV,4,FALSE) ->  | V29: 17:30 - 18:00 | Y29: =VLOOKUP(Z29,Artikelstamm!$A:$EV,15,FALSE) ->  | AA29: =VLOOKUP(Z29,Artikelstamm!$A:$EV,4,FALSE) ->  | AF29: 17:30 - 18:00 | AI29: =VLOOKUP(AJ29,Artikelstamm!$A:$EV,15,FALSE) ->  | AK29: =VLOOKUP(AJ29,Artikelstamm!$A:$EV,4,FALSE) ->  | AP29: 17:30 - 18:00 | AS29: =VLOOKUP(AT29,Artikelstamm!$A:$EV,15,FALSE) ->  | AU29: =VLOOKUP(AT29,Artikelstamm!$A:$EV,4,FALSE) ->  | AZ29: 17:30 - 18:00 | BC29: =VLOOKUP(BD29,Artikelstamm!$A:$EV,15,FALSE) ->  | BE29: =VLOOKUP(BD29,Artikelstamm!$A:$EV,4,FALSE) -> 
B30: 18:00 - 18:30 | E30: =VLOOKUP(F30,Artikelstamm!$A:$EV,15,FALSE) ->  | G30: =VLOOKUP(F30,Artikelstamm!$A:$EV,4,FALSE) ->  | L30: 18:00 - 18:30 | O30: =VLOOKUP(P30,Artikelstamm!$A:$EV,15,FALSE) ->  | Q30: =VLOOKUP(P30,Artikelstamm!$A:$EV,4,FALSE) ->  | V30: 18:00 - 18:30 | Y30: =VLOOKUP(Z30,Artikelstamm!$A:$EV,15,FALSE) ->  | AA30: =VLOOKUP(Z30,Artikelstamm!$A:$EV,4,FALSE) ->  | AF30: 18:00 - 18:30 | AI30: =VLOOKUP(AJ30,Artikelstamm!$A:$EV,15,FALSE) ->  | AK30: =VLOOKUP(AJ30,Artikelstamm!$A:$EV,4,FALSE) ->  | AP30: 18:00 - 18:30 | AS30: =VLOOKUP(AT30,Artikelstamm!$A:$EV,15,FALSE) ->  | AU30: =VLOOKUP(AT30,Artikelstamm!$A:$EV,4,FALSE) ->  | AZ30: 18:00 - 18:30 | BC30: =VLOOKUP(BD30,Artikelstamm!$A:$EV,15,FALSE) ->  | BE30: =VLOOKUP(BD30,Artikelstamm!$A:$EV,4,FALSE) -> 
B31: 18:30 - 19:00 | E31: =VLOOKUP(F31,Artikelstamm!$A:$EV,15,FALSE) ->  | G31: =VLOOKUP(F31,Artikelstamm!$A:$EV,4,FALSE) ->  | L31: 18:30 - 19:00 | O31: =VLOOKUP(P31,Artikelstamm!$A:$EV,15,FALSE) ->  | Q31: =VLOOKUP(P31,Artikelstamm!$A:$EV,4,FALSE) ->  | V31: 18:30 - 19:00 | Y31: =VLOOKUP(Z31,Artikelstamm!$A:$EV,15,FALSE) ->  | AA31: =VLOOKUP(Z31,Artikelstamm!$A:$EV,4,FALSE) ->  | AF31: 18:30 - 19:00 | AI31: =VLOOKUP(AJ31,Artikelstamm!$A:$EV,15,FALSE) ->  | AK31: =VLOOKUP(AJ31,Artikelstamm!$A:$EV,4,FALSE) ->  | AP31: 18:30 - 19:00 | AS31: =VLOOKUP(AT31,Artikelstamm!$A:$EV,15,FALSE) ->  | AU31: =VLOOKUP(AT31,Artikelstamm!$A:$EV,4,FALSE) ->  | AZ31: 18:30 - 19:00 | BC31: =VLOOKUP(BD31,Artikelstamm!$A:$EV,15,FALSE) ->  | BE31: =VLOOKUP(BD31,Artikelstamm!$A:$EV,4,FALSE) -> 
B32: 19:00 - 19:30 | E32: =VLOOKUP(F32,Artikelstamm!$A:$EV,15,FALSE) ->  | G32: =VLOOKUP(F32,Artikelstamm!$A:$EV,4,FALSE) ->  | L32: 19:00 - 19:30 | O32: =VLOOKUP(P32,Artikelstamm!$A:$EV,15,FALSE) ->  | Q32: =VLOOKUP(P32,Artikelstamm!$A:$EV,4,FALSE) ->  | V32: 19:00 - 19:30 | Y32: =VLOOKUP(Z32,Artikelstamm!$A:$EV,15,FALSE) ->  | AA32: =VLOOKUP(Z32,Artikelstamm!$A:$EV,4,FALSE) ->  | AF32: 19:00 - 19:30 | AI32: =VLOOKUP(AJ32,Artikelstamm!$A:$EV,15,FALSE) ->  | AK32: =VLOOKUP(AJ32,Artikelstamm!$A:$EV,4,FALSE) ->  | AP32: 19:00 - 19:30 | AS32: =VLOOKUP(AT32,Artikelstamm!$A:$EV,15,FALSE) ->  | AU32: =VLOOKUP(AT32,Artikelstamm!$A:$EV,4,FALSE) ->  | AZ32: 19:00 - 19:30 | BC32: =VLOOKUP(BD32,Artikelstamm!$A:$EV,15,FALSE) ->  | BE32: =VLOOKUP(BD32,Artikelstamm!$A:$EV,4,FALSE) -> 
B33: 19:30 - 20:00 | E33: =VLOOKUP(F33,Artikelstamm!$A:$EV,15,FALSE) ->  | G33: =VLOOKUP(F33,Artikelstamm!$A:$EV,4,FALSE) ->  | L33: 19:30 - 20:00 | O33: =VLOOKUP(P33,Artikelstamm!$A:$EV,15,FALSE) ->  | Q33: =VLOOKUP(P33,Artikelstamm!$A:$EV,4,FALSE) ->  | V33: 19:30 - 20:00 | Y33: =VLOOKUP(Z33,Artikelstamm!$A:$EV,15,FALSE) ->  | AA33: =VLOOKUP(Z33,Artikelstamm!$A:$EV,4,FALSE) ->  | AF33: 19:30 - 20:00 | AI33: =VLOOKUP(AJ33,Artikelstamm!$A:$EV,15,FALSE) ->  | AK33: =VLOOKUP(AJ33,Artikelstamm!$A:$EV,4,FALSE) ->  | AP33: 19:30 - 20:00 | AS33: =VLOOKUP(AT33,Artikelstamm!$A:$EV,15,FALSE) ->  | AU33: =VLOOKUP(AT33,Artikelstamm!$A:$EV,4,FALSE) ->  | AZ33: 19:30 - 20:00 | BC33: =VLOOKUP(BD33,Artikelstamm!$A:$EV,15,FALSE) ->  | BE33: =VLOOKUP(BD33,Artikelstamm!$A:$EV,4,FALSE) -> 
B34: 20:00 - 20:30 | E34: =VLOOKUP(F34,Artikelstamm!$A:$EV,15,FALSE) ->  | G34: =VLOOKUP(F34,Artikelstamm!$A:$EV,4,FALSE) ->  | L34: 20:00 - 20:30 | O34: =VLOOKUP(P34,Artikelstamm!$A:$EV,15,FALSE) ->  | Q34: =VLOOKUP(P34,Artikelstamm!$A:$EV,4,FALSE) ->  | V34: 20:00 - 20:30 | Y34: =VLOOKUP(Z34,Artikelstamm!$A:$EV,15,FALSE) ->  | AA34: =VLOOKUP(Z34,Artikelstamm!$A:$EV,4,FALSE) ->  | AF34: 20:00 - 20:30 | AI34: =VLOOKUP(AJ34,Artikelstamm!$A:$EV,15,FALSE) ->  | AK34: =VLOOKUP(AJ34,Artikelstamm!$A:$EV,4,FALSE) ->  | AP34: 20:00 - 20:30 | AS34: =VLOOKUP(AT34,Artikelstamm!$A:$EV,15,FALSE) ->  | AU34: =VLOOKUP(AT34,Artikelstamm!$A:$EV,4,FALSE) ->  | AZ34: 20:00 - 20:30 | BC34: =VLOOKUP(BD34,Artikelstamm!$A:$EV,15,FALSE) ->  | BE34: =VLOOKUP(BD34,Artikelstamm!$A:$EV,4,FALSE) -> 
B35: 20:30 - 21:00 | D35: Pause | G35: Pause | L35: 20:30 - 21:00 | N35: Pause | Q35: Pause | V35: 20:30 - 21:00 | X35: Pause | AA35: Pause | AF35: 20:30 - 21:00 | AH35: Pause | AK35: Pause | AP35: 20:30 - 21:00 | AR35: Pause | AU35: Pause | AZ35: 20:30 - 21:00 | BB35: Pause | BE35: Pause
B36: 21:00 - 21:30 | E36: =VLOOKUP(F36,Artikelstamm!$A:$EV,15,FALSE) ->  | G36: =VLOOKUP(F36,Artikelstamm!$A:$EV,4,FALSE) ->  | L36: 21:00 - 21:30 | O36: =VLOOKUP(P36,Artikelstamm!$A:$EV,15,FALSE) ->  | Q36: =VLOOKUP(P36,Artikelstamm!$A:$EV,4,FALSE) ->  | V36: 21:00 - 21:30 | Y36: =VLOOKUP(Z36,Artikelstamm!$A:$EV,15,FALSE) ->  | AA36: =VLOOKUP(Z36,Artikelstamm!$A:$EV,4,FALSE) ->  | AF36: 21:00 - 21:30 | AI36: =VLOOKUP(AJ36,Artikelstamm!$A:$EV,15,FALSE) ->  | AK36: =VLOOKUP(AJ36,Artikelstamm!$A:$EV,4,FALSE) ->  | AP36: 21:00 - 21:30 | AS36: =VLOOKUP(AT36,Artikelstamm!$A:$EV,15,FALSE) ->  | AU36: =VLOOKUP(AT36,Artikelstamm!$A:$EV,4,FALSE) ->  | AZ36: 21:00 - 21:30 | BC36: =VLOOKUP(BD36,Artikelstamm!$A:$EV,15,FALSE) ->  | BE36: =VLOOKUP(BD36,Artikelstamm!$A:$EV,4,FALSE) -> 
B37: 21:30 - 22:00 | E37: =VLOOKUP(F37,Artikelstamm!$A:$EV,15,FALSE) ->  | G37: =VLOOKUP(F37,Artikelstamm!$A:$EV,4,FALSE) ->  | L37: 21:30 - 22:00 | O37: =VLOOKUP(P37,Artikelstamm!$A:$EV,15,FALSE) ->  | Q37: =VLOOKUP(P37,Artikelstamm!$A:$EV,4,FALSE) ->  | V37: 21:30 - 22:00 | Y37: =VLOOKUP(Z37,Artikelstamm!$A:$EV,15,FALSE) ->  | AA37: =VLOOKUP(Z37,Artikelstamm!$A:$EV,4,FALSE) ->  | AF37: 21:30 - 22:00 | AI37: =VLOOKUP(AJ37,Artikelstamm!$A:$EV,15,FALSE) ->  | AK37: =VLOOKUP(AJ37,Artikelstamm!$A:$EV,4,FALSE) ->  | AP37: 21:30 - 22:00 | AS37: =VLOOKUP(AT37,Artikelstamm!$A:$EV,15,FALSE) ->  | AU37: =VLOOKUP(AT37,Artikelstamm!$A:$EV,4,FALSE) ->  | AZ37: 21:30 - 22:00 | BC37: =VLOOKUP(BD37,Artikelstamm!$A:$EV,15,FALSE) ->  | BE37: =VLOOKUP(BD37,Artikelstamm!$A:$EV,4,FALSE) -> 
B38: 22:00 - 22:30 | E38: =VLOOKUP(F38,Artikelstamm!$A:$EV,15,FALSE) ->  | G38: =VLOOKUP(F38,Artikelstamm!$A:$EV,4,FALSE) ->  | L38: 22:00 - 22:30 | O38: =VLOOKUP(P38,Artikelstamm!$A:$EV,15,FALSE) ->  | Q38: =VLOOKUP(P38,Artikelstamm!$A:$EV,4,FALSE) ->  | V38: 22:00 - 22:30 | Y38: =VLOOKUP(Z38,Artikelstamm!$A:$EV,15,FALSE) ->  | AA38: =VLOOKUP(Z38,Artikelstamm!$A:$EV,4,FALSE) ->  | AF38: 22:00 - 22:30 | AI38: =VLOOKUP(AJ38,Artikelstamm!$A:$EV,15,FALSE) ->  | AK38: =VLOOKUP(AJ38,Artikelstamm!$A:$EV,4,FALSE) ->  | AP38: 22:00 - 22:30 | AS38: =VLOOKUP(AT38,Artikelstamm!$A:$EV,15,FALSE) ->  | AU38: =VLOOKUP(AT38,Artikelstamm!$A:$EV,4,FALSE) ->  | AZ38: 22:00 - 22:30 | BC38: =VLOOKUP(BD38,Artikelstamm!$A:$EV,15,FALSE) ->  | BE38: =VLOOKUP(BD38,Artikelstamm!$A:$EV,4,FALSE) -> 
B39: 22:30 - 23:00 | E39: =VLOOKUP(F39,Artikelstamm!$A:$EV,15,FALSE) ->  | G39: =VLOOKUP(F39,Artikelstamm!$A:$EV,4,FALSE) ->  | L39: 22:30 - 23:00 | O39: =VLOOKUP(P39,Artikelstamm!$A:$EV,15,FALSE) ->  | Q39: =VLOOKUP(P39,Artikelstamm!$A:$EV,4,FALSE) ->  | V39: 22:30 - 23:00 | Y39: =VLOOKUP(Z39,Artikelstamm!$A:$EV,15,FALSE) ->  | AA39: =VLOOKUP(Z39,Artikelstamm!$A:$EV,4,FALSE) ->  | AF39: 22:30 - 23:00 | AI39: =VLOOKUP(AJ39,Artikelstamm!$A:$EV,15,FALSE) ->  | AK39: =VLOOKUP(AJ39,Artikelstamm!$A:$EV,4,FALSE) ->  | AP39: 22:30 - 23:00 | AS39: =VLOOKUP(AT39,Artikelstamm!$A:$EV,15,FALSE) ->  | AU39: =VLOOKUP(AT39,Artikelstamm!$A:$EV,4,FALSE) ->  | AZ39: 22:30 - 23:00 | BC39: =VLOOKUP(BD39,Artikelstamm!$A:$EV,15,FALSE) ->  | BE39: =VLOOKUP(BD39,Artikelstamm!$A:$EV,4,FALSE) -> 
A40: Übertrag: | K40: =$A40 -> Übertrag: | U40: =$A40 -> Übertrag: | AE40: =$A40 -> Übertrag: | AO40: =$A40 -> Übertrag: | AY40: =$A40 -> Übertrag:
A41: Summe: | C41: =SUM(C4:C40) -> 0 | D41: =SUM(D4:D40) -> 0 | I41: =SUM(I4:I39) -> 0 | K41: =$A41 -> Summe: | M41: =SUM(M4:M40) -> 0 | N41: =SUM(N4:N40) -> 0 | S41: =SUM(S4:S39) -> 0 | U41: =$A41 -> Summe: | W41: =SUM(W4:W40) -> 0 | X41: =SUM(X4:X40) -> 0 | AC41: =SUM(AC4:AC39) -> 0 | AE41: =$A41 -> Summe: | AG41: =SUM(AG4:AG40) -> 0 | AH41: =SUM(AH4:AH40) -> 0 | AM41: =SUM(AM4:AM39) -> 0 | AO41: =$A41 -> Summe: | AQ41: =SUM(AQ4:AQ40) -> 0 | AR41: =SUM(AR4:AR40) -> 0 | AW41: =SUM(AW4:AW39) -> 0 | AY41: =$A41 -> Summe: | BA41: =SUM(BA4:BA40) -> 0 | BB41: =SUM(BB4:BB40) -> 0 | BG41: =SUM(BG4:BG39) -> 0
A43: Wochenleistung | K43: Wochenleistung | U43: Wochenleistung | AE43: Wochenleistung | AO43: Wochenleistung | AY43: Wochenleistung
A44: Gebinde | B44: =$C$41+$M$41+$W$41+$AG$41+$AQ$41 -> 0 | K44: Gebinde | L44: =$B44 -> 0 | U44: Gebinde | V44: =$B44 -> 0 | AE44: Gebinde | AF44: =$B44 -> 0 | AO44: Gebinde | AP44: =$B44 -> 0 | AY44: Gebinde | AZ44: =$B44 -> 0
A45: Paletten | B45: =$I$41+$S$41+$AC$41+$AM$41+$AW$41 -> 0 | K45: Paletten | L45: =$B45 -> 0 | U45: Paletten | V45: =$B45 -> 0 | AE45: Paletten | AF45: =$B45 -> 0 | AO45: Paletten | AP45: =$B45 -> 0 | AY45: Paletten | AZ45: =$B45 -> 0
A46: Zusatzleistung | K46: Zusatzleistung | U46: Zusatzleistung | AE46: Zusatzleistung | AO46: Zusatzleistung | AY46: Zusatzleistung
A47: Gebinde | B47: =$BA$41 -> 0 | K47: Gebinde | L47: =$B47 -> 0 | U47: Gebinde | V47: =$B47 -> 0 | AE47: Gebinde | AF47: =$B47 -> 0 | AO47: Gebinde | AP47: =$B47 -> 0 | AY47: Gebinde | AZ47: =$B47 -> 0
A48: Paletten | B48: =$BG$41 -> 0 | K48: Paletten | L48: =$B48 -> 0 | U48: Paletten | V48: =$B48 -> 0 | AE48: Paletten | AF48: =$B48 -> 0 | AO48: Paletten | AP48: =$B48 -> 0 | AY48: Paletten | AZ48: =$B48 -> 0

Sheet 3-Schicht
A1: Produktionsplanung Packerei | K1: Produktionsplanung Packerei | U1: Produktionsplanung Packerei | AE1: Produktionsplanung Packerei | AO1: Produktionsplanung Packerei | AY1: Produktionsplanung Packerei
A2: KW | B2: 39 | C2: Montag: | G2: =DATE($B$3,1,4)-WEEKDAY(DATE($B$3,1,4),2)+($B$2-1)*7+1 -> 2021-09-27 | K2: KW | L2: =$B2 -> 39 | M2: Dienstag: | Q2: =DATE($B$3,1,4)-WEEKDAY(DATE($B$3,1,4),2)+($B$2-1)*7+2 -> 2021-09-28 | U2: KW | V2: =$B2 -> 39 | W2: Mittwoch: | AA2: =DATE($B$3,1,4)-WEEKDAY(DATE($B$3,1,4),2)+($B$2-1)*7+3 -> 2021-09-29 | AE2: KW | AF2: =$B2 -> 39 | AG2: Donnerstag: | AK2: =DATE($B$3,1,4)-WEEKDAY(DATE($B$3,1,4),2)+($B$2-1)*7+4 -> 2021-09-30 | AO2: KW | AP2: =$B2 -> 39 | AQ2: Freitag: | AU2: =DATE($B$3,1,4)-WEEKDAY(DATE($B$3,1,4),2)+($B$2-1)*7+5 -> 2021-10-01 | AY2: KW | AZ2: =$B2 -> 39 | BA2: Samstag: | BE2: =DATE($B$3,1,4)-WEEKDAY(DATE($B$3,1,4),2)+($B$2-1)*7+6 -> 2021-10-02
A3: 2-Schicht | B3: 2021 | C3: Stückzahl | D3: Gebinde- anzahl | E3: Gebinde-größe | F3: P-Artikel | G3: Produkt | H3: Lager | I3: Pal- Anz. | J3: Gewicht | K3: =$A3 -> 2-Schicht | L3: 2021 | M3: Stückzahl | N3: Gebinde-anzahl | O3: Gebinde-größe | P3: P-Artikel | Q3: Produkt | R3: Lager | S3: Pal- Anz. | T3: Gewicht | U3: =$A3 -> 2-Schicht | V3: 2021 | W3: Stückzahl | X3: Gebinde- anzahl | Y3: Gebinde-größe | Z3: P-Artikel | AA3: Produkt | AB3: Lager | AC3: Pal- Anz. | AD3: Gewicht | AE3: =$A3 -> 2-Schicht | AF3: 2021 | AG3: Stückzahl | AH3: Gebinde-anzahl | AI3: Gebinde-größe | AJ3: P-Artikel | AK3: Produkt | AL3: Lager | AM3: Pal- Anz. | AN3: Gewicht | AO3: =$A3 -> 2-Schicht | AP3: 2021 | AQ3: Stückzahl | AR3: Gebinde- anzahl | AS3: Gebinde-größe | AT3: P-Artikel | AU3: Produkt | AV3: Lager | AW3: Pal- Anz. | AX3: Gewicht | AY3: =$A3 -> 2-Schicht | AZ3: 2021 | BA3: Stückzahl | BB3: Gebinde- anzahl | BC3: Gebinde-größe | BD3: P-Artikel | BE3: Produkt | BF3: Lager | BG3: Pal- Anz. | BH3: Gewicht
A4: Nachtschicht | B4: 23:00 - 23:30 | E4: =VLOOKUP(F4,Artikelstamm!$A:$EV,15,FALSE) ->  | G4: =VLOOKUP(F4,Artikelstamm!$A:$EV,4,FALSE) ->  | K4: Nachtschicht | L4: =$B4 -> 23:00 - 23:30 | O4: =VLOOKUP(P4,Artikelstamm!$A:$EV,15,FALSE) ->  | Q4: =VLOOKUP(P4,Artikelstamm!$A:$EV,4,FALSE) ->  | U4: Nachtschicht | V4: =$B4 -> 23:00 - 23:30 | Y4: =VLOOKUP(Z4,Artikelstamm!$A:$EV,15,FALSE) ->  | AA4: =VLOOKUP(Z4,Artikelstamm!$A:$EV,4,FALSE) ->  | AE4: Nachtschicht | AF4: =$B4 -> 23:00 - 23:30 | AI4: =VLOOKUP(AJ4,Artikelstamm!$A:$EV,15,FALSE) ->  | AK4: =VLOOKUP(AJ4,Artikelstamm!$A:$EV,4,FALSE) ->  | AO4: Nachtschicht | AP4: =$B4 -> 23:00 - 23:30 | AS4: =VLOOKUP(AT4,Artikelstamm!$A:$EV,15,FALSE) ->  | AU4: =VLOOKUP(AT4,Artikelstamm!$A:$EV,4,FALSE) ->  | AY4: Nachtschicht | AZ4: =$B4 -> 23:00 - 23:30 | BC4: =VLOOKUP(BD4,Artikelstamm!$A:$EV,15,FALSE) ->  | BE4: =VLOOKUP(BD4,Artikelstamm!$A:$EV,4,FALSE) -> 
B5: 23:30 - 0:00 | E5: =VLOOKUP(F5,Artikelstamm!$A:$EV,15,FALSE) ->  | G5: =VLOOKUP(F5,Artikelstamm!$A:$EV,4,FALSE) ->  | L5: =$B5 -> 23:30 - 0:00 | O5: =VLOOKUP(P5,Artikelstamm!$A:$EV,15,FALSE) ->  | Q5: =VLOOKUP(P5,Artikelstamm!$A:$EV,4,FALSE) ->  | V5: =$B5 -> 23:30 - 0:00 | Y5: =VLOOKUP(Z5,Artikelstamm!$A:$EV,15,FALSE) ->  | AA5: =VLOOKUP(Z5,Artikelstamm!$A:$EV,4,FALSE) ->  | AF5: =$B5 -> 23:30 - 0:00 | AI5: =VLOOKUP(AJ5,Artikelstamm!$A:$EV,15,FALSE) ->  | AK5: =VLOOKUP(AJ5,Artikelstamm!$A:$EV,4,FALSE) ->  | AP5: =$B5 -> 23:30 - 0:00 | AS5: =VLOOKUP(AT5,Artikelstamm!$A:$EV,15,FALSE) ->  | AU5: =VLOOKUP(AT5,Artikelstamm!$A:$EV,4,FALSE) ->  | AZ5: =$B5 -> 23:30 - 0:00 | BC5: =VLOOKUP(BD5,Artikelstamm!$A:$EV,15,FALSE) ->  | BE5: =VLOOKUP(BD5,Artikelstamm!$A:$EV,4,FALSE) -> 
B6: 0:00 - 0:30 | E6: =VLOOKUP(F6,Artikelstamm!$A:$EV,15,FALSE) ->  | G6: =VLOOKUP(F6,Artikelstamm!$A:$EV,4,FALSE) ->  | L6: =$B6 -> 0:00 - 0:30 | O6: =VLOOKUP(P6,Artikelstamm!$A:$EV,15,FALSE) ->  | Q6: =VLOOKUP(P6,Artikelstamm!$A:$EV,4,FALSE) ->  | V6: =$B6 -> 0:00 - 0:30 | Y6: =VLOOKUP(Z6,Artikelstamm!$A:$EV,15,FALSE) ->  | AA6: =VLOOKUP(Z6,Artikelstamm!$A:$EV,4,FALSE) ->  | AF6: =$B6 -> 0:00 - 0:30 | AI6: =VLOOKUP(AJ6,Artikelstamm!$A:$EV,15,FALSE) ->  | AK6: =VLOOKUP(AJ6,Artikelstamm!$A:$EV,4,FALSE) ->  | AP6: =$B6 -> 0:00 - 0:30 | AS6: =VLOOKUP(AT6,Artikelstamm!$A:$EV,15,FALSE) ->  | AU6: =VLOOKUP(AT6,Artikelstamm!$A:$EV,4,FALSE) ->  | AZ6: =$B6 -> 0:00 - 0:30 | BC6: =VLOOKUP(BD6,Artikelstamm!$A:$EV,15,FALSE) ->  | BE6: =VLOOKUP(BD6,Artikelstamm!$A:$EV,4,FALSE) -> 
B7: 0:30 - 1:00 | E7: =VLOOKUP(F7,Artikelstamm!$A:$EV,15,FALSE) ->  | G7: =VLOOKUP(F7,Artikelstamm!$A:$EV,4,FALSE) ->  | L7: 0:30 - 1:00 | O7: =VLOOKUP(P7,Artikelstamm!$A:$EV,15,FALSE) ->  | Q7: =VLOOKUP(P7,Artikelstamm!$A:$EV,4,FALSE) ->  | V7: 0:30 - 1:00 | Y7: =VLOOKUP(Z7,Artikelstamm!$A:$EV,15,FALSE) ->  | AA7: =VLOOKUP(Z7,Artikelstamm!$A:$EV,4,FALSE) ->  | AF7: 0:30 - 1:00 | AI7: =VLOOKUP(AJ7,Artikelstamm!$A:$EV,15,FALSE) ->  | AK7: =VLOOKUP(AJ7,Artikelstamm!$A:$EV,4,FALSE) ->  | AP7: 0:30 - 1:00 | AS7: =VLOOKUP(AT7,Artikelstamm!$A:$EV,15,FALSE) ->  | AU7: =VLOOKUP(AT7,Artikelstamm!$A:$EV,4,FALSE) ->  | AZ7: 0:30 - 1:00 | BC7: =VLOOKUP(BD7,Artikelstamm!$A:$EV,15,FALSE) ->  | BE7: =VLOOKUP(BD7,Artikelstamm!$A:$EV,4,FALSE) -> 
B8: 1:00 - 1:30 | E8: =VLOOKUP(F8,Artikelstamm!$A:$EV,15,FALSE) ->  | G8: =VLOOKUP(F8,Artikelstamm!$A:$EV,4,FALSE) ->  | L8: 1:00 - 1:30 | O8: =VLOOKUP(P8,Artikelstamm!$A:$EV,15,FALSE) ->  | Q8: =VLOOKUP(P8,Artikelstamm!$A:$EV,4,FALSE) ->  | V8: 1:00 - 1:30 | Y8: =VLOOKUP(Z8,Artikelstamm!$A:$EV,15,FALSE) ->  | AA8: =VLOOKUP(Z8,Artikelstamm!$A:$EV,4,FALSE) ->  | AF8: 1:00 - 1:30 | AI8: =VLOOKUP(AJ8,Artikelstamm!$A:$EV,15,FALSE) ->  | AK8: =VLOOKUP(AJ8,Artikelstamm!$A:$EV,4,FALSE) ->  | AP8: 1:00 - 1:30 | AS8: =VLOOKUP(AT8,Artikelstamm!$A:$EV,15,FALSE) ->  | AU8: =VLOOKUP(AT8,Artikelstamm!$A:$EV,4,FALSE) ->  | AZ8: 1:00 - 1:30 | BC8: =VLOOKUP(BD8,Artikelstamm!$A:$EV,15,FALSE) ->  | BE8: =VLOOKUP(BD8,Artikelstamm!$A:$EV,4,FALSE) -> 
B9: 1:30 - 2:00 | E9: =VLOOKUP(F9,Artikelstamm!$A:$EV,15,FALSE) ->  | G9: =VLOOKUP(F9,Artikelstamm!$A:$EV,4,FALSE) ->  | L9: 1:30 - 2:00 | O9: =VLOOKUP(P9,Artikelstamm!$A:$EV,15,FALSE) ->  | Q9: =VLOOKUP(P9,Artikelstamm!$A:$EV,4,FALSE) ->  | V9: 1:30 - 2:00 | Y9: =VLOOKUP(Z9,Artikelstamm!$A:$EV,15,FALSE) ->  | AA9: =VLOOKUP(Z9,Artikelstamm!$A:$EV,4,FALSE) ->  | AF9: 1:30 - 2:00 | AI9: =VLOOKUP(AJ9,Artikelstamm!$A:$EV,15,FALSE) ->  | AK9: =VLOOKUP(AJ9,Artikelstamm!$A:$EV,4,FALSE) ->  | AP9: 1:30 - 2:00 | AS9: =VLOOKUP(AT9,Artikelstamm!$A:$EV,15,FALSE) ->  | AU9: =VLOOKUP(AT9,Artikelstamm!$A:$EV,4,FALSE) ->  | AZ9: 1:30 - 2:00 | BC9: =VLOOKUP(BD9,Artikelstamm!$A:$EV,15,FALSE) ->  | BE9: =VLOOKUP(BD9,Artikelstamm!$A:$EV,4,FALSE) -> 
B10: 2:00 - 2:30 | D10: Pause | G10: Pause | L10: 2:00 - 2:30 | N10: Pause | Q10: Pause | V10: 2:00 - 2:30 | X10: Pause | AA10: Pause | AF10: 2:00 - 2:30 | AH10: Pause | AK10: Pause | AP10: 2:00 - 2:30 | AR10: Pause | AU10: Pause | AZ10: 2:00 - 2:30 | BB10: Pause | BE10: Pause
B11: 2:30 - 3:00 | E11: =VLOOKUP(F11,Artikelstamm!$A:$EV,15,FALSE) ->  | G11: =VLOOKUP(F11,Artikelstamm!$A:$EV,4,FALSE) ->  | L11: 2:30 - 3:00 | O11: =VLOOKUP(P11,Artikelstamm!$A:$EV,15,FALSE) ->  | Q11: =VLOOKUP(P11,Artikelstamm!$A:$EV,4,FALSE) ->  | V11: 2:30 - 3:00 | Y11: =VLOOKUP(Z11,Artikelstamm!$A:$EV,15,FALSE) ->  | AA11: =VLOOKUP(Z11,Artikelstamm!$A:$EV,4,FALSE) ->  | AF11: 2:30 - 3:00 | AI11: =VLOOKUP(AJ11,Artikelstamm!$A:$EV,15,FALSE) ->  | AK11: =VLOOKUP(AJ11,Artikelstamm!$A:$EV,4,FALSE) ->  | AP11: 2:30 - 3:00 | AS11: =VLOOKUP(AT11,Artikelstamm!$A:$EV,15,FALSE) ->  | AU11: =VLOOKUP(AT11,Artikelstamm!$A:$EV,4,FALSE) ->  | AZ11: 2:30 - 3:00 | BC11: =VLOOKUP(BD11,Artikelstamm!$A:$EV,15,FALSE) ->  | BE11: =VLOOKUP(BD11,Artikelstamm!$A:$EV,4,FALSE) -> 
B12: 3:00 - 3:30 | E12: =VLOOKUP(F12,Artikelstamm!$A:$EV,15,FALSE) ->  | G12: =VLOOKUP(F12,Artikelstamm!$A:$EV,4,FALSE) ->  | L12: 3:00 - 3:30 | O12: =VLOOKUP(P12,Artikelstamm!$A:$EV,15,FALSE) ->  | Q12: =VLOOKUP(P12,Artikelstamm!$A:$EV,4,FALSE) ->  | V12: 3:00 - 3:30 | Y12: =VLOOKUP(Z12,Artikelstamm!$A:$EV,15,FALSE) ->  | AA12: =VLOOKUP(Z12,Artikelstamm!$A:$EV,4,FALSE) ->  | AF12: 3:00 - 3:30 | AI12: =VLOOKUP(AJ12,Artikelstamm!$A:$EV,15,FALSE) ->  | AK12: =VLOOKUP(AJ12,Artikelstamm!$A:$EV,4,FALSE) ->  | AP12: 3:00 - 3:30 | AS12: =VLOOKUP(AT12,Artikelstamm!$A:$EV,15,FALSE) ->  | AU12: =VLOOKUP(AT12,Artikelstamm!$A:$EV,4,FALSE) ->  | AZ12: 3:00 - 3:30 | BC12: =VLOOKUP(BD12,Artikelstamm!$A:$EV,15,FALSE) ->  | BE12: =VLOOKUP(BD12,Artikelstamm!$A:$EV,4,FALSE) -> 
B13: 3:30 - 4:00 | E13: =VLOOKUP(F13,Artikelstamm!$A:$EV,15,FALSE) ->  | G13: =VLOOKUP(F13,Artikelstamm!$A:$EV,4,FALSE) ->  | L13: 3:30 - 4:00 | O13: =VLOOKUP(P13,Artikelstamm!$A:$EV,15,FALSE) ->  | Q13: =VLOOKUP(P13,Artikelstamm!$A:$EV,4,FALSE) ->  | V13: 3:30 - 4:00 | Y13: =VLOOKUP(Z13,Artikelstamm!$A:$EV,15,FALSE) ->  | AA13: =VLOOKUP(Z13,Artikelstamm!$A:$EV,4,FALSE) ->  | AF13: 3:30 - 4:00 | AI13: =VLOOKUP(AJ13,Artikelstamm!$A:$EV,15,FALSE) ->  | AK13: =VLOOKUP(AJ13,Artikelstamm!$A:$EV,4,FALSE) ->  | AP13: 3:30 - 4:00 | AS13: =VLOOKUP(AT13,Artikelstamm!$A:$EV,15,FALSE) ->  | AU13: =VLOOKUP(AT13,Artikelstamm!$A:$EV,4,FALSE) ->  | AZ13: 3:30 - 4:00 | BC13: =VLOOKUP(BD13,Artikelstamm!$A:$EV,15,FALSE) ->  | BE13: =VLOOKUP(BD13,Artikelstamm!$A:$EV,4,FALSE) -> 
B14: 4:00 - 4:30 | E14: =VLOOKUP(F14,Artikelstamm!$A:$EV,15,FALSE) ->  | G14: =VLOOKUP(F14,Artikelstamm!$A:$EV,4,FALSE) ->  | L14: 4:00 - 4:30 | O14: =VLOOKUP(P14,Artikelstamm!$A:$EV,15,FALSE) ->  | Q14: =VLOOKUP(P14,Artikelstamm!$A:$EV,4,FALSE) ->  | V14: 4:00 - 4:30 | Y14: =VLOOKUP(Z14,Artikelstamm!$A:$EV,15,FALSE) ->  | AA14: =VLOOKUP(Z14,Artikelstamm!$A:$EV,4,FALSE) ->  | AF14: 4:00 - 4:30 | AI14: =VLOOKUP(AJ14,Artikelstamm!$A:$EV,15,FALSE) ->  | AK14: =VLOOKUP(AJ14,Artikelstamm!$A:$EV,4,FALSE) ->  | AP14: 4:00 - 4:30 | AS14: =VLOOKUP(AT14,Artikelstamm!$A:$EV,15,FALSE) ->  | AU14: =VLOOKUP(AT14,Artikelstamm!$A:$EV,4,FALSE) ->  | AZ14: 4:00 - 4:30 | BC14: =VLOOKUP(BD14,Artikelstamm!$A:$EV,15,FALSE) ->  | BE14: =VLOOKUP(BD14,Artikelstamm!$A:$EV,4,FALSE) -> 
B15: 4:30 - 5:00 | E15: =VLOOKUP(F15,Artikelstamm!$A:$EV,15,FALSE) ->  | G15: =VLOOKUP(F15,Artikelstamm!$A:$EV,4,FALSE) ->  | L15: 4:30 - 5:00 | O15: =VLOOKUP(P15,Artikelstamm!$A:$EV,15,FALSE) ->  | Q15: =VLOOKUP(P15,Artikelstamm!$A:$EV,4,FALSE) ->  | V15: 4:30 - 5:00 | Y15: =VLOOKUP(Z15,Artikelstamm!$A:$EV,15,FALSE) ->  | AA15: =VLOOKUP(Z15,Artikelstamm!$A:$EV,4,FALSE) ->  | AF15: 4:30 - 5:00 | AI15: =VLOOKUP(AJ15,Artikelstamm!$A:$EV,15,FALSE) ->  | AK15: =VLOOKUP(AJ15,Artikelstamm!$A:$EV,4,FALSE) ->  | AP15: 4:30 - 5:00 | AS15: =VLOOKUP(AT15,Artikelstamm!$A:$EV,15,FALSE) ->  | AU15: =VLOOKUP(AT15,Artikelstamm!$A:$EV,4,FALSE) ->  | AZ15: 4:30 - 5:00 | BC15: =VLOOKUP(BD15,Artikelstamm!$A:$EV,15,FALSE) ->  | BE15: =VLOOKUP(BD15,Artikelstamm!$A:$EV,4,FALSE) -> 
A16: Frühschicht | B16: 5:00 - 5:30 | E16: =VLOOKUP(F16,Artikelstamm!$A:$EV,15,FALSE) ->  | G16: =VLOOKUP(F16,Artikelstamm!$A:$EV,4,FALSE) ->  | K16: =$A16 -> Frühschicht | L16: 5:00 - 5:30 | O16: =VLOOKUP(P16,Artikelstamm!$A:$EV,15,FALSE) ->  | Q16: =VLOOKUP(P16,Artikelstamm!$A:$EV,4,FALSE) ->  | U16: =$A16 -> Frühschicht | V16: 5:00 - 5:30 | Y16: =VLOOKUP(Z16,Artikelstamm!$A:$EV,15,FALSE) ->  | AA16: =VLOOKUP(Z16,Artikelstamm!$A:$EV,4,FALSE) ->  | AE16: =$A16 -> Frühschicht | AF16: 5:00 - 5:30 | AI16: =VLOOKUP(AJ16,Artikelstamm!$A:$EV,15,FALSE) ->  | AK16: =VLOOKUP(AJ16,Artikelstamm!$A:$EV,4,FALSE) ->  | AO16: =$A16 -> Frühschicht | AP16: 5:00 - 5:30 | AS16: =VLOOKUP(AT16,Artikelstamm!$A:$EV,15,FALSE) ->  | AU16: =VLOOKUP(AT16,Artikelstamm!$A:$EV,4,FALSE) ->  | AY16: =$A16 -> Frühschicht | AZ16: 5:00 - 5:30 | BC16: =VLOOKUP(BD16,Artikelstamm!$A:$EV,15,FALSE) ->  | BE16: =VLOOKUP(BD16,Artikelstamm!$A:$EV,4,FALSE) -> 
B17: 5:30 - 6:00 | E17: =VLOOKUP(F17,Artikelstamm!$A:$EV,15,FALSE) ->  | G17: =VLOOKUP(F17,Artikelstamm!$A:$EV,4,FALSE) ->  | L17: 5:30 - 6:00 | O17: =VLOOKUP(P17,Artikelstamm!$A:$EV,15,FALSE) ->  | Q17: =VLOOKUP(P17,Artikelstamm!$A:$EV,4,FALSE) ->  | V17: 5:30 - 6:00 | Y17: =VLOOKUP(Z17,Artikelstamm!$A:$EV,15,FALSE) ->  | AA17: =VLOOKUP(Z17,Artikelstamm!$A:$EV,4,FALSE) ->  | AF17: 5:30 - 6:00 | AI17: =VLOOKUP(AJ17,Artikelstamm!$A:$EV,15,FALSE) ->  | AK17: =VLOOKUP(AJ17,Artikelstamm!$A:$EV,4,FALSE) ->  | AP17: 5:30 - 6:00 | AS17: =VLOOKUP(AT17,Artikelstamm!$A:$EV,15,FALSE) ->  | AU17: =VLOOKUP(AT17,Artikelstamm!$A:$EV,4,FALSE) ->  | AZ17: 5:30 - 6:00 | BC17: =VLOOKUP(BD17,Artikelstamm!$A:$EV,15,FALSE) ->  | BE17: =VLOOKUP(BD17,Artikelstamm!$A:$EV,4,FALSE) -> 
B18: 6:00 - 6:30 | E18: =VLOOKUP(F18,Artikelstamm!$A:$EV,15,FALSE) ->  | G18: =VLOOKUP(F18,Artikelstamm!$A:$EV,4,FALSE) ->  | L18: 6:00 - 6:30 | O18: =VLOOKUP(P18,Artikelstamm!$A:$EV,15,FALSE) ->  | Q18: =VLOOKUP(P18,Artikelstamm!$A:$EV,4,FALSE) ->  | V18: 6:00 - 6:30 | Y18: =VLOOKUP(Z18,Artikelstamm!$A:$EV,15,FALSE) ->  | AA18: =VLOOKUP(Z18,Artikelstamm!$A:$EV,4,FALSE) ->  | AF18: 6:00 - 6:30 | AI18: =VLOOKUP(AJ18,Artikelstamm!$A:$EV,15,FALSE) ->  | AK18: =VLOOKUP(AJ18,Artikelstamm!$A:$EV,4,FALSE) ->  | AP18: 6:00 - 6:30 | AS18: =VLOOKUP(AT18,Artikelstamm!$A:$EV,15,FALSE) ->  | AU18: =VLOOKUP(AT18,Artikelstamm!$A:$EV,4,FALSE) ->  | AZ18: 6:00 - 6:30 | BC18: =VLOOKUP(BD18,Artikelstamm!$A:$EV,15,FALSE) ->  | BE18: =VLOOKUP(BD18,Artikelstamm!$A:$EV,4,FALSE) -> 
B19: 6:30 - 7:00 | E19: =VLOOKUP(F19,Artikelstamm!$A:$EV,15,FALSE) ->  | G19: =VLOOKUP(F19,Artikelstamm!$A:$EV,4,FALSE) ->  | L19: 6:30 - 7:00 | O19: =VLOOKUP(P19,Artikelstamm!$A:$EV,15,FALSE) ->  | Q19: =VLOOKUP(P19,Artikelstamm!$A:$EV,4,FALSE) ->  | V19: 6:30 - 7:00 | Y19: =VLOOKUP(Z19,Artikelstamm!$A:$EV,15,FALSE) ->  | AA19: =VLOOKUP(Z19,Artikelstamm!$A:$EV,4,FALSE) ->  | AF19: 6:30 - 7:00 | AI19: =VLOOKUP(AJ19,Artikelstamm!$A:$EV,15,FALSE) ->  | AK19: =VLOOKUP(AJ19,Artikelstamm!$A:$EV,4,FALSE) ->  | AP19: 6:30 - 7:00 | AS19: =VLOOKUP(AT19,Artikelstamm!$A:$EV,15,FALSE) ->  | AU19: =VLOOKUP(AT19,Artikelstamm!$A:$EV,4,FALSE) ->  | AZ19: 6:30 - 7:00 | BC19: =VLOOKUP(BD19,Artikelstamm!$A:$EV,15,FALSE) ->  | BE19: =VLOOKUP(BD19,Artikelstamm!$A:$EV,4,FALSE) -> 
B20: 7:00 - 7:30 | E20: =VLOOKUP(F20,Artikelstamm!$A:$EV,15,FALSE) ->  | G20: =VLOOKUP(F20,Artikelstamm!$A:$EV,4,FALSE) ->  | L20: 7:00 - 7:30 | O20: =VLOOKUP(P20,Artikelstamm!$A:$EV,15,FALSE) ->  | Q20: =VLOOKUP(P20,Artikelstamm!$A:$EV,4,FALSE) ->  | V20: 7:00 - 7:30 | Y20: =VLOOKUP(Z20,Artikelstamm!$A:$EV,15,FALSE) ->  | AA20: =VLOOKUP(Z20,Artikelstamm!$A:$EV,4,FALSE) ->  | AF20: 7:00 - 7:30 | AI20: =VLOOKUP(AJ20,Artikelstamm!$A:$EV,15,FALSE) ->  | AK20: =VLOOKUP(AJ20,Artikelstamm!$A:$EV,4,FALSE) ->  | AP20: 7:00 - 7:30 | AS20: =VLOOKUP(AT20,Artikelstamm!$A:$EV,15,FALSE) ->  | AU20: =VLOOKUP(AT20,Artikelstamm!$A:$EV,4,FALSE) ->  | AZ20: 7:00 - 7:30 | BC20: =VLOOKUP(BD20,Artikelstamm!$A:$EV,15,FALSE) ->  | BE20: =VLOOKUP(BD20,Artikelstamm!$A:$EV,4,FALSE) -> 
B21: 7:30 - 8:00 | E21: =VLOOKUP(F21,Artikelstamm!$A:$EV,15,FALSE) ->  | G21: =VLOOKUP(F21,Artikelstamm!$A:$EV,4,FALSE) ->  | L21: 7:30 - 8:00 | O21: =VLOOKUP(P21,Artikelstamm!$A:$EV,15,FALSE) ->  | Q21: =VLOOKUP(P21,Artikelstamm!$A:$EV,4,FALSE) ->  | V21: 7:30 - 8:00 | Y21: =VLOOKUP(Z21,Artikelstamm!$A:$EV,15,FALSE) ->  | AA21: =VLOOKUP(Z21,Artikelstamm!$A:$EV,4,FALSE) ->  | AF21: 7:30 - 8:00 | AI21: =VLOOKUP(AJ21,Artikelstamm!$A:$EV,15,FALSE) ->  | AK21: =VLOOKUP(AJ21,Artikelstamm!$A:$EV,4,FALSE) ->  | AP21: 7:30 - 8:00 | AS21: =VLOOKUP(AT21,Artikelstamm!$A:$EV,15,FALSE) ->  | AU21: =VLOOKUP(AT21,Artikelstamm!$A:$EV,4,FALSE) ->  | AZ21: 7:30 - 8:00 | BC21: =VLOOKUP(BD21,Artikelstamm!$A:$EV,15,FALSE) ->  | BE21: =VLOOKUP(BD21,Artikelstamm!$A:$EV,4,FALSE) -> 
B22: 8:00 - 8:30 | D22: Pause | G22: Pause | L22: 8:00 - 8:30 | N22: Pause | Q22: Pause | V22: 8:00 - 8:30 | X22: Pause | AA22: Pause | AF22: 8:00 - 8:30 | AH22: Pause | AK22: Pause | AP22: 8:00 - 8:30 | AR22: Pause | AU22: Pause | AZ22: 8:00 - 8:30 | BB22: Pause | BE22: Pause
B23: 8:30 - 9:00 | E23: =VLOOKUP(F23,Artikelstamm!$A:$EV,15,FALSE) ->  | G23: =VLOOKUP(F23,Artikelstamm!$A:$EV,4,FALSE) ->  | L23: 8:30 - 9:00 | O23: =VLOOKUP(P23,Artikelstamm!$A:$EV,15,FALSE) ->  | Q23: =VLOOKUP(P23,Artikelstamm!$A:$EV,4,FALSE) ->  | V23: 8:30 - 9:00 | Y23: =VLOOKUP(Z23,Artikelstamm!$A:$EV,15,FALSE) ->  | AA23: =VLOOKUP(Z23,Artikelstamm!$A:$EV,4,FALSE) ->  | AF23: 8:30 - 9:00 | AI23: =VLOOKUP(AJ23,Artikelstamm!$A:$EV,15,FALSE) ->  | AK23: =VLOOKUP(AJ23,Artikelstamm!$A:$EV,4,FALSE) ->  | AP23: 8:30 - 9:00 | AS23: =VLOOKUP(AT23,Artikelstamm!$A:$EV,15,FALSE) ->  | AU23: =VLOOKUP(AT23,Artikelstamm!$A:$EV,4,FALSE) ->  | AZ23: 8:30 - 9:00 | BC23: =VLOOKUP(BD23,Artikelstamm!$A:$EV,15,FALSE) ->  | BE23: =VLOOKUP(BD23,Artikelstamm!$A:$EV,4,FALSE) -> 
B24: 9:00 - 9:30 | E24: =VLOOKUP(F24,Artikelstamm!$A:$EV,15,FALSE) ->  | G24: =VLOOKUP(F24,Artikelstamm!$A:$EV,4,FALSE) ->  | L24: 9:00 - 9:30 | O24: =VLOOKUP(P24,Artikelstamm!$A:$EV,15,FALSE) ->  | Q24: =VLOOKUP(P24,Artikelstamm!$A:$EV,4,FALSE) ->  | V24: 9:00 - 9:30 | Y24: =VLOOKUP(Z24,Artikelstamm!$A:$EV,15,FALSE) ->  | AA24: =VLOOKUP(Z24,Artikelstamm!$A:$EV,4,FALSE) ->  | AF24: 9:00 - 9:30 | AI24: =VLOOKUP(AJ24,Artikelstamm!$A:$EV,15,FALSE) ->  | AK24: =VLOOKUP(AJ24,Artikelstamm!$A:$EV,4,FALSE) ->  | AP24: 9:00 - 9:30 | AS24: =VLOOKUP(AT24,Artikelstamm!$A:$EV,15,FALSE) ->  | AU24: =VLOOKUP(AT24,Artikelstamm!$A:$EV,4,FALSE) ->  | AZ24: 9:00 - 9:30 | BC24: =VLOOKUP(BD24,Artikelstamm!$A:$EV,15,FALSE) ->  | BE24: =VLOOKUP(BD24,Artikelstamm!$A:$EV,4,FALSE) -> 
B25: 9:30 - 10:00 | E25: =VLOOKUP(F25,Artikelstamm!$A:$EV,15,FALSE) ->  | G25: =VLOOKUP(F25,Artikelstamm!$A:$EV,4,FALSE) ->  | L25: 9:30 - 10:00 | O25: =VLOOKUP(P25,Artikelstamm!$A:$EV,15,FALSE) ->  | Q25: =VLOOKUP(P25,Artikelstamm!$A:$EV,4,FALSE) ->  | V25: 9:30 - 10:00 | Y25: =VLOOKUP(Z25,Artikelstamm!$A:$EV,15,FALSE) ->  | AA25: =VLOOKUP(Z25,Artikelstamm!$A:$EV,4,FALSE) ->  | AF25: 9:30 - 10:00 | AI25: =VLOOKUP(AJ25,Artikelstamm!$A:$EV,15,FALSE) ->  | AK25: =VLOOKUP(AJ25,Artikelstamm!$A:$EV,4,FALSE) ->  | AP25: 9:30 - 10:00 | AS25: =VLOOKUP(AT25,Artikelstamm!$A:$EV,15,FALSE) ->  | AU25: =VLOOKUP(AT25,Artikelstamm!$A:$EV,4,FALSE) ->  | AZ25: 9:30 - 10:00 | BC25: =VLOOKUP(BD25,Artikelstamm!$A:$EV,15,FALSE) ->  | BE25: =VLOOKUP(BD25,Artikelstamm!$A:$EV,4,FALSE) -> 
B26: 10:00 - 10:30 | E26: =VLOOKUP(F26,Artikelstamm!$A:$EV,15,FALSE) ->  | G26: =VLOOKUP(F26,Artikelstamm!$A:$EV,4,FALSE) ->  | L26: 10:00 - 10:30 | O26: =VLOOKUP(P26,Artikelstamm!$A:$EV,15,FALSE) ->  | Q26: =VLOOKUP(P26,Artikelstamm!$A:$EV,4,FALSE) ->  | V26: 10:00 - 10:30 | Y26: =VLOOKUP(Z26,Artikelstamm!$A:$EV,15,FALSE) ->  | AA26: =VLOOKUP(Z26,Artikelstamm!$A:$EV,4,FALSE) ->  | AF26: 10:00 - 10:30 | AI26: =VLOOKUP(AJ26,Artikelstamm!$A:$EV,15,FALSE) ->  | AK26: =VLOOKUP(AJ26,Artikelstamm!$A:$EV,4,FALSE) ->  | AP26: 10:00 - 10:30 | AS26: =VLOOKUP(AT26,Artikelstamm!$A:$EV,15,FALSE) ->  | AU26: =VLOOKUP(AT26,Artikelstamm!$A:$EV,4,FALSE) ->  | AZ26: 10:00 - 10:30 | BC26: =VLOOKUP(BD26,Artikelstamm!$A:$EV,15,FALSE) ->  | BE26: =VLOOKUP(BD26,Artikelstamm!$A:$EV,4,FALSE) -> 
B27: 10:30 - 11:00 | E27: =VLOOKUP(F27,Artikelstamm!$A:$EV,15,FALSE) ->  | G27: =VLOOKUP(F27,Artikelstamm!$A:$EV,4,FALSE) ->  | L27: 10:30 - 11:00 | O27: =VLOOKUP(P27,Artikelstamm!$A:$EV,15,FALSE) ->  | Q27: =VLOOKUP(P27,Artikelstamm!$A:$EV,4,FALSE) ->  | V27: 10:30 - 11:00 | Y27: =VLOOKUP(Z27,Artikelstamm!$A:$EV,15,FALSE) ->  | AA27: =VLOOKUP(Z27,Artikelstamm!$A:$EV,4,FALSE) ->  | AF27: 10:30 - 11:00 | AI27: =VLOOKUP(AJ27,Artikelstamm!$A:$EV,15,FALSE) ->  | AK27: =VLOOKUP(AJ27,Artikelstamm!$A:$EV,4,FALSE) ->  | AP27: 10:30 - 11:00 | AS27: =VLOOKUP(AT27,Artikelstamm!$A:$EV,15,FALSE) ->  | AU27: =VLOOKUP(AT27,Artikelstamm!$A:$EV,4,FALSE) ->  | AZ27: 10:30 - 11:00 | BC27: =VLOOKUP(BD27,Artikelstamm!$A:$EV,15,FALSE) ->  | BE27: =VLOOKUP(BD27,Artikelstamm!$A:$EV,4,FALSE) -> 
B28: 11:00 - 11:30 | E28: =VLOOKUP(F28,Artikelstamm!$A:$EV,15,FALSE) ->  | G28: =VLOOKUP(F28,Artikelstamm!$A:$EV,4,FALSE) ->  | L28: 11:00 - 11:30 | O28: =VLOOKUP(P28,Artikelstamm!$A:$EV,15,FALSE) ->  | Q28: =VLOOKUP(P28,Artikelstamm!$A:$EV,4,FALSE) ->  | V28: 11:00 - 11:30 | Y28: =VLOOKUP(Z28,Artikelstamm!$A:$EV,15,FALSE) ->  | AA28: =VLOOKUP(Z28,Artikelstamm!$A:$EV,4,FALSE) ->  | AF28: 11:00 - 11:30 | AI28: =VLOOKUP(AJ28,Artikelstamm!$A:$EV,15,FALSE) ->  | AK28: =VLOOKUP(AJ28,Artikelstamm!$A:$EV,4,FALSE) ->  | AP28: 11:00 - 11:30 | AS28: =VLOOKUP(AT28,Artikelstamm!$A:$EV,15,FALSE) ->  | AU28: =VLOOKUP(AT28,Artikelstamm!$A:$EV,4,FALSE) ->  | AZ28: 11:00 - 11:30 | BC28: =VLOOKUP(BD28,Artikelstamm!$A:$EV,15,FALSE) ->  | BE28: =VLOOKUP(BD28,Artikelstamm!$A:$EV,4,FALSE) -> 
B29: 11:30 - 12:00 | D29: Pause | G29: Pause | L29: 11:30 - 12:00 | N29: Pause | Q29: Pause | V29: 11:30 - 12:00 | X29: Pause | AA29: Pause | AF29: 11:30 - 12:00 | AH29: Pause | AK29: Pause | AP29: 11:30 - 12:00 | AR29: Pause | AU29: Pause | AZ29: 11:30 - 12:00 | BB29: Pause | BE29: Pause
B30: 12:00 - 12:30 | E30: =VLOOKUP(F30,Artikelstamm!$A:$EV,15,FALSE) ->  | G30: =VLOOKUP(F30,Artikelstamm!$A:$EV,4,FALSE) ->  | L30: 12:00 - 12:30 | O30: =VLOOKUP(P30,Artikelstamm!$A:$EV,15,FALSE) ->  | Q30: =VLOOKUP(P30,Artikelstamm!$A:$EV,4,FALSE) ->  | V30: 12:00 - 12:30 | Y30: =VLOOKUP(Z30,Artikelstamm!$A:$EV,15,FALSE) ->  | AA30: =VLOOKUP(Z30,Artikelstamm!$A:$EV,4,FALSE) ->  | AF30: 12:00 - 12:30 | AI30: =VLOOKUP(AJ30,Artikelstamm!$A:$EV,15,FALSE) ->  | AK30: =VLOOKUP(AJ30,Artikelstamm!$A:$EV,4,FALSE) ->  | AP30: 12:00 - 12:30 | AS30: =VLOOKUP(AT30,Artikelstamm!$A:$EV,15,FALSE) ->  | AU30: =VLOOKUP(AT30,Artikelstamm!$A:$EV,4,FALSE) ->  | AZ30: 12:00 - 12:30 | BC30: =VLOOKUP(BD30,Artikelstamm!$A:$EV,15,FALSE) ->  | BE30: =VLOOKUP(BD30,Artikelstamm!$A:$EV,4,FALSE) -> 
B31: 12:30 - 13:00 | E31: =VLOOKUP(F31,Artikelstamm!$A:$EV,15,FALSE) ->  | G31: =VLOOKUP(F31,Artikelstamm!$A:$EV,4,FALSE) ->  | L31: 12:30 - 13:00 | O31: =VLOOKUP(P31,Artikelstamm!$A:$EV,15,FALSE) ->  | Q31: =VLOOKUP(P31,Artikelstamm!$A:$EV,4,FALSE) ->  | V31: 12:30 - 13:00 | Y31: =VLOOKUP(Z31,Artikelstamm!$A:$EV,15,FALSE) ->  | AA31: =VLOOKUP(Z31,Artikelstamm!$A:$EV,4,FALSE) ->  | AF31: 12:30 - 13:00 | AI31: =VLOOKUP(AJ31,Artikelstamm!$A:$EV,15,FALSE) ->  | AK31: =VLOOKUP(AJ31,Artikelstamm!$A:$EV,4,FALSE) ->  | AP31: 12:30 - 13:00 | AS31: =VLOOKUP(AT31,Artikelstamm!$A:$EV,15,FALSE) ->  | AU31: =VLOOKUP(AT31,Artikelstamm!$A:$EV,4,FALSE) ->  | AZ31: 12:30 - 13:00 | BC31: =VLOOKUP(BD31,Artikelstamm!$A:$EV,15,FALSE) ->  | BE31: =VLOOKUP(BD31,Artikelstamm!$A:$EV,4,FALSE) -> 
B32: 13:00 - 13:30 | E32: =VLOOKUP(F32,Artikelstamm!$A:$EV,15,FALSE) ->  | G32: =VLOOKUP(F32,Artikelstamm!$A:$EV,4,FALSE) ->  | L32: 13:00 - 13:30 | O32: =VLOOKUP(P32,Artikelstamm!$A:$EV,15,FALSE) ->  | Q32: =VLOOKUP(P32,Artikelstamm!$A:$EV,4,FALSE) ->  | V32: 13:00 - 13:30 | Y32: =VLOOKUP(Z32,Artikelstamm!$A:$EV,15,FALSE) ->  | AA32: =VLOOKUP(Z32,Artikelstamm!$A:$EV,4,FALSE) ->  | AF32: 13:00 - 13:30 | AI32: =VLOOKUP(AJ32,Artikelstamm!$A:$EV,15,FALSE) ->  | AK32: =VLOOKUP(AJ32,Artikelstamm!$A:$EV,4,FALSE) ->  | AP32: 13:00 - 13:30 | AS32: =VLOOKUP(AT32,Artikelstamm!$A:$EV,15,FALSE) ->  | AU32: =VLOOKUP(AT32,Artikelstamm!$A:$EV,4,FALSE) ->  | AZ32: 13:00 - 13:30 | BC32: =VLOOKUP(BD32,Artikelstamm!$A:$EV,15,FALSE) ->  | BE32: =VLOOKUP(BD32,Artikelstamm!$A:$EV,4,FALSE) -> 
B33: 13:30 - 14:00 | E33: =VLOOKUP(F33,Artikelstamm!$A:$EV,15,FALSE) ->  | G33: =VLOOKUP(F33,Artikelstamm!$A:$EV,4,FALSE) ->  | L33: 13:30 - 14:00 | O33: =VLOOKUP(P33,Artikelstamm!$A:$EV,15,FALSE) ->  | Q33: =VLOOKUP(P33,Artikelstamm!$A:$EV,4,FALSE) ->  | V33: 13:30 - 14:00 | Y33: =VLOOKUP(Z33,Artikelstamm!$A:$EV,15,FALSE) ->  | AA33: =VLOOKUP(Z33,Artikelstamm!$A:$EV,4,FALSE) ->  | AF33: 13:30 - 14:00 | AI33: =VLOOKUP(AJ33,Artikelstamm!$A:$EV,15,FALSE) ->  | AK33: =VLOOKUP(AJ33,Artikelstamm!$A:$EV,4,FALSE) ->  | AP33: 13:30 - 14:00 | AS33: =VLOOKUP(AT33,Artikelstamm!$A:$EV,15,FALSE) ->  | AU33: =VLOOKUP(AT33,Artikelstamm!$A:$EV,4,FALSE) ->  | AZ33: 13:30 - 14:00 | BC33: =VLOOKUP(BD33,Artikelstamm!$A:$EV,15,FALSE) ->  | BE33: =VLOOKUP(BD33,Artikelstamm!$A:$EV,4,FALSE) -> 
A34: Spätschicht | B34: 14:00 - 14:30 | E34: =VLOOKUP(F34,Artikelstamm!$A:$EV,15,FALSE) ->  | G34: =VLOOKUP(F34,Artikelstamm!$A:$EV,4,FALSE) ->  | K34: =$A34 -> Spätschicht | L34: 14:00 - 14:30 | O34: =VLOOKUP(P34,Artikelstamm!$A:$EV,15,FALSE) ->  | Q34: =VLOOKUP(P34,Artikelstamm!$A:$EV,4,FALSE) ->  | U34: =$A34 -> Spätschicht | V34: 14:00 - 14:30 | Y34: =VLOOKUP(Z34,Artikelstamm!$A:$EV,15,FALSE) ->  | AA34: =VLOOKUP(Z34,Artikelstamm!$A:$EV,4,FALSE) ->  | AE34: =$A34 -> Spätschicht | AF34: 14:00 - 14:30 | AI34: =VLOOKUP(AJ34,Artikelstamm!$A:$EV,15,FALSE) ->  | AK34: =VLOOKUP(AJ34,Artikelstamm!$A:$EV,4,FALSE) ->  | AO34: =$A34 -> Spätschicht | AP34: 14:00 - 14:30 | AS34: =VLOOKUP(AT34,Artikelstamm!$A:$EV,15,FALSE) ->  | AU34: =VLOOKUP(AT34,Artikelstamm!$A:$EV,4,FALSE) ->  | AY34: =$A34 -> Spätschicht | AZ34: 14:00 - 14:30 | BC34: =VLOOKUP(BD34,Artikelstamm!$A:$EV,15,FALSE) ->  | BE34: =VLOOKUP(BD34,Artikelstamm!$A:$EV,4,FALSE) -> 
B35: 14:30 - 15:00 | E35: =VLOOKUP(F35,Artikelstamm!$A:$EV,15,FALSE) ->  | G35: =VLOOKUP(F35,Artikelstamm!$A:$EV,4,FALSE) ->  | L35: 14:30 - 15:00 | O35: =VLOOKUP(P35,Artikelstamm!$A:$EV,15,FALSE) ->  | Q35: =VLOOKUP(P35,Artikelstamm!$A:$EV,4,FALSE) ->  | V35: 14:30 - 15:00 | Y35: =VLOOKUP(Z35,Artikelstamm!$A:$EV,15,FALSE) ->  | AA35: =VLOOKUP(Z35,Artikelstamm!$A:$EV,4,FALSE) ->  | AF35: 14:30 - 15:00 | AI35: =VLOOKUP(AJ35,Artikelstamm!$A:$EV,15,FALSE) ->  | AK35: =VLOOKUP(AJ35,Artikelstamm!$A:$EV,4,FALSE) ->  | AP35: 14:30 - 15:00 | AS35: =VLOOKUP(AT35,Artikelstamm!$A:$EV,15,FALSE) ->  | AU35: =VLOOKUP(AT35,Artikelstamm!$A:$EV,4,FALSE) ->  | AZ35: 14:30 - 15:00 | BC35: =VLOOKUP(BD35,Artikelstamm!$A:$EV,15,FALSE) ->  | BE35: =VLOOKUP(BD35,Artikelstamm!$A:$EV,4,FALSE) -> 
B36: 15:00 - 15:30 | E36: =VLOOKUP(F36,Artikelstamm!$A:$EV,15,FALSE) ->  | G36: =VLOOKUP(F36,Artikelstamm!$A:$EV,4,FALSE) ->  | L36: 15:00 - 15:30 | O36: =VLOOKUP(P36,Artikelstamm!$A:$EV,15,FALSE) ->  | Q36: =VLOOKUP(P36,Artikelstamm!$A:$EV,4,FALSE) ->  | V36: 15:00 - 15:30 | Y36: =VLOOKUP(Z36,Artikelstamm!$A:$EV,15,FALSE) ->  | AA36: =VLOOKUP(Z36,Artikelstamm!$A:$EV,4,FALSE) ->  | AF36: 15:00 - 15:30 | AI36: =VLOOKUP(AJ36,Artikelstamm!$A:$EV,15,FALSE) ->  | AK36: =VLOOKUP(AJ36,Artikelstamm!$A:$EV,4,FALSE) ->  | AP36: 15:00 - 15:30 | AS36: =VLOOKUP(AT36,Artikelstamm!$A:$EV,15,FALSE) ->  | AU36: =VLOOKUP(AT36,Artikelstamm!$A:$EV,4,FALSE) ->  | AZ36: 15:00 - 15:30 | BC36: =VLOOKUP(BD36,Artikelstamm!$A:$EV,15,FALSE) ->  | BE36: =VLOOKUP(BD36,Artikelstamm!$A:$EV,4,FALSE) -> 
B37: 15:30 - 16:00 | E37: =VLOOKUP(F37,Artikelstamm!$A:$EV,15,FALSE) ->  | G37: =VLOOKUP(F37,Artikelstamm!$A:$EV,4,FALSE) ->  | L37: 15:30 - 16:00 | O37: =VLOOKUP(P37,Artikelstamm!$A:$EV,15,FALSE) ->  | Q37: =VLOOKUP(P37,Artikelstamm!$A:$EV,4,FALSE) ->  | V37: 15:30 - 16:00 | Y37: =VLOOKUP(Z37,Artikelstamm!$A:$EV,15,FALSE) ->  | AA37: =VLOOKUP(Z37,Artikelstamm!$A:$EV,4,FALSE) ->  | AF37: 15:30 - 16:00 | AI37: =VLOOKUP(AJ37,Artikelstamm!$A:$EV,15,FALSE) ->  | AK37: =VLOOKUP(AJ37,Artikelstamm!$A:$EV,4,FALSE) ->  | AP37: 15:30 - 16:00 | AS37: =VLOOKUP(AT37,Artikelstamm!$A:$EV,15,FALSE) ->  | AU37: =VLOOKUP(AT37,Artikelstamm!$A:$EV,4,FALSE) ->  | AZ37: 15:30 - 16:00 | BC37: =VLOOKUP(BD37,Artikelstamm!$A:$EV,15,FALSE) ->  | BE37: =VLOOKUP(BD37,Artikelstamm!$A:$EV,4,FALSE) -> 
B38: 16:00 - 16:30 | E38: =VLOOKUP(F38,Artikelstamm!$A:$EV,15,FALSE) ->  | G38: =VLOOKUP(F38,Artikelstamm!$A:$EV,4,FALSE) ->  | L38: 16:00 - 16:30 | O38: =VLOOKUP(P38,Artikelstamm!$A:$EV,15,FALSE) ->  | Q38: =VLOOKUP(P38,Artikelstamm!$A:$EV,4,FALSE) ->  | V38: 16:00 - 16:30 | Y38: =VLOOKUP(Z38,Artikelstamm!$A:$EV,15,FALSE) ->  | AA38: =VLOOKUP(Z38,Artikelstamm!$A:$EV,4,FALSE) ->  | AF38: 16:00 - 16:30 | AI38: =VLOOKUP(AJ38,Artikelstamm!$A:$EV,15,FALSE) ->  | AK38: =VLOOKUP(AJ38,Artikelstamm!$A:$EV,4,FALSE) ->  | AP38: 16:00 - 16:30 | AS38: =VLOOKUP(AT38,Artikelstamm!$A:$EV,15,FALSE) ->  | AU38: =VLOOKUP(AT38,Artikelstamm!$A:$EV,4,FALSE) ->  | AZ38: 16:00 - 16:30 | BC38: =VLOOKUP(BD38,Artikelstamm!$A:$EV,15,FALSE) ->  | BE38: =VLOOKUP(BD38,Artikelstamm!$A:$EV,4,FALSE) -> 
B39: 16:30 - 17:00 | E39: =VLOOKUP(F39,Artikelstamm!$A:$EV,15,FALSE) ->  | G39: =VLOOKUP(F39,Artikelstamm!$A:$EV,4,FALSE) ->  | L39: 16:30 - 17:00 | O39: =VLOOKUP(P39,Artikelstamm!$A:$EV,15,FALSE) ->  | Q39: =VLOOKUP(P39,Artikelstamm!$A:$EV,4,FALSE) ->  | V39: 16:30 - 17:00 | Y39: =VLOOKUP(Z39,Artikelstamm!$A:$EV,15,FALSE) ->  | AA39: =VLOOKUP(Z39,Artikelstamm!$A:$EV,4,FALSE) ->  | AF39: 16:30 - 17:00 | AI39: =VLOOKUP(AJ39,Artikelstamm!$A:$EV,15,FALSE) ->  | AK39: =VLOOKUP(AJ39,Artikelstamm!$A:$EV,4,FALSE) ->  | AP39: 16:30 - 17:00 | AS39: =VLOOKUP(AT39,Artikelstamm!$A:$EV,15,FALSE) ->  | AU39: =VLOOKUP(AT39,Artikelstamm!$A:$EV,4,FALSE) ->  | AZ39: 16:30 - 17:00 | BC39: =VLOOKUP(BD39,Artikelstamm!$A:$EV,15,FALSE) ->  | BE39: =VLOOKUP(BD39,Artikelstamm!$A:$EV,4,FALSE) -> 
B40: 17:00 - 17:30 | D40: Pause | G40: Pause | L40: 17:00 - 17:30 | N40: Pause | Q40: Pause | V40: 17:00 - 17:30 | X40: Pause | AA40: Pause | AF40: 17:00 - 17:30 | AH40: Pause | AK40: Pause | AP40: 17:00 - 17:30 | AR40: Pause | AU40: Pause | AZ40: 17:00 - 17:30 | BB40: Pause | BE40: Pause
B41: 17:30 - 18:00 | E41: =VLOOKUP(F41,Artikelstamm!$A:$EV,15,FALSE) ->  | G41: =VLOOKUP(F41,Artikelstamm!$A:$EV,4,FALSE) ->  | L41: 17:30 - 18:00 | O41: =VLOOKUP(P41,Artikelstamm!$A:$EV,15,FALSE) ->  | Q41: =VLOOKUP(P41,Artikelstamm!$A:$EV,4,FALSE) ->  | V41: 17:30 - 18:00 | Y41: =VLOOKUP(Z41,Artikelstamm!$A:$EV,15,FALSE) ->  | AA41: =VLOOKUP(Z41,Artikelstamm!$A:$EV,4,FALSE) ->  | AF41: 17:30 - 18:00 | AI41: =VLOOKUP(AJ41,Artikelstamm!$A:$EV,15,FALSE) ->  | AK41: =VLOOKUP(AJ41,Artikelstamm!$A:$EV,4,FALSE) ->  | AP41: 17:30 - 18:00 | AS41: =VLOOKUP(AT41,Artikelstamm!$A:$EV,15,FALSE) ->  | AU41: =VLOOKUP(AT41,Artikelstamm!$A:$EV,4,FALSE) ->  | AZ41: 17:30 - 18:00 | BC41: =VLOOKUP(BD41,Artikelstamm!$A:$EV,15,FALSE) ->  | BE41: =VLOOKUP(BD41,Artikelstamm!$A:$EV,4,FALSE) -> 
B42: 18:00 - 18:30 | E42: =VLOOKUP(F42,Artikelstamm!$A:$EV,15,FALSE) ->  | G42: =VLOOKUP(F42,Artikelstamm!$A:$EV,4,FALSE) ->  | L42: 18:00 - 18:30 | O42: =VLOOKUP(P42,Artikelstamm!$A:$EV,15,FALSE) ->  | Q42: =VLOOKUP(P42,Artikelstamm!$A:$EV,4,FALSE) ->  | V42: 18:00 - 18:30 | Y42: =VLOOKUP(Z42,Artikelstamm!$A:$EV,15,FALSE) ->  | AA42: =VLOOKUP(Z42,Artikelstamm!$A:$EV,4,FALSE) ->  | AF42: 18:00 - 18:30 | AI42: =VLOOKUP(AJ42,Artikelstamm!$A:$EV,15,FALSE) ->  | AK42: =VLOOKUP(AJ42,Artikelstamm!$A:$EV,4,FALSE) ->  | AP42: 18:00 - 18:30 | AS42: =VLOOKUP(AT42,Artikelstamm!$A:$EV,15,FALSE) ->  | AU42: =VLOOKUP(AT42,Artikelstamm!$A:$EV,4,FALSE) ->  | AZ42: 18:00 - 18:30 | BC42: =VLOOKUP(BD42,Artikelstamm!$A:$EV,15,FALSE) ->  | BE42: =VLOOKUP(BD42,Artikelstamm!$A:$EV,4,FALSE) -> 
B43: 18:30 - 19:00 | E43: =VLOOKUP(F43,Artikelstamm!$A:$EV,15,FALSE) ->  | G43: =VLOOKUP(F43,Artikelstamm!$A:$EV,4,FALSE) ->  | L43: 18:30 - 19:00 | O43: =VLOOKUP(P43,Artikelstamm!$A:$EV,15,FALSE) ->  | Q43: =VLOOKUP(P43,Artikelstamm!$A:$EV,4,FALSE) ->  | V43: 18:30 - 19:00 | Y43: =VLOOKUP(Z43,Artikelstamm!$A:$EV,15,FALSE) ->  | AA43: =VLOOKUP(Z43,Artikelstamm!$A:$EV,4,FALSE) ->  | AF43: 18:30 - 19:00 | AI43: =VLOOKUP(AJ43,Artikelstamm!$A:$EV,15,FALSE) ->  | AK43: =VLOOKUP(AJ43,Artikelstamm!$A:$EV,4,FALSE) ->  | AP43: 18:30 - 19:00 | AS43: =VLOOKUP(AT43,Artikelstamm!$A:$EV,15,FALSE) ->  | AU43: =VLOOKUP(AT43,Artikelstamm!$A:$EV,4,FALSE) ->  | AZ43: 18:30 - 19:00 | BC43: =VLOOKUP(BD43,Artikelstamm!$A:$EV,15,FALSE) ->  | BE43: =VLOOKUP(BD43,Artikelstamm!$A:$EV,4,FALSE) -> 
B44: 19:00 - 19:30 | E44: =VLOOKUP(F44,Artikelstamm!$A:$EV,15,FALSE) ->  | G44: =VLOOKUP(F44,Artikelstamm!$A:$EV,4,FALSE) ->  | L44: 19:00 - 19:30 | O44: =VLOOKUP(P44,Artikelstamm!$A:$EV,15,FALSE) ->  | Q44: =VLOOKUP(P44,Artikelstamm!$A:$EV,4,FALSE) ->  | V44: 19:00 - 19:30 | Y44: =VLOOKUP(Z44,Artikelstamm!$A:$EV,15,FALSE) ->  | AA44: =VLOOKUP(Z44,Artikelstamm!$A:$EV,4,FALSE) ->  | AF44: 19:00 - 19:30 | AI44: =VLOOKUP(AJ44,Artikelstamm!$A:$EV,15,FALSE) ->  | AK44: =VLOOKUP(AJ44,Artikelstamm!$A:$EV,4,FALSE) ->  | AP44: 19:00 - 19:30 | AS44: =VLOOKUP(AT44,Artikelstamm!$A:$EV,15,FALSE) ->  | AU44: =VLOOKUP(AT44,Artikelstamm!$A:$EV,4,FALSE) ->  | AZ44: 19:00 - 19:30 | BC44: =VLOOKUP(BD44,Artikelstamm!$A:$EV,15,FALSE) ->  | BE44: =VLOOKUP(BD44,Artikelstamm!$A:$EV,4,FALSE) -> 
B45: 19:30 - 20:00 | E45: =VLOOKUP(F45,Artikelstamm!$A:$EV,15,FALSE) ->  | G45: =VLOOKUP(F45,Artikelstamm!$A:$EV,4,FALSE) ->  | L45: 19:30 - 20:00 | O45: =VLOOKUP(P45,Artikelstamm!$A:$EV,15,FALSE) ->  | Q45: =VLOOKUP(P45,Artikelstamm!$A:$EV,4,FALSE) ->  | V45: 19:30 - 20:00 | Y45: =VLOOKUP(Z45,Artikelstamm!$A:$EV,15,FALSE) ->  | AA45: =VLOOKUP(Z45,Artikelstamm!$A:$EV,4,FALSE) ->  | AF45: 19:30 - 20:00 | AI45: =VLOOKUP(AJ45,Artikelstamm!$A:$EV,15,FALSE) ->  | AK45: =VLOOKUP(AJ45,Artikelstamm!$A:$EV,4,FALSE) ->  | AP45: 19:30 - 20:00 | AS45: =VLOOKUP(AT45,Artikelstamm!$A:$EV,15,FALSE) ->  | AU45: =VLOOKUP(AT45,Artikelstamm!$A:$EV,4,FALSE) ->  | AZ45: 19:30 - 20:00 | BC45: =VLOOKUP(BD45,Artikelstamm!$A:$EV,15,FALSE) ->  | BE45: =VLOOKUP(BD45,Artikelstamm!$A:$EV,4,FALSE) -> 
B46: 20:00 - 20:30 | E46: =VLOOKUP(F46,Artikelstamm!$A:$EV,15,FALSE) ->  | G46: =VLOOKUP(F46,Artikelstamm!$A:$EV,4,FALSE) ->  | L46: 20:00 - 20:30 | O46: =VLOOKUP(P46,Artikelstamm!$A:$EV,15,FALSE) ->  | Q46: =VLOOKUP(P46,Artikelstamm!$A:$EV,4,FALSE) ->  | V46: 20:00 - 20:30 | Y46: =VLOOKUP(Z46,Artikelstamm!$A:$EV,15,FALSE) ->  | AA46: =VLOOKUP(Z46,Artikelstamm!$A:$EV,4,FALSE) ->  | AF46: 20:00 - 20:30 | AI46: =VLOOKUP(AJ46,Artikelstamm!$A:$EV,15,FALSE) ->  | AK46: =VLOOKUP(AJ46,Artikelstamm!$A:$EV,4,FALSE) ->  | AP46: 20:00 - 20:30 | AS46: =VLOOKUP(AT46,Artikelstamm!$A:$EV,15,FALSE) ->  | AU46: =VLOOKUP(AT46,Artikelstamm!$A:$EV,4,FALSE) ->  | AZ46: 20:00 - 20:30 | BC46: =VLOOKUP(BD46,Artikelstamm!$A:$EV,15,FALSE) ->  | BE46: =VLOOKUP(BD46,Artikelstamm!$A:$EV,4,FALSE) -> 
B47: 20:30 - 21:00 | D47: Pause | G47: Pause | L47: 20:30 - 21:00 | N47: Pause | Q47: Pause | V47: 20:30 - 21:00 | X47: Pause | AA47: Pause | AF47: 20:30 - 21:00 | AH47: Pause | AK47: Pause | AP47: 20:30 - 21:00 | AR47: Pause | AU47: Pause | AZ47: 20:30 - 21:00 | BB47: Pause | BE47: Pause
B48: 21:00 - 21:30 | E48: =VLOOKUP(F48,Artikelstamm!$A:$EV,15,FALSE) ->  | G48: =VLOOKUP(F48,Artikelstamm!$A:$EV,4,FALSE) ->  | L48: 21:00 - 21:30 | O48: =VLOOKUP(P48,Artikelstamm!$A:$EV,15,FALSE) ->  | Q48: =VLOOKUP(P48,Artikelstamm!$A:$EV,4,FALSE) ->  | V48: 21:00 - 21:30 | Y48: =VLOOKUP(Z48,Artikelstamm!$A:$EV,15,FALSE) ->  | AA48: =VLOOKUP(Z48,Artikelstamm!$A:$EV,4,FALSE) ->  | AF48: 21:00 - 21:30 | AI48: =VLOOKUP(AJ48,Artikelstamm!$A:$EV,15,FALSE) ->  | AK48: =VLOOKUP(AJ48,Artikelstamm!$A:$EV,4,FALSE) ->  | AP48: 21:00 - 21:30 | AS48: =VLOOKUP(AT48,Artikelstamm!$A:$EV,15,FALSE) ->  | AU48: =VLOOKUP(AT48,Artikelstamm!$A:$EV,4,FALSE) ->  | AZ48: 21:00 - 21:30 | BC48: =VLOOKUP(BD48,Artikelstamm!$A:$EV,15,FALSE) ->  | BE48: =VLOOKUP(BD48,Artikelstamm!$A:$EV,4,FALSE) -> 
B49: 21:30 - 22:00 | E49: =VLOOKUP(F49,Artikelstamm!$A:$EV,15,FALSE) ->  | G49: =VLOOKUP(F49,Artikelstamm!$A:$EV,4,FALSE) ->  | L49: 21:30 - 22:00 | O49: =VLOOKUP(P49,Artikelstamm!$A:$EV,15,FALSE) ->  | Q49: =VLOOKUP(P49,Artikelstamm!$A:$EV,4,FALSE) ->  | V49: 21:30 - 22:00 | Y49: =VLOOKUP(Z49,Artikelstamm!$A:$EV,15,FALSE) ->  | AA49: =VLOOKUP(Z49,Artikelstamm!$A:$EV,4,FALSE) ->  | AF49: 21:30 - 22:00 | AI49: =VLOOKUP(AJ49,Artikelstamm!$A:$EV,15,FALSE) ->  | AK49: =VLOOKUP(AJ49,Artikelstamm!$A:$EV,4,FALSE) ->  | AP49: 21:30 - 22:00 | AS49: =VLOOKUP(AT49,Artikelstamm!$A:$EV,15,FALSE) ->  | AU49: =VLOOKUP(AT49,Artikelstamm!$A:$EV,4,FALSE) ->  | AZ49: 21:30 - 22:00 | BC49: =VLOOKUP(BD49,Artikelstamm!$A:$EV,15,FALSE) ->  | BE49: =VLOOKUP(BD49,Artikelstamm!$A:$EV,4,FALSE) -> 
B50: 22:00 - 22:30 | E50: =VLOOKUP(F50,Artikelstamm!$A:$EV,15,FALSE) ->  | G50: =VLOOKUP(F50,Artikelstamm!$A:$EV,4,FALSE) ->  | L50: 22:00 - 22:30 | O50: =VLOOKUP(P50,Artikelstamm!$A:$EV,15,FALSE) ->  | Q50: =VLOOKUP(P50,Artikelstamm!$A:$EV,4,FALSE) ->  | V50: 22:00 - 22:30 | Y50: =VLOOKUP(Z50,Artikelstamm!$A:$EV,15,FALSE) ->  | AA50: =VLOOKUP(Z50,Artikelstamm!$A:$EV,4,FALSE) ->  | AF50: 22:00 - 22:30 | AI50: =VLOOKUP(AJ50,Artikelstamm!$A:$EV,15,FALSE) ->  | AK50: =VLOOKUP(AJ50,Artikelstamm!$A:$EV,4,FALSE) ->  | AP50: 22:00 - 22:30 | AS50: =VLOOKUP(AT50,Artikelstamm!$A:$EV,15,FALSE) ->  | AU50: =VLOOKUP(AT50,Artikelstamm!$A:$EV,4,FALSE) ->  | AZ50: 22:00 - 22:30 | BC50: =VLOOKUP(BD50,Artikelstamm!$A:$EV,15,FALSE) ->  | BE50: =VLOOKUP(BD50,Artikelstamm!$A:$EV,4,FALSE) -> 
B51: 22:30 - 23:00 | E51: =VLOOKUP(F51,Artikelstamm!$A:$EV,15,FALSE) ->  | G51: =VLOOKUP(F51,Artikelstamm!$A:$EV,4,FALSE) ->  | L51: 22:30 - 23:00 | O51: =VLOOKUP(P51,Artikelstamm!$A:$EV,15,FALSE) ->  | Q51: =VLOOKUP(P51,Artikelstamm!$A:$EV,4,FALSE) ->  | V51: 22:30 - 23:00 | Y51: =VLOOKUP(Z51,Artikelstamm!$A:$EV,15,FALSE) ->  | AA51: =VLOOKUP(Z51,Artikelstamm!$A:$EV,4,FALSE) ->  | AF51: 22:30 - 23:00 | AI51: =VLOOKUP(AJ51,Artikelstamm!$A:$EV,15,FALSE) ->  | AK51: =VLOOKUP(AJ51,Artikelstamm!$A:$EV,4,FALSE) ->  | AP51: 22:30 - 23:00 | AS51: =VLOOKUP(AT51,Artikelstamm!$A:$EV,15,FALSE) ->  | AU51: =VLOOKUP(AT51,Artikelstamm!$A:$EV,4,FALSE) ->  | AZ51: 22:30 - 23:00 | BC51: =VLOOKUP(BD51,Artikelstamm!$A:$EV,15,FALSE) ->  | BE51: =VLOOKUP(BD51,Artikelstamm!$A:$EV,4,FALSE) -> 
A52: Übertrag: | K52: =$A52 -> Übertrag: | U52: =$A52 -> Übertrag: | AE52: =$A52 -> Übertrag: | AO52: =$A52 -> Übertrag: | AY52: =$A52 -> Übertrag:
A53: Summe: | C53: =SUM(C4:C52) -> 0 | D53: =SUM(D4:D52) -> 0 | I53: =SUM(I4:I51) -> 0 | K53: =$A53 -> Summe: | M53: =SUM(M4:M52) -> 0 | N53: =SUM(N4:N52) -> 0 | S53: =SUM(S4:S51) -> 0 | U53: =$A53 -> Summe: | W53: =SUM(W4:W52) -> 0 | X53: =SUM(X4:X52) -> 0 | AC53: =SUM(AC4:AC51) -> 0 | AE53: =$A53 -> Summe: | AG53: =SUM(AG4:AG52) -> 0 | AH53: =SUM(AH4:AH52) -> 0 | AM53: =SUM(AM4:AM51) -> 0 | AO53: =$A53 -> Summe: | AQ53: =SUM(AQ4:AQ52) -> 0 | AR53: =SUM(AR4:AR52) -> 0 | AW53: =SUM(AW4:AW51) -> 0 | AY53: =$A53 -> Summe: | BA53: =SUM(BA4:BA52) -> 0 | BB53: =SUM(BB4:BB52) -> 0 | BG53: =SUM(BG4:BG51) -> 0
A55: Wochenleistung | K55: Wochenleistung | U55: Wochenleistung | AE55: Wochenleistung | AO55: Wochenleistung | AY55: Wochenleistung
A56: Gebinde | B56: =$C$53+$M$53+$W$53+$AG$53+$AQ$53 -> 0 | K56: Gebinde | L56: =$B56 -> 0 | U56: Gebinde | V56: =$B56 -> 0 | AE56: Gebinde | AF56: =$B56 -> 0 | AO56: Gebinde | AP56: =$B56 -> 0 | AY56: Gebinde | AZ56: =$B56 -> 0
A57: Paletten | B57: =$I$53+$S$53+$AC$53+$AM$53+$AW$53 -> 0 | K57: Paletten | L57: =$B57 -> 0 | U57: Paletten | V57: =$B57 -> 0 | AE57: Paletten | AF57: =$B57 -> 0 | AO57: Paletten | AP57: =$B57 -> 0 | AY57: Paletten | AZ57: =$B57 -> 0
A58: Zusatzleistung | K58: Zusatzleistung | U58: Zusatzleistung | AE58: Zusatzleistung | AO58: Zusatzleistung | AY58: Zusatzleistung
A59: Gebinde | B59: =$BA$53 -> 0 | K59: Gebinde | L59: =$B59 -> 0 | U59: Gebinde | V59: =$B59 -> 0 | AE59: Gebinde | AF59: =$B59 -> 0 | AO59: Gebinde | AP59: =$B59 -> 0 | AY59: Gebinde | AZ59: =$B59 -> 0
A60: Paletten | B60: =$BG$53 -> 0 | K60: Paletten | L60: =$B60 -> 0 | U60: Paletten | V60: =$B60 -> 0 | AE60: Paletten | AF60: =$B60 -> 0 | AO60: Paletten | AP60: =$B60 -> 0 | AY60: Paletten | AZ60: =$B60 -> 0

Sheet ProduktionStammdaten
A1: Packerei 1
A2: Produktions-modi: | B2: Modi | C2: Beutel / Stunde | E2: Produktwechsel | F2: =B3 -> GroßFmtWaage | G2: =B4 -> GroßFmtDosierer | H2: =B5 -> KleinFmtWaage | I2: =B6 -> KleinFmtDosierer
B3: GroßFmtWaage | C3: 2500 | E3: =B3 -> GroßFmtWaage | F3: 20 | G3: 30 | H3: 90 | I3: 90
B4: GroßFmtDosierer | C4: 2000 | E4: =B4 -> GroßFmtDosierer | F4: 30 | G4: 20 | H4: 90 | I4: 90
B5: KleinFmtWaage | C5: 2500 | E5: =B5 -> KleinFmtWaage | F5: 90 | G5: 90 | H5: 20 | I5: 30
B6: KleinFmtDosierer | C6: 2000 | E6: =B6 -> KleinFmtDosierer | F6: 90 | G6: 90 | H6: 30 | I6: 20
A11: Packerei 2
A12: Produktions-modi: | B12: Modi | C12: Beutel / Stunde | E12: Produktwechsel | F12: FaWeMaGroßFmtReis | G12: FaWeMaGroßFmtFlocken | H12: FaWeMaGroßFmtZucker | I12: =B16 -> FaWeMaGroßFmtMehl | J12: FaWeMaKleinFmtFlocken | K12: FaWeMaKleinFmtReis | L12: FaWeMaKleinFmtSaaten | M12: FaWeMaKleinFmtZucker | N12: FaWeMaKleinFmtGrieß | O12: FaWeMaKleinFmtMehl | P12: PreWaGroßFmtWaage | Q12: PreWaKleinFmtWaage | R12: FaWeMaMaxiWaage | S12: =B26 -> FaWeMaMiniWaage | T12: =B27 -> FaWeMaMiniDosierer | U12: =B28 -> Kombi-Produktion
B13: FaWeMaGroßFmtReis | C13: 1700 | E13: =B13 -> FaWeMaGroßFmtReis | F13: 20 | G13: 20 | H13: 20 | I13: 20 | J13: 60 | K13: 60 | L13: 60 | M13: 60 | N13: 60 | O13: 60 | P13: 90 | Q13: 90 | R13: 60 | S13: 90 | T13: 90 | U13: 30
B14: FaWeMaGroßFmtFlocken | C14: 2000 | E14: FaWeMaGroßFmtFlocken | F14: 20 | G14: 20 | H14: 20 | I14: 20 | J14: 60 | K14: 60 | L14: 60 | M14: 60 | N14: 60 | O14: 60 | P14: 90 | Q14: 90 | R14: 60 | S14: 90 | T14: 90 | U14: 30
B15: FaWeMaGroßFmtZucker | C15: 1500 | E15: =B15 -> FaWeMaGroßFmtZucker | F15: 20 | G15: 20 | H15: 20 | I15: 20 | J15: 60 | K15: 60 | L15: 60 | M15: 60 | N15: 60 | O15: 60 | P15: 90 | Q15: 90 | R15: 60 | S15: 90 | T15: 90 | U15: 30
B16: FaWeMaGroßFmtMehl | C16: 1500 | E16: =B16 -> FaWeMaGroßFmtMehl | F16: 20 | G16: 20 | H16: 20 | I16: 20 | J16: 60 | K16: 60 | L16: 60 | M16: 60 | N16: 60 | O16: 60 | P16: 90 | Q16: 90 | R16: 60 | S16: 90 | T16: 90 | U16: 30
B17: FaWeMaKleinFmtFlocken | C17: 1500 | E17: =B17 -> FaWeMaKleinFmtFlocken | F17: 60 | G17: 60 | H17: 60 | I17: 60 | J17: 20 | K17: 20 | L17: 20 | M17: 20 | N17: 30 | O17: 30 | P17: 90 | Q17: 90 | R17: 60 | S17: 90 | T17: 90 | U17: 30
B18: FaWeMaKleinFmtReis | C18: 1600 | E18: =B18 -> FaWeMaKleinFmtReis | F18: 60 | G18: 60 | H18: 60 | I18: 60 | J18: 20 | K18: 20 | L18: 20 | M18: 20 | N18: 30 | O18: 30 | P18: 90 | Q18: 90 | R18: 60 | S18: 90 | T18: 90 | U18: 30
B19: FaWeMaKleinFmtSaaten | C19: 1400 | E19: =B19 -> FaWeMaKleinFmtSaaten | F19: 60 | G19: 60 | H19: 60 | I19: 60 | J19: 20 | K19: 20 | L19: 20 | M19: 20 | N19: 30 | O19: 30 | P19: 90 | Q19: 90 | R19: 60 | S19: 90 | T19: 90 | U19: 30
B20: FaWeMaKleinFmtZucker | C20: 1400 | E20: =B20 -> FaWeMaKleinFmtZucker | F20: 60 | G20: 60 | H20: 60 | I20: 60 | J20: 20 | K20: 20 | L20: 20 | M20: 20 | N20: 30 | O20: 30 | P20: 90 | Q20: 90 | R20: 60 | S20: 90 | T20: 90 | U20: 30
B21: FaWeMaKleinFmtGrieß | C21: 1300 | E21: FaWeMaKleinFmtGrieß | F21: 60 | G21: 60 | H21: 60 | I21: 60 | J21: 30 | K21: 30 | L21: 30 | M21: 30 | N21: 20 | O21: 20 | P21: 90 | Q21: 90 | R21: 60 | S21: 90 | T21: 90 | U21: 30
B22: FaWeMaKleinFmtMehl | C22: 1100 | E22: FaWeMaKleinFmtMehl | F22: 60 | G22: 60 | H22: 60 | I22: 60 | J22: 30 | K22: 30 | L22: 30 | M22: 30 | N22: 20 | O22: 20 | P22: 90 | Q22: 90 | R22: 60 | S22: 90 | T22: 90 | U22: 30
B23: PreWaGroßFmtWaage | C23: 1200 | E23: PreWaGroßFmtWaage | F23: 120 | G23: 120 | H23: 120 | I23: 120 | J23: 120 | K23: 120 | L23: 120 | M23: 120 | N23: 120 | O23: 120 | P23: 20 | Q23: 30 | R23: 120 | S23: 120 | T23: 120 | U23: 30
B24: PreWaKleinFmtWaage | C24: 1500 | E24: PreWaKleinFmtWaage | F24: 120 | G24: 120 | H24: 120 | I24: 120 | J24: 120 | K24: 120 | L24: 120 | M24: 120 | N24: 120 | O24: 120 | P24: 30 | Q24: 20 | R24: 120 | S24: 120 | T24: 120 | U24: 30
B25: FaWeMaMaxiWaage | C25: 1500 | E25: FaWeMaMaxiWaage | F25: 60 | G25: 60 | H25: 60 | I25: 60 | J25: 60 | K25: 60 | L25: 60 | M25: 60 | N25: 60 | O25: 60 | P25: 90 | Q25: 90 | R25: 20 | S25: 90 | T25: 90 | U25: 30
B26: FaWeMaMiniWaage | C26: 1500 | E26: FaWeMaMiniWaage | F26: 90 | G26: 90 | H26: 90 | I26: 90 | J26: 90 | K26: 90 | L26: 90 | M26: 90 | N26: 90 | O26: 90 | P26: 90 | Q26: 90 | R26: 90 | S26: 20 | T26: 30 | U26: 30
B27: FaWeMaMiniDosierer | C27: 1500 | E27: FaWeMaMiniDosierer | F27: 90 | G27: 90 | H27: 90 | I27: 90 | J27: 90 | K27: 90 | L27: 90 | M27: 90 | N27: 90 | O27: 90 | P27: 90 | Q27: 90 | R27: 90 | S27: 30 | T27: 20 | U27: 30
B28: Kombi-Produktion | C28: 240 | E28: Kombi-Produktion | F28: 30 | G28: 30 | H28: 30 | I28: 30 | J28: 30 | K28: 30 | L28: 30 | M28: 30 | N28: 30 | O28: 30 | P28: 30 | Q28: 30 | R28: 30 | S28: 30 | T28: 30 | U28: 20
A30: Packerei 3
A31: Produktions-modi: | B31: Modi | C31: Beutel / Stunde | E31: Produktwechsel | F31: =B32 -> Maxiformat | G31: =B33 -> Großformat | H31: =B34 -> Glas
B32: Maxiformat | C32: 900 | E32: =B32 -> Maxiformat | F32: 20 | G32: 360 | H32: 90
B33: Großformat | C33: 1200 | E33: =B33 -> Großformat | F33: 360 | G33: 20 | H33: 90
B34: Glas | C34: 120 | E34: =B34 -> Glas | F34: 90 | G34: 90 | H34: 20
A36: Packerei 4
A37: Produktions-modi: | B37: Modi | C37: Beutel / Stunde | E37: Produktwechsel | F37: =B38 -> 1 Kippung | G37: =B39 -> 2 Kippungen | H37: =B40 -> Glas
B38: 1 Kippung | C38: 120 | E38: =B38 -> 1 Kippung | F38: 30 | G38: 30 | H38: 30
B39: 2 Kippungen | C39: 90 | E39: =B39 -> 2 Kippungen | F39: 30 | G39: 30 | H39: 30
B40: Glas | C40: 660 | E40: =B40 -> Glas | F40: 30 | G40: 30 | H40: 30

Sheet Leistungsdaten
A1: Leistungsdaten Abpackung | E1: Standard: Pack1: 2000; Pack2: 1000; Pack4: 60 Beutel / Stunde
A2: Produkt-Nr. | B2: Pack1 (Beutel / h) | C2: Modus1 | D2: Pack2 (Beutel / h) | E2: Modus2 | F2: Pack3 (Beutel / h) | G2: Modus3 | H2: Pack4 (Beutel / h) | I2: Modus4 | J2: Kurzbez. | K2: Gebinde | L2: Palette | M2: Produktname | N2: Mühle | O2: MischMühle | P2: Rezept | Q2: glutenfr | R2: DüZi | S2: Allergen
A3: 000000 | B3: 2000 | D3: 1000 | F3: 1000 | H3: 60 | J3: NV | K3: 4*500G | L3: 1 | M3: NV
A4: 060002 | B4: =VLOOKUP(C4,ProduktionStammdaten!$B$2:$C$6,2,FALSE) ->  | D4: =VLOOKUP(E4,ProduktionStammdaten!$B$13:$C$28,2,FALSE) ->  | F4: =VLOOKUP(G4,ProduktionStammdaten!$B$32:$C$34,2,FALSE) ->  | H4: =VLOOKUP(I4,ProduktionStammdaten!$B$38:$C$41,2,FALSE) -> 90 | I4: 2 Kippungen | J4: =VLOOKUP($A4,Artikelstamm!$C$3:$EW$2746,107,FALSE) -> Weizen,demeter | K4: =VLOOKUP($A4,Artikelstamm!$C$3:$EW$2746,13,FALSE) -> 4*5KG | L4: =VLOOKUP($A4,Artikelstamm!$C$3:$EW$2746,94,FALSE) -> 16 | M4: =VLOOKUP($A4,Artikelstamm!$C$3:$EW$2746,2,FALSE) -> Weizen, demeter - NF Unverpackt + Vorrat | N4: 1 | Q4: -1 | R4: 1
A5: 060003 | B5: =VLOOKUP(C5,ProduktionStammdaten!$B$2:$C$6,2,FALSE) ->  | D5: =VLOOKUP(E5,ProduktionStammdaten!$B$13:$C$28,2,FALSE) ->  | F5: =VLOOKUP(G5,ProduktionStammdaten!$B$32:$C$34,2,FALSE) ->  | H5: =VLOOKUP(I5,ProduktionStammdaten!$B$38:$C$41,2,FALSE) -> 120 | I5: 1 Kippung | J5: =VLOOKUP($A5,Artikelstamm!$C$3:$EW$2746,107,FALSE) -> Weizen,demeter | K5: =VLOOKUP($A5,Artikelstamm!$C$3:$EW$2746,13,FALSE) -> 4*2,5KG | L5: =VLOOKUP($A5,Artikelstamm!$C$3:$EW$2746,94,FALSE) -> 36 | M5: =VLOOKUP($A5,Artikelstamm!$C$3:$EW$2746,2,FALSE) -> Weizen, demeter | N5: 1 | Q5: -1
A6: 060006 | B6: =VLOOKUP(C6,ProduktionStammdaten!$B$2:$C$6,2,FALSE) -> 2500 | C6: GroßFmtWaage | D6: =VLOOKUP(E6,ProduktionStammdaten!$B$13:$C$28,2,FALSE) ->  | F6: =VLOOKUP(G6,ProduktionStammdaten!$B$32:$C$34,2,FALSE) ->  | H6: =VLOOKUP(I6,ProduktionStammdaten!$B$38:$C$41,2,FALSE) ->  | J6: =VLOOKUP($A6,Artikelstamm!$C$3:$EW$2746,107,FALSE) -> Weizen, demeter | K6: =VLOOKUP($A6,Artikelstamm!$C$3:$EW$2746,13,FALSE) -> 6*1KG | L6: =VLOOKUP($A6,Artikelstamm!$C$3:$EW$2746,94,FALSE) -> 60 | M6: =VLOOKUP($A6,Artikelstamm!$C$3:$EW$2746,2,FALSE) -> Weizen, demeter | N6: 1 | Q6: -1
A7: 060102 | B7: =VLOOKUP(C7,ProduktionStammdaten!$B$2:$C$6,2,FALSE) ->  | D7: =VLOOKUP(E7,ProduktionStammdaten!$B$13:$C$28,2,FALSE) ->  | F7: =VLOOKUP(G7,ProduktionStammdaten!$B$32:$C$34,2,FALSE) ->  | H7: =VLOOKUP(I7,ProduktionStammdaten!$B$38:$C$41,2,FALSE) -> 90 | I7: 2 Kippungen | J7: =VLOOKUP($A7,Artikelstamm!$C$3:$EW$2746,107,FALSE) -> Roggen, demeter | K7: =VLOOKUP($A7,Artikelstamm!$C$3:$EW$2746,13,FALSE) -> 4*5KG | L7: =VLOOKUP($A7,Artikelstamm!$C$3:$EW$2746,94,FALSE) -> 16 | M7: =VLOOKUP($A7,Artikelstamm!$C$3:$EW$2746,2,FALSE) -> Roggen, demeter - NF Unverpackt und Vorrat | N7: 1 | Q7: -1 | R7: 1
A8: 060104 | B8: =VLOOKUP(C8,ProduktionStammdaten!$B$2:$C$6,2,FALSE) ->  | D8: =VLOOKUP(E8,ProduktionStammdaten!$B$13:$C$28,2,FALSE) ->  | F8: =VLOOKUP(G8,ProduktionStammdaten!$B$32:$C$34,2,FALSE) ->  | H8: =VLOOKUP(I8,ProduktionStammdaten!$B$38:$C$41,2,FALSE) -> 120 | I8: 1 Kippung | J8: =VLOOKUP($A8,Artikelstamm!$C$3:$EW$2746,107,FALSE) -> Roggen, demeter | K8: =VLOOKUP($A8,Artikelstamm!$C$3:$EW$2746,13,FALSE) -> 4*2,5KG | L8: =VLOOKUP($A8,Artikelstamm!$C$3:$EW$2746,94,FALSE) -> 36 | M8: =VLOOKUP($A8,Artikelstamm!$C$3:$EW$2746,2,FALSE) -> Roggen, demeter | N8: 1 | Q8: -1
A9: 060106 | B9: =VLOOKUP(C9,ProduktionStammdaten!$B$2:$C$6,2,FALSE) -> 2500 | C9: GroßFmtWaage | D9: =VLOOKUP(E9,ProduktionStammdaten!$B$13:$C$28,2,FALSE) ->  | F9: =VLOOKUP(G9,ProduktionStammdaten!$B$32:$C$34,2,FALSE) ->  | H9: =VLOOKUP(I9,ProduktionStammdaten!$B$38:$C$41,2,FALSE) ->  | J9: =VLOOKUP($A9,Artikelstamm!$C$3:$EW$2746,107,FALSE) -> Roggen, demeter | K9: =VLOOKUP($A9,Artikelstamm!$C$3:$EW$2746,13,FALSE) -> 6*1KG | L9: =VLOOKUP($A9,Artikelstamm!$C$3:$EW$2746,94,FALSE) -> 60 | M9: =VLOOKUP($A9,Artikelstamm!$C$3:$EW$2746,2,FALSE) -> Roggen, demeter | N9: 1 | Q9: -1
A10: 060202 | B10: =VLOOKUP(C10,ProduktionStammdaten!$B$2:$C$6,2,FALSE) ->  | D10: =VLOOKUP(E10,ProduktionStammdaten!$B$13:$C$28,2,FALSE) ->  | F10: =VLOOKUP(G10,ProduktionStammdaten!$B$32:$C$34,2,FALSE) ->  | H10: =VLOOKUP(I10,ProduktionStammdaten!$B$38:$C$41,2,FALSE) -> 90 | I10: 2 Kippungen | J10: =VLOOKUP($A10,Artikelstamm!$C$3:$EW$2746,107,FALSE) -> Dinkel, demeter | K10: =VLOOKUP($A10,Artikelstamm!$C$3:$EW$2746,13,FALSE) -> 4*5KG | L10: =VLOOKUP($A10,Artikelstamm!$C$3:$EW$2746,94,FALSE) -> 16 | M10: =VLOOKUP($A10,Artikelstamm!$C$3:$EW$2746,2,FALSE) -> Dinkel, demeter - NF Unverpackt und Vorrat | N10: 1 | Q10: -1 | R10: 1
A11: 060204 | B11: =VLOOKUP(C11,ProduktionStammdaten!$B$2:$C$6,2,FALSE) ->  | D11: =VLOOKUP(E11,ProduktionStammdaten!$B$13:$C$28,2,FALSE) ->  | F11: =VLOOKUP(G11,ProduktionStammdaten!$B$32:$C$34,2,FALSE) ->  | H11: =VLOOKUP(I11,ProduktionStammdaten!$B$38:$C$41,2,FALSE) -> 120 | I11: 1 Kippung | J11: =VLOOKUP($A11,Artikelstamm!$C$3:$EW$2746,107,FALSE) -> Dinkel, demeter | K11: =VLOOKUP($A11,Artikelstamm!$C$3:$EW$2746,13,FALSE) -> 4*2,5KG | L11: =VLOOKUP($A11,Artikelstamm!$C$3:$EW$2746,94,FALSE) -> 36 | M11: =VLOOKUP($A11,Artikelstamm!$C$3:$EW$2746,2,FALSE) -> Dinkel, demeter | N11: 1 | Q11: -1
A12: 060205 | B12: =VLOOKUP(C12,ProduktionStammdaten!$B$2:$C$6,2,FALSE) -> 2500 | C12: KleinFmtWaage | D12: =VLOOKUP(E12,ProduktionStammdaten!$B$13:$C$28,2,FALSE) ->  | F12: =VLOOKUP(G12,ProduktionStammdaten!$B$32:$C$34,2,FALSE) ->  | H12: =VLOOKUP(I12,ProduktionStammdaten!$B$38:$C$41,2,FALSE) ->  | J12: =VLOOKUP($A12,Artikelstamm!$C$3:$EW$2746,107,FALSE) -> Dinkel, demeter | K12: =VLOOKUP($A12,Artikelstamm!$C$3:$EW$2746,13,FALSE) -> 4*500G | L12: =VLOOKUP($A12,Artikelstamm!$C$3:$EW$2746,94,FALSE) -> 64 | M12: =VLOOKUP($A12,Artikelstamm!$C$3:$EW$2746,2,FALSE) -> Dinkel, demeter | N12: 1 | Q12: -1
A13: 060206 | B13: =VLOOKUP(C13,ProduktionStammdaten!$B$2:$C$6,2,FALSE) -> 2500 | C13: GroßFmtWaage | D13: =VLOOKUP(E13,ProduktionStammdaten!$B$13:$C$28,2,FALSE) ->  | F13: =VLOOKUP(G13,ProduktionStammdaten!$B$32:$C$34,2,FALSE) ->  | H13: =VLOOKUP(I13,ProduktionStammdaten!$B$38:$C$41,2,FALSE) ->  | J13: =VLOOKUP($A13,Artikelstamm!$C$3:$EW$2746,107,FALSE) -> Dinkel, demeter | K13: =VLOOKUP($A13,Artikelstamm!$C$3:$EW$2746,13,FALSE) -> 6*1KG | L13: =VLOOKUP($A13,Artikelstamm!$C$3:$EW$2746,94,FALSE) -> 60 | M13: =VLOOKUP($A13,Artikelstamm!$C$3:$EW$2746,2,FALSE) -> Dinkel, demeter | N13: 1 | Q13: -1
A14: 060241 | B14: =VLOOKUP(C14,ProduktionStammdaten!$B$2:$C$6,2,FALSE) ->  | D14: =VLOOKUP(E14,ProduktionStammdaten!$B$13:$C$28,2,FALSE) ->  | F14: =VLOOKUP(G14,ProduktionStammdaten!$B$32:$C$34,2,FALSE) ->  | H14: =VLOOKUP(I14,ProduktionStammdaten!$B$38:$C$41,2,FALSE) -> 90 | I14: 2 Kippungen | J14: =VLOOKUP($A14,Artikelstamm!$C$3:$EW$2746,107,FALSE) -> Dinkel, bioland | K14: =VLOOKUP($A14,Artikelstamm!$C$3:$EW$2746,13,FALSE) -> 1*10KG | L14: =VLOOKUP($A14,Artikelstamm!$C$3:$EW$2746,94,FALSE) -> 40 | M14: =VLOOKUP($A14,Artikelstamm!$C$3:$EW$2746,2,FALSE) -> Dinkel, bioland | N14: 1 | Q14: -1 | R14: 1
A15: 060242 | B15: =VLOOKUP(C15,ProduktionStammdaten!$B$2:$C$6,2,FALSE) ->  | D15: =VLOOKUP(E15,ProduktionStammdaten!$B$13:$C$28,2,FALSE) ->  | F15: =VLOOKUP(G15,ProduktionStammdaten!$B$32:$C$34,2,FALSE) ->  | H15: =VLOOKUP(I15,ProduktionStammdaten!$B$38:$C$41,2,FALSE) -> 90 | I15: 2 Kippungen | J15: =VLOOKUP($A15,Artikelstamm!$C$3:$EW$2746,107,FALSE) -> Dinkel, bioland | K15: =VLOOKUP($A15,Artikelstamm!$C$3:$EW$2746,13,FALSE) -> 1*5KG | L15: =VLOOKUP($A15,Artikelstamm!$C$3:$EW$2746,94,FALSE) -> 96 | M15: =VLOOKUP($A15,Artikelstamm!$C$3:$EW$2746,2,FALSE) -> Dinkel, bioland - NF Unverpackt und Vorrat | N15: 1 | Q15: -1 | R15: 1
A16: 060244 | B16: =VLOOKUP(C16,ProduktionStammdaten!$B$2:$C$6,2,FALSE) ->  | D16: =VLOOKUP(E16,ProduktionStammdaten!$B$13:$C$28,2,FALSE) ->  | F16: =VLOOKUP(G16,ProduktionStammdaten!$B$32:$C$34,2,FALSE) ->  | H16: =VLOOKUP(I16,ProduktionStammdaten!$B$38:$C$41,2,FALSE) -> 120 | I16: 1 Kippung | J16: =VLOOKUP($A16,Artikelstamm!$C$3:$EW$2746,107,FALSE) -> Dinkel | K16: =VLOOKUP($A16,Artikelstamm!$C$3:$EW$2746,13,FALSE) -> 4*2,5KG | L16: =VLOOKUP($A16,Artikelstamm!$C$3:$EW$2746,94,FALSE) -> 36 | M16: =VLOOKUP($A16,Artikelstamm!$C$3:$EW$2746,2,FALSE) -> Dinkel, bioland | N16: 1 | Q16: -1
A17: 060246 | B17: =VLOOKUP(C17,ProduktionStammdaten!$B$2:$C$6,2,FALSE) -> 2500 | C17: GroßFmtWaage | D17: =VLOOKUP(E17,ProduktionStammdaten!$B$13:$C$28,2,FALSE) ->  | F17: =VLOOKUP(G17,ProduktionStammdaten!$B$32:$C$34,2,FALSE) ->  | H17: =VLOOKUP(I17,ProduktionStammdaten!$B$38:$C$41,2,FALSE) ->  | J17: =VLOOKUP($A17,Artikelstamm!$C$3:$EW$2746,107,FALSE) -> Dinkel, bioland | K17: =VLOOKUP($A17,Artikelstamm!$C$3:$EW$2746,13,FALSE) -> 6*1KG | L17: =VLOOKUP($A17,Artikelstamm!$C$3:$EW$2746,94,FALSE) -> 60 | M17: =VLOOKUP($A17,Artikelstamm!$C$3:$EW$2746,2,FALSE) -> Dinkel, bioland | N17: 1 | Q17: -1
A18: 060307 | B18: =VLOOKUP(C18,ProduktionStammdaten!$B$2:$C$6,2,FALSE) -> 2500 | C18: KleinFmtWaage | D18: =VLOOKUP(E18,ProduktionStammdaten!$B$13:$C$28,2,FALSE) ->  | F18: =VLOOKUP(G18,ProduktionStammdaten!$B$32:$C$34,2,FALSE) ->  | H18: =VLOOKUP(I18,ProduktionStammdaten!$B$38:$C$41,2,FALSE) ->  | J18: =VLOOKUP($A18,Artikelstamm!$C$3:$EW$2746,107,FALSE) -> Grünkernschrot, deme | K18: =VLOOKUP($A18,Artikelstamm!$C$3:$EW$2746,13,FALSE) -> 4*500G | L18: =VLOOKUP($A18,Artikelstamm!$C$3:$EW$2746,94,FALSE) -> 64 | M18: =VLOOKUP($A18,Artikelstamm!$C$3:$EW$2746,2,FALSE) -> Grünkernschrot, demeter | Q18: -1
A19: 060308 | B19: =VLOOKUP(C19,ProduktionStammdaten!$B$2:$C$6,2,FALSE) -> 2500 | C19: KleinFmtWaage | D19: =VLOOKUP(E19,ProduktionStammdaten!$B$13:$C$28,2,FALSE) -> 1400 | E19: FaWeMaKleinFmtSaaten | F19: =VLOOKUP(G19,ProduktionStammdaten!$B$32:$C$34,2,FALSE) ->  | H19: =VLOOKUP(I19,ProduktionStammdaten!$B$38:$C$41,2,FALSE) ->  | J19: =VLOOKUP($A19,Artikelstamm!$C$3:$EW$2746,107,FALSE) -> Grünkern, demeter | K19: =VLOOKUP($A19,Artikelstamm!$C$3:$EW$2746,13,FALSE) -> 4*500G | L19: =VLOOKUP($A19,Artikelstamm!$C$3:$EW$2746,94,FALSE) -> 64 | M19: =VLOOKUP($A19,Artikelstamm!$C$3:$EW$2746,2,FALSE) -> Grünkern, demeter | Q19: -1
A20: 060338 | B20: =VLOOKUP(C20,ProduktionStammdaten!$B$2:$C$6,2,FALSE) -> 2500 | C20: KleinFmtWaage | D20: =VLOOKUP(E20,ProduktionStammdaten!$B$13:$C$28,2,FALSE) ->  | F20: =VLOOKUP(G20,ProduktionStammdaten!$B$32:$C$34,2,FALSE) ->  | H20: =VLOOKUP(I20,ProduktionStammdaten!$B$38:$C$41,2,FALSE) ->  | J20: =VLOOKUP($A20,Artikelstamm!$C$3:$EW$2746,107,FALSE) -> Grünkern, kbA | K20: =VLOOKUP($A20,Artikelstamm!$C$3:$EW$2746,13,FALSE) -> 4*500G | L20: =VLOOKUP($A20,Artikelstamm!$C$3:$EW$2746,94,FALSE) -> 64 | M20: =VLOOKUP($A20,Artikelstamm!$C$3:$EW$2746,2,FALSE) -> Grünkern, kbA
A21: 060355 | B21: =VLOOKUP(C21,ProduktionStammdaten!$B$2:$C$6,2,FALSE) -> 2500 | C21: KleinFmtWaage | D21: =VLOOKUP(E21,ProduktionStammdaten!$B$13:$C$28,2,FALSE) ->  | F21: =VLOOKUP(G21,ProduktionStammdaten!$B$32:$C$34,2,FALSE) ->  | H21: =VLOOKUP(I21,ProduktionStammdaten!$B$38:$C$41,2,FALSE) ->  | J21: =VLOOKUP($A21,Artikelstamm!$C$3:$EW$2746,107,FALSE) -> Nackthafer, kbA | K21: =VLOOKUP($A21,Artikelstamm!$C$3:$EW$2746,13,FALSE) -> 4*500G | L21: =VLOOKUP($A21,Artikelstamm!$C$3:$EW$2746,94,FALSE) -> 64 | M21: =VLOOKUP($A21,Artikelstamm!$C$3:$EW$2746,2,FALSE) -> Nackthafer, kbA | Q21: -1
A22: 060356 | B22: =VLOOKUP(C22,ProduktionStammdaten!$B$2:$C$6,2,FALSE) -> 2500 | C22: GroßFmtWaage | D22: =VLOOKUP(E22,ProduktionStammdaten!$B$13:$C$28,2,FALSE) ->  | F22: =VLOOKUP(G22,ProduktionStammdaten!$B$32:$C$34,2,FALSE) ->  | H22: =VLOOKUP(I22,ProduktionStammdaten!$B$38:$C$41,2,FALSE) ->  | J22: =VLOOKUP($A22,Artikelstamm!$C$3:$EW$2746,107,FALSE) -> Nackthafer, kbA | K22: =VLOOKUP($A22,Artikelstamm!$C$3:$EW$2746,13,FALSE) -> 6*1KG | L22: =VLOOKUP($A22,Artikelstamm!$C$3:$EW$2746,94,FALSE) -> 60 | M22: =VLOOKUP($A22,Artikelstamm!$C$3:$EW$2746,2,FALSE) -> Nackthafer, kbA | Q22: -1
A23: 060406 | B23: =VLOOKUP(C23,ProduktionStammdaten!$B$2:$C$6,2,FALSE) -> 2500 | C23: GroßFmtWaage | D23: =VLOOKUP(E23,ProduktionStammdaten!$B$13:$C$28,2,FALSE) ->  | F23: =VLOOKUP(G23,ProduktionStammdaten!$B$32:$C$34,2,FALSE) ->  | H23: =VLOOKUP(I23,ProduktionStammdaten!$B$38:$C$41,2,FALSE) ->  | J23: =VLOOKUP($A23,Artikelstamm!$C$3:$EW$2746,107,FALSE) -> Hafer demeter | K23: =VLOOKUP($A23,Artikelstamm!$C$3:$EW$2746,13,FALSE) -> 6*1KG | L23: =VLOOKUP($A23,Artikelstamm!$C$3:$EW$2746,94,FALSE) -> 60 | M23: =VLOOKUP($A23,Artikelstamm!$C$3:$EW$2746,2,FALSE) -> Hafer, demeter | Q23: -1
A24: 060408 | B24: =VLOOKUP(C24,ProduktionStammdaten!$B$2:$C$6,2,FALSE) ->  | D24: =VLOOKUP(E24,ProduktionStammdaten!$B$13:$C$28,2,FALSE) ->  | F24: =VLOOKUP(G24,ProduktionStammdaten!$B$32:$C$34,2,FALSE) ->  | H24: =VLOOKUP(I24,ProduktionStammdaten!$B$38:$C$41,2,FALSE) -> 90 | I24: 2 Kippungen | J24: =VLOOKUP($A24,Artikelstamm!$C$3:$EW$2746,107,FALSE) -> Hafer, gesch. unverp | K24: =VLOOKUP($A24,Artikelstamm!$C$3:$EW$2746,13,FALSE) -> 4*5KG | L24: =VLOOKUP($A24,Artikelstamm!$C$3:$EW$2746,94,FALSE) -> 16 | M24: =VLOOKUP($A24,Artikelstamm!$C$3:$EW$2746,2,FALSE) -> Hafer, geschält, demeter - NF Unverpackt + Vorrat | Q24: -1 | R24: 1
A25: 060453 | B25: =VLOOKUP(C25,ProduktionStammdaten!$B$2:$C$6,2,FALSE) ->  | D25: =VLOOKUP(E25,ProduktionStammdaten!$B$13:$C$28,2,FALSE) ->  | F25: =VLOOKUP(G25,ProduktionStammdaten!$B$32:$C$34,2,FALSE) ->  | H25: =VLOOKUP(I25,ProduktionStammdaten!$B$38:$C$41,2,FALSE) -> 120 | I25: 1 Kippung | J25: =VLOOKUP($A25,Artikelstamm!$C$3:$EW$2746,107,FALSE) -> Nackthafer, kbA | K25: =VLOOKUP($A25,Artikelstamm!$C$3:$EW$2746,13,FALSE) -> 4*2,5KG | L25: =VLOOKUP($A25,Artikelstamm!$C$3:$EW$2746,94,FALSE) -> 36 | M25: =VLOOKUP($A25,Artikelstamm!$C$3:$EW$2746,2,FALSE) -> Nackthafer, kbA | N25: 1
A26: 060454 | B26: =VLOOKUP(C26,ProduktionStammdaten!$B$2:$C$6,2,FALSE) ->  | D26: =VLOOKUP(E26,ProduktionStammdaten!$B$13:$C$28,2,FALSE) ->  | F26: =VLOOKUP(G26,ProduktionStammdaten!$B$32:$C$34,2,FALSE) ->  | H26: =VLOOKUP(I26,ProduktionStammdaten!$B$38:$C$41,2,FALSE) -> 120 | I26: 1 Kippung | J26: =VLOOKUP($A26,Artikelstamm!$C$3:$EW$2746,107,FALSE) -> Nackthafer,bioland | K26: =VLOOKUP($A26,Artikelstamm!$C$3:$EW$2746,13,FALSE) -> 4*2,5KG | L26: =VLOOKUP($A26,Artikelstamm!$C$3:$EW$2746,94,FALSE) -> 36 | M26: =VLOOKUP($A26,Artikelstamm!$C$3:$EW$2746,2,FALSE) -> Nackthafer, bioland | Q26: -1
A27: 060455 | B27: =VLOOKUP(C27,ProduktionStammdaten!$B$2:$C$6,2,FALSE) -> 2500 | C27: KleinFmtWaage | D27: =VLOOKUP(E27,ProduktionStammdaten!$B$13:$C$28,2,FALSE) ->  | F27: =VLOOKUP(G27,ProduktionStammdaten!$B$32:$C$34,2,FALSE) ->  | H27: =VLOOKUP(I27,ProduktionStammdaten!$B$38:$C$41,2,FALSE) ->  | J27: =VLOOKUP($A27,Artikelstamm!$C$3:$EW$2746,107,FALSE) -> Nackthafer, demeter | K27: =VLOOKUP($A27,Artikelstamm!$C$3:$EW$2746,13,FALSE) -> 4*500G | L27: =VLOOKUP($A27,Artikelstamm!$C$3:$EW$2746,94,FALSE) -> 64 | M27: =VLOOKUP($A27,Artikelstamm!$C$3:$EW$2746,2,FALSE) -> Nackthafer, demeter | Q27: -1
A28: 060456 | B28: =VLOOKUP(C28,ProduktionStammdaten!$B$2:$C$6,2,FALSE) -> 2500 | C28: GroßFmtWaage | D28: =VLOOKUP(E28,ProduktionStammdaten!$B$13:$C$28,2,FALSE) ->  | F28: =VLOOKUP(G28,ProduktionStammdaten!$B$32:$C$34,2,FALSE) ->  | H28: =VLOOKUP(I28,ProduktionStammdaten!$B$38:$C$41,2,FALSE) ->  | J28: =VLOOKUP($A28,Artikelstamm!$C$3:$EW$2746,107,FALSE) -> Nackthafer, demeter | K28: =VLOOKUP($A28,Artikelstamm!$C$3:$EW$2746,13,FALSE) -> 6*1KG | L28: =VLOOKUP($A28,Artikelstamm!$C$3:$EW$2746,94,FALSE) -> 60 | M28: =VLOOKUP($A28,Artikelstamm!$C$3:$EW$2746,2,FALSE) -> Nackthafer, demeter | Q28: -1
A29: 060508 | B29: =VLOOKUP(C29,ProduktionStammdaten!$B$2:$C$6,2,FALSE) -> 2500 | C29: KleinFmtWaage | D29: =VLOOKUP(E29,ProduktionStammdaten!$B$13:$C$28,2,FALSE) -> 1400 | E29: FaWeMaKleinFmtSaaten | F29: =VLOOKUP(G29,ProduktionStammdaten!$B$32:$C$34,2,FALSE) ->  | H29: =VLOOKUP(I29,ProduktionStammdaten!$B$38:$C$41,2,FALSE) ->  | J29: =VLOOKUP($A29,Artikelstamm!$C$3:$EW$2746,107,FALSE) -> Gerstengraupen, dem. | K29: =VLOOKUP($A29,Artikelstamm!$C$3:$EW$2746,13,FALSE) -> 4*500G | L29: =VLOOKUP($A29,Artikelstamm!$C$3:$EW$2746,94,FALSE) -> 64 | M29: =VLOOKUP($A29,Artikelstamm!$C$3:$EW$2746,2,FALSE) -> Gerstengraupen, demeter | Q29: -1
A30: 060555 | B30: =VLOOKUP(C30,ProduktionStammdaten!$B$2:$C$6,2,FALSE) -> 2500 | C30: KleinFmtWaage | D30: =VLOOKUP(E30,ProduktionStammdaten!$B$13:$C$28,2,FALSE) ->  | F30: =VLOOKUP(G30,ProduktionStammdaten!$B$32:$C$34,2,FALSE) ->  | H30: =VLOOKUP(I30,ProduktionStammdaten!$B$38:$C$41,2,FALSE) ->  | J30: =VLOOKUP($A30,Artikelstamm!$C$3:$EW$2746,107,FALSE) -> Nacktgerste, demeter | K30: =VLOOKUP($A30,Artikelstamm!$C$3:$EW$2746,13,FALSE) -> 4*500G | L30: =VLOOKUP($A30,Artikelstamm!$C$3:$EW$2746,94,FALSE) -> 64 | M30: =VLOOKUP($A30,Artikelstamm!$C$3:$EW$2746,2,FALSE) -> Nacktgerste, demeter | Q30: -1
A31: 060556 | B31: =VLOOKUP(C31,ProduktionStammdaten!$B$2:$C$6,2,FALSE) -> 2500 | C31: GroßFmtWaage | D31: =VLOOKUP(E31,ProduktionStammdaten!$B$13:$C$28,2,FALSE) ->  | F31: =VLOOKUP(G31,ProduktionStammdaten!$B$32:$C$34,2,FALSE) ->  | H31: =VLOOKUP(I31,ProduktionStammdaten!$B$38:$C$41,2,FALSE) ->  | J31: =VLOOKUP($A31,Artikelstamm!$C$3:$EW$2746,107,FALSE) -> Nacktgerste, demeter | K31: =VLOOKUP($A31,Artikelstamm!$C$3:$EW$2746,13,FALSE) -> 6*1KG | L31: =VLOOKUP($A31,Artikelstamm!$C$3:$EW$2746,94,FALSE) -> 60 | M31: =VLOOKUP($A31,Artikelstamm!$C$3:$EW$2746,2,FALSE) -> Nacktgerste, demeter | Q31: -1
A32: 060575 | B32: =VLOOKUP(C32,ProduktionStammdaten!$B$2:$C$6,2,FALSE) -> 2500 | C32: KleinFmtWaage | D32: =VLOOKUP(E32,ProduktionStammdaten!$B$13:$C$28,2,FALSE) ->  | F32: =VLOOKUP(G32,ProduktionStammdaten!$B$32:$C$34,2,FALSE) ->  | H32: =VLOOKUP(I32,ProduktionStammdaten!$B$38:$C$41,2,FALSE) ->  | J32: =VLOOKUP($A32,Artikelstamm!$C$3:$EW$2746,107,FALSE) -> Nacktgerste, kbA | K32: =VLOOKUP($A32,Artikelstamm!$C$3:$EW$2746,13,FALSE) -> 4*500G | L32: =VLOOKUP($A32,Artikelstamm!$C$3:$EW$2746,94,FALSE) -> 64 | M32: =VLOOKUP($A32,Artikelstamm!$C$3:$EW$2746,2,FALSE) -> Nacktgerste, kbA
A33: 060576 | B33: =VLOOKUP(C33,ProduktionStammdaten!$B$2:$C$6,2,FALSE) -> 2500 | C33: GroßFmtWaage | D33: =VLOOKUP(E33,ProduktionStammdaten!$B$13:$C$28,2,FALSE) ->  | F33: =VLOOKUP(G33,ProduktionStammdaten!$B$32:$C$34,2,FALSE) ->  | H33: =VLOOKUP(I33,ProduktionStammdaten!$B$38:$C$41,2,FALSE) ->  | J33: =VLOOKUP($A33,Artikelstamm!$C$3:$EW$2746,107,FALSE) -> Nacktgerste, kbA | K33: =VLOOKUP($A33,Artikelstamm!$C$3:$EW$2746,13,FALSE) -> 6*1KG | L33: =VLOOKUP($A33,Artikelstamm!$C$3:$EW$2746,94,FALSE) -> 60 | M33: =VLOOKUP($A33,Artikelstamm!$C$3:$EW$2746,2,FALSE) -> Nacktgerste, kbA
A34: 060705 | B34: =VLOOKUP(C34,ProduktionStammdaten!$B$2:$C$6,2,FALSE) -> 2500 | C34: KleinFmtWaage | D34: =VLOOKUP(E34,ProduktionStammdaten!$B$13:$C$28,2,FALSE) ->  | F34: =VLOOKUP(G34,ProduktionStammdaten!$B$32:$C$34,2,FALSE) ->  | H34: =VLOOKUP(I34,ProduktionStammdaten!$B$38:$C$41,2,FALSE) ->  | J34: =VLOOKUP($A34,Artikelstamm!$C$3:$EW$2746,107,FALSE) -> 6-Korn-Mischung, dem | K34: =VLOOKUP($A34,Artikelstamm!$C$3:$EW$2746,13,FALSE) -> 4*500G | L34: =VLOOKUP($A34,Artikelstamm!$C$3:$EW$2746,94,FALSE) -> 64 | M34: =VLOOKUP($A34,Artikelstamm!$C$3:$EW$2746,2,FALSE) -> 6-Korn-Mischung, demeter | O34: 1 | Q34: -1
A35: 060706 | B35: =VLOOKUP(C35,ProduktionStammdaten!$B$2:$C$6,2,FALSE) -> 2500 | C35: GroßFmtWaage | D35: =VLOOKUP(E35,ProduktionStammdaten!$B$13:$C$28,2,FALSE) ->  | F35: =VLOOKUP(G35,ProduktionStammdaten!$B$32:$C$34,2,FALSE) ->  | H35: =VLOOKUP(I35,ProduktionStammdaten!$B$38:$C$41,2,FALSE) ->  | J35: =VLOOKUP($A35,Artikelstamm!$C$3:$EW$2746,107,FALSE) -> 6-Korn-Mischung, dem | K35: =VLOOKUP($A35,Artikelstamm!$C$3:$EW$2746,13,FALSE) -> 6*1KG | L35: =VLOOKUP($A35,Artikelstamm!$C$3:$EW$2746,94,FALSE) -> 60 | M35: =VLOOKUP($A35,Artikelstamm!$C$3:$EW$2746,2,FALSE) -> 6-Korn-Mischung, demeter | O35: 1 | Q35: -1
A36: 060707 | B36: =VLOOKUP(C36,ProduktionStammdaten!$B$2:$C$6,2,FALSE) ->  | D36: =VLOOKUP(E36,ProduktionStammdaten!$B$13:$C$28,2,FALSE) ->  | F36: =VLOOKUP(G36,ProduktionStammdaten!$B$32:$C$34,2,FALSE) ->  | H36: =VLOOKUP(I36,ProduktionStammdaten!$B$38:$C$41,2,FALSE) -> 90 | I36: 2 Kippungen | J36: =VLOOKUP($A36,Artikelstamm!$C$3:$EW$2746,107,FALSE) ->  | K36: =VLOOKUP($A36,Artikelstamm!$C$3:$EW$2746,13,FALSE) -> 4*5KG | L36: =VLOOKUP($A36,Artikelstamm!$C$3:$EW$2746,94,FALSE) -> 16 | M36: =VLOOKUP($A36,Artikelstamm!$C$3:$EW$2746,2,FALSE) -> 6-Korn-Mischung, demeter - NF Unverpackt + Vorrat | O36: 1 | R36: 1
A37: 060806 | B37: =VLOOKUP(C37,ProduktionStammdaten!$B$2:$C$6,2,FALSE) -> 2500 | C37: KleinFmtWaage | D37: =VLOOKUP(E37,ProduktionStammdaten!$B$13:$C$28,2,FALSE) ->  | F37: =VLOOKUP(G37,ProduktionStammdaten!$B$32:$C$34,2,FALSE) ->  | H37: =VLOOKUP(I37,ProduktionStammdaten!$B$38:$C$41,2,FALSE) ->  | J37: =VLOOKUP($A37,Artikelstamm!$C$3:$EW$2746,107,FALSE) -> Bulgur, demeter | K37: =VLOOKUP($A37,Artikelstamm!$C$3:$EW$2746,13,FALSE) -> 4*500G | L37: =VLOOKUP($A37,Artikelstamm!$C$3:$EW$2746,94,FALSE) -> 64 | M37: =VLOOKUP($A37,Artikelstamm!$C$3:$EW$2746,2,FALSE) -> Bulgur, demeter | Q37: -1
A38: 060808 | B38: =VLOOKUP(C38,ProduktionStammdaten!$B$2:$C$6,2,FALSE) -> 2500 | C38: KleinFmtWaage | D38: =VLOOKUP(E38,ProduktionStammdaten!$B$13:$C$28,2,FALSE) -> 1500 | E38: FaWeMaKleinFmtFlocken | F38: =VLOOKUP(G38,ProduktionStammdaten!$B$32:$C$34,2,FALSE) ->  | H38: =VLOOKUP(I38,ProduktionStammdaten!$B$38:$C$41,2,FALSE) ->  | J38: =VLOOKUP($A38,Artikelstamm!$C$3:$EW$2746,107,FALSE) -> Couscous, demeter | K38: =VLOOKUP($A38,Artikelstamm!$C$3:$EW$2746,13,FALSE) -> 4*500G | L38: =VLOOKUP($A38,Artikelstamm!$C$3:$EW$2746,94,FALSE) -> 64 | M38: =VLOOKUP($A38,Artikelstamm!$C$3:$EW$2746,2,FALSE) -> Couscous, demeter | Q38: -1
A39: 060810 | B39: =VLOOKUP(C39,ProduktionStammdaten!$B$2:$C$6,2,FALSE) -> 2500 | C39: KleinFmtWaage | D39: =VLOOKUP(E39,ProduktionStammdaten!$B$13:$C$28,2,FALSE) -> 1400 | E39: FaWeMaKleinFmtSaaten | F39: =VLOOKUP(G39,ProduktionStammdaten!$B$32:$C$34,2,FALSE) ->  | H39: =VLOOKUP(I39,ProduktionStammdaten!$B$38:$C$41,2,FALSE) ->  | J39: =VLOOKUP($A39,Artikelstamm!$C$3:$EW$2746,107,FALSE) -> Dinkel-Bulgur, dem. | K39: =VLOOKUP($A39,Artikelstamm!$C$3:$EW$2746,13,FALSE) -> 4*500G | L39: =VLOOKUP($A39,Artikelstamm!$C$3:$EW$2746,94,FALSE) -> 64 | M39: =VLOOKUP($A39,Artikelstamm!$C$3:$EW$2746,2,FALSE) -> Dinkel-Bulgur, demeter | Q39: -1
A40: 060812 | B40: =VLOOKUP(C40,ProduktionStammdaten!$B$2:$C$6,2,FALSE) -> 2500 | C40: KleinFmtWaage | D40: =VLOOKUP(E40,ProduktionStammdaten!$B$13:$C$28,2,FALSE) ->  | F40: =VLOOKUP(G40,ProduktionStammdaten!$B$32:$C$34,2,FALSE) ->  | H40: =VLOOKUP(I40,ProduktionStammdaten!$B$38:$C$41,2,FALSE) ->  | J40: =VLOOKUP($A40,Artikelstamm!$C$3:$EW$2746,107,FALSE) -> Kamut Khor. Couscous | K40: =VLOOKUP($A40,Artikelstamm!$C$3:$EW$2746,13,FALSE) -> 4*500G | L40: =VLOOKUP($A40,Artikelstamm!$C$3:$EW$2746,94,FALSE) -> 64 | M40: =VLOOKUP($A40,Artikelstamm!$C$3:$EW$2746,2,FALSE) -> Kamut Khorasan Couscous, kbA | Q40: -1
A41: 060814 | B41: =VLOOKUP(C41,ProduktionStammdaten!$B$2:$C$6,2,FALSE) -> 2500 | C41: KleinFmtWaage | D41: =VLOOKUP(E41,ProduktionStammdaten!$B$13:$C$28,2,FALSE) -> 1500 | E41: FaWeMaKleinFmtFlocken | F41: =VLOOKUP(G41,ProduktionStammdaten!$B$32:$C$34,2,FALSE) ->  | H41: =VLOOKUP(I41,ProduktionStammdaten!$B$38:$C$41,2,FALSE) ->  | J41: =VLOOKUP($A41,Artikelstamm!$C$3:$EW$2746,107,FALSE) -> Dinkel VK Couscous | K41: =VLOOKUP($A41,Artikelstamm!$C$3:$EW$2746,13,FALSE) -> 4*500G | L41: =VLOOKUP($A41,Artikelstamm!$C$3:$EW$2746,94,FALSE) -> 64 | M41: =VLOOKUP($A41,Artikelstamm!$C$3:$EW$2746,2,FALSE) -> Dinkel-Vollkorn Couscous, kbA | Q41: -1
A42: 060816 | B42: =VLOOKUP(C42,ProduktionStammdaten!$B$2:$C$6,2,FALSE) ->  | D42: =VLOOKUP(E42,ProduktionStammdaten!$B$13:$C$28,2,FALSE) -> 1400 | E42: FaWeMaKleinFmtSaaten | F42: =VLOOKUP(G42,ProduktionStammdaten!$B$32:$C$34,2,FALSE) ->  | H42: =VLOOKUP(I42,ProduktionStammdaten!$B$38:$C$41,2,FALSE) ->  | J42: =VLOOKUP($A42,Artikelstamm!$C$3:$EW$2746,107,FALSE) -> Mais CousCous gf | K42: =VLOOKUP($A42,Artikelstamm!$C$3:$EW$2746,13,FALSE) -> 4*500G | L42: =VLOOKUP($A42,Artikelstamm!$C$3:$EW$2746,94,FALSE) -> 64 | M42: =VLOOKUP($A42,Artikelstamm!$C$3:$EW$2746,2,FALSE) -> Glutenfreier Mais-Couscous, kbA | Q42: 1 | R42: 1
A43: 061006 | B43: =VLOOKUP(C43,ProduktionStammdaten!$B$2:$C$6,2,FALSE) -> 2000 | C43: GroßFmtDosierer | D43: =VLOOKUP(E43,ProduktionStammdaten!$B$13:$C$28,2,FALSE) ->  | F43: =VLOOKUP(G43,ProduktionStammdaten!$B$32:$C$34,2,FALSE) ->  | H43: =VLOOKUP(I43,ProduktionStammdaten!$B$38:$C$41,2,FALSE) ->  | J43: =VLOOKUP($A43,Artikelstamm!$C$3:$EW$2746,107,FALSE) -> Weizenmehl T 405 dem | K43: =VLOOKUP($A43,Artikelstamm!$C$3:$EW$2746,13,FALSE) -> 6*1KG | L43: =VLOOKUP($A43,Artikelstamm!$C$3:$EW$2746,94,FALSE) -> 60 | M43: =VLOOKUP($A43,Artikelstamm!$C$3:$EW$2746,2,FALSE) -> Weizenmehl Type 405, demeter | N43: 1 | Q43: -1
A44: 061012 | B44: =VLOOKUP(C44,ProduktionStammdaten!$B$2:$C$6,2,FALSE) ->  | D44: =VLOOKUP(E44,ProduktionStammdaten!$B$13:$C$28,2,FALSE) ->  | F44: =VLOOKUP(G44,ProduktionStammdaten!$B$32:$C$34,2,FALSE) ->  | H44: =VLOOKUP(I44,ProduktionStammdaten!$B$38:$C$41,2,FALSE) -> 90 | I44: 2 Kippungen | J44: =VLOOKUP($A44,Artikelstamm!$C$3:$EW$2746,107,FALSE) -> Weizenmehl T 550 dem | K44: =VLOOKUP($A44,Artikelstamm!$C$3:$EW$2746,13,FALSE) -> 3*5KG | L44: =VLOOKUP($A44,Artikelstamm!$C$3:$EW$2746,94,FALSE) -> 21 | M44: =VLOOKUP($A44,Artikelstamm!$C$3:$EW$2746,2,FALSE) -> Weizenmehl Type 550, demeter | N44: 1 | Q44: -1
A45: 061014 | B45: =VLOOKUP(C45,ProduktionStammdaten!$B$2:$C$6,2,FALSE) ->  | D45: =VLOOKUP(E45,ProduktionStammdaten!$B$13:$C$28,2,FALSE) ->  | F45: =VLOOKUP(G45,ProduktionStammdaten!$B$32:$C$34,2,FALSE) ->  | H45: =VLOOKUP(I45,ProduktionStammdaten!$B$38:$C$41,2,FALSE) -> 120 | I45: 1 Kippung | J45: =VLOOKUP($A45,Artikelstamm!$C$3:$EW$2746,107,FALSE) -> Weizenmehl T 550 dem | K45: =VLOOKUP($A45,Artikelstamm!$C$3:$EW$2746,13,FALSE) -> 4*2,5KG | L45: =VLOOKUP($A45,Artikelstamm!$C$3:$EW$2746,94,FALSE) -> 36 | M45: =VLOOKUP($A45,Artikelstamm!$C$3:$EW$2746,2,FALSE) -> Weizenmehl Type 550, demeter | N45: 1 | Q45: -1
A46: 061015 | B46: 1500 | C46: KleinFmtWaage | D46: =VLOOKUP(E46,ProduktionStammdaten!$B$13:$C$28,2,FALSE) ->  | F46: =VLOOKUP(G46,ProduktionStammdaten!$B$32:$C$34,2,FALSE) ->  | H46: =VLOOKUP(I46,ProduktionStammdaten!$B$38:$C$41,2,FALSE) ->  | J46: =VLOOKUP($A46,Artikelstamm!$C$3:$EW$2746,107,FALSE) -> WM 550, demeter | K46: =VLOOKUP($A46,Artikelstamm!$C$3:$EW$2746,13,FALSE) -> 36*500G | L46: =VLOOKUP($A46,Artikelstamm!$C$3:$EW$2746,94,FALSE) -> 64 | M46: =VLOOKUP($A46,Artikelstamm!$C$3:$EW$2746,2,FALSE) -> Weizenmehl 550, demeter
A47: 061016 | B47: =VLOOKUP(C47,ProduktionStammdaten!$B$2:$C$6,2,FALSE) -> 2000 | C47: GroßFmtDosierer | D47: =VLOOKUP(E47,ProduktionStammdaten!$B$13:$C$28,2,FALSE) ->  | F47: =VLOOKUP(G47,ProduktionStammdaten!$B$32:$C$34,2,FALSE) ->  | H47: =VLOOKUP(I47,ProduktionStammdaten!$B$38:$C$41,2,FALSE) ->  | J47: =VLOOKUP($A47,Artikelstamm!$C$3:$EW$2746,107,FALSE) -> Weizenmehl T 550 dem | K47: =VLOOKUP($A47,Artikelstamm!$C$3:$EW$2746,13,FALSE) -> 6*1KG | L47: =VLOOKUP($A47,Artikelstamm!$C$3:$EW$2746,94,FALSE) -> 60 | M47: =VLOOKUP($A47,Artikelstamm!$C$3:$EW$2746,2,FALSE) -> Weizenmehl Type 550, demeter | N47: 1 | Q47: -1
A48: 061022 | B48: =VLOOKUP(C48,ProduktionStammdaten!$B$2:$C$6,2,FALSE) ->  | D48: =VLOOKUP(E48,ProduktionStammdaten!$B$13:$C$28,2,FALSE) ->  | F48: =VLOOKUP(G48,ProduktionStammdaten!$B$32:$C$34,2,FALSE) ->  | H48: =VLOOKUP(I48,ProduktionStammdaten!$B$38:$C$41,2,FALSE) -> 90 | I48: 2 Kippungen | J48: =VLOOKUP($A48,Artikelstamm!$C$3:$EW$2746,107,FALSE) -> Weizenmehl T 1050 de | K48: =VLOOKUP($A48,Artikelstamm!$C$3:$EW$2746,13,FALSE) -> 3*5KG | L48: =VLOOKUP($A48,Artikelstamm!$C$3:$EW$2746,94,FALSE) -> 21 | M48: =VLOOKUP($A48,Artikelstamm!$C$3:$EW$2746,2,FALSE) -> Weizenmehl Type 1050, demeter | N48: 1 | Q48: -1
A49: 061024 | B49: =VLOOKUP(C49,ProduktionStammdaten!$B$2:$C$6,2,FALSE) ->  | D49: =VLOOKUP(E49,ProduktionStammdaten!$B$13:$C$28,2,FALSE) ->  | F49: =VLOOKUP(G49,ProduktionStammdaten!$B$32:$C$34,2,FALSE) ->  | H49: =VLOOKUP(I49,ProduktionStammdaten!$B$38:$C$41,2,FALSE) -> 120 | I49: 1 Kippung | J49: =VLOOKUP($A49,Artikelstamm!$C$3:$EW$2746,107,FALSE) -> Weizenmehl T 1050 de | K49: =VLOOKUP($A49,Artikelstamm!$C$3:$EW$2746,13,FALSE) -> 4*2,5KG | L49: =VLOOKUP($A49,Artikelstamm!$C$3:$EW$2746,94,FALSE) -> 36 | M49: =VLOOKUP($A49,Artikelstamm!$C$3:$EW$2746,2,FALSE) -> Weizenmehl Type 1050, demeter | N49: 1 | Q49: -1
A50: 061026 | B50: =VLOOKUP(C50,ProduktionStammdaten!$B$2:$C$6,2,FALSE) -> 2000 | C50: GroßFmtDosierer | D50: =VLOOKUP(E50,ProduktionStammdaten!$B$13:$C$28,2,FALSE) ->  | F50: =VLOOKUP(G50,ProduktionStammdaten!$B$32:$C$34,2,FALSE) ->  | H50: =VLOOKUP(I50,ProduktionStammdaten!$B$38:$C$41,2,FALSE) ->  | J50: =VLOOKUP($A50,Artikelstamm!$C$3:$EW$2746,107,FALSE) -> Weizenmehl T 1050 de | K50: =VLOOKUP($A50,Artikelstamm!$C$3:$EW$2746,13,FALSE) -> 6*1KG | L50: =VLOOKUP($A50,Artikelstamm!$C$3:$EW$2746,94,FALSE) -> 60 | M50: =VLOOKUP($A50,Artikelstamm!$C$3:$EW$2746,2,FALSE) -> Weizenmehl Type 1050, demeter | N50: 1 | Q50: -1
A51: 061036 | B51: =VLOOKUP(C51,ProduktionStammdaten!$B$2:$C$6,2,FALSE) -> 2000 | C51: GroßFmtDosierer | D51: =VLOOKUP(E51,ProduktionStammdaten!$B$13:$C$28,2,FALSE) ->  | F51: =VLOOKUP(G51,ProduktionStammdaten!$B$32:$C$34,2,FALSE) ->  | H51: =VLOOKUP(I51,ProduktionStammdaten!$B$38:$C$41,2,FALSE) ->  | J51: =VLOOKUP($A51,Artikelstamm!$C$3:$EW$2746,107,FALSE) -> Weizen-VK-Mehl, dem. | K51: =VLOOKUP($A51,Artikelstamm!$C$3:$EW$2746,13,FALSE) -> 6*1KG | L51: =VLOOKUP($A51,Artikelstamm!$C$3:$EW$2746,94,FALSE) -> 60 | M51: =VLOOKUP($A51,Artikelstamm!$C$3:$EW$2746,2,FALSE) -> Weizen-Vollkornmehl, demeter | N51: 1 | Q51: -1
A52: 061048 | B52: =VLOOKUP(C52,ProduktionStammdaten!$B$2:$C$6,2,FALSE) -> 2000 | C52: KleinFmtDosierer | D52: =VLOOKUP(E52,ProduktionStammdaten!$B$13:$C$28,2,FALSE) ->  | F52: =VLOOKUP(G52,ProduktionStammdaten!$B$32:$C$34,2,FALSE) ->  | H52: =VLOOKUP(I52,ProduktionStammdaten!$B$38:$C$41,2,FALSE) ->  | J52: =VLOOKUP($A52,Artikelstamm!$C$3:$EW$2746,107,FALSE) -> Weizengrieß, demeter | K52: =VLOOKUP($A52,Artikelstamm!$C$3:$EW$2746,13,FALSE) -> 4*500G | L52: =VLOOKUP($A52,Artikelstamm!$C$3:$EW$2746,94,FALSE) -> 64 | M52: =VLOOKUP($A52,Artikelstamm!$C$3:$EW$2746,2,FALSE) -> Weizengrieß, demeter | Q52: -1
A53: 061058 | B53: =VLOOKUP(C53,ProduktionStammdaten!$B$2:$C$6,2,FALSE) -> 2000 | C53: GroßFmtDosierer | D53: =VLOOKUP(E53,ProduktionStammdaten!$B$13:$C$28,2,FALSE) ->  | F53: =VLOOKUP(G53,ProduktionStammdaten!$B$32:$C$34,2,FALSE) ->  | H53: =VLOOKUP(I53,ProduktionStammdaten!$B$38:$C$41,2,FALSE) ->  | J53: =VLOOKUP($A53,Artikelstamm!$C$3:$EW$2746,107,FALSE) -> Weizenkleie, demeter | K53: =VLOOKUP($A53,Artikelstamm!$C$3:$EW$2746,13,FALSE) -> 6*500G | L53: =VLOOKUP($A53,Artikelstamm!$C$3:$EW$2746,94,FALSE) -> 60 | M53: =VLOOKUP($A53,Artikelstamm!$C$3:$EW$2746,2,FALSE) -> Weizenkleie, demeter | N53: 1 | Q53: -1
A54: 061068 | B54: =VLOOKUP(C54,ProduktionStammdaten!$B$2:$C$6,2,FALSE) -> 2000 | C54: KleinFmtDosierer | D54: =VLOOKUP(E54,ProduktionStammdaten!$B$13:$C$28,2,FALSE) ->  | F54: =VLOOKUP(G54,ProduktionStammdaten!$B$32:$C$34,2,FALSE) ->  | H54: =VLOOKUP(I54,ProduktionStammdaten!$B$38:$C$41,2,FALSE) ->  | J54: =VLOOKUP($A54,Artikelstamm!$C$3:$EW$2746,107,FALSE) -> Hartweizengrieß, dem | K54: =VLOOKUP($A54,Artikelstamm!$C$3:$EW$2746,13,FALSE) -> 4*500G | L54: =VLOOKUP($A54,Artikelstamm!$C$3:$EW$2746,94,FALSE) -> 64 | M54: =VLOOKUP($A54,Artikelstamm!$C$3:$EW$2746,2,FALSE) -> Hartweizengrieß, demeter | Q54: -1
A55: 061076 | B55: =VLOOKUP(C55,ProduktionStammdaten!$B$2:$C$6,2,FALSE) -> 2000 | C55: GroßFmtDosierer | D55: =VLOOKUP(E55,ProduktionStammdaten!$B$13:$C$28,2,FALSE) ->  | F55: =VLOOKUP(G55,ProduktionStammdaten!$B$32:$C$34,2,FALSE) ->  | H55: =VLOOKUP(I55,ProduktionStammdaten!$B$38:$C$41,2,FALSE) ->  | J55: =VLOOKUP($A55,Artikelstamm!$C$3:$EW$2746,107,FALSE) -> Weizen-Spätzlemehl | K55: =VLOOKUP($A55,Artikelstamm!$C$3:$EW$2746,13,FALSE) -> 6*1KG | L55: =VLOOKUP($A55,Artikelstamm!$C$3:$EW$2746,94,FALSE) -> 60 | M55: =VLOOKUP($A55,Artikelstamm!$C$3:$EW$2746,2,FALSE) -> Weizen-Spätzlemehl, demeter | N55: 1 | Q55: -1
A56: 061082 | B56: =VLOOKUP(C56,ProduktionStammdaten!$B$2:$C$6,2,FALSE) ->  | D56: =VLOOKUP(E56,ProduktionStammdaten!$B$13:$C$28,2,FALSE) ->  | F56: =VLOOKUP(G56,ProduktionStammdaten!$B$32:$C$34,2,FALSE) ->  | H56: =VLOOKUP(I56,ProduktionStammdaten!$B$38:$C$41,2,FALSE) -> 90 | I56: 2 Kippungen | J56: =VLOOKUP($A56,Artikelstamm!$C$3:$EW$2746,107,FALSE) -> Weizenmehl T 550 Tar | K56: =VLOOKUP($A56,Artikelstamm!$C$3:$EW$2746,13,FALSE) -> 1*5KG | L56: =VLOOKUP($A56,Artikelstamm!$C$3:$EW$2746,94,FALSE) -> 120 | M56: =VLOOKUP($A56,Artikelstamm!$C$3:$EW$2746,2,FALSE) -> Weizenmehl Type 550, Tarwebloem, kbA | N56: 1 | Q56: -1
A57: 061086 | B57: =VLOOKUP(C57,ProduktionStammdaten!$B$2:$C$6,2,FALSE) ->  | D57: =VLOOKUP(E57,ProduktionStammdaten!$B$13:$C$28,2,FALSE) ->  | F57: =VLOOKUP(G57,ProduktionStammdaten!$B$32:$C$34,2,FALSE) ->  | H57: =VLOOKUP(I57,ProduktionStammdaten!$B$38:$C$41,2,FALSE) -> 90 | I57: 2 Kippungen | J57: =VLOOKUP($A57,Artikelstamm!$C$3:$EW$2746,107,FALSE) -> Weizenvollkornmehl T | K57: =VLOOKUP($A57,Artikelstamm!$C$3:$EW$2746,13,FALSE) -> 1*5KG | L57: =VLOOKUP($A57,Artikelstamm!$C$3:$EW$2746,94,FALSE) -> 120 | M57: =VLOOKUP($A57,Artikelstamm!$C$3:$EW$2746,2,FALSE) -> Weizvollkornmehl, Tarwemeel volkoren, kbA | N57: 1 | Q57: -1
A58: 061114 | B58: =VLOOKUP(C58,ProduktionStammdaten!$B$2:$C$6,2,FALSE) ->  | D58: =VLOOKUP(E58,ProduktionStammdaten!$B$13:$C$28,2,FALSE) ->  | F58: =VLOOKUP(G58,ProduktionStammdaten!$B$32:$C$34,2,FALSE) ->  | H58: =VLOOKUP(I58,ProduktionStammdaten!$B$38:$C$41,2,FALSE) -> 120 | I58: 1 Kippung | J58: =VLOOKUP($A58,Artikelstamm!$C$3:$EW$2746,107,FALSE) -> RM 1150 dem | K58: =VLOOKUP($A58,Artikelstamm!$C$3:$EW$2746,13,FALSE) -> 4*2,5KG | L58: =VLOOKUP($A58,Artikelstamm!$C$3:$EW$2746,94,FALSE) -> 36 | M58: =VLOOKUP($A58,Artikelstamm!$C$3:$EW$2746,2,FALSE) -> Roggenmehl Type 1150, demeter | N58: 1
A59: 061116 | B59: =VLOOKUP(C59,ProduktionStammdaten!$B$2:$C$6,2,FALSE) -> 2000 | C59: GroßFmtDosierer | D59: =VLOOKUP(E59,ProduktionStammdaten!$B$13:$C$28,2,FALSE) ->  | F59: =VLOOKUP(G59,ProduktionStammdaten!$B$32:$C$34,2,FALSE) ->  | H59: =VLOOKUP(I59,ProduktionStammdaten!$B$38:$C$41,2,FALSE) ->  | J59: =VLOOKUP($A59,Artikelstamm!$C$3:$EW$2746,107,FALSE) -> Roggenmehl 1150, dem | K59: =VLOOKUP($A59,Artikelstamm!$C$3:$EW$2746,13,FALSE) -> 6*1KG | L59: =VLOOKUP($A59,Artikelstamm!$C$3:$EW$2746,94,FALSE) -> 60 | M59: =VLOOKUP($A59,Artikelstamm!$C$3:$EW$2746,2,FALSE) -> Roggenmehl Type 1150, demeter | N59: 1 | Q59: -1
A60: 061124 | B60: =VLOOKUP(C60,ProduktionStammdaten!$B$2:$C$6,2,FALSE) ->  | D60: =VLOOKUP(E60,ProduktionStammdaten!$B$13:$C$28,2,FALSE) ->  | F60: =VLOOKUP(G60,ProduktionStammdaten!$B$32:$C$34,2,FALSE) ->  | H60: =VLOOKUP(I60,ProduktionStammdaten!$B$38:$C$41,2,FALSE) -> 120 | I60: 1 Kippung | J60: =VLOOKUP($A60,Artikelstamm!$C$3:$EW$2746,107,FALSE) -> RM 1150 dem | K60: =VLOOKUP($A60,Artikelstamm!$C$3:$EW$2746,13,FALSE) -> 4*2,5KG | L60: =VLOOKUP($A60,Artikelstamm!$C$3:$EW$2746,94,FALSE) -> 36 | M60: =VLOOKUP($A60,Artikelstamm!$C$3:$EW$2746,2,FALSE) -> Roggen-Vollkornmehl, demeter | N60: 1
A61: 061126 | B61: =VLOOKUP(C61,ProduktionStammdaten!$B$2:$C$6,2,FALSE) -> 2000 | C61: GroßFmtDosierer | D61: =VLOOKUP(E61,ProduktionStammdaten!$B$13:$C$28,2,FALSE) ->  | F61: =VLOOKUP(G61,ProduktionStammdaten!$B$32:$C$34,2,FALSE) ->  | H61: =VLOOKUP(I61,ProduktionStammdaten!$B$38:$C$41,2,FALSE) ->  | J61: =VLOOKUP($A61,Artikelstamm!$C$3:$EW$2746,107,FALSE) -> Roggenvollkornmehl d | K61: =VLOOKUP($A61,Artikelstamm!$C$3:$EW$2746,13,FALSE) -> 6*1KG | L61: =VLOOKUP($A61,Artikelstamm!$C$3:$EW$2746,94,FALSE) -> 60 | M61: =VLOOKUP($A61,Artikelstamm!$C$3:$EW$2746,2,FALSE) -> Roggen-Vollkornmehl, demeter | N61: 1 | Q61: -1
A62: 061214 | B62: =VLOOKUP(C62,ProduktionStammdaten!$B$2:$C$6,2,FALSE) ->  | D62: =VLOOKUP(E62,ProduktionStammdaten!$B$13:$C$28,2,FALSE) ->  | F62: =VLOOKUP(G62,ProduktionStammdaten!$B$32:$C$34,2,FALSE) ->  | H62: =VLOOKUP(I62,ProduktionStammdaten!$B$38:$C$41,2,FALSE) -> 120 | I62: 1 Kippung | J62: =VLOOKUP($A62,Artikelstamm!$C$3:$EW$2746,107,FALSE) -> Dinkelmehl T 1050 de | K62: =VLOOKUP($A62,Artikelstamm!$C$3:$EW$2746,13,FALSE) -> 4*2,5KG | L62: =VLOOKUP($A62,Artikelstamm!$C$3:$EW$2746,94,FALSE) -> 36 | M62: =VLOOKUP($A62,Artikelstamm!$C$3:$EW$2746,2,FALSE) -> Dinkelmehl Type 1050, demeter | N62: 1 | Q62: -1
A63: 061214 | B63: =VLOOKUP(C63,ProduktionStammdaten!$B$2:$C$6,2,FALSE) ->  | D63: =VLOOKUP(E63,ProduktionStammdaten!$B$13:$C$28,2,FALSE) ->  | F63: =VLOOKUP(G63,ProduktionStammdaten!$B$32:$C$34,2,FALSE) ->  | H63: =VLOOKUP(I63,ProduktionStammdaten!$B$38:$C$41,2,FALSE) -> 120 | I63: 1 Kippung | J63: =VLOOKUP($A63,Artikelstamm!$C$3:$EW$2746,107,FALSE) -> Dinkelmehl T 1050 de | K63: =VLOOKUP($A63,Artikelstamm!$C$3:$EW$2746,13,FALSE) -> 4*2,5KG | L63: =VLOOKUP($A63,Artikelstamm!$C$3:$EW$2746,94,FALSE) -> 36 | M63: =VLOOKUP($A63,Artikelstamm!$C$3:$EW$2746,2,FALSE) -> Dinkelmehl Type 1050, demeter | N63: 1
A64: 061216 | B64: =VLOOKUP(C64,ProduktionStammdaten!$B$2:$C$6,2,FALSE) -> 2000 | C64: GroßFmtDosierer | D64: =VLOOKUP(E64,ProduktionStammdaten!$B$13:$C$28,2,FALSE) ->  | F64: =VLOOKUP(G64,ProduktionStammdaten!$B$32:$C$34,2,FALSE) ->  | H64: =VLOOKUP(I64,ProduktionStammdaten!$B$38:$C$41,2,FALSE) ->  | J64: =VLOOKUP($A64,Artikelstamm!$C$3:$EW$2746,107,FALSE) -> Dinkelmehl T 1050 de | K64: =VLOOKUP($A64,Artikelstamm!$C$3:$EW$2746,13,FALSE) -> 6*1KG | L64: =VLOOKUP($A64,Artikelstamm!$C$3:$EW$2746,94,FALSE) -> 60 | M64: =VLOOKUP($A64,Artikelstamm!$C$3:$EW$2746,2,FALSE) -> Dinkelmehl Type 1050, demeter | N64: 1 | Q64: -1
A65: 061218 | B65: =VLOOKUP(C65,ProduktionStammdaten!$B$2:$C$6,2,FALSE) -> 2000 | C65: GroßFmtDosierer | D65: =VLOOKUP(E65,ProduktionStammdaten!$B$13:$C$28,2,FALSE) ->  | F65: =VLOOKUP(G65,ProduktionStammdaten!$B$32:$C$34,2,FALSE) ->  | H65: =VLOOKUP(I65,ProduktionStammdaten!$B$38:$C$41,2,FALSE) ->  | J65: =VLOOKUP($A65,Artikelstamm!$C$3:$EW$2746,107,FALSE) -> Grobe Dinkelkleie de | K65: =VLOOKUP($A65,Artikelstamm!$C$3:$EW$2746,13,FALSE) -> 6*250G | L65: =VLOOKUP($A65,Artikelstamm!$C$3:$EW$2746,94,FALSE) -> 60 | M65: =VLOOKUP($A65,Artikelstamm!$C$3:$EW$2746,2,FALSE) -> Grobe Dinkelkleie, demeter | N65: 1 | Q65: -1
A66: 061225 | B66: =VLOOKUP(C66,ProduktionStammdaten!$B$2:$C$6,2,FALSE) ->  | D66: =VLOOKUP(E66,ProduktionStammdaten!$B$13:$C$28,2,FALSE) ->  | F66: =VLOOKUP(G66,ProduktionStammdaten!$B$32:$C$34,2,FALSE) ->  | H66: =VLOOKUP(I66,ProduktionStammdaten!$B$38:$C$41,2,FALSE) -> 120 | I66: 1 Kippung | J66: =VLOOKUP($A66,Artikelstamm!$C$3:$EW$2746,107,FALSE) -> Dinkelmehl T 630 dem | K66: =VLOOKUP($A66,Artikelstamm!$C$3:$EW$2746,13,FALSE) -> 4*2,5KG | L66: =VLOOKUP($A66,Artikelstamm!$C$3:$EW$2746,94,FALSE) -> 36 | M66: =VLOOKUP($A66,Artikelstamm!$C$3:$EW$2746,2,FALSE) -> Dinkelmehl Type 630, demeter | N66: 1 | Q66: -1
A67: 061226 | B67: =VLOOKUP(C67,ProduktionStammdaten!$B$2:$C$6,2,FALSE) -> 2000 | C67: GroßFmtDosierer | D67: =VLOOKUP(E67,ProduktionStammdaten!$B$13:$C$28,2,FALSE) ->  | F67: =VLOOKUP(G67,ProduktionStammdaten!$B$32:$C$34,2,FALSE) ->  | H67: =VLOOKUP(I67,ProduktionStammdaten!$B$38:$C$41,2,FALSE) ->  | J67: =VLOOKUP($A67,Artikelstamm!$C$3:$EW$2746,107,FALSE) -> Dinkelmehl T 630 dem | K67: =VLOOKUP($A67,Artikelstamm!$C$3:$EW$2746,13,FALSE) -> 6*1KG | L67: =VLOOKUP($A67,Artikelstamm!$C$3:$EW$2746,94,FALSE) -> 60 | M67: =VLOOKUP($A67,Artikelstamm!$C$3:$EW$2746,2,FALSE) -> Dinkelmehl Type 630, demeter | N67: 1 | Q67: -1
A68: 061236 | B68: =VLOOKUP(C68,ProduktionStammdaten!$B$2:$C$6,2,FALSE) -> 2000 | C68: GroßFmtDosierer | D68: =VLOOKUP(E68,ProduktionStammdaten!$B$13:$C$28,2,FALSE) ->  | F68: =VLOOKUP(G68,ProduktionStammdaten!$B$32:$C$34,2,FALSE) ->  | H68: =VLOOKUP(I68,ProduktionStammdaten!$B$38:$C$41,2,FALSE) ->  | J68: =VLOOKUP($A68,Artikelstamm!$C$3:$EW$2746,107,FALSE) -> Dinkelvollkornmehl | K68: =VLOOKUP($A68,Artikelstamm!$C$3:$EW$2746,13,FALSE) -> 6*1KG | L68: =VLOOKUP($A68,Artikelstamm!$C$3:$EW$2746,94,FALSE) -> 60 | M68: =VLOOKUP($A68,Artikelstamm!$C$3:$EW$2746,2,FALSE) -> Dinkel-Vollkornmehl, demeter | N68: 1 | Q68: -1
A69: 061244 | B69: =VLOOKUP(C69,ProduktionStammdaten!$B$2:$C$6,2,FALSE) ->  | D69: =VLOOKUP(E69,ProduktionStammdaten!$B$13:$C$28,2,FALSE) ->  | F69: =VLOOKUP(G69,ProduktionStammdaten!$B$32:$C$34,2,FALSE) ->  | H69: =VLOOKUP(I69,ProduktionStammdaten!$B$38:$C$41,2,FALSE) -> 120 | I69: 1 Kippung | J69: =VLOOKUP($A69,Artikelstamm!$C$3:$EW$2746,107,FALSE) -> Dinkelmehl T 1050 bi | K69: =VLOOKUP($A69,Artikelstamm!$C$3:$EW$2746,13,FALSE) -> 4*2,5KG | L69: =VLOOKUP($A69,Artikelstamm!$C$3:$EW$2746,94,FALSE) -> 36 | M69: =VLOOKUP($A69,Artikelstamm!$C$3:$EW$2746,2,FALSE) -> Dinkelmehl Type 1050, bioland | N69: 1 | Q69: -1
A70: 061245 | B70: =VLOOKUP(C70,ProduktionStammdaten!$B$2:$C$6,2,FALSE) ->  | D70: =VLOOKUP(E70,ProduktionStammdaten!$B$13:$C$28,2,FALSE) ->  | F70: =VLOOKUP(G70,ProduktionStammdaten!$B$32:$C$34,2,FALSE) ->  | H70: =VLOOKUP(I70,ProduktionStammdaten!$B$38:$C$41,2,FALSE) -> 120 | I70: 1 Kippung | J70: =VLOOKUP($A70,Artikelstamm!$C$3:$EW$2746,107,FALSE) -> Dinkelmehl T 630 bio | K70: =VLOOKUP($A70,Artikelstamm!$C$3:$EW$2746,13,FALSE) -> 4*2,5KG | L70: =VLOOKUP($A70,Artikelstamm!$C$3:$EW$2746,94,FALSE) -> 36 | M70: =VLOOKUP($A70,Artikelstamm!$C$3:$EW$2746,2,FALSE) -> Dinkelmehl Type 630, bioland | N70: 1 | Q70: -1
A71: 061246 | B71: =VLOOKUP(C71,ProduktionStammdaten!$B$2:$C$6,2,FALSE) -> 2000 | C71: GroßFmtDosierer | D71: =VLOOKUP(E71,ProduktionStammdaten!$B$13:$C$28,2,FALSE) ->  | F71: =VLOOKUP(G71,ProduktionStammdaten!$B$32:$C$34,2,FALSE) ->  | H71: =VLOOKUP(I71,ProduktionStammdaten!$B$38:$C$41,2,FALSE) ->  | J71: =VLOOKUP($A71,Artikelstamm!$C$3:$EW$2746,107,FALSE) -> Dinkel-Spätzlemehl | K71: =VLOOKUP($A71,Artikelstamm!$C$3:$EW$2746,13,FALSE) -> 6*1KG | L71: =VLOOKUP($A71,Artikelstamm!$C$3:$EW$2746,94,FALSE) -> 60 | M71: =VLOOKUP($A71,Artikelstamm!$C$3:$EW$2746,2,FALSE) -> Dinkel-Spätzlemehl, demeter | N71: 1 | Q71: -1
A72: 061258 | B72: =VLOOKUP(C72,ProduktionStammdaten!$B$2:$C$6,2,FALSE) -> 2000 | C72: KleinFmtDosierer | D72: =VLOOKUP(E72,ProduktionStammdaten!$B$13:$C$28,2,FALSE) ->  | F72: =VLOOKUP(G72,ProduktionStammdaten!$B$32:$C$34,2,FALSE) ->  | H72: =VLOOKUP(I72,ProduktionStammdaten!$B$38:$C$41,2,FALSE) ->  | J72: =VLOOKUP($A72,Artikelstamm!$C$3:$EW$2746,107,FALSE) -> Dinkelgrieß, demeter | K72: =VLOOKUP($A72,Artikelstamm!$C$3:$EW$2746,13,FALSE) -> 4*500G | L72: =VLOOKUP($A72,Artikelstamm!$C$3:$EW$2746,94,FALSE) -> 64 | M72: =VLOOKUP($A72,Artikelstamm!$C$3:$EW$2746,2,FALSE) -> Dinkelgrieß, demeter | Q72: -1
A73: 061282 | B73: =VLOOKUP(C73,ProduktionStammdaten!$B$2:$C$6,2,FALSE) ->  | D73: =VLOOKUP(E73,ProduktionStammdaten!$B$13:$C$28,2,FALSE) ->  | F73: =VLOOKUP(G73,ProduktionStammdaten!$B$32:$C$34,2,FALSE) ->  | H73: =VLOOKUP(I73,ProduktionStammdaten!$B$38:$C$41,2,FALSE) -> 90 | I73: 2 Kippungen | J73: =VLOOKUP($A73,Artikelstamm!$C$3:$EW$2746,107,FALSE) -> Dinkelmehl T 630 | K73: =VLOOKUP($A73,Artikelstamm!$C$3:$EW$2746,13,FALSE) -> 1*5KG | L73: =VLOOKUP($A73,Artikelstamm!$C$3:$EW$2746,94,FALSE) -> 120 | M73: =VLOOKUP($A73,Artikelstamm!$C$3:$EW$2746,2,FALSE) -> Dinkelmehl Type 630, Speltbloem, kbA | N73: 1 | Q73: -1
A74: 061308 | B74: =VLOOKUP(C74,ProduktionStammdaten!$B$2:$C$6,2,FALSE) ->  | D74: =VLOOKUP(E74,ProduktionStammdaten!$B$13:$C$28,2,FALSE) -> 1300 | E74: FaWeMaKleinFmtGrieß | F74: =VLOOKUP(G74,ProduktionStammdaten!$B$32:$C$34,2,FALSE) ->  | H74: =VLOOKUP(I74,ProduktionStammdaten!$B$38:$C$41,2,FALSE) ->  | J74: =VLOOKUP($A74,Artikelstamm!$C$3:$EW$2746,107,FALSE) -> Buchweizengrieß gf | K74: =VLOOKUP($A74,Artikelstamm!$C$3:$EW$2746,13,FALSE) -> 4*400G | L74: =VLOOKUP($A74,Artikelstamm!$C$3:$EW$2746,94,FALSE) -> 64 | M74: =VLOOKUP($A74,Artikelstamm!$C$3:$EW$2746,2,FALSE) -> Glutenfreier Buchweizengrieß, kbA | Q74: 1 | R74: 1
A75: 061318 | B75: =VLOOKUP(C75,ProduktionStammdaten!$B$2:$C$6,2,FALSE) ->  | D75: =VLOOKUP(E75,ProduktionStammdaten!$B$13:$C$28,2,FALSE) -> 1100 | E75: FaWeMaKleinFmtMehl | F75: =VLOOKUP(G75,ProduktionStammdaten!$B$32:$C$34,2,FALSE) ->  | H75: =VLOOKUP(I75,ProduktionStammdaten!$B$38:$C$41,2,FALSE) ->  | J75: =VLOOKUP($A75,Artikelstamm!$C$3:$EW$2746,107,FALSE) -> Maismehl glutenfrei | K75: =VLOOKUP($A75,Artikelstamm!$C$3:$EW$2746,13,FALSE) -> 4*500G | L75: =VLOOKUP($A75,Artikelstamm!$C$3:$EW$2746,94,FALSE) -> 64 | M75: =VLOOKUP($A75,Artikelstamm!$C$3:$EW$2746,2,FALSE) -> Glutenfreies Maismehl, demeter | Q75: 1 | R75: 1
A76: 061338 | B76: =VLOOKUP(C76,ProduktionStammdaten!$B$2:$C$6,2,FALSE) ->  | D76: =VLOOKUP(E76,ProduktionStammdaten!$B$13:$C$28,2,FALSE) -> 1300 | E76: FaWeMaKleinFmtGrieß | F76: =VLOOKUP(G76,ProduktionStammdaten!$B$32:$C$34,2,FALSE) ->  | H76: =VLOOKUP(I76,ProduktionStammdaten!$B$38:$C$41,2,FALSE) ->  | J76: =VLOOKUP($A76,Artikelstamm!$C$3:$EW$2746,107,FALSE) -> Maisgrieß f. Polenta | K76: =VLOOKUP($A76,Artikelstamm!$C$3:$EW$2746,13,FALSE) -> 4*500G | L76: =VLOOKUP($A76,Artikelstamm!$C$3:$EW$2746,94,FALSE) -> 64 | M76: =VLOOKUP($A76,Artikelstamm!$C$3:$EW$2746,2,FALSE) -> Glutenfreier Maisgrieß für Polenta, demeter | Q76: 1 | R76: 1
A77: 061348 | B77: =VLOOKUP(C77,ProduktionStammdaten!$B$2:$C$6,2,FALSE) ->  | D77: =VLOOKUP(E77,ProduktionStammdaten!$B$13:$C$28,2,FALSE) -> 1100 | E77: FaWeMaKleinFmtMehl | F77: =VLOOKUP(G77,ProduktionStammdaten!$B$32:$C$34,2,FALSE) ->  | H77: =VLOOKUP(I77,ProduktionStammdaten!$B$38:$C$41,2,FALSE) ->  | J77: =VLOOKUP($A77,Artikelstamm!$C$3:$EW$2746,107,FALSE) -> Reisvollkornmehl gf. | K77: =VLOOKUP($A77,Artikelstamm!$C$3:$EW$2746,13,FALSE) -> 4*500G | L77: =VLOOKUP($A77,Artikelstamm!$C$3:$EW$2746,94,FALSE) -> 64 | M77: =VLOOKUP($A77,Artikelstamm!$C$3:$EW$2746,2,FALSE) -> Glutenfreies Reis-Vollkornmehl, demeter | Q77: 1 | R77: 1
A78: 061358 | B78: =VLOOKUP(C78,ProduktionStammdaten!$B$2:$C$6,2,FALSE) ->  | D78: =VLOOKUP(E78,ProduktionStammdaten!$B$13:$C$28,2,FALSE) -> 1300 | E78: FaWeMaKleinFmtGrieß | F78: =VLOOKUP(G78,ProduktionStammdaten!$B$32:$C$34,2,FALSE) ->  | H78: =VLOOKUP(I78,ProduktionStammdaten!$B$38:$C$41,2,FALSE) ->  | J78: =VLOOKUP($A78,Artikelstamm!$C$3:$EW$2746,107,FALSE) -> Reisgrieß glutenfrei | K78: =VLOOKUP($A78,Artikelstamm!$C$3:$EW$2746,13,FALSE) -> 4*500G | L78: =VLOOKUP($A78,Artikelstamm!$C$3:$EW$2746,94,FALSE) -> 64 | M78: =VLOOKUP($A78,Artikelstamm!$C$3:$EW$2746,2,FALSE) -> Glutenfreier Reisgrieß, demeter | Q78: 1 | R78: 1
A79: 061368 | B79: =VLOOKUP(C79,ProduktionStammdaten!$B$2:$C$6,2,FALSE) ->  | D79: =VLOOKUP(E79,ProduktionStammdaten!$B$13:$C$28,2,FALSE) -> 1100 | E79: FaWeMaKleinFmtMehl | F79: =VLOOKUP(G79,ProduktionStammdaten!$B$32:$C$34,2,FALSE) ->  | H79: =VLOOKUP(I79,ProduktionStammdaten!$B$38:$C$41,2,FALSE) ->  | J79: =VLOOKUP($A79,Artikelstamm!$C$3:$EW$2746,107,FALSE) -> Buchweizen-VK-Mehl | K79: =VLOOKUP($A79,Artikelstamm!$C$3:$EW$2746,13,FALSE) -> 4*500G | L79: =VLOOKUP($A79,Artikelstamm!$C$3:$EW$2746,94,FALSE) -> 64 | M79: =VLOOKUP($A79,Artikelstamm!$C$3:$EW$2746,2,FALSE) -> Buchweizen-Vollkornmehl, demeter | Q79: 0 | R79: 1
A80: 061370 | B80: =VLOOKUP(C80,ProduktionStammdaten!$B$2:$C$6,2,FALSE) ->  | D80: =VLOOKUP(E80,ProduktionStammdaten!$B$13:$C$28,2,FALSE) -> 1100 | E80: FaWeMaKleinFmtMehl | F80: =VLOOKUP(G80,ProduktionStammdaten!$B$32:$C$34,2,FALSE) ->  | H80: =VLOOKUP(I80,ProduktionStammdaten!$B$38:$C$41,2,FALSE) ->  | J80: =VLOOKUP($A80,Artikelstamm!$C$3:$EW$2746,107,FALSE) -> Hafer-VK-Mehl gf | K80: =VLOOKUP($A80,Artikelstamm!$C$3:$EW$2746,13,FALSE) -> 4*350G | L80: =VLOOKUP($A80,Artikelstamm!$C$3:$EW$2746,94,FALSE) -> 64 | M80: =VLOOKUP($A80,Artikelstamm!$C$3:$EW$2746,2,FALSE) -> Glutenfreies Hafer-Vollkornmehl, demeter | Q80: 1 | R80: 1
A81: 061372 | B81: =VLOOKUP(C81,ProduktionStammdaten!$B$2:$C$6,2,FALSE) ->  | D81: =VLOOKUP(E81,ProduktionStammdaten!$B$13:$C$28,2,FALSE) -> 1100 | E81: FaWeMaKleinFmtMehl | F81: =VLOOKUP(G81,ProduktionStammdaten!$B$32:$C$34,2,FALSE) ->  | H81: =VLOOKUP(I81,ProduktionStammdaten!$B$38:$C$41,2,FALSE) ->  | J81: =VLOOKUP($A81,Artikelstamm!$C$3:$EW$2746,107,FALSE) -> Amaranth-VK-Mehl gf. | K81: =VLOOKUP($A81,Artikelstamm!$C$3:$EW$2746,13,FALSE) -> 4*300G | L81: =VLOOKUP($A81,Artikelstamm!$C$3:$EW$2746,94,FALSE) -> 64 | M81: =VLOOKUP($A81,Artikelstamm!$C$3:$EW$2746,2,FALSE) -> Glutenfreies Amaranth-Vollkornmehl, kbA | Q81: 1 | R81: 1
A82: 061374 | B82: =VLOOKUP(C82,ProduktionStammdaten!$B$2:$C$6,2,FALSE) ->  | D82: =VLOOKUP(E82,ProduktionStammdaten!$B$13:$C$28,2,FALSE) -> 1100 | E82: FaWeMaKleinFmtMehl | F82: =VLOOKUP(G82,ProduktionStammdaten!$B$32:$C$34,2,FALSE) ->  | H82: =VLOOKUP(I82,ProduktionStammdaten!$B$38:$C$41,2,FALSE) ->  | J82: =VLOOKUP($A82,Artikelstamm!$C$3:$EW$2746,107,FALSE) -> Braunhirsemehl gf | K82: =VLOOKUP($A82,Artikelstamm!$C$3:$EW$2746,13,FALSE) -> 4*400G | L82: =VLOOKUP($A82,Artikelstamm!$C$3:$EW$2746,94,FALSE) -> 64 | M82: =VLOOKUP($A82,Artikelstamm!$C$3:$EW$2746,2,FALSE) -> Glutenfreies Braunhirsemehl, kbA | Q82: 1 | R82: 1
A83: 061376 | B83: =VLOOKUP(C83,ProduktionStammdaten!$B$2:$C$6,2,FALSE) ->  | D83: =VLOOKUP(E83,ProduktionStammdaten!$B$13:$C$28,2,FALSE) -> 1100 | E83: FaWeMaKleinFmtMehl | F83: =VLOOKUP(G83,ProduktionStammdaten!$B$32:$C$34,2,FALSE) ->  | H83: =VLOOKUP(I83,ProduktionStammdaten!$B$38:$C$41,2,FALSE) ->  | J83: =VLOOKUP($A83,Artikelstamm!$C$3:$EW$2746,107,FALSE) -> Kokosmehl glutenfrei | K83: =VLOOKUP($A83,Artikelstamm!$C$3:$EW$2746,13,FALSE) -> 4*400G | L83: =VLOOKUP($A83,Artikelstamm!$C$3:$EW$2746,94,FALSE) -> 64 | M83: =VLOOKUP($A83,Artikelstamm!$C$3:$EW$2746,2,FALSE) -> Glutenfreies Kokosmehl, kbA | Q83: 1 | R83: 1
A84: 061388 | B84: =VLOOKUP(C84,ProduktionStammdaten!$B$2:$C$6,2,FALSE) ->  | D84: 1100 | E84: FaWeMaKleinFmtMehl | F84: =VLOOKUP(G84,ProduktionStammdaten!$B$32:$C$34,2,FALSE) ->  | H84: =VLOOKUP(I84,ProduktionStammdaten!$B$38:$C$41,2,FALSE) ->  | J84: =VLOOKUP($A84,Artikelstamm!$C$3:$EW$2746,107,FALSE) -> Sojamehl, demeter | K84: =VLOOKUP($A84,Artikelstamm!$C$3:$EW$2746,13,FALSE) -> 4*250G | L84: =VLOOKUP($A84,Artikelstamm!$C$3:$EW$2746,94,FALSE) -> 64 | M84: =VLOOKUP($A84,Artikelstamm!$C$3:$EW$2746,2,FALSE) -> Sojamehl, vollfett geröstet, demeter | Q84: 0 | R84: 1
A85: 061418 | B85: =VLOOKUP(C85,ProduktionStammdaten!$B$2:$C$6,2,FALSE) -> 2500 | C85: GroßFmtWaage | D85: =VLOOKUP(E85,ProduktionStammdaten!$B$13:$C$28,2,FALSE) -> 2000 | E85: FaWeMaGroßFmtFlocken | F85: =VLOOKUP(G85,ProduktionStammdaten!$B$32:$C$34,2,FALSE) ->  | H85: =VLOOKUP(I85,ProduktionStammdaten!$B$38:$C$41,2,FALSE) ->  | J85: =VLOOKUP($A85,Artikelstamm!$C$3:$EW$2746,107,FALSE) -> Haferkleie, demeter | K85: =VLOOKUP($A85,Artikelstamm!$C$3:$EW$2746,13,FALSE) -> 6*500G | L85: =VLOOKUP($A85,Artikelstamm!$C$3:$EW$2746,94,FALSE) -> 60 | M85: =VLOOKUP($A85,Artikelstamm!$C$3:$EW$2746,2,FALSE) -> Haferkleie, demeter | Q85: -1
A86: 061518 | B86: =VLOOKUP(C86,ProduktionStammdaten!$B$2:$C$6,2,FALSE) -> 2000 | C86: KleinFmtDosierer | D86: =VLOOKUP(E86,ProduktionStammdaten!$B$13:$C$28,2,FALSE) ->  | F86: =VLOOKUP(G86,ProduktionStammdaten!$B$32:$C$34,2,FALSE) ->  | H86: =VLOOKUP(I86,ProduktionStammdaten!$B$38:$C$41,2,FALSE) ->  | J86: =VLOOKUP($A86,Artikelstamm!$C$3:$EW$2746,107,FALSE) -> Hirsegrieß, kbA | K86: =VLOOKUP($A86,Artikelstamm!$C$3:$EW$2746,13,FALSE) -> 4*500G | L86: =VLOOKUP($A86,Artikelstamm!$C$3:$EW$2746,94,FALSE) -> 64 | M86: =VLOOKUP($A86,Artikelstamm!$C$3:$EW$2746,2,FALSE) -> Hirsegrieß, kbA | Q86: 0
A87: 062015 | B87: =VLOOKUP(C87,ProduktionStammdaten!$B$2:$C$6,2,FALSE) ->  | D87: =VLOOKUP(E87,ProduktionStammdaten!$B$13:$C$28,2,FALSE) ->  | F87: =VLOOKUP(G87,ProduktionStammdaten!$B$32:$C$34,2,FALSE) ->  | H87: =VLOOKUP(I87,ProduktionStammdaten!$B$38:$C$41,2,FALSE) ->  | J87: =VLOOKUP($A87,Artikelstamm!$C$3:$EW$2746,107,FALSE) -> Weizenflocken unverp | K87: =VLOOKUP($A87,Artikelstamm!$C$3:$EW$2746,13,FALSE) -> 1*2,5KG | L87: =VLOOKUP($A87,Artikelstamm!$C$3:$EW$2746,94,FALSE) -> 96 | M87: =VLOOKUP($A87,Artikelstamm!$C$3:$EW$2746,2,FALSE) -> Weizenflocken, kbA - NF Unverpackt + Vorrat | Q87: -1 | R87: 1
A88: 062028 | B88: =VLOOKUP(C88,ProduktionStammdaten!$B$2:$C$6,2,FALSE) ->  | D88: =VLOOKUP(E88,ProduktionStammdaten!$B$13:$C$28,2,FALSE) -> 1500 | E88: FaWeMaKleinFmtFlocken | F88: =VLOOKUP(G88,ProduktionStammdaten!$B$32:$C$34,2,FALSE) ->  | H88: =VLOOKUP(I88,ProduktionStammdaten!$B$38:$C$41,2,FALSE) ->  | J88: =VLOOKUP($A88,Artikelstamm!$C$3:$EW$2746,107,FALSE) -> Braunhirseflocken gf | K88: =VLOOKUP($A88,Artikelstamm!$C$3:$EW$2746,13,FALSE) -> 4*250G | L88: =VLOOKUP($A88,Artikelstamm!$C$3:$EW$2746,94,FALSE) -> 64 | M88: =VLOOKUP($A88,Artikelstamm!$C$3:$EW$2746,2,FALSE) -> Glutenfreie Braunhirseflocken, kbA | Q88: 1 | R88: 1
A89: 062038 | B89: =VLOOKUP(C89,ProduktionStammdaten!$B$2:$C$6,2,FALSE) ->  | D89: =VLOOKUP(E89,ProduktionStammdaten!$B$13:$C$28,2,FALSE) -> 1500 | E89: FaWeMaKleinFmtFlocken | F89: =VLOOKUP(G89,ProduktionStammdaten!$B$32:$C$34,2,FALSE) ->  | H89: =VLOOKUP(I89,ProduktionStammdaten!$B$38:$C$41,2,FALSE) ->  | J89: =VLOOKUP($A89,Artikelstamm!$C$3:$EW$2746,107,FALSE) -> Erdmandelflocken gf | K89: =VLOOKUP($A89,Artikelstamm!$C$3:$EW$2746,13,FALSE) -> 4*250G | L89: =VLOOKUP($A89,Artikelstamm!$C$3:$EW$2746,94,FALSE) -> 64 | M89: =VLOOKUP($A89,Artikelstamm!$C$3:$EW$2746,2,FALSE) -> Glutenfreie Erdmandelflocken, kbA | Q89: 1 | R89: 1
A90: 062048 | B90: =VLOOKUP(C90,ProduktionStammdaten!$B$2:$C$6,2,FALSE) ->  | D90: =VLOOKUP(E90,ProduktionStammdaten!$B$13:$C$28,2,FALSE) -> 1500 | E90: FaWeMaKleinFmtFlocken | F90: =VLOOKUP(G90,ProduktionStammdaten!$B$32:$C$34,2,FALSE) ->  | H90: =VLOOKUP(I90,ProduktionStammdaten!$B$38:$C$41,2,FALSE) ->  | J90: =VLOOKUP($A90,Artikelstamm!$C$3:$EW$2746,107,FALSE) -> Teff-Flocken gf | K90: =VLOOKUP($A90,Artikelstamm!$C$3:$EW$2746,13,FALSE) -> 4*250G | L90: =VLOOKUP($A90,Artikelstamm!$C$3:$EW$2746,94,FALSE) -> 64 | M90: =VLOOKUP($A90,Artikelstamm!$C$3:$EW$2746,2,FALSE) -> Glutenfreie Teff-Flocken, kbA | Q90: 1 | R90: 1
A91: 062108 | B91: =VLOOKUP(C91,ProduktionStammdaten!$B$2:$C$6,2,FALSE) -> 2500 | C91: GroßFmtWaage | D91: =VLOOKUP(E91,ProduktionStammdaten!$B$13:$C$28,2,FALSE) ->  | F91: =VLOOKUP(G91,ProduktionStammdaten!$B$32:$C$34,2,FALSE) ->  | H91: =VLOOKUP(I91,ProduktionStammdaten!$B$38:$C$41,2,FALSE) ->  | J91: =VLOOKUP($A91,Artikelstamm!$C$3:$EW$2746,107,FALSE) -> Roggenflocken, demet | K91: =VLOOKUP($A91,Artikelstamm!$C$3:$EW$2746,13,FALSE) -> 6*500G | L91: =VLOOKUP($A91,Artikelstamm!$C$3:$EW$2746,94,FALSE) -> 60 | M91: =VLOOKUP($A91,Artikelstamm!$C$3:$EW$2746,2,FALSE) -> Roggenflocken, demeter | Q91: -1
A92: 062208 | B92: =VLOOKUP(C92,ProduktionStammdaten!$B$2:$C$6,2,FALSE) -> 2500 | C92: GroßFmtWaage | D92: =VLOOKUP(E92,ProduktionStammdaten!$B$13:$C$28,2,FALSE) -> 2000 | E92: FaWeMaGroßFmtFlocken | F92: =VLOOKUP(G92,ProduktionStammdaten!$B$32:$C$34,2,FALSE) ->  | H92: =VLOOKUP(I92,ProduktionStammdaten!$B$38:$C$41,2,FALSE) ->  | J92: =VLOOKUP($A92,Artikelstamm!$C$3:$EW$2746,107,FALSE) -> Gerstenflocken, dem. | K92: =VLOOKUP($A92,Artikelstamm!$C$3:$EW$2746,13,FALSE) -> 6*500G | L92: =VLOOKUP($A92,Artikelstamm!$C$3:$EW$2746,94,FALSE) -> 60 | M92: =VLOOKUP($A92,Artikelstamm!$C$3:$EW$2746,2,FALSE) -> Gerstenflocken, demeter | Q92: -1
A93: 062302 | B93: =VLOOKUP(C93,ProduktionStammdaten!$B$2:$C$6,2,FALSE) ->  | D93: =VLOOKUP(E93,ProduktionStammdaten!$B$13:$C$28,2,FALSE) ->  | F93: =VLOOKUP(G93,ProduktionStammdaten!$B$32:$C$34,2,FALSE) ->  | H93: =VLOOKUP(I93,ProduktionStammdaten!$B$38:$C$41,2,FALSE) ->  | J93: =VLOOKUP($A93,Artikelstamm!$C$3:$EW$2746,107,FALSE) -> Haferflocken GB, kbA | K93: =VLOOKUP($A93,Artikelstamm!$C$3:$EW$2746,13,FALSE) -> 1*5KG | L93: =VLOOKUP($A93,Artikelstamm!$C$3:$EW$2746,94,FALSE) -> 40 | M93: =VLOOKUP($A93,Artikelstamm!$C$3:$EW$2746,2,FALSE) -> Haferflocken Großblatt, demeter | Q93: -1 | R93: 1
A94: 062304 | B94: =VLOOKUP(C94,ProduktionStammdaten!$B$2:$C$6,2,FALSE) ->  | D94: =VLOOKUP(E94,ProduktionStammdaten!$B$13:$C$28,2,FALSE) ->  | F94: =VLOOKUP(G94,ProduktionStammdaten!$B$32:$C$34,2,FALSE) ->  | H94: =VLOOKUP(I94,ProduktionStammdaten!$B$38:$C$41,2,FALSE) -> 90 | I94: 2 Kippungen | J94: =VLOOKUP($A94,Artikelstamm!$C$3:$EW$2746,107,FALSE) -> Haferflocken Großbl. | K94: =VLOOKUP($A94,Artikelstamm!$C$3:$EW$2746,13,FALSE) -> 6*2,5KG | L94: =VLOOKUP($A94,Artikelstamm!$C$3:$EW$2746,94,FALSE) -> 16 | M94: =VLOOKUP($A94,Artikelstamm!$C$3:$EW$2746,2,FALSE) -> Haferflocken Großblatt, demeter - NF Unv. + Vorrat | Q94: -1 | R94: 1
A95: 062306 | B95: =VLOOKUP(C95,ProduktionStammdaten!$B$2:$C$6,2,FALSE) ->  | D95: =VLOOKUP(E95,ProduktionStammdaten!$B$13:$C$28,2,FALSE) -> 1500 | E95: FaWeMaMaxiWaage | F95: =VLOOKUP(G95,ProduktionStammdaten!$B$32:$C$34,2,FALSE) -> 900 | G95: Maxiformat | H95: =VLOOKUP(I95,ProduktionStammdaten!$B$38:$C$41,2,FALSE) ->  | J95: =VLOOKUP($A95,Artikelstamm!$C$3:$EW$2746,107,FALSE) -> Haferflocken Großbla | K95: =VLOOKUP($A95,Artikelstamm!$C$3:$EW$2746,13,FALSE) -> 6*1KG | L95: =VLOOKUP($A95,Artikelstamm!$C$3:$EW$2746,94,FALSE) -> 36 | M95: =VLOOKUP($A95,Artikelstamm!$C$3:$EW$2746,2,FALSE) -> Haferflocken Großblatt, demeter | Q95: -1
A96: 062307 | B96: =VLOOKUP(C96,ProduktionStammdaten!$B$2:$C$6,2,FALSE) ->  | D96: =VLOOKUP(E96,ProduktionStammdaten!$B$13:$C$28,2,FALSE) -> 1500 | E96: FaWeMaMaxiWaage | F96: =VLOOKUP(G96,ProduktionStammdaten!$B$32:$C$34,2,FALSE) ->  | H96: =VLOOKUP(I96,ProduktionStammdaten!$B$38:$C$41,2,FALSE) ->  | J96: =VLOOKUP($A96,Artikelstamm!$C$3:$EW$2746,107,FALSE) -> Haferflocken GB kbA | K96: =VLOOKUP($A96,Artikelstamm!$C$3:$EW$2746,13,FALSE) -> 6*1KG | L96: =VLOOKUP($A96,Artikelstamm!$C$3:$EW$2746,94,FALSE) -> 36 | M96: =VLOOKUP($A96,Artikelstamm!$C$3:$EW$2746,2,FALSE) -> Haferflocken Großblatt, kbA | Q96: -1
A97: 062308 | B97: =VLOOKUP(C97,ProduktionStammdaten!$B$2:$C$6,2,FALSE) -> 2500 | C97: GroßFmtWaage | D97: =VLOOKUP(E97,ProduktionStammdaten!$B$13:$C$28,2,FALSE) -> 2000 | E97: FaWeMaGroßFmtFlocken | F97: =VLOOKUP(G97,ProduktionStammdaten!$B$32:$C$34,2,FALSE) ->  | H97: =VLOOKUP(I97,ProduktionStammdaten!$B$38:$C$41,2,FALSE) ->  | J97: =VLOOKUP($A97,Artikelstamm!$C$3:$EW$2746,107,FALSE) -> Haferflocken Großbla | K97: =VLOOKUP($A97,Artikelstamm!$C$3:$EW$2746,13,FALSE) -> 6*500G | L97: =VLOOKUP($A97,Artikelstamm!$C$3:$EW$2746,94,FALSE) -> 60 | M97: =VLOOKUP($A97,Artikelstamm!$C$3:$EW$2746,2,FALSE) -> Haferflocken Großblatt, demeter | Q97: -1
A98: 062309 | B98: =VLOOKUP(C98,ProduktionStammdaten!$B$2:$C$6,2,FALSE) -> 2500 | C98: GroßFmtWaage | D98: =VLOOKUP(E98,ProduktionStammdaten!$B$13:$C$28,2,FALSE) -> 2000 | E98: FaWeMaGroßFmtFlocken | F98: =VLOOKUP(G98,ProduktionStammdaten!$B$32:$C$34,2,FALSE) ->  | H98: =VLOOKUP(I98,ProduktionStammdaten!$B$38:$C$41,2,FALSE) ->  | J98: =VLOOKUP($A98,Artikelstamm!$C$3:$EW$2746,107,FALSE) -> Haferfl. GB kbA | K98: =VLOOKUP($A98,Artikelstamm!$C$3:$EW$2746,13,FALSE) -> 6*500G | L98: =VLOOKUP($A98,Artikelstamm!$C$3:$EW$2746,94,FALSE) -> 60 | M98: =VLOOKUP($A98,Artikelstamm!$C$3:$EW$2746,2,FALSE) -> Haferflocken Großblatt, kbA | Q98: -1
A99: 062334 | B99: =VLOOKUP(C99,ProduktionStammdaten!$B$2:$C$6,2,FALSE) ->  | D99: =VLOOKUP(E99,ProduktionStammdaten!$B$13:$C$28,2,FALSE) ->  | F99: =VLOOKUP(G99,ProduktionStammdaten!$B$32:$C$34,2,FALSE) ->  | H99: =VLOOKUP(I99,ProduktionStammdaten!$B$38:$C$41,2,FALSE) -> 90 | I99: 2 Kippungen | J99: =VLOOKUP($A99,Artikelstamm!$C$3:$EW$2746,107,FALSE) -> Haferflocken GB kbA | K99: =VLOOKUP($A99,Artikelstamm!$C$3:$EW$2746,13,FALSE) -> 6*2,5KG | L99: =VLOOKUP($A99,Artikelstamm!$C$3:$EW$2746,94,FALSE) -> 16 | M99: =VLOOKUP($A99,Artikelstamm!$C$3:$EW$2746,2,FALSE) -> Haferflocken Großblatt, kbA - NF Unverp. + Vorrat | Q99: -1 | R99: 1
A100: 062346 | B100: =VLOOKUP(C100,ProduktionStammdaten!$B$2:$C$6,2,FALSE) ->  | D100: =VLOOKUP(E100,ProduktionStammdaten!$B$13:$C$28,2,FALSE) -> 1500 | E100: FaWeMaMaxiWaage | F100: =VLOOKUP(G100,ProduktionStammdaten!$B$32:$C$34,2,FALSE) -> 900 | G100: Maxiformat | H100: =VLOOKUP(I100,ProduktionStammdaten!$B$38:$C$41,2,FALSE) ->  | J100: =VLOOKUP($A100,Artikelstamm!$C$3:$EW$2746,107,FALSE) -> Haferflocken Zartbla | K100: =VLOOKUP($A100,Artikelstamm!$C$3:$EW$2746,13,FALSE) -> 6*750G | L100: =VLOOKUP($A100,Artikelstamm!$C$3:$EW$2746,94,FALSE) -> 36 | M100: =VLOOKUP($A100,Artikelstamm!$C$3:$EW$2746,2,FALSE) -> Haferflocken Zartblatt, demeter | Q100: -1
A101: 062347 | B101: =VLOOKUP(C101,ProduktionStammdaten!$B$2:$C$6,2,FALSE) ->  | D101: =VLOOKUP(E101,ProduktionStammdaten!$B$13:$C$28,2,FALSE) -> 1500 | E101: FaWeMaMaxiWaage | F101: =VLOOKUP(G101,ProduktionStammdaten!$B$32:$C$34,2,FALSE) -> 900 | G101: Maxiformat | H101: =VLOOKUP(I101,ProduktionStammdaten!$B$38:$C$41,2,FALSE) ->  | J101: =VLOOKUP($A101,Artikelstamm!$C$3:$EW$2746,107,FALSE) -> Haferflocken ZB kbA | K101: =VLOOKUP($A101,Artikelstamm!$C$3:$EW$2746,13,FALSE) -> 6*750G | L101: =VLOOKUP($A101,Artikelstamm!$C$3:$EW$2746,94,FALSE) -> 36 | M101: =VLOOKUP($A101,Artikelstamm!$C$3:$EW$2746,2,FALSE) -> Haferflocken Zartblatt, kbA | Q101: -1
A102: 062348 | B102: =VLOOKUP(C102,ProduktionStammdaten!$B$2:$C$6,2,FALSE) -> 2500 | C102: GroßFmtWaage | D102: =VLOOKUP(E102,ProduktionStammdaten!$B$13:$C$28,2,FALSE) ->  | F102: =VLOOKUP(G102,ProduktionStammdaten!$B$32:$C$34,2,FALSE) ->  | H102: =VLOOKUP(I102,ProduktionStammdaten!$B$38:$C$41,2,FALSE) ->  | J102: =VLOOKUP($A102,Artikelstamm!$C$3:$EW$2746,107,FALSE) -> Haferflocken ZB kbA | K102: =VLOOKUP($A102,Artikelstamm!$C$3:$EW$2746,13,FALSE) -> 6*375G | L102: =VLOOKUP($A102,Artikelstamm!$C$3:$EW$2746,94,FALSE) -> 60 | M102: =VLOOKUP($A102,Artikelstamm!$C$3:$EW$2746,2,FALSE) -> Haferflocken Zartblatt, kbA | Q102: -1
A103: 062349 | B103: =VLOOKUP(C103,ProduktionStammdaten!$B$2:$C$6,2,FALSE) -> 2500 | C103: GroßFmtWaage | D103: =VLOOKUP(E103,ProduktionStammdaten!$B$13:$C$28,2,FALSE) -> 2000 | E103: FaWeMaGroßFmtFlocken | F103: =VLOOKUP(G103,ProduktionStammdaten!$B$32:$C$34,2,FALSE) -> 1200 | G103: Großformat | H103: =VLOOKUP(I103,ProduktionStammdaten!$B$38:$C$41,2,FALSE) ->  | J103: =VLOOKUP($A103,Artikelstamm!$C$3:$EW$2746,107,FALSE) -> Haferflocken Zartbla | K103: =VLOOKUP($A103,Artikelstamm!$C$3:$EW$2746,13,FALSE) -> 6*375G | L103: =VLOOKUP($A103,Artikelstamm!$C$3:$EW$2746,94,FALSE) -> 60 | M103: =VLOOKUP($A103,Artikelstamm!$C$3:$EW$2746,2,FALSE) -> Haferflocken Zartblatt, demeter | Q103: -1
A104: 062351 | B104: =VLOOKUP(C104,ProduktionStammdaten!$B$2:$C$6,2,FALSE) ->  | D104: =VLOOKUP(E104,ProduktionStammdaten!$B$13:$C$28,2,FALSE) -> 1500 | E104: FaWeMaMaxiWaage | F104: =VLOOKUP(G104,ProduktionStammdaten!$B$32:$C$34,2,FALSE) ->  | H104: =VLOOKUP(I104,ProduktionStammdaten!$B$38:$C$41,2,FALSE) ->  | J104: =VLOOKUP($A104,Artikelstamm!$C$3:$EW$2746,107,FALSE) -> Haferflocken KB kbA | K104: =VLOOKUP($A104,Artikelstamm!$C$3:$EW$2746,13,FALSE) -> 6*1KG | L104: =VLOOKUP($A104,Artikelstamm!$C$3:$EW$2746,94,FALSE) -> 36 | M104: =VLOOKUP($A104,Artikelstamm!$C$3:$EW$2746,2,FALSE) -> Haferflocken Kleinblatt, kbA | Q104: -1
A105: 062352 | B105: =VLOOKUP(C105,ProduktionStammdaten!$B$2:$C$6,2,FALSE) ->  | D105: =VLOOKUP(E105,ProduktionStammdaten!$B$13:$C$28,2,FALSE) ->  | F105: =VLOOKUP(G105,ProduktionStammdaten!$B$32:$C$34,2,FALSE) ->  | H105: =VLOOKUP(I105,ProduktionStammdaten!$B$38:$C$41,2,FALSE) ->  | J105: =VLOOKUP($A105,Artikelstamm!$C$3:$EW$2746,107,FALSE) -> Haferflocken Kleinbl | K105: =VLOOKUP($A105,Artikelstamm!$C$3:$EW$2746,13,FALSE) -> 1*5KG | L105: =VLOOKUP($A105,Artikelstamm!$C$3:$EW$2746,94,FALSE) -> 40 | M105: =VLOOKUP($A105,Artikelstamm!$C$3:$EW$2746,2,FALSE) -> Haferflocken Kleinblatt, demeter | Q105: -1 | R105: 1
A106: 062354 | B106: =VLOOKUP(C106,ProduktionStammdaten!$B$2:$C$6,2,FALSE) ->  | D106: =VLOOKUP(E106,ProduktionStammdaten!$B$13:$C$28,2,FALSE) ->  | F106: =VLOOKUP(G106,ProduktionStammdaten!$B$32:$C$34,2,FALSE) ->  | H106: =VLOOKUP(I106,ProduktionStammdaten!$B$38:$C$41,2,FALSE) -> 90 | I106: 2 Kippungen | J106: =VLOOKUP($A106,Artikelstamm!$C$3:$EW$2746,107,FALSE) -> Haferflocken Kleinbl | K106: =VLOOKUP($A106,Artikelstamm!$C$3:$EW$2746,13,FALSE) -> 6*2,5KG | L106: =VLOOKUP($A106,Artikelstamm!$C$3:$EW$2746,94,FALSE) -> 16 | M106: =VLOOKUP($A106,Artikelstamm!$C$3:$EW$2746,2,FALSE) -> Haferflocken Kleinblatt, demeter - NF Unv.+ Vorrat | Q106: -1 | R106: 1
A107: 062355 | B107: =VLOOKUP(C107,ProduktionStammdaten!$B$2:$C$6,2,FALSE) ->  | D107: =VLOOKUP(E107,ProduktionStammdaten!$B$13:$C$28,2,FALSE) ->  | F107: =VLOOKUP(G107,ProduktionStammdaten!$B$32:$C$34,2,FALSE) ->  | H107: =VLOOKUP(I107,ProduktionStammdaten!$B$38:$C$41,2,FALSE) -> 90 | I107: 2 Kippungen | J107: =VLOOKUP($A107,Artikelstamm!$C$3:$EW$2746,107,FALSE) -> Haferflocken Kleinbl | K107: =VLOOKUP($A107,Artikelstamm!$C$3:$EW$2746,13,FALSE) -> 6*2,5KG | L107: =VLOOKUP($A107,Artikelstamm!$C$3:$EW$2746,94,FALSE) -> 16 | M107: =VLOOKUP($A107,Artikelstamm!$C$3:$EW$2746,2,FALSE) -> Haferflocken Kleinblatt, kbA - NF Unverp. + Vorrat | Q107: -1 | R107: 1
A108: 062356 | B108: =VLOOKUP(C108,ProduktionStammdaten!$B$2:$C$6,2,FALSE) ->  | D108: =VLOOKUP(E108,ProduktionStammdaten!$B$13:$C$28,2,FALSE) -> 1500 | E108: FaWeMaMaxiWaage | F108: =VLOOKUP(G108,ProduktionStammdaten!$B$32:$C$34,2,FALSE) -> 900 | G108: Maxiformat | H108: =VLOOKUP(I108,ProduktionStammdaten!$B$38:$C$41,2,FALSE) ->  | J108: =VLOOKUP($A108,Artikelstamm!$C$3:$EW$2746,107,FALSE) -> Haferflocken Kleinbl | K108: =VLOOKUP($A108,Artikelstamm!$C$3:$EW$2746,13,FALSE) -> 6*1KG | L108: =VLOOKUP($A108,Artikelstamm!$C$3:$EW$2746,94,FALSE) -> 36 | M108: =VLOOKUP($A108,Artikelstamm!$C$3:$EW$2746,2,FALSE) -> Haferflocken Kleinblatt, demeter | Q108: -1
A109: 062358 | B109: =VLOOKUP(C109,ProduktionStammdaten!$B$2:$C$6,2,FALSE) -> 2500 | C109: GroßFmtWaage | D109: =VLOOKUP(E109,ProduktionStammdaten!$B$13:$C$28,2,FALSE) -> 2000 | E109: FaWeMaGroßFmtFlocken | F109: =VLOOKUP(G109,ProduktionStammdaten!$B$32:$C$34,2,FALSE) ->  | H109: =VLOOKUP(I109,ProduktionStammdaten!$B$38:$C$41,2,FALSE) ->  | J109: =VLOOKUP($A109,Artikelstamm!$C$3:$EW$2746,107,FALSE) -> Haferflocken Kleinbl | K109: =VLOOKUP($A109,Artikelstamm!$C$3:$EW$2746,13,FALSE) -> 6*500G | L109: =VLOOKUP($A109,Artikelstamm!$C$3:$EW$2746,94,FALSE) -> 60 | M109: =VLOOKUP($A109,Artikelstamm!$C$3:$EW$2746,2,FALSE) -> Haferflocken Kleinblatt, demeter | Q109: -1
A110: 062359 | B110: =VLOOKUP(C110,ProduktionStammdaten!$B$2:$C$6,2,FALSE) -> 2500 | C110: GroßFmtWaage | D110: =VLOOKUP(E110,ProduktionStammdaten!$B$13:$C$28,2,FALSE) ->  | F110: =VLOOKUP(G110,ProduktionStammdaten!$B$32:$C$34,2,FALSE) ->  | H110: =VLOOKUP(I110,ProduktionStammdaten!$B$38:$C$41,2,FALSE) ->  | J110: =VLOOKUP($A110,Artikelstamm!$C$3:$EW$2746,107,FALSE) -> Haferflocken KB kbA | K110: =VLOOKUP($A110,Artikelstamm!$C$3:$EW$2746,13,FALSE) -> 6*500G | L110: =VLOOKUP($A110,Artikelstamm!$C$3:$EW$2746,94,FALSE) -> 60 | M110: =VLOOKUP($A110,Artikelstamm!$C$3:$EW$2746,2,FALSE) -> Haferflocken Kleinblatt, kbA | Q110: -1
A111: 062360 | B111: =VLOOKUP(C111,ProduktionStammdaten!$B$2:$C$6,2,FALSE) ->  | D111: =VLOOKUP(E111,ProduktionStammdaten!$B$13:$C$28,2,FALSE) ->  | F111: =VLOOKUP(G111,ProduktionStammdaten!$B$32:$C$34,2,FALSE) ->  | H111: =VLOOKUP(I111,ProduktionStammdaten!$B$38:$C$41,2,FALSE) -> 660 | I111: Glas | J111: =VLOOKUP($A111,Artikelstamm!$C$3:$EW$2746,107,FALSE) -> Haferflocken im Glas | K111: =VLOOKUP($A111,Artikelstamm!$C$3:$EW$2746,13,FALSE) -> 6*500G | L111: =VLOOKUP($A111,Artikelstamm!$C$3:$EW$2746,94,FALSE) -> 40 | M111: =VLOOKUP($A111,Artikelstamm!$C$3:$EW$2746,2,FALSE) -> Haferflocken im GLAS KAMPAGNE, demeter
A112: 062370 | B112: =VLOOKUP(C112,ProduktionStammdaten!$B$2:$C$6,2,FALSE) ->  | D112: =VLOOKUP(E112,ProduktionStammdaten!$B$13:$C$28,2,FALSE) -> 2000 | E112: FaWeMaGroßFmtFlocken | F112: =VLOOKUP(G112,ProduktionStammdaten!$B$32:$C$34,2,FALSE) ->  | H112: =VLOOKUP(I112,ProduktionStammdaten!$B$38:$C$41,2,FALSE) ->  | J112: =VLOOKUP($A112,Artikelstamm!$C$3:$EW$2746,107,FALSE) -> Haferflocken GB gf | K112: =VLOOKUP($A112,Artikelstamm!$C$3:$EW$2746,13,FALSE) -> 6*475G | L112: =VLOOKUP($A112,Artikelstamm!$C$3:$EW$2746,94,FALSE) -> 60 | M112: =VLOOKUP($A112,Artikelstamm!$C$3:$EW$2746,2,FALSE) -> Glutenfreie Haferflocken, Großblatt, demeter | Q112: 1 | R112: 1
A113: 062373 | B113: =VLOOKUP(C113,ProduktionStammdaten!$B$2:$C$6,2,FALSE) ->  | D113: =VLOOKUP(E113,ProduktionStammdaten!$B$13:$C$28,2,FALSE) -> 2000 | E113: FaWeMaGroßFmtFlocken | F113: =VLOOKUP(G113,ProduktionStammdaten!$B$32:$C$34,2,FALSE) ->  | H113: =VLOOKUP(I113,ProduktionStammdaten!$B$38:$C$41,2,FALSE) ->  | J113: =VLOOKUP($A113,Artikelstamm!$C$3:$EW$2746,107,FALSE) -> Haferflocken KB gf | K113: =VLOOKUP($A113,Artikelstamm!$C$3:$EW$2746,13,FALSE) -> 6*475G | L113: =VLOOKUP($A113,Artikelstamm!$C$3:$EW$2746,94,FALSE) -> 60 | M113: =VLOOKUP($A113,Artikelstamm!$C$3:$EW$2746,2,FALSE) -> Glutenfreie Haferflocken, Kleinblatt, demeter | Q113: 1 | R113: 1
A114: 062408 | B114: =VLOOKUP(C114,ProduktionStammdaten!$B$2:$C$6,2,FALSE) -> 2500 | C114: GroßFmtWaage | D114: =VLOOKUP(E114,ProduktionStammdaten!$B$13:$C$28,2,FALSE) -> 2000 | E114: FaWeMaGroßFmtFlocken | F114: =VLOOKUP(G114,ProduktionStammdaten!$B$32:$C$34,2,FALSE) ->  | H114: =VLOOKUP(I114,ProduktionStammdaten!$B$38:$C$41,2,FALSE) ->  | J114: =VLOOKUP($A114,Artikelstamm!$C$3:$EW$2746,107,FALSE) -> Dinkelflocken Großbl | K114: =VLOOKUP($A114,Artikelstamm!$C$3:$EW$2746,13,FALSE) -> 6*500G | L114: =VLOOKUP($A114,Artikelstamm!$C$3:$EW$2746,94,FALSE) -> 60 | M114: =VLOOKUP($A114,Artikelstamm!$C$3:$EW$2746,2,FALSE) -> Dinkelflocken Großblatt, demeter | Q114: -1
A115: 062415 | B115: =VLOOKUP(C115,ProduktionStammdaten!$B$2:$C$6,2,FALSE) ->  | D115: =VLOOKUP(E115,ProduktionStammdaten!$B$13:$C$28,2,FALSE) ->  | F115: =VLOOKUP(G115,ProduktionStammdaten!$B$32:$C$34,2,FALSE) ->  | H115: =VLOOKUP(I115,ProduktionStammdaten!$B$38:$C$41,2,FALSE) -> 90 | I115: 2 Kippungen | J115: =VLOOKUP($A115,Artikelstamm!$C$3:$EW$2746,107,FALSE) -> Dinkelflocken unverp | K115: =VLOOKUP($A115,Artikelstamm!$C$3:$EW$2746,13,FALSE) -> 6*2,5KG | L115: =VLOOKUP($A115,Artikelstamm!$C$3:$EW$2746,94,FALSE) -> 16 | M115: =VLOOKUP($A115,Artikelstamm!$C$3:$EW$2746,2,FALSE) -> Dinkelflocken Großblatt, kbA - NF Unverp. + Vorrat | Q115: -1 | R115: 1
A116: 062416 | B116: =VLOOKUP(C116,ProduktionStammdaten!$B$2:$C$6,2,FALSE) ->  | D116: =VLOOKUP(E116,ProduktionStammdaten!$B$13:$C$28,2,FALSE) -> 1500 | E116: FaWeMaMaxiWaage | F116: =VLOOKUP(G116,ProduktionStammdaten!$B$32:$C$34,2,FALSE) -> 900 | G116: Maxiformat | H116: =VLOOKUP(I116,ProduktionStammdaten!$B$38:$C$41,2,FALSE) ->  | J116: =VLOOKUP($A116,Artikelstamm!$C$3:$EW$2746,107,FALSE) -> Dinkelflocken Kleinb | K116: =VLOOKUP($A116,Artikelstamm!$C$3:$EW$2746,13,FALSE) -> 6*1KG | L116: =VLOOKUP($A116,Artikelstamm!$C$3:$EW$2746,94,FALSE) -> 36 | M116: =VLOOKUP($A116,Artikelstamm!$C$3:$EW$2746,2,FALSE) -> Dinkelflocken Kleinblatt, demeter | Q116: -1
A117: 062418 | B117: =VLOOKUP(C117,ProduktionStammdaten!$B$2:$C$6,2,FALSE) -> 2500 | C117: GroßFmtWaage | D117: =VLOOKUP(E117,ProduktionStammdaten!$B$13:$C$28,2,FALSE) -> 2000 | E117: FaWeMaGroßFmtFlocken | F117: =VLOOKUP(G117,ProduktionStammdaten!$B$32:$C$34,2,FALSE) ->  | H117: =VLOOKUP(I117,ProduktionStammdaten!$B$38:$C$41,2,FALSE) ->  | J117: =VLOOKUP($A117,Artikelstamm!$C$3:$EW$2746,107,FALSE) -> Dinkelflocken Kleinb | K117: =VLOOKUP($A117,Artikelstamm!$C$3:$EW$2746,13,FALSE) -> 6*500G | L117: =VLOOKUP($A117,Artikelstamm!$C$3:$EW$2746,94,FALSE) -> 60 | M117: =VLOOKUP($A117,Artikelstamm!$C$3:$EW$2746,2,FALSE) -> Dinkelflocken Kleinblatt, demeter | Q117: -1
A118: 062428 | B118: =VLOOKUP(C118,ProduktionStammdaten!$B$2:$C$6,2,FALSE) -> 2500 | C118: GroßFmtWaage | D118: =VLOOKUP(E118,ProduktionStammdaten!$B$13:$C$28,2,FALSE) -> 2000 | E118: FaWeMaGroßFmtFlocken | F118: =VLOOKUP(G118,ProduktionStammdaten!$B$32:$C$34,2,FALSE) ->  | H118: =VLOOKUP(I118,ProduktionStammdaten!$B$38:$C$41,2,FALSE) ->  | J118: =VLOOKUP($A118,Artikelstamm!$C$3:$EW$2746,107,FALSE) -> Dinkelflocken Zartbl | K118: =VLOOKUP($A118,Artikelstamm!$C$3:$EW$2746,13,FALSE) -> 6*375G | L118: =VLOOKUP($A118,Artikelstamm!$C$3:$EW$2746,94,FALSE) -> 60 | M118: =VLOOKUP($A118,Artikelstamm!$C$3:$EW$2746,2,FALSE) -> Dinkelflocken Zartblatt, demeter | Q118: -1
A119: 062432 | B119: =VLOOKUP(C119,ProduktionStammdaten!$B$2:$C$6,2,FALSE) -> 2500 | C119: GroßFmtWaage | D119: =VLOOKUP(E119,ProduktionStammdaten!$B$13:$C$28,2,FALSE) -> 2000 | E119: FaWeMaGroßFmtFlocken | F119: =VLOOKUP(G119,ProduktionStammdaten!$B$32:$C$34,2,FALSE) ->  | H119: =VLOOKUP(I119,ProduktionStammdaten!$B$38:$C$41,2,FALSE) ->  | J119: =VLOOKUP($A119,Artikelstamm!$C$3:$EW$2746,107,FALSE) -> Hafer Porridgeflocke | K119: =VLOOKUP($A119,Artikelstamm!$C$3:$EW$2746,13,FALSE) -> 6*425G | L119: =VLOOKUP($A119,Artikelstamm!$C$3:$EW$2746,94,FALSE) -> 60 | M119: =VLOOKUP($A119,Artikelstamm!$C$3:$EW$2746,2,FALSE) -> Hafer Porridgeflocken Klassik, demeter | O119: 1 | Q119: -1
A120: 062434 | B120: =VLOOKUP(C120,ProduktionStammdaten!$B$2:$C$6,2,FALSE) -> 2500 | C120: GroßFmtWaage | D120: =VLOOKUP(E120,ProduktionStammdaten!$B$13:$C$28,2,FALSE) -> 2000 | E120: FaWeMaGroßFmtFlocken | F120: =VLOOKUP(G120,ProduktionStammdaten!$B$32:$C$34,2,FALSE) ->  | H120: =VLOOKUP(I120,ProduktionStammdaten!$B$38:$C$41,2,FALSE) ->  | J120: =VLOOKUP($A120,Artikelstamm!$C$3:$EW$2746,107,FALSE) -> Dinkel Porridgeflock | K120: =VLOOKUP($A120,Artikelstamm!$C$3:$EW$2746,13,FALSE) -> 6*425G | L120: =VLOOKUP($A120,Artikelstamm!$C$3:$EW$2746,94,FALSE) -> 60 | M120: =VLOOKUP($A120,Artikelstamm!$C$3:$EW$2746,2,FALSE) -> Dinkel Porridgeflocken Klassik, demeter | O120: 1 | Q120: -1
A121: 062436 | B121: =VLOOKUP(C121,ProduktionStammdaten!$B$2:$C$6,2,FALSE) -> 2500 | C121: GroßFmtWaage | D121: =VLOOKUP(E121,ProduktionStammdaten!$B$13:$C$28,2,FALSE) -> 2000 | E121: FaWeMaGroßFmtFlocken | F121: =VLOOKUP(G121,ProduktionStammdaten!$B$32:$C$34,2,FALSE) ->  | H121: =VLOOKUP(I121,ProduktionStammdaten!$B$38:$C$41,2,FALSE) ->  | J121: =VLOOKUP($A121,Artikelstamm!$C$3:$EW$2746,107,FALSE) -> Hafer Erdmandel Porr | K121: =VLOOKUP($A121,Artikelstamm!$C$3:$EW$2746,13,FALSE) -> 6*425G | L121: =VLOOKUP($A121,Artikelstamm!$C$3:$EW$2746,94,FALSE) -> 60 | M121: =VLOOKUP($A121,Artikelstamm!$C$3:$EW$2746,2,FALSE) -> Hafer Erdmandel Porridgeflocken, demeter | O121: 1 | Q121: -1
A122: 062456 | B122: =VLOOKUP(C122,ProduktionStammdaten!$B$2:$C$6,2,FALSE) ->  | D122: =VLOOKUP(E122,ProduktionStammdaten!$B$13:$C$28,2,FALSE) -> 1500 | E122: FaWeMaKleinFmtFlocken | F122: =VLOOKUP(G122,ProduktionStammdaten!$B$32:$C$34,2,FALSE) ->  | H122: =VLOOKUP(I122,ProduktionStammdaten!$B$38:$C$41,2,FALSE) ->  | J122: =VLOOKUP($A122,Artikelstamm!$C$3:$EW$2746,107,FALSE) -> Reisflocken glutenfr | K122: =VLOOKUP($A122,Artikelstamm!$C$3:$EW$2746,13,FALSE) -> 4*250G | L122: =VLOOKUP($A122,Artikelstamm!$C$3:$EW$2746,94,FALSE) -> 64 | M122: =VLOOKUP($A122,Artikelstamm!$C$3:$EW$2746,2,FALSE) -> Glutenfreie Reisflocken, demeter | Q122: 1 | R122: 1
A123: 062458 | B123: =VLOOKUP(C123,ProduktionStammdaten!$B$2:$C$6,2,FALSE) -> 2500 | C123: GroßFmtWaage | D123: =VLOOKUP(E123,ProduktionStammdaten!$B$13:$C$28,2,FALSE) -> 2000 | E123: FaWeMaGroßFmtFlocken | F123: =VLOOKUP(G123,ProduktionStammdaten!$B$32:$C$34,2,FALSE) ->  | H123: =VLOOKUP(I123,ProduktionStammdaten!$B$38:$C$41,2,FALSE) ->  | J123: =VLOOKUP($A123,Artikelstamm!$C$3:$EW$2746,107,FALSE) -> Reisflocken, demeter | K123: =VLOOKUP($A123,Artikelstamm!$C$3:$EW$2746,13,FALSE) -> 6*500G | L123: =VLOOKUP($A123,Artikelstamm!$C$3:$EW$2746,94,FALSE) -> 60 | M123: =VLOOKUP($A123,Artikelstamm!$C$3:$EW$2746,2,FALSE) -> Reisflocken, demeter | Q123: 0
A124: 062476 | B124: =VLOOKUP(C124,ProduktionStammdaten!$B$2:$C$6,2,FALSE) ->  | D124: =VLOOKUP(E124,ProduktionStammdaten!$B$13:$C$28,2,FALSE) -> 1500 | E124: FaWeMaKleinFmtFlocken | F124: =VLOOKUP(G124,ProduktionStammdaten!$B$32:$C$34,2,FALSE) ->  | H124: =VLOOKUP(I124,ProduktionStammdaten!$B$38:$C$41,2,FALSE) ->  | J124: =VLOOKUP($A124,Artikelstamm!$C$3:$EW$2746,107,FALSE) -> Buchweizenflocken gf | K124: =VLOOKUP($A124,Artikelstamm!$C$3:$EW$2746,13,FALSE) -> 4*250G | L124: =VLOOKUP($A124,Artikelstamm!$C$3:$EW$2746,94,FALSE) -> 64 | M124: =VLOOKUP($A124,Artikelstamm!$C$3:$EW$2746,2,FALSE) -> Glutenfreie Buchweizenflocken, kbA | Q124: 1 | R124: 1
A125: 062479 | B125: =VLOOKUP(C125,ProduktionStammdaten!$B$2:$C$6,2,FALSE) -> 2500 | C125: GroßFmtWaage | D125: =VLOOKUP(E125,ProduktionStammdaten!$B$13:$C$28,2,FALSE) -> 2000 | E125: FaWeMaGroßFmtFlocken | F125: =VLOOKUP(G125,ProduktionStammdaten!$B$32:$C$34,2,FALSE) ->  | H125: =VLOOKUP(I125,ProduktionStammdaten!$B$38:$C$41,2,FALSE) ->  | J125: =VLOOKUP($A125,Artikelstamm!$C$3:$EW$2746,107,FALSE) -> Buchweizenflocken kb | K125: =VLOOKUP($A125,Artikelstamm!$C$3:$EW$2746,13,FALSE) -> 6*500G | L125: =VLOOKUP($A125,Artikelstamm!$C$3:$EW$2746,94,FALSE) -> 60 | M125: =VLOOKUP($A125,Artikelstamm!$C$3:$EW$2746,2,FALSE) -> Buchweizenflocken, kbA | Q125: 0 | S125: 1
A126: 062488 | B126: =VLOOKUP(C126,ProduktionStammdaten!$B$2:$C$6,2,FALSE) -> 2500 | C126: GroßFmtWaage | D126: =VLOOKUP(E126,ProduktionStammdaten!$B$13:$C$28,2,FALSE) -> 2000 | E126: FaWeMaGroßFmtFlocken | F126: =VLOOKUP(G126,ProduktionStammdaten!$B$32:$C$34,2,FALSE) ->  | H126: =VLOOKUP(I126,ProduktionStammdaten!$B$38:$C$41,2,FALSE) ->  | J126: =VLOOKUP($A126,Artikelstamm!$C$3:$EW$2746,107,FALSE) -> Sojaflocken, demeter | K126: =VLOOKUP($A126,Artikelstamm!$C$3:$EW$2746,13,FALSE) -> 6*500G | L126: =VLOOKUP($A126,Artikelstamm!$C$3:$EW$2746,94,FALSE) -> 60 | M126: =VLOOKUP($A126,Artikelstamm!$C$3:$EW$2746,2,FALSE) -> Sojaflocken, demeter | Q126: 0 | S126: 1
A127: 062496 | B127: =VLOOKUP(C127,ProduktionStammdaten!$B$2:$C$6,2,FALSE) ->  | D127: =VLOOKUP(E127,ProduktionStammdaten!$B$13:$C$28,2,FALSE) -> 1500 | E127: FaWeMaKleinFmtFlocken | F127: =VLOOKUP(G127,ProduktionStammdaten!$B$32:$C$34,2,FALSE) ->  | H127: =VLOOKUP(I127,ProduktionStammdaten!$B$38:$C$41,2,FALSE) ->  | J127: =VLOOKUP($A127,Artikelstamm!$C$3:$EW$2746,107,FALSE) -> Hirseflocken glutenf | K127: =VLOOKUP($A127,Artikelstamm!$C$3:$EW$2746,13,FALSE) -> 4*250G | L127: =VLOOKUP($A127,Artikelstamm!$C$3:$EW$2746,94,FALSE) -> 64 | M127: =VLOOKUP($A127,Artikelstamm!$C$3:$EW$2746,2,FALSE) -> Glutenfreie Hirseflocken, kbA | Q127: 1 | R127: 1
A128: 062498 | B128: =VLOOKUP(C128,ProduktionStammdaten!$B$2:$C$6,2,FALSE) -> 2500 | C128: GroßFmtWaage | D128: =VLOOKUP(E128,ProduktionStammdaten!$B$13:$C$28,2,FALSE) -> 2000 | E128: FaWeMaGroßFmtFlocken | F128: =VLOOKUP(G128,ProduktionStammdaten!$B$32:$C$34,2,FALSE) ->  | H128: =VLOOKUP(I128,ProduktionStammdaten!$B$38:$C$41,2,FALSE) ->  | J128: =VLOOKUP($A128,Artikelstamm!$C$3:$EW$2746,107,FALSE) -> Hirseflocken, kbA | K128: =VLOOKUP($A128,Artikelstamm!$C$3:$EW$2746,13,FALSE) -> 6*500G | L128: =VLOOKUP($A128,Artikelstamm!$C$3:$EW$2746,94,FALSE) -> 60 | M128: =VLOOKUP($A128,Artikelstamm!$C$3:$EW$2746,2,FALSE) -> Hirseflocken, kbA | Q128: 0
A129: 062508 | B129: =VLOOKUP(C129,ProduktionStammdaten!$B$2:$C$6,2,FALSE) -> 2500 | C129: GroßFmtWaage | D129: =VLOOKUP(E129,ProduktionStammdaten!$B$13:$C$28,2,FALSE) -> 2000 | E129: FaWeMaGroßFmtFlocken | F129: =VLOOKUP(G129,ProduktionStammdaten!$B$32:$C$34,2,FALSE) ->  | H129: =VLOOKUP(I129,ProduktionStammdaten!$B$38:$C$41,2,FALSE) ->  | J129: =VLOOKUP($A129,Artikelstamm!$C$3:$EW$2746,107,FALSE) -> 3-Korn-Flocken, deme | K129: =VLOOKUP($A129,Artikelstamm!$C$3:$EW$2746,13,FALSE) -> 6*500G | L129: =VLOOKUP($A129,Artikelstamm!$C$3:$EW$2746,94,FALSE) -> 60 | M129: =VLOOKUP($A129,Artikelstamm!$C$3:$EW$2746,2,FALSE) -> 3-Korn-Flocken, demeter | O129: 1 | Q129: -1
A130: 062514 | B130: =VLOOKUP(C130,ProduktionStammdaten!$B$2:$C$6,2,FALSE) ->  | D130: =VLOOKUP(E130,ProduktionStammdaten!$B$13:$C$28,2,FALSE) ->  | F130: =VLOOKUP(G130,ProduktionStammdaten!$B$32:$C$34,2,FALSE) ->  | H130: =VLOOKUP(I130,ProduktionStammdaten!$B$38:$C$41,2,FALSE) -> 90 | I130: 2 Kippungen | J130: =VLOOKUP($A130,Artikelstamm!$C$3:$EW$2746,107,FALSE) -> Weizenflocken unverp | K130: =VLOOKUP($A130,Artikelstamm!$C$3:$EW$2746,13,FALSE) -> 6*2,5KG | L130: =VLOOKUP($A130,Artikelstamm!$C$3:$EW$2746,94,FALSE) -> 16 | M130: =VLOOKUP($A130,Artikelstamm!$C$3:$EW$2746,2,FALSE) -> 4-Kornflocken, weizenfrei, demeter, Unver.+ Vorrat | O130: 1 | R130: 1
A131: 062516 | B131: =VLOOKUP(C131,ProduktionStammdaten!$B$2:$C$6,2,FALSE) ->  | D131: =VLOOKUP(E131,ProduktionStammdaten!$B$13:$C$28,2,FALSE) -> 1500 | E131: FaWeMaMaxiWaage | F131: =VLOOKUP(G131,ProduktionStammdaten!$B$32:$C$34,2,FALSE) -> 900 | G131: Maxiformat | H131: =VLOOKUP(I131,ProduktionStammdaten!$B$38:$C$41,2,FALSE) ->  | J131: =VLOOKUP($A131,Artikelstamm!$C$3:$EW$2746,107,FALSE) -> 4-Kornflocken demete | K131: =VLOOKUP($A131,Artikelstamm!$C$3:$EW$2746,13,FALSE) -> 6*1KG | L131: =VLOOKUP($A131,Artikelstamm!$C$3:$EW$2746,94,FALSE) -> 36 | M131: =VLOOKUP($A131,Artikelstamm!$C$3:$EW$2746,2,FALSE) -> 4-Korn-Flocken, weizenfrei, demeter | O131: 1 | Q131: -1
A132: 062518 | B132: =VLOOKUP(C132,ProduktionStammdaten!$B$2:$C$6,2,FALSE) -> 2500 | C132: GroßFmtWaage | D132: =VLOOKUP(E132,ProduktionStammdaten!$B$13:$C$28,2,FALSE) -> 2000 | E132: FaWeMaGroßFmtFlocken | F132: =VLOOKUP(G132,ProduktionStammdaten!$B$32:$C$34,2,FALSE) ->  | H132: =VLOOKUP(I132,ProduktionStammdaten!$B$38:$C$41,2,FALSE) ->  | J132: =VLOOKUP($A132,Artikelstamm!$C$3:$EW$2746,107,FALSE) -> 4-Korn-Flocken, deme | K132: =VLOOKUP($A132,Artikelstamm!$C$3:$EW$2746,13,FALSE) -> 6*500G | L132: =VLOOKUP($A132,Artikelstamm!$C$3:$EW$2746,94,FALSE) -> 60 | M132: =VLOOKUP($A132,Artikelstamm!$C$3:$EW$2746,2,FALSE) -> 4-Korn-Flocken, demeter | O132: 1 | Q132: -1
A133: 062528 | B133: =VLOOKUP(C133,ProduktionStammdaten!$B$2:$C$6,2,FALSE) -> 2500 | C133: GroßFmtWaage | D133: =VLOOKUP(E133,ProduktionStammdaten!$B$13:$C$28,2,FALSE) ->  | F133: =VLOOKUP(G133,ProduktionStammdaten!$B$32:$C$34,2,FALSE) ->  | H133: =VLOOKUP(I133,ProduktionStammdaten!$B$38:$C$41,2,FALSE) ->  | J133: =VLOOKUP($A133,Artikelstamm!$C$3:$EW$2746,107,FALSE) -> 6-Korn-Flocken, dem. | K133: =VLOOKUP($A133,Artikelstamm!$C$3:$EW$2746,13,FALSE) -> 6*500G | L133: =VLOOKUP($A133,Artikelstamm!$C$3:$EW$2746,94,FALSE) -> 60 | M133: =VLOOKUP($A133,Artikelstamm!$C$3:$EW$2746,2,FALSE) -> 6-Korn-Flocken, demeter | O133: 1 | Q133: -1
A134: 062538 | B134: =VLOOKUP(C134,ProduktionStammdaten!$B$2:$C$6,2,FALSE) -> 2500 | C134: GroßFmtWaage | D134: =VLOOKUP(E134,ProduktionStammdaten!$B$13:$C$28,2,FALSE) -> 2000 | E134: FaWeMaGroßFmtFlocken | F134: =VLOOKUP(G134,ProduktionStammdaten!$B$32:$C$34,2,FALSE) ->  | H134: =VLOOKUP(I134,ProduktionStammdaten!$B$38:$C$41,2,FALSE) ->  | J134: =VLOOKUP($A134,Artikelstamm!$C$3:$EW$2746,107,FALSE) -> 5-Korn-Flocken Zartb | K134: =VLOOKUP($A134,Artikelstamm!$C$3:$EW$2746,13,FALSE) -> 6*375G | L134: =VLOOKUP($A134,Artikelstamm!$C$3:$EW$2746,94,FALSE) -> 60 | M134: =VLOOKUP($A134,Artikelstamm!$C$3:$EW$2746,2,FALSE) -> 5-Korn-Flocken Zartblatt, demeter | O134: 1 | Q134: -1
A135: 062546 | B135: =VLOOKUP(C135,ProduktionStammdaten!$B$2:$C$6,2,FALSE) ->  | D135: =VLOOKUP(E135,ProduktionStammdaten!$B$13:$C$28,2,FALSE) -> 1200 | E135: PreWaGroßFmtWaage | F135: =VLOOKUP(G135,ProduktionStammdaten!$B$32:$C$34,2,FALSE) ->  | H135: =VLOOKUP(I135,ProduktionStammdaten!$B$38:$C$41,2,FALSE) ->  | J135: =VLOOKUP($A135,Artikelstamm!$C$3:$EW$2746,107,FALSE) -> Dinkelflakes, biolan | K135: =VLOOKUP($A135,Artikelstamm!$C$3:$EW$2746,13,FALSE) -> 6*250G | L135: =VLOOKUP($A135,Artikelstamm!$C$3:$EW$2746,94,FALSE) -> 60 | M135: =VLOOKUP($A135,Artikelstamm!$C$3:$EW$2746,2,FALSE) -> Dinkelflakes, bioland | Q135: -1
A136: 062556 | B136: =VLOOKUP(C136,ProduktionStammdaten!$B$2:$C$6,2,FALSE) ->  | D136: 1200 | E136: PreWaGroßFmtWaage | F136: =VLOOKUP(G136,ProduktionStammdaten!$B$32:$C$34,2,FALSE) ->  | H136: =VLOOKUP(I136,ProduktionStammdaten!$B$38:$C$41,2,FALSE) ->  | J136: =VLOOKUP($A136,Artikelstamm!$C$3:$EW$2746,107,FALSE) -> Dinkelflakes, demet. | K136: =VLOOKUP($A136,Artikelstamm!$C$3:$EW$2746,13,FALSE) -> 6*250G | L136: =VLOOKUP($A136,Artikelstamm!$C$3:$EW$2746,94,FALSE) -> 60 | M136: =VLOOKUP($A136,Artikelstamm!$C$3:$EW$2746,2,FALSE) -> Dinkelflakes, demeter | Q136: -1
A137: 062559 | B137: =VLOOKUP(C137,ProduktionStammdaten!$B$2:$C$6,2,FALSE) ->  | D137: 1200 | E137: PreWaGroßFmtWaage | F137: =VLOOKUP(G137,ProduktionStammdaten!$B$32:$C$34,2,FALSE) ->  | H137: =VLOOKUP(I137,ProduktionStammdaten!$B$38:$C$41,2,FALSE) ->  | J137: =VLOOKUP($A137,Artikelstamm!$C$3:$EW$2746,107,FALSE) -> aornflakes, demeter | K137: =VLOOKUP($A137,Artikelstamm!$C$3:$EW$2746,13,FALSE) -> 6*250G | L137: =VLOOKUP($A137,Artikelstamm!$C$3:$EW$2746,94,FALSE) -> 60 | M137: =VLOOKUP($A137,Artikelstamm!$C$3:$EW$2746,2,FALSE) -> Cornflakes, demeter glutenfrei | Q137: 1 | R137: 1
A138: 062560 | B138: =VLOOKUP(C138,ProduktionStammdaten!$B$2:$C$6,2,FALSE) ->  | D138: 1200 | E138: PreWaGroßFmtWaage | F138: =VLOOKUP(G138,ProduktionStammdaten!$B$32:$C$34,2,FALSE) ->  | H138: =VLOOKUP(I138,ProduktionStammdaten!$B$38:$C$41,2,FALSE) ->  | J138: =VLOOKUP($A138,Artikelstamm!$C$3:$EW$2746,107,FALSE) -> Reisflakes glutenfre | K138: =VLOOKUP($A138,Artikelstamm!$C$3:$EW$2746,13,FALSE) -> 6*250G | L138: =VLOOKUP($A138,Artikelstamm!$C$3:$EW$2746,94,FALSE) -> 60 | M138: =VLOOKUP($A138,Artikelstamm!$C$3:$EW$2746,2,FALSE) -> Reisflakes aus Vollkornreis, demeter glutenfrei | Q138: 1 | R138: 1
A139: 062563 | B139: =VLOOKUP(C139,ProduktionStammdaten!$B$2:$C$6,2,FALSE) -> 2500 | C139: GroßFmtWaage | D139: =VLOOKUP(E139,ProduktionStammdaten!$B$13:$C$28,2,FALSE) -> 2000 | E139: FaWeMaGroßFmtFlocken | F139: =VLOOKUP(G139,ProduktionStammdaten!$B$32:$C$34,2,FALSE) ->  | H139: =VLOOKUP(I139,ProduktionStammdaten!$B$38:$C$41,2,FALSE) ->  | J139: =VLOOKUP($A139,Artikelstamm!$C$3:$EW$2746,107,FALSE) -> Hafer-Schoko-Müsli | K139: =VLOOKUP($A139,Artikelstamm!$C$3:$EW$2746,13,FALSE) -> 6*375G | L139: =VLOOKUP($A139,Artikelstamm!$C$3:$EW$2746,94,FALSE) -> 60 | M139: =VLOOKUP($A139,Artikelstamm!$C$3:$EW$2746,2,FALSE) -> Hafer-Schoko-Müsli (M06), demeter | O139: 1 | Q139: -1
A140: 062564 | B140: =VLOOKUP(C140,ProduktionStammdaten!$B$2:$C$6,2,FALSE) ->  | D140: =VLOOKUP(E140,ProduktionStammdaten!$B$13:$C$28,2,FALSE) -> 1500 | E140: FaWeMaMaxiWaage | F140: =VLOOKUP(G140,ProduktionStammdaten!$B$32:$C$34,2,FALSE) -> 900 | G140: Maxiformat | H140: =VLOOKUP(I140,ProduktionStammdaten!$B$38:$C$41,2,FALSE) ->  | J140: =VLOOKUP($A140,Artikelstamm!$C$3:$EW$2746,107,FALSE) -> Hafer-Schoko-Müsli | K140: =VLOOKUP($A140,Artikelstamm!$C$3:$EW$2746,13,FALSE) -> 6*750G | L140: =VLOOKUP($A140,Artikelstamm!$C$3:$EW$2746,94,FALSE) -> 36 | M140: =VLOOKUP($A140,Artikelstamm!$C$3:$EW$2746,2,FALSE) -> Hafer-Schoko-Müsli (M06), demeter | O140: 1 | Q140: -1
A141: 062570 | B141: =VLOOKUP(C141,ProduktionStammdaten!$B$2:$C$6,2,FALSE) ->  | D141: 1200 | E141: PreWaGroßFmtWaage | F141: =VLOOKUP(G141,ProduktionStammdaten!$B$32:$C$34,2,FALSE) ->  | H141: =VLOOKUP(I141,ProduktionStammdaten!$B$38:$C$41,2,FALSE) ->  | J141: =VLOOKUP($A141,Artikelstamm!$C$3:$EW$2746,107,FALSE) -> Buchweizenflakes gf | K141: =VLOOKUP($A141,Artikelstamm!$C$3:$EW$2746,13,FALSE) -> 6*250G | L141: =VLOOKUP($A141,Artikelstamm!$C$3:$EW$2746,94,FALSE) -> 60 | M141: =VLOOKUP($A141,Artikelstamm!$C$3:$EW$2746,2,FALSE) -> Buchweizenflakes, ungesüßt, glutenfrei, kbA | Q141: 1 | R141: 1
A142: 062573 | B142: =VLOOKUP(C142,ProduktionStammdaten!$B$2:$C$6,2,FALSE) ->  | D142: =VLOOKUP(E142,ProduktionStammdaten!$B$13:$C$28,2,FALSE) -> 1200 | E142: PreWaGroßFmtWaage | F142: =VLOOKUP(G142,ProduktionStammdaten!$B$32:$C$34,2,FALSE) ->  | H142: =VLOOKUP(I142,ProduktionStammdaten!$B$38:$C$41,2,FALSE) ->  | J142: =VLOOKUP($A142,Artikelstamm!$C$3:$EW$2746,107,FALSE) -> Vollkornreis gepufft | K142: =VLOOKUP($A142,Artikelstamm!$C$3:$EW$2746,13,FALSE) -> 6*125G | L142: =VLOOKUP($A142,Artikelstamm!$C$3:$EW$2746,94,FALSE) -> 60 | M142: =VLOOKUP($A142,Artikelstamm!$C$3:$EW$2746,2,FALSE) -> Glutenfreier Vollkornreis, gepufft, kbA | Q142: 1 | R142: 1
A143: 062576 | B143: =VLOOKUP(C143,ProduktionStammdaten!$B$2:$C$6,2,FALSE) ->  | D143: 600 | E143: PreWaGroßFmtWaage | F143: =VLOOKUP(G143,ProduktionStammdaten!$B$32:$C$34,2,FALSE) ->  | H143: =VLOOKUP(I143,ProduktionStammdaten!$B$38:$C$41,2,FALSE) ->  | J143: =VLOOKUP($A143,Artikelstamm!$C$3:$EW$2746,107,FALSE) -> Braunhirsebällchen | K143: =VLOOKUP($A143,Artikelstamm!$C$3:$EW$2746,13,FALSE) -> 6*150G | L143: =VLOOKUP($A143,Artikelstamm!$C$3:$EW$2746,94,FALSE) -> 36 | M143: =VLOOKUP($A143,Artikelstamm!$C$3:$EW$2746,2,FALSE) -> Glutenfreie Braunhirsebällchen, kbA | Q143: 1 | R143: 1
A144: 062591 | B144: =VLOOKUP(C144,ProduktionStammdaten!$B$2:$C$6,2,FALSE) -> 2500 | C144: GroßFmtWaage | D144: =VLOOKUP(E144,ProduktionStammdaten!$B$13:$C$28,2,FALSE) ->  | F144: =VLOOKUP(G144,ProduktionStammdaten!$B$32:$C$34,2,FALSE) ->  | H144: =VLOOKUP(I144,ProduktionStammdaten!$B$38:$C$41,2,FALSE) ->  | J144: =VLOOKUP($A144,Artikelstamm!$C$3:$EW$2746,107,FALSE) -> Dinkel-Früchte-Müsli | K144: =VLOOKUP($A144,Artikelstamm!$C$3:$EW$2746,13,FALSE) -> 6*500G | L144: =VLOOKUP($A144,Artikelstamm!$C$3:$EW$2746,94,FALSE) -> 60 | M144: =VLOOKUP($A144,Artikelstamm!$C$3:$EW$2746,2,FALSE) -> Dinkel-Früchte-Müsli (M01), demeter | O144: 1 | P144: 1 | Q144: -1
A145: 062593 | B145: =VLOOKUP(C145,ProduktionStammdaten!$B$2:$C$6,2,FALSE) -> 2500 | C145: GroßFmtWaage | D145: =VLOOKUP(E145,ProduktionStammdaten!$B$13:$C$28,2,FALSE) ->  | F145: =VLOOKUP(G145,ProduktionStammdaten!$B$32:$C$34,2,FALSE) ->  | H145: =VLOOKUP(I145,ProduktionStammdaten!$B$38:$C$41,2,FALSE) ->  | J145: =VLOOKUP($A145,Artikelstamm!$C$3:$EW$2746,107,FALSE) -> Gerste-Mandel-Brei | K145: =VLOOKUP($A145,Artikelstamm!$C$3:$EW$2746,13,FALSE) -> 6*500G | L145: =VLOOKUP($A145,Artikelstamm!$C$3:$EW$2746,94,FALSE) -> 60 | M145: =VLOOKUP($A145,Artikelstamm!$C$3:$EW$2746,2,FALSE) -> Gerste-Mandel-Müslibrei (M03), demeter | O145: 1 | P145: 1 | Q145: -1
A146: 062594 | B146: =VLOOKUP(C146,ProduktionStammdaten!$B$2:$C$6,2,FALSE) -> 2500 | C146: GroßFmtWaage | D146: =VLOOKUP(E146,ProduktionStammdaten!$B$13:$C$28,2,FALSE) ->  | F146: =VLOOKUP(G146,ProduktionStammdaten!$B$32:$C$34,2,FALSE) ->  | H146: =VLOOKUP(I146,ProduktionStammdaten!$B$38:$C$41,2,FALSE) ->  | J146: =VLOOKUP($A146,Artikelstamm!$C$3:$EW$2746,107,FALSE) -> Hirse-Apfel-Brei | K146: =VLOOKUP($A146,Artikelstamm!$C$3:$EW$2746,13,FALSE) -> 6*375G | L146: =VLOOKUP($A146,Artikelstamm!$C$3:$EW$2746,94,FALSE) -> 60 | M146: =VLOOKUP($A146,Artikelstamm!$C$3:$EW$2746,2,FALSE) -> Hirse-Apfel-Müslibrei (M04), demeter | O146: 1 | P146: 1 | Q146: -1
A147: 062595 | B147: =VLOOKUP(C147,ProduktionStammdaten!$B$2:$C$6,2,FALSE) -> 2500 | C147: GroßFmtWaage | D147: =VLOOKUP(E147,ProduktionStammdaten!$B$13:$C$28,2,FALSE) -> 2000 | E147: FaWeMaGroßFmtFlocken | F147: =VLOOKUP(G147,ProduktionStammdaten!$B$32:$C$34,2,FALSE) ->  | H147: =VLOOKUP(I147,ProduktionStammdaten!$B$38:$C$41,2,FALSE) ->  | J147: =VLOOKUP($A147,Artikelstamm!$C$3:$EW$2746,107,FALSE) -> Roggen-Urkorn-Müsli | K147: =VLOOKUP($A147,Artikelstamm!$C$3:$EW$2746,13,FALSE) -> 6*500G | L147: =VLOOKUP($A147,Artikelstamm!$C$3:$EW$2746,94,FALSE) -> 60 | M147: =VLOOKUP($A147,Artikelstamm!$C$3:$EW$2746,2,FALSE) -> Roggen-Urkorn-Birchermüsli (M05), demeter | O147: 1 | P147: 1 | Q147: -1
A148: 062598 | B148: =VLOOKUP(C148,ProduktionStammdaten!$B$2:$C$6,2,FALSE) ->  | D148: =VLOOKUP(E148,ProduktionStammdaten!$B$13:$C$28,2,FALSE) -> 1200 | E148: PreWaGroßFmtWaage | F148: =VLOOKUP(G148,ProduktionStammdaten!$B$32:$C$34,2,FALSE) ->  | H148: =VLOOKUP(I148,ProduktionStammdaten!$B$38:$C$41,2,FALSE) ->  | J148: =VLOOKUP($A148,Artikelstamm!$C$3:$EW$2746,107,FALSE) -> 3-Korn-Mandel-Müsli | K148: =VLOOKUP($A148,Artikelstamm!$C$3:$EW$2746,13,FALSE) -> 6*375G | L148: =VLOOKUP($A148,Artikelstamm!$C$3:$EW$2746,94,FALSE) -> 60 | M148: =VLOOKUP($A148,Artikelstamm!$C$3:$EW$2746,2,FALSE) -> Glutenfreies 3-Korn-Mandel Müsli, kbA | O148: 1 | Q148: 1 | R148: 1
A149: 062710 | B149: =VLOOKUP(C149,ProduktionStammdaten!$B$2:$C$6,2,FALSE) ->  | D149: =VLOOKUP(E149,ProduktionStammdaten!$B$13:$C$28,2,FALSE) ->  | F149: =VLOOKUP(G149,ProduktionStammdaten!$B$32:$C$34,2,FALSE) ->  | H149: =VLOOKUP(I149,ProduktionStammdaten!$B$38:$C$41,2,FALSE) -> 90 | I149: 2 Kippungen | J149: =VLOOKUP($A149,Artikelstamm!$C$3:$EW$2746,107,FALSE) -> Basis-Müsli unverpac | K149: =VLOOKUP($A149,Artikelstamm!$C$3:$EW$2746,13,FALSE) -> 6*3KG | L149: =VLOOKUP($A149,Artikelstamm!$C$3:$EW$2746,94,FALSE) -> 16 | M149: =VLOOKUP($A149,Artikelstamm!$C$3:$EW$2746,2,FALSE) -> Basis-Müsli, kbA, 3kg - NF Unverpackt + Vorrat | O149: 1 | P149: 1 | Q149: -1 | R149: 1
A150: 062712 | B150: =VLOOKUP(C150,ProduktionStammdaten!$B$2:$C$6,2,FALSE) ->  | D150: =VLOOKUP(E150,ProduktionStammdaten!$B$13:$C$28,2,FALSE) ->  | F150: =VLOOKUP(G150,ProduktionStammdaten!$B$32:$C$34,2,FALSE) ->  | H150: =VLOOKUP(I150,ProduktionStammdaten!$B$38:$C$41,2,FALSE) -> 90 | I150: 2 Kippungen | J150: =VLOOKUP($A150,Artikelstamm!$C$3:$EW$2746,107,FALSE) -> Früchte-Müsli unverp | K150: =VLOOKUP($A150,Artikelstamm!$C$3:$EW$2746,13,FALSE) -> 6*3KG | L150: =VLOOKUP($A150,Artikelstamm!$C$3:$EW$2746,94,FALSE) -> 16 | M150: =VLOOKUP($A150,Artikelstamm!$C$3:$EW$2746,2,FALSE) -> Früchte-Müsli, kbA, 3kg - NF Unverpackt + Vorrat | O150: 1 | P150: 1 | Q150: -1 | R150: 1
A151: 062716 | B151: =VLOOKUP(C151,ProduktionStammdaten!$B$2:$C$6,2,FALSE) ->  | D151: =VLOOKUP(E151,ProduktionStammdaten!$B$13:$C$28,2,FALSE) ->  | F151: =VLOOKUP(G151,ProduktionStammdaten!$B$32:$C$34,2,FALSE) ->  | H151: =VLOOKUP(I151,ProduktionStammdaten!$B$38:$C$41,2,FALSE) -> 90 | I151: 2 Kippungen | J151: =VLOOKUP($A151,Artikelstamm!$C$3:$EW$2746,107,FALSE) -> Schoko-Müsli unverpa | K151: =VLOOKUP($A151,Artikelstamm!$C$3:$EW$2746,13,FALSE) -> 6*3KG | L151: =VLOOKUP($A151,Artikelstamm!$C$3:$EW$2746,94,FALSE) -> 16 | M151: =VLOOKUP($A151,Artikelstamm!$C$3:$EW$2746,2,FALSE) -> Schoko-Müsli, kbA, 3kg - NF Unverpackt + Vorrat | O151: 1 | P151: 1 | Q151: -1 | R151: 1
A152: 063200 | B152: =VLOOKUP(C152,ProduktionStammdaten!$B$2:$C$6,2,FALSE) ->  | D152: =VLOOKUP(E152,ProduktionStammdaten!$B$13:$C$28,2,FALSE) -> 1100 | E152: FaWeMaKleinFmtMehl | F152: =VLOOKUP(G152,ProduktionStammdaten!$B$32:$C$34,2,FALSE) ->  | H152: =VLOOKUP(I152,ProduktionStammdaten!$B$38:$C$41,2,FALSE) ->  | J152: =VLOOKUP($A152,Artikelstamm!$C$3:$EW$2746,107,FALSE) -> Mehlmix univ. gf | K152: =VLOOKUP($A152,Artikelstamm!$C$3:$EW$2746,13,FALSE) -> 4*500G | L152: =VLOOKUP($A152,Artikelstamm!$C$3:$EW$2746,94,FALSE) -> 64 | M152: =VLOOKUP($A152,Artikelstamm!$C$3:$EW$2746,2,FALSE) -> Glutenfreier Mehlmix universal, hell, demeter | P152: 1 | Q152: 1 | R152: 1
A153: 063210 | B153: =VLOOKUP(C153,ProduktionStammdaten!$B$2:$C$6,2,FALSE) ->  | D153: =VLOOKUP(E153,ProduktionStammdaten!$B$13:$C$28,2,FALSE) -> 1100 | E153: FaWeMaKleinFmtMehl | F153: =VLOOKUP(G153,ProduktionStammdaten!$B$32:$C$34,2,FALSE) ->  | H153: =VLOOKUP(I153,ProduktionStammdaten!$B$38:$C$41,2,FALSE) ->  | J153: =VLOOKUP($A153,Artikelstamm!$C$3:$EW$2746,107,FALSE) -> Mehlmix Brot glutenf | K153: =VLOOKUP($A153,Artikelstamm!$C$3:$EW$2746,13,FALSE) -> 4*500G | L153: =VLOOKUP($A153,Artikelstamm!$C$3:$EW$2746,94,FALSE) -> 64 | M153: =VLOOKUP($A153,Artikelstamm!$C$3:$EW$2746,2,FALSE) -> Glutenfreier Mehlmix Brot, dunkel, demeter | P153: 1 | Q153: 1 | R153: 1
A154: 063214 | B154: =VLOOKUP(C154,ProduktionStammdaten!$B$2:$C$6,2,FALSE) -> 2000 | C154: KleinFmtDosierer | D154: =VLOOKUP(E154,ProduktionStammdaten!$B$13:$C$28,2,FALSE) ->  | F154: =VLOOKUP(G154,ProduktionStammdaten!$B$32:$C$34,2,FALSE) ->  | H154: =VLOOKUP(I154,ProduktionStammdaten!$B$38:$C$41,2,FALSE) ->  | J154: =VLOOKUP($A154,Artikelstamm!$C$3:$EW$2746,107,FALSE) ->  | K154: =VLOOKUP($A154,Artikelstamm!$C$3:$EW$2746,13,FALSE) -> 4*500G | L154: =VLOOKUP($A154,Artikelstamm!$C$3:$EW$2746,94,FALSE) -> 64 | M154: =VLOOKUP($A154,Artikelstamm!$C$3:$EW$2746,2,FALSE) -> Backmischung Bauernbrot (Vollkorn), demeter
A155: 063216 | B155: =VLOOKUP(C155,ProduktionStammdaten!$B$2:$C$6,2,FALSE) ->  | D155: 750 | E155: FaWeMaGroßFmtMehl | F155: =VLOOKUP(G155,ProduktionStammdaten!$B$32:$C$34,2,FALSE) ->  | H155: =VLOOKUP(I155,ProduktionStammdaten!$B$38:$C$41,2,FALSE) ->  | J155: =VLOOKUP($A155,Artikelstamm!$C$3:$EW$2746,107,FALSE) ->  | K155: =VLOOKUP($A155,Artikelstamm!$C$3:$EW$2746,13,FALSE) -> 6*500G | L155: =VLOOKUP($A155,Artikelstamm!$C$3:$EW$2746,94,FALSE) -> 60 | M155: =VLOOKUP($A155,Artikelstamm!$C$3:$EW$2746,2,FALSE) -> Backmischung Haferbrot, glutenfrei, demeter
A156: 063222 | B156: =VLOOKUP(C156,ProduktionStammdaten!$B$2:$C$6,2,FALSE) -> 2000 | C156: KleinFmtDosierer | D156: =VLOOKUP(E156,ProduktionStammdaten!$B$13:$C$28,2,FALSE) ->  | F156: =VLOOKUP(G156,ProduktionStammdaten!$B$32:$C$34,2,FALSE) ->  | H156: =VLOOKUP(I156,ProduktionStammdaten!$B$38:$C$41,2,FALSE) ->  | J156: =VLOOKUP($A156,Artikelstamm!$C$3:$EW$2746,107,FALSE) ->  | K156: =VLOOKUP($A156,Artikelstamm!$C$3:$EW$2746,13,FALSE) -> 4*350G | L156: =VLOOKUP($A156,Artikelstamm!$C$3:$EW$2746,94,FALSE) -> 64 | M156: =VLOOKUP($A156,Artikelstamm!$C$3:$EW$2746,2,FALSE) -> Backmischung Dinkel-Pizzateig, demeter
A157: 063224 | B157: =VLOOKUP(C157,ProduktionStammdaten!$B$2:$C$6,2,FALSE) ->  | D157: 750 | E157: FaWeMaGroßFmtMehl | F157: =VLOOKUP(G157,ProduktionStammdaten!$B$32:$C$34,2,FALSE) ->  | H157: =VLOOKUP(I157,ProduktionStammdaten!$B$38:$C$41,2,FALSE) ->  | J157: =VLOOKUP($A157,Artikelstamm!$C$3:$EW$2746,107,FALSE) ->  | K157: =VLOOKUP($A157,Artikelstamm!$C$3:$EW$2746,13,FALSE) -> 6*600G | L157: =VLOOKUP($A157,Artikelstamm!$C$3:$EW$2746,94,FALSE) -> 60 | M157: =VLOOKUP($A157,Artikelstamm!$C$3:$EW$2746,2,FALSE) -> Backmischung Kraftbrot, glutenfrei, kbA
A158: 063226 | B158: =VLOOKUP(C158,ProduktionStammdaten!$B$2:$C$6,2,FALSE) ->  | D158: 600 | E158: FaWeMaKleinFmtMehl | F158: =VLOOKUP(G158,ProduktionStammdaten!$B$32:$C$34,2,FALSE) ->  | H158: =VLOOKUP(I158,ProduktionStammdaten!$B$38:$C$41,2,FALSE) ->  | J158: =VLOOKUP($A158,Artikelstamm!$C$3:$EW$2746,107,FALSE) ->  | K158: =VLOOKUP($A158,Artikelstamm!$C$3:$EW$2746,13,FALSE) -> 4*350G | L158: =VLOOKUP($A158,Artikelstamm!$C$3:$EW$2746,94,FALSE) -> 64 | M158: =VLOOKUP($A158,Artikelstamm!$C$3:$EW$2746,2,FALSE) -> Backmischung glutenfreier Pizzateig, kbA | P158: 1 | Q158: 1
A159: 063228 | B159: =VLOOKUP(C159,ProduktionStammdaten!$B$2:$C$6,2,FALSE) ->  | D159: =VLOOKUP(E159,ProduktionStammdaten!$B$13:$C$28,2,FALSE) -> 240 | E159: Kombi-Produktion | F159: =VLOOKUP(G159,ProduktionStammdaten!$B$32:$C$34,2,FALSE) ->  | H159: =VLOOKUP(I159,ProduktionStammdaten!$B$38:$C$41,2,FALSE) ->  | J159: =VLOOKUP($A159,Artikelstamm!$C$3:$EW$2746,107,FALSE) ->  | K159: =VLOOKUP($A159,Artikelstamm!$C$3:$EW$2746,13,FALSE) -> 8*580G | L159: =VLOOKUP($A159,Artikelstamm!$C$3:$EW$2746,94,FALSE) -> 36 | M159: =VLOOKUP($A159,Artikelstamm!$C$3:$EW$2746,2,FALSE) -> Backmischung Bagels, demeter
A160: 063302 | B160: =VLOOKUP(C160,ProduktionStammdaten!$B$2:$C$6,2,FALSE) ->  | D160: 600 | E160: FaWeMaKleinFmtMehl | F160: =VLOOKUP(G160,ProduktionStammdaten!$B$32:$C$34,2,FALSE) ->  | H160: =VLOOKUP(I160,ProduktionStammdaten!$B$38:$C$41,2,FALSE) ->  | J160: =VLOOKUP($A160,Artikelstamm!$C$3:$EW$2746,107,FALSE) ->  | K160: =VLOOKUP($A160,Artikelstamm!$C$3:$EW$2746,13,FALSE) -> 4*400G | L160: =VLOOKUP($A160,Artikelstamm!$C$3:$EW$2746,94,FALSE) -> 64 | M160: =VLOOKUP($A160,Artikelstamm!$C$3:$EW$2746,2,FALSE) -> Backmischung Brownies, glutenfrei, kbA | P160: 1 | Q160: 1
A161: 063306 | B161: =VLOOKUP(C161,ProduktionStammdaten!$B$2:$C$6,2,FALSE) ->  | D161: 600 | E161: FaWeMaKleinFmtMehl | F161: =VLOOKUP(G161,ProduktionStammdaten!$B$32:$C$34,2,FALSE) ->  | H161: =VLOOKUP(I161,ProduktionStammdaten!$B$38:$C$41,2,FALSE) ->  | J161: =VLOOKUP($A161,Artikelstamm!$C$3:$EW$2746,107,FALSE) ->  | K161: =VLOOKUP($A161,Artikelstamm!$C$3:$EW$2746,13,FALSE) -> 4*425G | L161: =VLOOKUP($A161,Artikelstamm!$C$3:$EW$2746,94,FALSE) -> 64 | M161: =VLOOKUP($A161,Artikelstamm!$C$3:$EW$2746,2,FALSE) -> Backmischung Schokokuchen, demeter
A162: 063308 | B162: =VLOOKUP(C162,ProduktionStammdaten!$B$2:$C$6,2,FALSE) ->  | D162: =VLOOKUP(E162,ProduktionStammdaten!$B$13:$C$28,2,FALSE) -> 240 | E162: Kombi-Produktion | F162: =VLOOKUP(G162,ProduktionStammdaten!$B$32:$C$34,2,FALSE) ->  | H162: =VLOOKUP(I162,ProduktionStammdaten!$B$38:$C$41,2,FALSE) ->  | J162: =VLOOKUP($A162,Artikelstamm!$C$3:$EW$2746,107,FALSE) ->  | K162: =VLOOKUP($A162,Artikelstamm!$C$3:$EW$2746,13,FALSE) -> 8*500G | L162: =VLOOKUP($A162,Artikelstamm!$C$3:$EW$2746,94,FALSE) -> 36 | M162: =VLOOKUP($A162,Artikelstamm!$C$3:$EW$2746,2,FALSE) -> Backmischung Käsekuchen, glutenfrei, kbA
A163: 063312 | B163: =VLOOKUP(C163,ProduktionStammdaten!$B$2:$C$6,2,FALSE) ->  | D163: =VLOOKUP(E163,ProduktionStammdaten!$B$13:$C$28,2,FALSE) -> 240 | E163: Kombi-Produktion | F163: =VLOOKUP(G163,ProduktionStammdaten!$B$32:$C$34,2,FALSE) ->  | H163: =VLOOKUP(I163,ProduktionStammdaten!$B$38:$C$41,2,FALSE) ->  | J163: =VLOOKUP($A163,Artikelstamm!$C$3:$EW$2746,107,FALSE) ->  | K163: =VLOOKUP($A163,Artikelstamm!$C$3:$EW$2746,13,FALSE) -> 8*485G | L163: =VLOOKUP($A163,Artikelstamm!$C$3:$EW$2746,94,FALSE) -> 36 | M163: =VLOOKUP($A163,Artikelstamm!$C$3:$EW$2746,2,FALSE) -> Backmischung Zitronenkuchen (Dinkel), demeter
A164: 063330 | B164: =VLOOKUP(C164,ProduktionStammdaten!$B$2:$C$6,2,FALSE) ->  | D164: 500 | E164: FaWeMaMaxiWaage | F164: =VLOOKUP(G164,ProduktionStammdaten!$B$32:$C$34,2,FALSE) ->  | H164: =VLOOKUP(I164,ProduktionStammdaten!$B$38:$C$41,2,FALSE) ->  | J164: =VLOOKUP($A164,Artikelstamm!$C$3:$EW$2746,107,FALSE) ->  | K164: =VLOOKUP($A164,Artikelstamm!$C$3:$EW$2746,13,FALSE) -> 6*609G | L164: =VLOOKUP($A164,Artikelstamm!$C$3:$EW$2746,94,FALSE) -> 36 | M164: =VLOOKUP($A164,Artikelstamm!$C$3:$EW$2746,2,FALSE) -> Backset für Kraftbrot, glutenfrei, kbA
A165: 063402 | B165: =VLOOKUP(C165,ProduktionStammdaten!$B$2:$C$6,2,FALSE) ->  | D165: 1200 | E165: FaWeMaKleinFmtMehl | F165: =VLOOKUP(G165,ProduktionStammdaten!$B$32:$C$34,2,FALSE) ->  | H165: =VLOOKUP(I165,ProduktionStammdaten!$B$38:$C$41,2,FALSE) ->  | J165: =VLOOKUP($A165,Artikelstamm!$C$3:$EW$2746,107,FALSE) ->  | K165: =VLOOKUP($A165,Artikelstamm!$C$3:$EW$2746,13,FALSE) -> 4*250G | L165: =VLOOKUP($A165,Artikelstamm!$C$3:$EW$2746,94,FALSE) -> 64 | M165: =VLOOKUP($A165,Artikelstamm!$C$3:$EW$2746,2,FALSE) -> Speisestärke, glutenfrei (Mais), kbA | Q165: 1
A166: 063404 | B166: =VLOOKUP(C166,ProduktionStammdaten!$B$2:$C$6,2,FALSE) ->  | D166: 1200 | E166: FaWeMaKleinFmtMehl | F166: =VLOOKUP(G166,ProduktionStammdaten!$B$32:$C$34,2,FALSE) ->  | H166: =VLOOKUP(I166,ProduktionStammdaten!$B$38:$C$41,2,FALSE) ->  | J166: =VLOOKUP($A166,Artikelstamm!$C$3:$EW$2746,107,FALSE) ->  | K166: =VLOOKUP($A166,Artikelstamm!$C$3:$EW$2746,13,FALSE) -> 4*250G | L166: =VLOOKUP($A166,Artikelstamm!$C$3:$EW$2746,94,FALSE) -> 64 | M166: =VLOOKUP($A166,Artikelstamm!$C$3:$EW$2746,2,FALSE) -> Kartoffelmehl, glutenfrei (Stärke), kbA | Q166: 1
A167: 064001 | B167: =VLOOKUP(C167,ProduktionStammdaten!$B$2:$C$6,2,FALSE) -> 2500 | C167: KleinFmtWaage | D167: =VLOOKUP(E167,ProduktionStammdaten!$B$13:$C$28,2,FALSE) -> 1600 | E167: FaWeMaKleinFmtReis | F167: =VLOOKUP(G167,ProduktionStammdaten!$B$32:$C$34,2,FALSE) ->  | H167: =VLOOKUP(I167,ProduktionStammdaten!$B$38:$C$41,2,FALSE) ->  | J167: =VLOOKUP($A167,Artikelstamm!$C$3:$EW$2746,107,FALSE) -> Einkorn demeter | K167: =VLOOKUP($A167,Artikelstamm!$C$3:$EW$2746,13,FALSE) -> 4*500G | L167: =VLOOKUP($A167,Artikelstamm!$C$3:$EW$2746,94,FALSE) -> 64 | M167: =VLOOKUP($A167,Artikelstamm!$C$3:$EW$2746,2,FALSE) -> Einkorn, demeter | N167: 1 | Q167: -1
A168: 064002 | B168: =VLOOKUP(C168,ProduktionStammdaten!$B$2:$C$6,2,FALSE) -> 2500 | C168: KleinFmtWaage | D168: =VLOOKUP(E168,ProduktionStammdaten!$B$13:$C$28,2,FALSE) -> 1400 | E168: FaWeMaKleinFmtSaaten | F168: =VLOOKUP(G168,ProduktionStammdaten!$B$32:$C$34,2,FALSE) ->  | H168: =VLOOKUP(I168,ProduktionStammdaten!$B$38:$C$41,2,FALSE) ->  | J168: =VLOOKUP($A168,Artikelstamm!$C$3:$EW$2746,107,FALSE) -> Emmer demeter | K168: =VLOOKUP($A168,Artikelstamm!$C$3:$EW$2746,13,FALSE) -> 4*500G | L168: =VLOOKUP($A168,Artikelstamm!$C$3:$EW$2746,94,FALSE) -> 64 | M168: =VLOOKUP($A168,Artikelstamm!$C$3:$EW$2746,2,FALSE) -> Emmer, demeter | N168: 1 | Q168: -1
A169: 064009 | B169: =VLOOKUP(C169,ProduktionStammdaten!$B$2:$C$6,2,FALSE) -> 2500 | C169: KleinFmtWaage | D169: =VLOOKUP(E169,ProduktionStammdaten!$B$13:$C$28,2,FALSE) ->  | F169: =VLOOKUP(G169,ProduktionStammdaten!$B$32:$C$34,2,FALSE) ->  | H169: =VLOOKUP(I169,ProduktionStammdaten!$B$38:$C$41,2,FALSE) ->  | J169: =VLOOKUP($A169,Artikelstamm!$C$3:$EW$2746,107,FALSE) -> Rotkorn demeter | K169: =VLOOKUP($A169,Artikelstamm!$C$3:$EW$2746,13,FALSE) -> 4*500G | L169: =VLOOKUP($A169,Artikelstamm!$C$3:$EW$2746,94,FALSE) -> 64 | M169: =VLOOKUP($A169,Artikelstamm!$C$3:$EW$2746,2,FALSE) -> Rotkorn, demeter | Q169: -1
A170: 064011 | B170: =VLOOKUP(C170,ProduktionStammdaten!$B$2:$C$6,2,FALSE) ->  | D170: =VLOOKUP(E170,ProduktionStammdaten!$B$13:$C$28,2,FALSE) ->  | F170: =VLOOKUP(G170,ProduktionStammdaten!$B$32:$C$34,2,FALSE) ->  | H170: =VLOOKUP(I170,ProduktionStammdaten!$B$38:$C$41,2,FALSE) -> 120 | I170: 1 Kippung | J170: =VLOOKUP($A170,Artikelstamm!$C$3:$EW$2746,107,FALSE) ->  | K170: =VLOOKUP($A170,Artikelstamm!$C$3:$EW$2746,13,FALSE) -> 4*2,5KG | L170: =VLOOKUP($A170,Artikelstamm!$C$3:$EW$2746,94,FALSE) -> 36 | M170: =VLOOKUP($A170,Artikelstamm!$C$3:$EW$2746,2,FALSE) -> Einkorn, demeter | N170: 1 | R170: 1
A171: 064012 | B171: =VLOOKUP(C171,ProduktionStammdaten!$B$2:$C$6,2,FALSE) ->  | D171: =VLOOKUP(E171,ProduktionStammdaten!$B$13:$C$28,2,FALSE) ->  | F171: =VLOOKUP(G171,ProduktionStammdaten!$B$32:$C$34,2,FALSE) ->  | H171: =VLOOKUP(I171,ProduktionStammdaten!$B$38:$C$41,2,FALSE) -> 90 | I171: 2 Kippungen | J171: =VLOOKUP($A171,Artikelstamm!$C$3:$EW$2746,107,FALSE) ->  | K171: =VLOOKUP($A171,Artikelstamm!$C$3:$EW$2746,13,FALSE) -> 4*5KG | L171: =VLOOKUP($A171,Artikelstamm!$C$3:$EW$2746,94,FALSE) -> 16 | M171: =VLOOKUP($A171,Artikelstamm!$C$3:$EW$2746,2,FALSE) -> Einkorn, demeter - NF Unverpackt und Vorrat | N171: 1 | R171: 1
A172: 064072 | B172: =VLOOKUP(C172,ProduktionStammdaten!$B$2:$C$6,2,FALSE) -> 2500 | C172: KleinFmtWaage | D172: =VLOOKUP(E172,ProduktionStammdaten!$B$13:$C$28,2,FALSE) -> 1400 | E172: FaWeMaKleinFmtSaaten | F172: =VLOOKUP(G172,ProduktionStammdaten!$B$32:$C$34,2,FALSE) ->  | H172: =VLOOKUP(I172,ProduktionStammdaten!$B$38:$C$41,2,FALSE) ->  | J172: =VLOOKUP($A172,Artikelstamm!$C$3:$EW$2746,107,FALSE) -> Emmer bioland | K172: =VLOOKUP($A172,Artikelstamm!$C$3:$EW$2746,13,FALSE) -> 4*500G | L172: =VLOOKUP($A172,Artikelstamm!$C$3:$EW$2746,94,FALSE) -> 64 | M172: =VLOOKUP($A172,Artikelstamm!$C$3:$EW$2746,2,FALSE) -> Emmer, bioland | N172: 1 | Q172: -1
A173: 064074 | B173: =VLOOKUP(C173,ProduktionStammdaten!$B$2:$C$6,2,FALSE) ->  | D173: =VLOOKUP(E173,ProduktionStammdaten!$B$13:$C$28,2,FALSE) ->  | F173: =VLOOKUP(G173,ProduktionStammdaten!$B$32:$C$34,2,FALSE) ->  | H173: =VLOOKUP(I173,ProduktionStammdaten!$B$38:$C$41,2,FALSE) -> 120 | I173: 1 Kippung | J173: =VLOOKUP($A173,Artikelstamm!$C$3:$EW$2746,107,FALSE) ->  | K173: =VLOOKUP($A173,Artikelstamm!$C$3:$EW$2746,13,FALSE) -> 4*2,5KG | L173: =VLOOKUP($A173,Artikelstamm!$C$3:$EW$2746,94,FALSE) -> 36 | M173: =VLOOKUP($A173,Artikelstamm!$C$3:$EW$2746,2,FALSE) -> Emmer, bioland | N173: 1 | R173: 1
A174: 064075 | B174: =VLOOKUP(C174,ProduktionStammdaten!$B$2:$C$6,2,FALSE) ->  | D174: =VLOOKUP(E174,ProduktionStammdaten!$B$13:$C$28,2,FALSE) ->  | F174: =VLOOKUP(G174,ProduktionStammdaten!$B$32:$C$34,2,FALSE) ->  | H174: =VLOOKUP(I174,ProduktionStammdaten!$B$38:$C$41,2,FALSE) -> 90 | I174: 2 Kippungen | J174: =VLOOKUP($A174,Artikelstamm!$C$3:$EW$2746,107,FALSE) ->  | K174: =VLOOKUP($A174,Artikelstamm!$C$3:$EW$2746,13,FALSE) -> 1*5KG | L174: =VLOOKUP($A174,Artikelstamm!$C$3:$EW$2746,94,FALSE) -> 96 | M174: =VLOOKUP($A174,Artikelstamm!$C$3:$EW$2746,2,FALSE) -> Emmer, bioland - NF Unverpackt und Vorrat | N174: 1 | R174: 1
A175: 064101 | B175: 1800 | C175: KleinFmtDosierer | D175: =VLOOKUP(E175,ProduktionStammdaten!$B$13:$C$28,2,FALSE) ->  | F175: =VLOOKUP(G175,ProduktionStammdaten!$B$32:$C$34,2,FALSE) ->  | H175: =VLOOKUP(I175,ProduktionStammdaten!$B$38:$C$41,2,FALSE) ->  | J175: =VLOOKUP($A175,Artikelstamm!$C$3:$EW$2746,107,FALSE) -> Emmer-VK-Mehl demete | K175: =VLOOKUP($A175,Artikelstamm!$C$3:$EW$2746,13,FALSE) -> 4*500G | L175: =VLOOKUP($A175,Artikelstamm!$C$3:$EW$2746,94,FALSE) -> 64 | M175: =VLOOKUP($A175,Artikelstamm!$C$3:$EW$2746,2,FALSE) -> Emmer-Vollkornmehl, demeter | N175: 1 | Q175: -1
A176: 064102 | B176: 1800 | C176: KleinFmtDosierer | D176: =VLOOKUP(E176,ProduktionStammdaten!$B$13:$C$28,2,FALSE) ->  | F176: =VLOOKUP(G176,ProduktionStammdaten!$B$32:$C$34,2,FALSE) ->  | H176: =VLOOKUP(I176,ProduktionStammdaten!$B$38:$C$41,2,FALSE) ->  | J176: =VLOOKUP($A176,Artikelstamm!$C$3:$EW$2746,107,FALSE) -> Einkorn-VK-Mehl dem. | K176: =VLOOKUP($A176,Artikelstamm!$C$3:$EW$2746,13,FALSE) -> 4*500G | L176: =VLOOKUP($A176,Artikelstamm!$C$3:$EW$2746,94,FALSE) -> 64 | M176: =VLOOKUP($A176,Artikelstamm!$C$3:$EW$2746,2,FALSE) -> Einkorn-Vollkornmehl, demeter | N176: 1 | Q176: -1
A177: 064109 | B177: =VLOOKUP(C177,ProduktionStammdaten!$B$2:$C$6,2,FALSE) -> 2000 | C177: KleinFmtDosierer | D177: =VLOOKUP(E177,ProduktionStammdaten!$B$13:$C$28,2,FALSE) ->  | F177: =VLOOKUP(G177,ProduktionStammdaten!$B$32:$C$34,2,FALSE) ->  | H177: =VLOOKUP(I177,ProduktionStammdaten!$B$38:$C$41,2,FALSE) ->  | J177: =VLOOKUP($A177,Artikelstamm!$C$3:$EW$2746,107,FALSE) -> Rotkorn-VK-Mehl deme | K177: =VLOOKUP($A177,Artikelstamm!$C$3:$EW$2746,13,FALSE) -> 4*500G | L177: =VLOOKUP($A177,Artikelstamm!$C$3:$EW$2746,94,FALSE) -> 64 | M177: =VLOOKUP($A177,Artikelstamm!$C$3:$EW$2746,2,FALSE) -> Rotkorn-Vollkornmehl, demeter | N177: 1 | Q177: -1
A178: 064201 | B178: =VLOOKUP(C178,ProduktionStammdaten!$B$2:$C$6,2,FALSE) -> 2500 | C178: KleinFmtWaage | D178: =VLOOKUP(E178,ProduktionStammdaten!$B$13:$C$28,2,FALSE) -> 1500 | E178: FaWeMaKleinFmtFlocken | F178: =VLOOKUP(G178,ProduktionStammdaten!$B$32:$C$34,2,FALSE) ->  | H178: =VLOOKUP(I178,ProduktionStammdaten!$B$38:$C$41,2,FALSE) ->  | J178: =VLOOKUP($A178,Artikelstamm!$C$3:$EW$2746,107,FALSE) -> Emmerflocken demeter | K178: =VLOOKUP($A178,Artikelstamm!$C$3:$EW$2746,13,FALSE) -> 4*250G | L178: =VLOOKUP($A178,Artikelstamm!$C$3:$EW$2746,94,FALSE) -> 64 | M178: =VLOOKUP($A178,Artikelstamm!$C$3:$EW$2746,2,FALSE) -> Emmerflocken, demeter | Q178: -1
A179: 064202 | B179: =VLOOKUP(C179,ProduktionStammdaten!$B$2:$C$6,2,FALSE) -> 2500 | C179: KleinFmtWaage | D179: =VLOOKUP(E179,ProduktionStammdaten!$B$13:$C$28,2,FALSE) -> 1500 | E179: FaWeMaKleinFmtFlocken | F179: =VLOOKUP(G179,ProduktionStammdaten!$B$32:$C$34,2,FALSE) ->  | H179: =VLOOKUP(I179,ProduktionStammdaten!$B$38:$C$41,2,FALSE) ->  | J179: =VLOOKUP($A179,Artikelstamm!$C$3:$EW$2746,107,FALSE) -> Einkornflocken dem | K179: =VLOOKUP($A179,Artikelstamm!$C$3:$EW$2746,13,FALSE) -> 4*250G | L179: =VLOOKUP($A179,Artikelstamm!$C$3:$EW$2746,94,FALSE) -> 64 | M179: =VLOOKUP($A179,Artikelstamm!$C$3:$EW$2746,2,FALSE) -> Einkornflocken, demeter | Q179: -1
A180: 064203 | B180: =VLOOKUP(C180,ProduktionStammdaten!$B$2:$C$6,2,FALSE) -> 2500 | C180: KleinFmtWaage | D180: =VLOOKUP(E180,ProduktionStammdaten!$B$13:$C$28,2,FALSE) -> 1500 | E180: FaWeMaKleinFmtFlocken | F180: =VLOOKUP(G180,ProduktionStammdaten!$B$32:$C$34,2,FALSE) ->  | H180: =VLOOKUP(I180,ProduktionStammdaten!$B$38:$C$41,2,FALSE) ->  | J180: =VLOOKUP($A180,Artikelstamm!$C$3:$EW$2746,107,FALSE) -> Kamutflocken kbA | K180: =VLOOKUP($A180,Artikelstamm!$C$3:$EW$2746,13,FALSE) -> 4*250G | L180: =VLOOKUP($A180,Artikelstamm!$C$3:$EW$2746,94,FALSE) -> 64 | M180: =VLOOKUP($A180,Artikelstamm!$C$3:$EW$2746,2,FALSE) -> Kamutflocken, kbA | Q180: -1
A181: 064205 | B181: =VLOOKUP(C181,ProduktionStammdaten!$B$2:$C$6,2,FALSE) ->  | D181: =VLOOKUP(E181,ProduktionStammdaten!$B$13:$C$28,2,FALSE) -> 1500 | E181: FaWeMaKleinFmtFlocken | F181: =VLOOKUP(G181,ProduktionStammdaten!$B$32:$C$34,2,FALSE) ->  | H181: =VLOOKUP(I181,ProduktionStammdaten!$B$38:$C$41,2,FALSE) ->  | J181: =VLOOKUP($A181,Artikelstamm!$C$3:$EW$2746,107,FALSE) -> Quinoaflocken gf | K181: =VLOOKUP($A181,Artikelstamm!$C$3:$EW$2746,13,FALSE) -> 4*250G | L181: =VLOOKUP($A181,Artikelstamm!$C$3:$EW$2746,94,FALSE) -> 64 | M181: =VLOOKUP($A181,Artikelstamm!$C$3:$EW$2746,2,FALSE) -> Glutenfreie Quinoaflocken, kbA | Q181: 1 | R181: 1
A182: 064207 | B182: =VLOOKUP(C182,ProduktionStammdaten!$B$2:$C$6,2,FALSE) -> 2500 | C182: KleinFmtWaage | D182: =VLOOKUP(E182,ProduktionStammdaten!$B$13:$C$28,2,FALSE) -> 1500 | E182: FaWeMaKleinFmtFlocken | F182: =VLOOKUP(G182,ProduktionStammdaten!$B$32:$C$34,2,FALSE) ->  | H182: =VLOOKUP(I182,ProduktionStammdaten!$B$38:$C$41,2,FALSE) ->  | J182: =VLOOKUP($A182,Artikelstamm!$C$3:$EW$2746,107,FALSE) -> Amaranthflocken kbA | K182: =VLOOKUP($A182,Artikelstamm!$C$3:$EW$2746,13,FALSE) -> 4*250G | L182: =VLOOKUP($A182,Artikelstamm!$C$3:$EW$2746,94,FALSE) -> 64 | M182: =VLOOKUP($A182,Artikelstamm!$C$3:$EW$2746,2,FALSE) -> Amaranthflocken, kbA | Q182: -1
A183: 064209 | B183: =VLOOKUP(C183,ProduktionStammdaten!$B$2:$C$6,2,FALSE) -> 2500 | C183: KleinFmtWaage | D183: =VLOOKUP(E183,ProduktionStammdaten!$B$13:$C$28,2,FALSE) ->  | F183: =VLOOKUP(G183,ProduktionStammdaten!$B$32:$C$34,2,FALSE) ->  | H183: =VLOOKUP(I183,ProduktionStammdaten!$B$38:$C$41,2,FALSE) ->  | J183: =VLOOKUP($A183,Artikelstamm!$C$3:$EW$2746,107,FALSE) -> Rotkornflocken demet | K183: =VLOOKUP($A183,Artikelstamm!$C$3:$EW$2746,13,FALSE) -> 4*250G | L183: =VLOOKUP($A183,Artikelstamm!$C$3:$EW$2746,94,FALSE) -> 64 | M183: =VLOOKUP($A183,Artikelstamm!$C$3:$EW$2746,2,FALSE) -> Rotkornflocken, demeter | Q183: -1
A184: 064271 | B184: =VLOOKUP(C184,ProduktionStammdaten!$B$2:$C$6,2,FALSE) -> 2500 | C184: KleinFmtWaage | D184: =VLOOKUP(E184,ProduktionStammdaten!$B$13:$C$28,2,FALSE) ->  | F184: =VLOOKUP(G184,ProduktionStammdaten!$B$32:$C$34,2,FALSE) ->  | H184: =VLOOKUP(I184,ProduktionStammdaten!$B$38:$C$41,2,FALSE) ->  | J184: =VLOOKUP($A184,Artikelstamm!$C$3:$EW$2746,107,FALSE) -> Emmerflocken bioland | K184: =VLOOKUP($A184,Artikelstamm!$C$3:$EW$2746,13,FALSE) -> 4*250G | L184: =VLOOKUP($A184,Artikelstamm!$C$3:$EW$2746,94,FALSE) -> 64 | M184: =VLOOKUP($A184,Artikelstamm!$C$3:$EW$2746,2,FALSE) -> Emmerflocken, bioland | Q184: -1
A185: 065005 | B185: =VLOOKUP(C185,ProduktionStammdaten!$B$2:$C$6,2,FALSE) ->  | D185: =VLOOKUP(E185,ProduktionStammdaten!$B$13:$C$28,2,FALSE) ->  | F185: =VLOOKUP(G185,ProduktionStammdaten!$B$32:$C$34,2,FALSE) ->  | H185: =VLOOKUP(I185,ProduktionStammdaten!$B$38:$C$41,2,FALSE) -> 90 | I185: 2 Kippungen | J185: =VLOOKUP($A185,Artikelstamm!$C$3:$EW$2746,107,FALSE) -> Naturreis Mittelkorn | K185: =VLOOKUP($A185,Artikelstamm!$C$3:$EW$2746,13,FALSE) -> 4*5KG | L185: =VLOOKUP($A185,Artikelstamm!$C$3:$EW$2746,94,FALSE) -> 16 | M185: =VLOOKUP($A185,Artikelstamm!$C$3:$EW$2746,2,FALSE) -> Naturreis Mittelkorn, demeter - NF Unverp.+Vorrat | Q185: 0 | R185: 1
A186: 065006 | B186: =VLOOKUP(C186,ProduktionStammdaten!$B$2:$C$6,2,FALSE) -> 2500 | C186: GroßFmtWaage | D186: =VLOOKUP(E186,ProduktionStammdaten!$B$13:$C$28,2,FALSE) -> 1700 | E186: FaWeMaGroßFmtReis | F186: =VLOOKUP(G186,ProduktionStammdaten!$B$32:$C$34,2,FALSE) ->  | H186: =VLOOKUP(I186,ProduktionStammdaten!$B$38:$C$41,2,FALSE) ->  | J186: =VLOOKUP($A186,Artikelstamm!$C$3:$EW$2746,107,FALSE) -> Mittelkornreis natur | K186: =VLOOKUP($A186,Artikelstamm!$C$3:$EW$2746,13,FALSE) -> 6*1KG | L186: =VLOOKUP($A186,Artikelstamm!$C$3:$EW$2746,94,FALSE) -> 60 | M186: =VLOOKUP($A186,Artikelstamm!$C$3:$EW$2746,2,FALSE) -> Mittelkornreis natur, demeter | Q186: 0 | R186: 1
A187: 065008 | B187: =VLOOKUP(C187,ProduktionStammdaten!$B$2:$C$6,2,FALSE) ->  | D187: =VLOOKUP(E187,ProduktionStammdaten!$B$13:$C$28,2,FALSE) -> 1600 | E187: FaWeMaKleinFmtReis | F187: =VLOOKUP(G187,ProduktionStammdaten!$B$32:$C$34,2,FALSE) ->  | H187: =VLOOKUP(I187,ProduktionStammdaten!$B$38:$C$41,2,FALSE) ->  | J187: =VLOOKUP($A187,Artikelstamm!$C$3:$EW$2746,107,FALSE) -> Mittelkornreis natur | K187: =VLOOKUP($A187,Artikelstamm!$C$3:$EW$2746,13,FALSE) -> 4*500G | L187: =VLOOKUP($A187,Artikelstamm!$C$3:$EW$2746,94,FALSE) -> 64 | M187: =VLOOKUP($A187,Artikelstamm!$C$3:$EW$2746,2,FALSE) -> Mittelkornreis natur, demeter | Q187: 0
A188: 065056 | B188: =VLOOKUP(C188,ProduktionStammdaten!$B$2:$C$6,2,FALSE) -> 2500 | C188: GroßFmtWaage | D188: =VLOOKUP(E188,ProduktionStammdaten!$B$13:$C$28,2,FALSE) -> 1700 | E188: FaWeMaGroßFmtReis | F188: =VLOOKUP(G188,ProduktionStammdaten!$B$32:$C$34,2,FALSE) ->  | H188: =VLOOKUP(I188,ProduktionStammdaten!$B$38:$C$41,2,FALSE) ->  | J188: =VLOOKUP($A188,Artikelstamm!$C$3:$EW$2746,107,FALSE) -> Runkornreis natur | K188: =VLOOKUP($A188,Artikelstamm!$C$3:$EW$2746,13,FALSE) -> 6*1KG | L188: =VLOOKUP($A188,Artikelstamm!$C$3:$EW$2746,94,FALSE) -> 60 | M188: =VLOOKUP($A188,Artikelstamm!$C$3:$EW$2746,2,FALSE) -> Rundkornreis natur, demeter | Q188: 0 | R188: 1
A189: 065058 | B189: =VLOOKUP(C189,ProduktionStammdaten!$B$2:$C$6,2,FALSE) ->  | D189: =VLOOKUP(E189,ProduktionStammdaten!$B$13:$C$28,2,FALSE) -> 1600 | E189: FaWeMaKleinFmtReis | F189: =VLOOKUP(G189,ProduktionStammdaten!$B$32:$C$34,2,FALSE) ->  | H189: =VLOOKUP(I189,ProduktionStammdaten!$B$38:$C$41,2,FALSE) ->  | J189: =VLOOKUP($A189,Artikelstamm!$C$3:$EW$2746,107,FALSE) -> Runkornreis natur | K189: =VLOOKUP($A189,Artikelstamm!$C$3:$EW$2746,13,FALSE) -> 4*500G | L189: =VLOOKUP($A189,Artikelstamm!$C$3:$EW$2746,94,FALSE) -> 64 | M189: =VLOOKUP($A189,Artikelstamm!$C$3:$EW$2746,2,FALSE) -> Rundkornreis natur, demeter | Q189: 0
A190: 065208 | B190: =VLOOKUP(C190,ProduktionStammdaten!$B$2:$C$6,2,FALSE) ->  | D190: =VLOOKUP(E190,ProduktionStammdaten!$B$13:$C$28,2,FALSE) -> 1600 | E190: FaWeMaKleinFmtReis | F190: =VLOOKUP(G190,ProduktionStammdaten!$B$32:$C$34,2,FALSE) ->  | H190: =VLOOKUP(I190,ProduktionStammdaten!$B$38:$C$41,2,FALSE) ->  | J190: =VLOOKUP($A190,Artikelstamm!$C$3:$EW$2746,107,FALSE) -> Milchreis Rundkorn | K190: =VLOOKUP($A190,Artikelstamm!$C$3:$EW$2746,13,FALSE) -> 4*500G | L190: =VLOOKUP($A190,Artikelstamm!$C$3:$EW$2746,94,FALSE) -> 64 | M190: =VLOOKUP($A190,Artikelstamm!$C$3:$EW$2746,2,FALSE) -> Milchreis Rundkorn, weiß, demeter | Q190: 0
A191: 065358 | B191: =VLOOKUP(C191,ProduktionStammdaten!$B$2:$C$6,2,FALSE) ->  | D191: =VLOOKUP(E191,ProduktionStammdaten!$B$13:$C$28,2,FALSE) -> 1600 | E191: FaWeMaKleinFmtReis | F191: =VLOOKUP(G191,ProduktionStammdaten!$B$32:$C$34,2,FALSE) ->  | H191: =VLOOKUP(I191,ProduktionStammdaten!$B$38:$C$41,2,FALSE) ->  | J191: =VLOOKUP($A191,Artikelstamm!$C$3:$EW$2746,107,FALSE) -> Reismischung WR, dem | K191: =VLOOKUP($A191,Artikelstamm!$C$3:$EW$2746,13,FALSE) -> 4*500G | L191: =VLOOKUP($A191,Artikelstamm!$C$3:$EW$2746,94,FALSE) -> 64 | M191: =VLOOKUP($A191,Artikelstamm!$C$3:$EW$2746,2,FALSE) -> Reismischung mit Wildreis natur, demeter | O191: 1 | Q191: 0
A192: 065406 | B192: =VLOOKUP(C192,ProduktionStammdaten!$B$2:$C$6,2,FALSE) ->  | D192: =VLOOKUP(E192,ProduktionStammdaten!$B$13:$C$28,2,FALSE) -> 1700 | E192: FaWeMaGroßFmtReis | F192: =VLOOKUP(G192,ProduktionStammdaten!$B$32:$C$34,2,FALSE) ->  | H192: =VLOOKUP(I192,ProduktionStammdaten!$B$38:$C$41,2,FALSE) ->  | J192: =VLOOKUP($A192,Artikelstamm!$C$3:$EW$2746,107,FALSE) -> Basmati Reis natur | K192: =VLOOKUP($A192,Artikelstamm!$C$3:$EW$2746,13,FALSE) -> 6*1KG | L192: =VLOOKUP($A192,Artikelstamm!$C$3:$EW$2746,94,FALSE) -> 60 | M192: =VLOOKUP($A192,Artikelstamm!$C$3:$EW$2746,2,FALSE) -> Echter Basmatireis, natur, demeter | Q192: 0 | R192: 1
A193: 065408 | B193: =VLOOKUP(C193,ProduktionStammdaten!$B$2:$C$6,2,FALSE) ->  | D193: =VLOOKUP(E193,ProduktionStammdaten!$B$13:$C$28,2,FALSE) -> 1600 | E193: FaWeMaKleinFmtReis | F193: =VLOOKUP(G193,ProduktionStammdaten!$B$32:$C$34,2,FALSE) ->  | H193: =VLOOKUP(I193,ProduktionStammdaten!$B$38:$C$41,2,FALSE) ->  | J193: =VLOOKUP($A193,Artikelstamm!$C$3:$EW$2746,107,FALSE) -> Basmati Reis natur | K193: =VLOOKUP($A193,Artikelstamm!$C$3:$EW$2746,13,FALSE) -> 4*500G | L193: =VLOOKUP($A193,Artikelstamm!$C$3:$EW$2746,94,FALSE) -> 64 | M193: =VLOOKUP($A193,Artikelstamm!$C$3:$EW$2746,2,FALSE) -> Echter Basmatireis, natur, demeter | Q193: 0
A194: 065412 | B194: =VLOOKUP(C194,ProduktionStammdaten!$B$2:$C$6,2,FALSE) ->  | D194: =VLOOKUP(E194,ProduktionStammdaten!$B$13:$C$28,2,FALSE) ->  | F194: =VLOOKUP(G194,ProduktionStammdaten!$B$32:$C$34,2,FALSE) ->  | H194: =VLOOKUP(I194,ProduktionStammdaten!$B$38:$C$41,2,FALSE) -> 90 | I194: 2 Kippungen | J194: =VLOOKUP($A194,Artikelstamm!$C$3:$EW$2746,107,FALSE) -> Basmati Reis, weiß | K194: =VLOOKUP($A194,Artikelstamm!$C$3:$EW$2746,13,FALSE) -> 4*5KG | L194: =VLOOKUP($A194,Artikelstamm!$C$3:$EW$2746,94,FALSE) -> 16 | M194: =VLOOKUP($A194,Artikelstamm!$C$3:$EW$2746,2,FALSE) -> Basmati Reis weiß, kbA - NF Unverpackt + Vorrat | Q194: 0 | R194: 1
A195: 065416 | B195: =VLOOKUP(C195,ProduktionStammdaten!$B$2:$C$6,2,FALSE) -> 2500 | C195: GroßFmtWaage | D195: =VLOOKUP(E195,ProduktionStammdaten!$B$13:$C$28,2,FALSE) -> 1700 | E195: FaWeMaGroßFmtReis | F195: =VLOOKUP(G195,ProduktionStammdaten!$B$32:$C$34,2,FALSE) ->  | H195: =VLOOKUP(I195,ProduktionStammdaten!$B$38:$C$41,2,FALSE) ->  | J195: =VLOOKUP($A195,Artikelstamm!$C$3:$EW$2746,107,FALSE) -> Basmati Reis weiß | K195: =VLOOKUP($A195,Artikelstamm!$C$3:$EW$2746,13,FALSE) -> 6*1KG | L195: =VLOOKUP($A195,Artikelstamm!$C$3:$EW$2746,94,FALSE) -> 60 | M195: =VLOOKUP($A195,Artikelstamm!$C$3:$EW$2746,2,FALSE) -> Echter Basmatireis, weiß, demeter | Q195: 0 | R195: 1
A196: 065418 | B196: =VLOOKUP(C196,ProduktionStammdaten!$B$2:$C$6,2,FALSE) -> 2500 | C196: KleinFmtWaage | D196: =VLOOKUP(E196,ProduktionStammdaten!$B$13:$C$28,2,FALSE) -> 1600 | E196: FaWeMaKleinFmtReis | F196: =VLOOKUP(G196,ProduktionStammdaten!$B$32:$C$34,2,FALSE) ->  | H196: =VLOOKUP(I196,ProduktionStammdaten!$B$38:$C$41,2,FALSE) ->  | J196: =VLOOKUP($A196,Artikelstamm!$C$3:$EW$2746,107,FALSE) -> Basmati Reis weiß | K196: =VLOOKUP($A196,Artikelstamm!$C$3:$EW$2746,13,FALSE) -> 4*500G | L196: =VLOOKUP($A196,Artikelstamm!$C$3:$EW$2746,94,FALSE) -> 64 | M196: =VLOOKUP($A196,Artikelstamm!$C$3:$EW$2746,2,FALSE) -> Echter Basmatireis, weiß, demeter | Q196: 0
A197: 065420 | B197: =VLOOKUP(C197,ProduktionStammdaten!$B$2:$C$6,2,FALSE) ->  | D197: =VLOOKUP(E197,ProduktionStammdaten!$B$13:$C$28,2,FALSE) ->  | F197: =VLOOKUP(G197,ProduktionStammdaten!$B$32:$C$34,2,FALSE) ->  | H197: =VLOOKUP(I197,ProduktionStammdaten!$B$38:$C$41,2,FALSE) -> 90 | I197: 2 Kippungen | J197: =VLOOKUP($A197,Artikelstamm!$C$3:$EW$2746,107,FALSE) -> Langkornreis, natur | K197: =VLOOKUP($A197,Artikelstamm!$C$3:$EW$2746,13,FALSE) -> 4*5KG | L197: =VLOOKUP($A197,Artikelstamm!$C$3:$EW$2746,94,FALSE) -> 16 | M197: =VLOOKUP($A197,Artikelstamm!$C$3:$EW$2746,2,FALSE) -> Langkornreis, natur, kbA - NF Unverpackt + Vorrat | Q197: 0 | R197: 1
A198: 065422 | B198: =VLOOKUP(C198,ProduktionStammdaten!$B$2:$C$6,2,FALSE) ->  | D198: =VLOOKUP(E198,ProduktionStammdaten!$B$13:$C$28,2,FALSE) ->  | F198: =VLOOKUP(G198,ProduktionStammdaten!$B$32:$C$34,2,FALSE) ->  | H198: =VLOOKUP(I198,ProduktionStammdaten!$B$38:$C$41,2,FALSE) -> 90 | I198: 2 Kippungen | J198: =VLOOKUP($A198,Artikelstamm!$C$3:$EW$2746,107,FALSE) -> Parboiled, kbA unver | K198: =VLOOKUP($A198,Artikelstamm!$C$3:$EW$2746,13,FALSE) -> 4*5KG | L198: =VLOOKUP($A198,Artikelstamm!$C$3:$EW$2746,94,FALSE) -> 16 | M198: =VLOOKUP($A198,Artikelstamm!$C$3:$EW$2746,2,FALSE) -> Parboiled Reis langkorn, kbA - NF Unverp. + Vorrat | Q198: 0 | R198: 1
A199: 065426 | B199: =VLOOKUP(C199,ProduktionStammdaten!$B$2:$C$6,2,FALSE) ->  | D199: =VLOOKUP(E199,ProduktionStammdaten!$B$13:$C$28,2,FALSE) ->  | F199: =VLOOKUP(G199,ProduktionStammdaten!$B$32:$C$34,2,FALSE) ->  | H199: =VLOOKUP(I199,ProduktionStammdaten!$B$38:$C$41,2,FALSE) -> 90 | I199: 2 Kippungen | J199: =VLOOKUP($A199,Artikelstamm!$C$3:$EW$2746,107,FALSE) -> Langkornreis, weiß | K199: =VLOOKUP($A199,Artikelstamm!$C$3:$EW$2746,13,FALSE) -> 4*5KG | L199: =VLOOKUP($A199,Artikelstamm!$C$3:$EW$2746,94,FALSE) -> 16 | M199: =VLOOKUP($A199,Artikelstamm!$C$3:$EW$2746,2,FALSE) -> Langkornreis, weiß, kbA - NF Unverpackt + Vorrat | Q199: 0 | R199: 1
A200: 065428 | B200: =VLOOKUP(C200,ProduktionStammdaten!$B$2:$C$6,2,FALSE) ->  | D200: =VLOOKUP(E200,ProduktionStammdaten!$B$13:$C$28,2,FALSE) -> 1600 | E200: FaWeMaKleinFmtReis | F200: =VLOOKUP(G200,ProduktionStammdaten!$B$32:$C$34,2,FALSE) ->  | H200: =VLOOKUP(I200,ProduktionStammdaten!$B$38:$C$41,2,FALSE) ->  | J200: =VLOOKUP($A200,Artikelstamm!$C$3:$EW$2746,107,FALSE) -> Jasminreis weiß | K200: =VLOOKUP($A200,Artikelstamm!$C$3:$EW$2746,13,FALSE) -> 4*500G | L200: =VLOOKUP($A200,Artikelstamm!$C$3:$EW$2746,94,FALSE) -> 64 | M200: =VLOOKUP($A200,Artikelstamm!$C$3:$EW$2746,2,FALSE) -> Jasminreis, weiß, kbA | Q200: 0
... 3793 more rows

Sheet Artikelstamm
A1: PRODID | B1: FIRNR | C1: ARTNR | D1: ARTBEZ | E1: WARGRU | F1: HERKUN | G1: ERLGRP | H1: KZBART | I1: KZGART | J1: KZBSTF | K1: KZBWPR | L1: MARKE | M1: ARTART | N1: QUALIT | O1: GEBGRO | P1: GEBFAK | Q1: GEBGEW | R1: NETGEW | S1: UMRFAK | T1: PRSEIN | U1: MELAGE | V1: MEEINK | W1: SPRVK | X1: VERBST | Y1: BEISAT | Z1: BEZUSC | AA1: LIEFSC | AB1: ARTLIE | AC1: LIEART | AD1: FWGCOD | AE1: LGKTKZ | AF1: MAHNKZ | AG1: DSPKZZ | AH1: DSPKZB | AI1: DSPAUS | AJ1: BESTKO | AK1: SCHWUN | AL1: KUNBES | AM1: LTZEKP | AN1: LTZBZP | AO1: ZUKEKP | AP1: ZUKBZP | AQ1: ZUKEKD | AR1: ZUKBZD | AS1: VRPRSA | AT1: VRPRSN | AU1: VRPRSD | AV1: BWPRSA | AW1: BWPRSN | AX1: VKAKT0 | AY1: VKAKT1 | AZ1: VKAKT2 | BA1: VKAKT3 | BB1: VKAKT4 | BC1: VKAKT5 | BD1: VKAKT6 | BE1: VKAKT7 | BF1: VKAKT8 | BG1: VKAKT9 | BH1: VKNEU0 | BI1: VKNEU1 | BJ1: VKNEU2 | BK1: VKNEU3 | BL1: VKNEU4 | BM1: VKNEU5 | BN1: VKNEU6 | BO1: VKNEU7 | BP1: VKNEU8 | BQ1: VKNEU9 | BR1: VKDAT | BS1: VKEMA1 | BT1: VKEMN1 | BU1: VKEMA2 | BV1: VKEMN2 | BW1: VKEDAT | BX1: ANZLGA | BY1: LVKDAT | BZ1: LBUDAT | CA1: SCHRME | CB1: SCHRWE | CC1: LIERHY | CD1: WIEBES | CE1: EINDEK | CF1: VERFUE | CG1: SICHZT | CH1: LIEFZT | CI1: RESLAU | CJ1: PFDART | CK1: MWSTKZ | CL1: ABCSCH | CM1: ZOLLNR | CN1: LAENG | CO1: BREIT | CP1: HOEHE | CQ1: MENLAG | CR1: MENPAL | CS1: EAN1 | CT1: EAN2 | CU1: EAN3 | CV1: ARTANL | CW1: ARTAEN | CX1: ARTUSR | CY1: ARTUSA | CZ1: DEMKZ | DA1: BSGKZ | DB1: DSDKZ | DC1: MASCH | DD1: KSTST | DE1: ETIBEZ | DF1: ABCGR | DG1: MHD_MM | DH1: MINDBES | DI1: SOLLEKP | DJ1: SOLLBZP | DK1: INVTAGE | DL1: IBPREIS | DM1: VKAKT10 | DN1: VKAKT11 | DO1: VKAKT12 | DP1: VKAKT13 | DQ1: VKAKT14 | DR1: VKAKT15 | DS1: VKAKT16 | DT1: VKAKT17 | DU1: VKAKT18 | DV1: VKAKT19 | DW1: VKNEU10 | DX1: VKNEU11 | DY1: VKNEU12 | DZ1: VKNEU13 | EA1: VKNEU14 | EB1: VKNEU15 | EC1: VKNEU16 | ED1: VKNEU17 | EE1: VKNEU18 | EF1: VKNEU19 | EG1: KLASSKZ | EH1: CCGLAG | EI1: CCGPAL | EJ1: CCGNS | EK1: SPKZ | EL1: ARTLGNR | EM1: NLKZ | EN1: PRAEFKZ | EO1: INLAND | EP1: HERKUN2 | EQ1: HERKUN2T | ER1: HERKUN3 | ES1: GETRART | ET1: GLUTEN | EU1: MELDNR | EV1: INFOTXT | EW1: VBART
A2: ="p"&C2 -> p022012 | B2: 1 | C2: 022012 | D2: SANAVIT, Gourmet-Margarine, demeter | F2: DE | G2: 0 | H2: N | I2: N | J2: J | K2: J | M2: F | N2: ID | O2: 12*250G | P2: 12 | Q2: 3.35 | R2: 3 | S2: 0 | T2: ST | U2: KT | W2: J | X2: BD | Y2: 0 | AA2: H | AB2: 70610 | AE2: N | AH2: J | AJ2: 0 | AK2: 0 | AL2: 0 | AM2: 1.58 | AN2: 1.58 | AO2: 0 | AP2: 0 | AQ2: 0 | AR2: 0 | AS2: 8.03 | AT2: 0 | AU2: 0 | AV2: 0 | AW2: 0 | AX2: 16.92 | AY2: 16.92 | AZ2: 13.8 | BA2: 13.8 | BB2: 13.56 | BC2: 16.92 | BD2: 14.28 | BE2: 13.56 | BF2: 16.92 | BG2: 0 | BH2: 0 | BI2: 0 | BJ2: 0 | BK2: 0 | BL2: 0 | BM2: 0 | BN2: 0 | BO2: 0 | BP2: 0 | BQ2: 0 | BR2: 0 | BS2: 0 | BT2: 0 | BU2: 0 | BV2: 0 | BW2: 0 | BX2: 396 | BY2: 110506 | BZ2: 0 | CA2: 0 | CB2: 0 | CC2: 0 | CD2: 0 | CE2: 0 | CF2: 2 | CG2: 0 | CH2: 0 | CI2: 60 | CK2: 1 | CL2: B | CM2: 15179091 02 | CN2: 228 | CO2: 340 | CP2: 110 | CQ2: 10 | CR2: 100 | CS2: 4024297007531 | CT2: 4024297001461 | CV2: 250194 | CW2: 280720 | CX2: BI | CY2: JS | CZ2: 6 | DD2: 01100 | DE2: SANAVIT, Gourmet | DG2: 4 | DH2: 0 | DI2: 8.52 | DJ2: 8.75 | DK2: 90 | DL2: 8.94 | DM2: 14.5 | DN2: 14.774 | DO2: 15.048 | DP2: 15.321 | DQ2: 0 | DR2: 0 | DS2: 0 | DT2: 0 | DU2: 0 | DV2: 0 | DW2: 0 | DX2: 0 | DY2: 0 | DZ2: 0 | EA2: 0 | EB2: 0 | EC2: 0 | ED2: 0 | EE2: 0 | EF2: 0 | EH2: 0 | EI2: 70
A3: p024421 | B3: 1 | C3: 024421 | D3: Cashewkerne ganz | F3: CI | G3: 0 | H3: N | I3: N | J3: J | K3: J | L3: V | M3: R | N3: EG | O3: 22,68KG | P3: 22.68 | Q3: 23 | R3: 22.68 | S3: 0 | T3: KG | U3: KT | W3: J | Y3: 0 | AA3: H | AB3: 70930 | AE3: N | AH3: J | AJ3: 0 | AK3: 0 | AL3: 0 | AM3: 214.553 | AN3: 214.553 | AO3: 0 | AP3: 0 | AQ3: 0 | AR3: 0 | AS3: 0 | AT3: 0 | AU3: 0 | AV3: 0 | AW3: 0 | AX3: 0 | AY3: 0 | AZ3: 0 | BA3: 0 | BB3: 0 | BC3: 0 | BD3: 0 | BE3: 0 | BF3: 0 | BG3: 0 | BH3: 0 | BI3: 0 | BJ3: 0 | BK3: 0 | BL3: 0 | BM3: 0 | BN3: 0 | BO3: 0 | BP3: 0 | BQ3: 0 | BR3: 0 | BS3: 0 | BT3: 0 | BU3: 0 | BV3: 0 | BW3: 0 | BX3: 0 | BY3: 930316 | BZ3: 0 | CA3: 0 | CB3: 0 | CC3: 0 | CD3: 0 | CE3: 0 | CF3: 2 | CG3: 0 | CH3: 0 | CI3: 270 | CK3: 1 | CL3: B | CN3: 48 | CO3: 25 | CP3: 37 | CQ3: 1 | CR3: 1 | CS3: 4024297007548 | CT3: 4024297007555 | CV3: 251089 | CW3: 280720 | CX3: UL | CY3: JS | DD3: 01100 | DE3: Cashewkerne gan | DG3: 0 | DH3: 0 | DI3: 124.658 | DJ3: 126.304 | DK3: 90 | DL3: 0 | DM3: 190.524 | DN3: 194.119 | DO3: 197.714 | DP3: 201.308 | DQ3: 0 | DR3: 0 | DS3: 0 | DT3: 0 | DU3: 0 | DV3: 0 | DW3: 0 | DX3: 0 | DY3: 0 | DZ3: 0 | EA3: 0 | EB3: 0 | EC3: 0 | ED3: 0 | EE3: 0 | EF3: 0 | EH3: 0 | EI3: 0 | EN3: N
A4: p050002 | B4: 1 | C4: 050002 | D4: Blåbärssylt (Blaubeer), kbA | E4: 999 | F4: SE | G4: 0 | H4: N | I4: N | J4: J | K4: J | L4: T | M4: F | N4: C% | O4: 6*320G | P4: 6 | Q4: 3 | R4: 1.92 | S4: 0 | T4: ST | U4: KT | W4: N | Y4: 0 | AA4: H | AB4: 70929 | AE4: N | AH4: J | AJ4: 0 | AK4: 0 | AL4: 0 | AM4: 10.574 | AN4: 11.114 | AO4: 0 | AP4: 0 | AQ4: 0 | AR4: 0 | AS4: 0 | AT4: 0 | AU4: 0 | AV4: 0 | AW4: 0 | AX4: 0 | AY4: 0 | AZ4: 0 | BA4: 0 | BB4: 0 | BC4: 16.32 | BD4: 0 | BE4: 16.32 | BF4: 0 | BG4: 0 | BH4: 0 | BI4: 0 | BJ4: 0 | BK4: 0 | BL4: 0 | BM4: 0 | BN4: 0 | BO4: 0 | BP4: 0 | BQ4: 0 | BR4: 0 | BS4: 4.48 | BT4: 0 | BU4: 0 | BV4: 0 | BW4: 0 | BX4: 70 | BY4: 210914 | BZ4: 0 | CA4: 35 | CB4: 371.14 | CC4: 0 | CD4: 0 | CE4: 0 | CF4: 2 | CG4: 0 | CH4: 0 | CI4: 0 | CK4: 1 | CL4: C | CM4: 20079939 | CN4: 240 | CO4: 155 | CP4: 90 | CQ4: 24 | CR4: 240 | CS4: 7391961111908 | CT4: 37391961111909 | CV4: 101019 | CW4: 270421 | CX4: JS | CY4: BF | DD4: 0 | DE4: Blåbärssylt Blaubeer | DG4: 12 | DH4: 0 | DI4: 0 | DJ4: 0 | DK4: 90 | DL4: 0 | DM4: 0 | DN4: 0 | DO4: 0 | DP4: 0 | DQ4: 0 | DR4: 0 | DS4: 0 | DT4: 0 | DU4: 0 | DV4: 0 | DW4: 0 | DX4: 0 | DY4: 0 | DZ4: 0 | EA4: 0 | EB4: 0 | EC4: 0 | ED4: 0 | EE4: 0 | EF4: 0 | EH4: 0 | EI4: 0 | EJ4: B
A5: p050004 | B5: 1 | C5: 050004 | D5: Drottningsylt (Himbeer/Blaubeer), kbA | E5: 999 | F5: SE | G5: 0 | H5: N | I5: N | J5: J | K5: J | L5: T | M5: F | N5: C% | O5: 6*330G | P5: 6 | Q5: 3.06 | R5: 1.98 | S5: 0 | T5: ST | U5: KT | W5: N | Y5: 0 | AA5: H | AB5: 70929 | AE5: N | AH5: J | AJ5: 0 | AK5: 0 | AL5: 0 | AM5: 10.118 | AN5: 10.658 | AO5: 0 | AP5: 0 | AQ5: 0 | AR5: 0 | AS5: 0 | AT5: 0 | AU5: 0 | AV5: 0 | AW5: 0 | AX5: 0 | AY5: 0 | AZ5: 0 | BA5: 13.056 | BB5: 0 | BC5: 16.32 | BD5: 0 | BE5: 16.32 | BF5: 0 | BG5: 0 | BH5: 0 | BI5: 0 | BJ5: 0 | BK5: 0 | BL5: 0 | BM5: 0 | BN5: 0 | BO5: 0 | BP5: 0 | BQ5: 0 | BR5: 0 | BS5: 4.48 | BT5: 0 | BU5: 0 | BV5: 0 | BW5: 0 | BX5: 80 | BY5: 210914 | BZ5: 0 | CA5: 123 | CB5: 1248.2 | CC5: 0 | CD5: 0 | CE5: 0 | CF5: 2 | CG5: 0 | CH5: 0 | CI5: 0 | CK5: 1 | CL5: C | CM5: 20079939 | CN5: 240 | CO5: 155 | CP5: 90 | CQ5: 24 | CR5: 240 | CS5: 7391961111038 | CT5: 37391961111039 | CV5: 101019 | CW5: 270421 | CX5: JS | CY5: BF | DD5: 0 | DE5: Drottningsylt Königi | DG5: 0 | DH5: 0 | DI5: 0 | DJ5: 0 | DK5: 90 | DL5: 0 | DM5: 0 | DN5: 0 | DO5: 0 | DP5: 0 | DQ5: 0 | DR5: 0 | DS5: 0 | DT5: 0 | DU5: 0 | DV5: 0 | DW5: 0 | DX5: 0 | DY5: 0 | DZ5: 0 | EA5: 0 | EB5: 0 | EC5: 0 | ED5: 0 | EE5: 0 | EF5: 0 | EH5: 0 | EI5: 0 | EJ5: B
A6: p050006 | B6: 1 | C6: 050006 | D6: Lingonsylt (Preiselbeer), kbA | E6: 999 | F6: SE | G6: 0 | H6: N | I6: N | J6: J | K6: J | L6: T | M6: F | N6: C% | O6: 6*320G | P6: 6 | Q6: 3 | R6: 1.92 | S6: 0 | T6: ST | U6: KT | W6: N | Y6: 0 | AA6: H | AB6: 70929 | AE6: N | AH6: J | AJ6: 0 | AK6: 0 | AL6: 0 | AM6: 10.944 | AN6: 11.484 | AO6: 0 | AP6: 0 | AQ6: 0 | AR6: 0 | AS6: 0 | AT6: 0 | AU6: 0 | AV6: 0 | AW6: 0 | AX6: 0 | AY6: 0 | AZ6: 0 | BA6: 14.4 | BB6: 0 | BC6: 18 | BD6: 0 | BE6: 18 | BF6: 0 | BG6: 0 | BH6: 0 | BI6: 0 | BJ6: 0 | BK6: 0 | BL6: 0 | BM6: 0 | BN6: 0 | BO6: 0 | BP6: 0 | BQ6: 0 | BR6: 0 | BS6: 4.98 | BT6: 0 | BU6: 0 | BV6: 0 | BW6: 0 | BX6: 61 | BY6: 210805 | BZ6: 0 | CA6: 0 | CB6: 0 | CC6: 0 | CD6: 0 | CE6: 0 | CF6: 2 | CG6: 0 | CH6: 0 | CI6: 0 | CK6: 1 | CL6: C | CM6: 20079939 | CN6: 240 | CO6: 155 | CP6: 90 | CQ6: 24 | CR6: 240 | CS6: 7391961111892 | CT6: 37391961111893 | CV6: 101019 | CW6: 270421 | CX6: JS | CY6: BF | DD6: 0 | DE6: Lingonsylt Preiselbe | DG6: 0 | DH6: 0 | DI6: 0 | DJ6: 0 | DK6: 90 | DL6: 0 | DM6: 0 | DN6: 0 | DO6: 0 | DP6: 0 | DQ6: 0 | DR6: 0 | DS6: 0 | DT6: 0 | DU6: 0 | DV6: 0 | DW6: 0 | DX6: 0 | DY6: 0 | DZ6: 0 | EA6: 0 | EB6: 0 | EC6: 0 | ED6: 0 | EE6: 0 | EF6: 0 | EH6: 0 | EI6: 0 | EJ6: B
A7: p050008 | B7: 1 | C7: 050008 | D7: Svart Vinbärssylt (schwarze Johannisbeere), kbA | E7: 999 | F7: SE | G7: 0 | H7: N | I7: N | J7: J | K7: J | L7: T | M7: F | N7: C% | O7: 6*320G | P7: 6 | Q7: 3 | R7: 1.92 | S7: 0 | T7: ST | U7: KT | W7: N | Y7: 0 | AA7: H | AB7: 70929 | AE7: N | AH7: J | AJ7: 0 | AK7: 0 | AL7: 0 | AM7: 8.636 | AN7: 9.176 | AO7: 0 | AP7: 0 | AQ7: 0 | AR7: 0 | AS7: 0 | AT7: 0 | AU7: 0 | AV7: 0 | AW7: 0 | AX7: 0 | AY7: 0 | AZ7: 0 | BA7: 11.568 | BB7: 0 | BC7: 14.46 | BD7: 0 | BE7: 14.46 | BF7: 0 | BG7: 0 | BH7: 0 | BI7: 0 | BJ7: 0 | BK7: 0 | BL7: 0 | BM7: 0 | BN7: 0 | BO7: 0 | BP7: 0 | BQ7: 0 | BR7: 0 | BS7: 3.98 | BT7: 0 | BU7: 0 | BV7: 0 | BW7: 0 | BX7: 54 | BY7: 210907 | BZ7: 0 | CA7: 0 | CB7: 0 | CC7: 0 | CD7: 0 | CE7: 0 | CF7: 2 | CG7: 0 | CH7: 0 | CI7: 0 | CK7: 1 | CL7: C | CM7: 20079939 | CN7: 240 | CO7: 155 | CP7: 90 | CQ7: 24 | CR7: 240 | CS7: 7391961111854 | CT7: 37391961111855 | CV7: 101019 | CW7: 270421 | CX7: JS | CY7: BF | DD7: 0 | DE7: Svart Vinbärssylt Jo | DG7: 0 | DH7: 0 | DI7: 0 | DJ7: 0 | DK7: 90 | DL7: 0 | DM7: 0 | DN7: 0 | DO7: 0 | DP7: 0 | DQ7: 0 | DR7: 0 | DS7: 0 | DT7: 0 | DU7: 0 | DV7: 0 | DW7: 0 | DX7: 0 | DY7: 0 | DZ7: 0 | EA7: 0 | EB7: 0 | EC7: 0 | ED7: 0 | EE7: 0 | EF7: 0 | EH7: 0 | EI7: 0 | EJ7: B
A8: p050010 | B8: 1 | C8: 050010 | D8: Björnbärssylt (Brombeer), kbA | E8: 999 | F8: SE | G8: 0 | H8: N | I8: N | J8: J | K8: J | L8: T | M8: F | N8: C% | O8: 6*330G | P8: 6 | Q8: 3 | R8: 1.98 | S8: 0 | T8: ST | U8: KT | W8: N | Y8: 0 | AA8: H | AB8: 70929 | AE8: N | AH8: J | AJ8: 0 | AK8: 0 | AL8: 0 | AM8: 8.949 | AN8: 9.489 | AO8: 0 | AP8: 0 | AQ8: 0 | AR8: 0 | AS8: 0 | AT8: 0 | AU8: 0 | AV8: 0 | AW8: 0 | AX8: 0 | AY8: 0 | AZ8: 0 | BA8: 13.056 | BB8: 0 | BC8: 16.32 | BD8: 0 | BE8: 16.32 | BF8: 0 | BG8: 0 | BH8: 0 | BI8: 0 | BJ8: 0 | BK8: 0 | BL8: 0 | BM8: 0 | BN8: 0 | BO8: 0 | BP8: 0 | BQ8: 0 | BR8: 0 | BS8: 4.48 | BT8: 0 | BU8: 0 | BV8: 0 | BW8: 0 | BX8: 34 | BY8: 210907 | BZ8: 0 | CA8: 0 | CB8: 0 | CC8: 0 | CD8: 0 | CE8: 0 | CF8: 2 | CG8: 0 | CH8: 0 | CI8: 0 | CK8: 1 | CL8: C | CM8: 20079939 | CN8: 240 | CO8: 155 | CP8: 90 | CQ8: 24 | CR8: 240 | CS8: 7391961112066 | CT8: 37391961112067 | CV8: 60420 | CW8: 40821 | CX8: JS | CY8: TU | DD8: 0 | DG8: 0 | DH8: 0 | DI8: 0 | DJ8: 0 | DK8: 90 | DL8: 0 | DM8: 0 | DN8: 0 | DO8: 0 | DP8: 0 | DQ8: 0 | DR8: 0 | DS8: 0 | DT8: 0 | DU8: 0 | DV8: 0 | DW8: 0 | DX8: 0 | DY8: 0 | DZ8: 0 | EA8: 0 | EB8: 0 | EC8: 0 | ED8: 0 | EE8: 0 | EF8: 0 | EH8: 0 | EI8: 0 | EJ8: B
A9: p050012 | B9: 1 | C9: 050012 | D9: Rabarber & Jordgubbssylt (Rhabarber&Erdbeere),kbA | E9: 999 | F9: SE | G9: 0 | H9: N | I9: N | J9: J | K9: J | L9: T | M9: F | N9: C% | O9: 6*320G | P9: 6 | Q9: 3 | R9: 1.92 | S9: 0 | T9: ST | U9: KT | W9: N | Y9: 0 | AA9: H | AB9: 70929 | AE9: N | AH9: J | AJ9: 0 | AK9: 0 | AL9: 0 | AM9: 9.576 | AN9: 10.116 | AO9: 0 | AP9: 0 | AQ9: 0 | AR9: 0 | AS9: 0 | AT9: 0 | AU9: 0 | AV9: 0 | AW9: 0 | AX9: 0 | AY9: 0 | AZ9: 0 | BA9: 13.056 | BB9: 0 | BC9: 16.32 | BD9: 0 | BE9: 16.32 | BF9: 0 | BG9: 0 | BH9: 0 | BI9: 0 | BJ9: 0 | BK9: 0 | BL9: 0 | BM9: 0 | BN9: 0 | BO9: 0 | BP9: 0 | BQ9: 0 | BR9: 0 | BS9: 4.48 | BT9: 0 | BU9: 0 | BV9: 0 | BW9: 0 | BX9: 28 | BY9: 210805 | BZ9: 0 | CA9: 1 | CB9: 9.64 | CC9: 0 | CD9: 0 | CE9: 0 | CF9: 2 | CG9: 0 | CH9: 0 | CI9: 0 | CK9: 1 | CL9: C | CM9: 20079939 | CN9: 240 | CO9: 155 | CP9: 90 | CQ9: 24 | CR9: 240 | CS9: 7391961312183 | CT9: 37391961312184 | CV9: 60420 | CW9: 270421 | CX9: JS | CY9: BF | DD9: 0 | DG9: 12 | DH9: 0 | DI9: 0 | DJ9: 0 | DK9: 90 | DL9: 0 | DM9: 0 | DN9: 0 | DO9: 0 | DP9: 0 | DQ9: 0 | DR9: 0 | DS9: 0 | DT9: 0 | DU9: 0 | DV9: 0 | DW9: 0 | DX9: 0 | DY9: 0 | DZ9: 0 | EA9: 0 | EB9: 0 | EC9: 0 | ED9: 0 | EE9: 0 | EF9: 0 | EH9: 0 | EI9: 0 | EJ9: B
A10: p050100 | B10: 1 | C10: 050100 | D10: Syltbox - Set mit 3 Konfitüren | E10: 999 | F10: SE | G10: 0 | H10: N | I10: N | J10: J | K10: J | L10: T | M10: F | N10: C% | O10: 3*1STK | P10: 3 | Q10: 4.914 | R10: 2.91 | S10: 0 | T10: ST | U10: KT | W10: N | Y10: 0 | AA10: H | AB10: 70929 | AE10: N | AH10: N | AJ10: 0 | AK10: 0 | AL10: 0 | AM10: 6.21 | AN10: 6.21 | AO10: 0 | AP10: 0 | AQ10: 0 | AR10: 0 | AS10: 0 | AT10: 0 | AU10: 0 | AV10: 0 | AW10: 0 | AX10: 0 | AY10: 0 | AZ10: 0 | BA10: 17.22 | BB10: 0 | BC10: 20.67 | BD10: 0 | BE10: 0 | BF10: 0 | BG10: 0 | BH10: 0 | BI10: 0 | BJ10: 0 | BK10: 0 | BL10: 0 | BM10: 0 | BN10: 0 | BO10: 0 | BP10: 0 | BQ10: 0 | BR10: 0 | BS10: 9.99 | BT10: 0 | BU10: 0 | BV10: 0 | BW10: 0 | BX10: 0 | BY10: 170321 | BZ10: 0 | CA10: 0 | CB10: 0 | CC10: 0 | CD10: 0 | CE10: 0 | CF10: 2 | CG10: 0 | CH10: 0 | CI10: 0 | CK10: 1 | CL10: C | CM10: 20079939 | CN10: 240 | CO10: 155 | CP10: 90 | CQ10: 12 | CR10: 36 | CS10: 4022381034074 | CT10: 4022381034081 | CV10: 190321 | CW10: 110821 | CX10: JS | CY10: FK | DD10: 0 | DG10: 12 | DH10: 0 | DI10: 0 | DJ10: 0 | DK10: 90 | DL10: 0 | DM10: 0 | DN10: 0 | DO10: 0 | DP10: 0 | DQ10: 0 | DR10: 0 | DS10: 0 | DT10: 0 | DU10: 0 | DV10: 0 | DW10: 0 | DX10: 0 | DY10: 0 | DZ10: 0 | EA10: 0 | EB10: 0 | EC10: 0 | ED10: 0 | EE10: 0 | EF10: 0 | EH10: 0 | EI10: 0 | EJ10: B
A11: p060002 | B11: 1 | C11: 060002 | D11: Weizen, demeter - NF Unverpackt + Vorrat | E11: 002 | F11: DE | G11: 0 | H11: N | I11: N | J11: J | K11: J | L11: S | M11: F | N11: DD | O11: 4*5KG | P11: 4 | Q11: 22 | R11: 5 | S11: 0 | T11: ST | U11: KI | W11: J | Y11: 0 | AA11: E | AB11: 71730 | AE11: N | AH11: J | AJ11: 0 | AK11: 0 | AL11: 0 | AM11: 3.4 | AN11: 3.4 | AO11: 0 | AP11: 0 | AQ11: 0 | AR11: 0 | AS11: 0 | AT11: 0 | AU11: 0 | AV11: 0 | AW11: 0 | AX11: 0 | AY11: 0 | AZ11: 0 | BA11: 0 | BB11: 0 | BC11: 22.6 | BD11: 0 | BE11: 0 | BF11: 0 | BG11: 0 | BH11: 0 | BI11: 0 | BJ11: 0 | BK11: 0 | BL11: 0 | BM11: 0 | BN11: 0 | BO11: 0 | BP11: 0 | BQ11: 0 | BR11: 0 | BS11: 8.99 | BT11: 0 | BU11: 0 | BV11: 0 | BW11: 0 | BX11: 511 | BY11: 110921 | BZ11: 0 | CA11: 0 | CB11: 0 | CC11: 0 | CD11: 0 | CE11: 0 | CF11: 1 | CG11: 0 | CH11: 0 | CI11: 240 | CK11: 1 | CL11: B | CM11: 10019900 | CN11: 140 | CO11: 190 | CP11: 390 | CQ11: 4 | CR11: 16 | CS11: 4022381100144 | CT11: 4022381002899 | CV11: 50100 | CW11: 140921 | CX11: BS | CY11: AL | CZ11: 1 | DE11: Weizen,demeter | DF11: B | DG11: 12 | DH11: 3 | DI11: 9.56 | DJ11: 9.88 | DK11: 90 | DL11: 0 | DM11: 0 | DN11: 0 | DO11: 0 | DP11: 0 | DQ11: 0 | DR11: 0 | DS11: 0 | DT11: 0 | DU11: 0 | DV11: 0 | DW11: 0 | DX11: 0 | DY11: 0 | DZ11: 0 | EA11: 0 | EB11: 0 | EC11: 0 | ED11: 0 | EE11: 0 | EF11: 0 | EG11: L | EH11: 0 | EI11: 0 | EJ11: A | ES11: W | EU11: 106133330
A12: p060003 | B12: 1 | C12: 060003 | D12: Weizen, demeter | E12: 002 | F12: DE | G12: 0 | H12: N | I12: N | J12: J | K12: J | L12: S | M12: F | N12: DD | O12: 4*2,5KG | P12: 4 | Q12: 10.6 | R12: 10 | S12: 0 | T12: ST | U12: KT | W12: N | Y12: 0 | AA12: E | AB12: 71730 | AE12: N | AH12: J | AJ12: 0 | AK12: 0 | AL12: 0 | AM12: 8.96 | AN12: 8.96 | AO12: 0 | AP12: 0 | AQ12: 0 | AR12: 0 | AS12: 0 | AT12: 0 | AU12: 0 | AV12: 0 | AW12: 0 | AX12: 0 | AY12: 0 | AZ12: 0 | BA12: 0 | BB12: 0 | BC12: 12.96 | BD12: 0 | BE12: 0 | BF12: 0 | BG12: 0 | BH12: 0 | BI12: 0 | BJ12: 0 | BK12: 0 | BL12: 0 | BM12: 0 | BN12: 0 | BO12: 0 | BP12: 0 | BQ12: 0 | BR12: 0 | BS12: 4.89 | BT12: 0 | BU12: 0 | BV12: 0 | BW12: 0 | BX12: 491 | BY12: 210914 | BZ12: 0 | CA12: 0 | CB12: 0 | CC12: 0 | CD12: 0 | CE12: 0 | CF12: 1 | CG12: 0 | CH12: 0 | CI12: 240 | CK12: 1 | CL12: B | CM12: 10019099 | CN12: 296 | CO12: 256 | CP12: 260 | CQ12: 12 | CR12: 36 | CS12: 4022381001533 | CT12: 4022381001540 | CV12: 120105 | CW12: 140521 | CX12: ES | CY12: AB | CZ12: 1 | DD12: 01200 | DE12: Weizen,demeter | DG12: 12 | DH12: 0 | DI12: 4.67 | DJ12: 4.67 | DK12: 90 | DL12: 0 | DM12: 0 | DN12: 0 | DO12: 0 | DP12: 0 | DQ12: 0 | DR12: 0 | DS12: 0 | DT12: 0 | DU12: 0 | DV12: 0 | DW12: 0 | DX12: 0 | DY12: 0 | DZ12: 0 | EA12: 0 | EB12: 0 | EC12: 0 | ED12: 0 | EE12: 0 | EF12: 0 | EG12: L | EH12: 0 | EI12: 0 | EJ12: B | ES12: W | EU12: 106133330
A13: p060006 | B13: 1 | C13: 060006 | D13: Weizen, demeter | E13: 002 | F13: DE | G13: 0 | H13: N | I13: N | J13: J | K13: J | L13: S | M13: F | N13: DD | O13: 6*1KG | P13: 6 | Q13: 6.29 | R13: 6 | S13: 0 | T13: ST | U13: KT | W13: N | X13: GB | Y13: 0 | AA13: E | AB13: 71730 | AE13: N | AH13: J | AJ13: 0 | AK13: 0 | AL13: 0 | AM13: 4.938 | AN13: 4.938 | AO13: 0 | AP13: 0 | AQ13: 0 | AR13: 0 | AS13: 4.071 | AT13: 0 | AU13: 0 | AV13: 0 | AW13: 0 | AX13: 0 | AY13: 0 | AZ13: 0 | BA13: 0 | BB13: 0 | BC13: 7.8 | BD13: 0 | BE13: 0 | BF13: 0 | BG13: 0 | BH13: 0 | BI13: 0 | BJ13: 0 | BK13: 0 | BL13: 0 | BM13: 0 | BN13: 0 | BO13: 0 | BP13: 0 | BQ13: 0 | BR13: 0 | BS13: 1.99 | BT13: 0 | BU13: 0 | BV13: 0 | BW13: 0 | BX13: 3116 | BY13: 210914 | BZ13: 0 | CA13: 3 | CB13: 11.16 | CC13: 0 | CD13: 0 | CE13: 0 | CF13: 1 | CG13: 0 | CH13: 0 | CI13: 240 | CK13: 1 | CL13: B | CM13: 10019900 | CN13: 240 | CO13: 230 | CP13: 220 | CQ13: 15 | CR13: 60 | CS13: 4022381100182 | CT13: 4022381002905 | CV13: 50100 | CW13: 11020 | CX13: BS | CY13: JS | CZ13: 1 | DC13: AF | DD13: 01200 | DE13: Weizen, demeter | DF13: B | DG13: 12 | DH13: 4 | DI13: 3.53 | DJ13: 3.53 | DK13: 90 | DL13: 3.96 | DM13: 0 | DN13: 0 | DO13: 0 | DP13: 0 | DQ13: 0 | DR13: 0 | DS13: 0 | DT13: 0 | DU13: 0 | DV13: 0 | DW13: 0 | DX13: 0 | DY13: 0 | DZ13: 0 | EA13: 0 | EB13: 0 | EC13: 0 | ED13: 0 | EE13: 0 | EF13: 0 | EG13: L | EH13: 0 | EI13: 0 | EJ13: B | ES13: W | EU13: 106133330
A14: p060007 | B14: 1 | C14: 060007 | D14: Hartweizen, demeter | E14: 003 | F14: IT | G14: 0 | H14: N | I14: N | J14: J | K14: J | L14: S | M14: F | N14: ID | O14: 4*500G | P14: 4 | Q14: 2.12 | R14: 2 | S14: 0 | T14: ST | U14: KT | W14: J | Y14: 0 | AA14: E | AB14: 71730 | AE14: N | AH14: J | AJ14: 0 | AK14: 0 | AL14: 0 | AM14: 0 | AN14: 0 | AO14: 0 | AP14: 0 | AQ14: 0 | AR14: 0 | AS14: 0 | AT14: 0 | AU14: 0 | AV14: 0 | AW14: 0 | AX14: 0 | AY14: 0 | AZ14: 0 | BA14: 0 | BB14: 0 | BC14: 0 | BD14: 0 | BE14: 0 | BF14: 0 | BG14: 0 | BH14: 0 | BI14: 0 | BJ14: 0 | BK14: 0 | BL14: 0 | BM14: 0 | BN14: 0 | BO14: 0 | BP14: 0 | BQ14: 0 | BR14: 0 | BS14: 0 | BT14: 0 | BU14: 0 | BV14: 0 | BW14: 0 | BX14: 0 | BY14: 160412 | BZ14: 0 | CA14: 0 | CB14: 0 | CC14: 0 | CD14: 0 | CE14: 0 | CF14: 1 | CG14: 0 | CH14: 0 | CI14: 240 | CK14: 1 | CL14: B | CN14: 190 | CO14: 150 | CP14: 200 | CQ14: 32 | CR14: 128 | CS14: 4022381021920 | CT14: 4022381021937 | CV14: 120416 | CW14: 270720 | CX14: AL | CY14: JOHO | CZ14: 2 | DD14: 01200 | DE14: Hartweizen, demeter | DG14: 0 | DH14: 0 | DI14: 0 | DJ14: 0 | DK14: 90 | DL14: 0 | DM14: 0 | DN14: 0 | DO14: 0 | DP14: 0 | DQ14: 0 | DR14: 0 | DS14: 0 | DT14: 0 | DU14: 0 | DV14: 0 | DW14: 0 | DX14: 0 | DY14: 0 | DZ14: 0 | EA14: 0 | EB14: 0 | EC14: 0 | ED14: 0 | EE14: 0 | EF14: 0 | EG14: Q | EH14: 4 | EI14: 0
A15: p060102 | B15: 1 | C15: 060102 | D15: Roggen, demeter - NF Unverpackt und Vorrat | E15: 008 | F15: DE | G15: 0 | H15: N | I15: N | J15: J | K15: J | L15: S | M15: F | N15: DD | O15: 4*5KG | P15: 4 | Q15: 22 | R15: 20 | S15: 0 | T15: ST | U15: KI | W15: J | Y15: 0 | AA15: E | AB15: 71730 | AE15: N | AH15: J | AJ15: 0 | AK15: 0 | AL15: 0 | AM15: 3.25 | AN15: 3.25 | AO15: 0 | AP15: 0 | AQ15: 0 | AR15: 0 | AS15: 0 | AT15: 0 | AU15: 0 | AV15: 0 | AW15: 0 | AX15: 0 | AY15: 0 | AZ15: 0 | BA15: 0 | BB15: 0 | BC15: 22.6 | BD15: 0 | BE15: 0 | BF15: 0 | BG15: 0 | BH15: 0 | BI15: 0 | BJ15: 0 | BK15: 0 | BL15: 0 | BM15: 0 | BN15: 0 | BO15: 0 | BP15: 0 | BQ15: 0 | BR15: 0 | BS15: 8.99 | BT15: 0 | BU15: 0 | BV15: 0 | BW15: 0 | BX15: 490 | BY15: 210911 | BZ15: 0 | CA15: 0 | CB15: 0 | CC15: 0 | CD15: 0 | CE15: 0 | CF15: 1 | CG15: 0 | CH15: 0 | CI15: 240 | CK15: 1 | CL15: C | CM15: 10029000 | CN15: 140 | CO15: 190 | CP15: 390 | CQ15: 4 | CR15: 16 | CS15: 4022381013666 | CT15: 4022381013673 | CV15: 110610 | CW15: 140921 | CX15: HG | CY15: AL | CZ15: 1 | DE15: Roggen, demeter | DG15: 12 | DH15: 3 | DI15: 0 | DJ15: 0 | DK15: 0 | DL15: 0 | DM15: 0 | DN15: 0 | DO15: 0 | DP15: 0 | DQ15: 0 | DR15: 0 | DS15: 0 | DT15: 0 | DU15: 0 | DV15: 0 | DW15: 0 | DX15: 0 | DY15: 0 | DZ15: 0 | EA15: 0 | EB15: 0 | EC15: 0 | ED15: 0 | EE15: 0 | EF15: 0 | EG15: L | EH15: 0 | EI15: 0 | EJ15: A | ES15: R | EU15: 106133330
A16: p060104 | B16: 1 | C16: 060104 | D16: Roggen, demeter | E16: 008 | F16: DE | G16: 0 | H16: N | I16: N | J16: J | K16: J | L16: S | M16: F | N16: DD | O16: 4*2,5KG | P16: 4 | Q16: 10.6 | R16: 10 | S16: 0 | T16: ST | U16: KT | W16: N | Y16: 0 | AA16: E | AB16: 71730 | AE16: N | AH16: J | AJ16: 0 | AK16: 0 | AL16: 0 | AM16: 7.984 | AN16: 7.984 | AO16: 0 | AP16: 0 | AQ16: 0 | AR16: 0 | AS16: 0 | AT16: 0 | AU16: 0 | AV16: 0 | AW16: 0 | AX16: 0 | AY16: 0 | AZ16: 0 | BA16: 0 | BB16: 0 | BC16: 12.96 | BD16: 0 | BE16: 0 | BF16: 0 | BG16: 0 | BH16: 0 | BI16: 0 | BJ16: 0 | BK16: 0 | BL16: 0 | BM16: 0 | BN16: 0 | BO16: 0 | BP16: 0 | BQ16: 0 | BR16: 0 | BS16: 4.89 | BT16: 0 | BU16: 0 | BV16: 0 | BW16: 0 | BX16: 498 | BY16: 210914 | BZ16: 0 | CA16: 0 | CB16: 0 | CC16: 0 | CD16: 0 | CE16: 0 | CF16: 1 | CG16: 0 | CH16: 0 | CI16: 240 | CK16: 1 | CL16: A | CM16: 10029000 | CN16: 296 | CO16: 256 | CP16: 260 | CQ16: 12 | CR16: 36 | CS16: 4022381016476 | CT16: 4022381016483 | CV16: 70100 | CW16: 140521 | CX16: TF | CY16: AB | CZ16: 1 | DD16: 01200 | DE16: Roggen, demeter | DG16: 12 | DH16: 0 | DI16: 6.442 | DJ16: 6.662 | DK16: 90 | DL16: 0 | DM16: 0 | DN16: 0 | DO16: 0 | DP16: 0 | DQ16: 0 | DR16: 0 | DS16: 0 | DT16: 0 | DU16: 0 | DV16: 0 | DW16: 0 | DX16: 0 | DY16: 0 | DZ16: 0 | EA16: 0 | EB16: 0 | EC16: 0 | ED16: 0 | EE16: 0 | EF16: 0 | EG16: L | EH16: 0 | EI16: 0 | EJ16: B | ES16: R | EU16: 106133330
A17: p060106 | B17: 1 | C17: 060106 | D17: Roggen, demeter | E17: 008 | F17: DE | G17: 0 | H17: N | I17: N | J17: J | K17: J | L17: S | M17: F | N17: DD | O17: 6*1KG | P17: 6 | Q17: 6.29 | R17: 6 | S17: 0 | T17: ST | U17: KT | W17: N | X17: GB | Y17: 0 | AA17: E | AB17: 71730 | AE17: N | AH17: J | AJ17: 0 | AK17: 0 | AL17: 0 | AM17: 4.206 | AN17: 4.206 | AO17: 0 | AP17: 0 | AQ17: 0 | AR17: 0 | AS17: 2.914 | AT17: 0 | AU17: 0 | AV17: 0 | AW17: 0 | AX17: 0 | AY17: 0 | AZ17: 0 | BA17: 0 | BB17: 0 | BC17: 7.8 | BD17: 0 | BE17: 0 | BF17: 0 | BG17: 0 | BH17: 0 | BI17: 0 | BJ17: 0 | BK17: 0 | BL17: 0 | BM17: 0 | BN17: 0 | BO17: 0 | BP17: 0 | BQ17: 0 | BR17: 0 | BS17: 1.99 | BT17: 0 | BU17: 0 | BV17: 0 | BW17: 0 | BX17: 2532 | BY17: 210914 | BZ17: 0 | CA17: 0 | CB17: 0 | CC17: 0 | CD17: 0 | CE17: 0 | CF17: 1 | CG17: 0 | CH17: 0 | CI17: 240 | CK17: 1 | CL17: B | CM17: 10029000 | CN17: 240 | CO17: 230 | CP17: 220 | CQ17: 15 | CR17: 60 | CS17: 4022381103183 | CT17: 4022381002929 | CV17: 220200 | CW17: 11020 | CX17: BS | CY17: JS | CZ17: 1 | DC17: AF | DD17: 01200 | DE17: Roggen, demeter | DF17: B | DG17: 12 | DH17: 4 | DI17: 2.62 | DJ17: 2.62 | DK17: 90 | DL17: 3.09 | DM17: 0 | DN17: 0 | DO17: 0 | DP17: 0 | DQ17: 0 | DR17: 0 | DS17: 0 | DT17: 0 | DU17: 0 | DV17: 0 | DW17: 0 | DX17: 0 | DY17: 0 | DZ17: 0 | EA17: 0 | EB17: 0 | EC17: 0 | ED17: 0 | EE17: 0 | EF17: 0 | EG17: L | EH17: 0 | EI17: 0 | EJ17: B | ES17: R | EU17: 106133330
A18: p060201 | B18: 1 | C18: 060201 | D18: Dinkel, demeter | E18: 001 | F18: DE | G18: 0 | H18: N | I18: N | J18: J | K18: J | L18: S | M18: F | N18: DD | O18: 1*10KG | P18: 10 | Q18: 10.1 | R18: 10 | S18: 0 | T18: ST | U18: KT | W18: J | Y18: 0 | AA18: E | AB18: 71730 | AE18: N | AH18: N | AJ18: 0 | AK18: 0 | AL18: 0 | AM18: 10.544 | AN18: 10.544 | AO18: 0 | AP18: 0 | AQ18: 0 | AR18: 0 | AS18: 8.731 | AT18: 0 | AU18: 0 | AV18: 0 | AW18: 0 | AX18: 16.16 | AY18: 0 | AZ18: 0 | BA18: 0 | BB18: 0 | BC18: 20.2 | BD18: 0 | BE18: 0 | BF18: 0 | BG18: 0 | BH18: 0 | BI18: 0 | BJ18: 0 | BK18: 0 | BL18: 0 | BM18: 0 | BN18: 0 | BO18: 0 | BP18: 0 | BQ18: 0 | BR18: 0 | BS18: 32.5 | BT18: 0 | BU18: 0 | BV18: 0 | BW18: 0 | BX18: 647 | BY18: 140520 | BZ18: 0 | CA18: 0 | CB18: 0 | CC18: 0 | CD18: 0 | CE18: 0 | CF18: 1 | CG18: 0 | CH18: 0 | CI18: 240 | CK18: 1 | CL18: C | CM18: 10019900 | CN18: 440 | CO18: 270 | CP18: 110 | CQ18: 8 | CR18: 40 | CS18: 4022381104128 | CT18: 4022381002936 | CV18: 70100 | CW18: 101120 | CX18: TF | CY18: JOHO | CZ18: 1 | DC18: HA | DD18: 01200 | DE18: Dinkel, demeter | DF18: C | DG18: 12 | DH18: 0 | DI18: 8.69 | DJ18: 8.69 | DK18: 90 | DL18: 9.1 | DM18: 0 | DN18: 0 | DO18: 0 | DP18: 0 | DQ18: 0 | DR18: 0 | DS18: 0 | DT18: 0 | DU18: 0 | DV18: 0 | DW18: 0 | DX18: 0 | DY18: 0 | DZ18: 0 | EA18: 0 | EB18: 0 | EC18: 0 | ED18: 0 | EE18: 0 | EF18: 0 | EG18: L | EH18: 0 | EI18: 0 | EJ18: B | ES18: D | EU18: 106133330
A19: p060202 | B19: 1 | C19: 060202 | D19: Dinkel, demeter - NF Unverpackt und Vorrat | E19: 001 | F19: DE | G19: 0 | H19: N | I19: N | J19: J | K19: J | L19: S | M19: F | N19: DD | O19: 4*5KG | P19: 4 | Q19: 22 | R19: 5 | S19: 0 | T19: ST | U19: KI | W19: J | Y19: 0 | AA19: E | AB19: 71730 | AE19: N | AH19: N | AJ19: 0 | AK19: 0 | AL19: 0 | AM19: 5.24 | AN19: 5.24 | AO19: 0 | AP19: 0 | AQ19: 0 | AR19: 0 | AS19: 0 | AT19: 0 | AU19: 0 | AV19: 0 | AW19: 0 | AX19: 0 | AY19: 0 | AZ19: 0 | BA19: 0 | BB19: 0 | BC19: 40.4 | BD19: 0 | BE19: 0 | BF19: 0 | BG19: 0 | BH19: 0 | BI19: 0 | BJ19: 0 | BK19: 0 | BL19: 0 | BM19: 0 | BN19: 0 | BO19: 0 | BP19: 0 | BQ19: 0 | BR19: 0 | BS19: 17.99 | BT19: 0 | BU19: 0 | BV19: 0 | BW19: 0 | BX19: 436 | BY19: 201106 | BZ19: 0 | CA19: 0 | CB19: 0 | CC19: 0 | CD19: 0 | CE19: 0 | CF19: 1 | CG19: 0 | CH19: 0 | CI19: 240 | CK19: 1 | CL19: C | CM19: 10019900 | CN19: 140 | CO19: 190 | CP19: 390 | CQ19: 4 | CR19: 16 | CS19: 4022381104142 | CT19: 4022381002943 | CV19: 70100 | CW19: 140921 | CX19: TF | CY19: AL | CZ19: 1 | DD19: 01200 | DE19: Dinkel, demeter | DF19: C | DG19: 12 | DH19: 3 | DI19: 18.47 | DJ19: 18.79 | DK19: 90 | DL19: 0 | DM19: 0 | DN19: 0 | DO19: 0 | DP19: 0 | DQ19: 0 | DR19: 0 | DS19: 0 | DT19: 0 | DU19: 0 | DV19: 0 | DW19: 0 | DX19: 0 | DY19: 0 | DZ19: 0 | EA19: 0 | EB19: 0 | EC19: 0 | ED19: 0 | EE19: 0 | EF19: 0 | EG19: L | EH19: 0 | EI19: 0 | EJ19: A | ES19: D | EU19: 106133330
A20: p060204 | B20: 1 | C20: 060204 | D20: Dinkel, demeter | E20: 001 | F20: DE | G20: 0 | H20: N | I20: N | J20: J | K20: J | L20: S | M20: F | N20: DD | O20: 4*2,5KG | P20: 4 | Q20: 10.6 | R20: 10 | S20: 0 | T20: ST | U20: KT | W20: N | Y20: 0 | AA20: E | AB20: 71730 | AE20: N | AH20: J | AJ20: 0 | AK20: 0 | AL20: 0 | AM20: 12.984 | AN20: 12.984 | AO20: 0 | AP20: 0 | AQ20: 0 | AR20: 0 | AS20: 0 | AT20: 0 | AU20: 0 | AV20: 0 | AW20: 0 | AX20: 0 | AY20: 0 | AZ20: 0 | BA20: 0 | BB20: 0 | BC20: 24.32 | BD20: 0 | BE20: 0 | BF20: 0 | BG20: 0 | BH20: 0 | BI20: 0 | BJ20: 0 | BK20: 0 | BL20: 0 | BM20: 0 | BN20: 0 | BO20: 0 | BP20: 0 | BQ20: 0 | BR20: 0 | BS20: 9.29 | BT20: 0 | BU20: 0 | BV20: 0 | BW20: 0 | BX20: 550 | BY20: 201106 | BZ20: 0 | CA20: 0 | CB20: 0 | CC20: 0 | CD20: 0 | CE20: 0 | CF20: 1 | CG20: 0 | CH20: 0 | CI20: 240 | CK20: 1 | CL20: C | CM20: 10019099 08 | CN20: 290 | CO20: 250 | CP20: 250 | CQ20: 12 | CR20: 36 | CS20: 4022381104166 | CT20: 4022381002950 | CV20: 70100 | CW20: 140921 | CX20: TF | CY20: TU | CZ20: 1 | DD20: 01200 | DE20: Dinkel, demeter | DF20: C | DG20: 12 | DH20: 0 | DI20: 12.69 | DJ20: 12.91 | DK20: 90 | DL20: 0 | DM20: 0 | DN20: 0 | DO20: 0 | DP20: 0 | DQ20: 0 | DR20: 0 | DS20: 0 | DT20: 0 | DU20: 0 | DV20: 0 | DW20: 0 | DX20: 0 | DY20: 0 | DZ20: 0 | EA20: 0 | EB20: 0 | EC20: 0 | ED20: 0 | EE20: 0 | EF20: 0 | EG20: L | EH20: 0 | EI20: 0 | EJ20: B | ES20: D | EU20: 106133330
A21: p060205 | B21: 1 | C21: 060205 | D21: Dinkel, demeter | E21: 001 | F21: DE | G21: 0 | H21: N | I21: N | J21: J | K21: J | L21: S | M21: F | N21: DD | O21: 4*500G | P21: 4 | Q21: 2.12 | R21: 2 | S21: 0 | T21: ST | U21: KT | W21: N | Y21: 0 | AA21: E | AB21: 71730 | AE21: N | AH21: J | AJ21: 0 | AK21: 0 | AL21: 0 | AM21: 2.912 | AN21: 2.912 | AO21: 0 | AP21: 0 | AQ21: 0 | AR21: 0 | AS21: 0 | AT21: 0 | AU21: 0 | AV21: 0 | AW21: 0 | AX21: 0 | AY21: 0 | AZ21: 0 | BA21: 0 | BB21: 0 | BC21: 6.24 | BD21: 0 | BE21: 0 | BF21: 0 | BG21: 0 | BH21: 0 | BI21: 0 | BJ21: 0 | BK21: 0 | BL21: 0 | BM21: 0 | BN21: 0 | BO21: 0 | BP21: 0 | BQ21: 0 | BR21: 0 | BS21: 2.39 | BT21: 0 | BU21: 0 | BV21: 0 | BW21: 0 | BX21: 355 | BY21: 210909 | BZ21: 0 | CA21: 0 | CB21: 0 | CC21: 0 | CD21: 0 | CE21: 0 | CF21: 1 | CG21: 0 | CH21: 0 | CI21: 240 | CK21: 1 | CL21: B | CM21: 10019900 | CN21: 190 | CO21: 150 | CP21: 200 | CQ21: 32 | CR21: 64 | CS21: 4022381021906 | CT21: 4022381021913 | CV21: 120416 | CW21: 300621 | CX21: AL | CY21: JS | CZ21: 1 | DD21: 01200 | DE21: Dinkel, demeter | DG21: 12 | DH21: 2 | DI21: 0 | DJ21: 0 | DK21: 90 | DL21: 0 | DM21: 0 | DN21: 0 | DO21: 0 | DP21: 0 | DQ21: 0 | DR21: 0 | DS21: 0 | DT21: 0 | DU21: 0 | DV21: 0 | DW21: 0 | DX21: 0 | DY21: 0 | DZ21: 0 | EA21: 0 | EB21: 0 | EC21: 0 | ED21: 0 | EE21: 0 | EF21: 0 | EG21: L | EH21: 0 | EI21: 0 | EJ21: A | ES21: D | EU21: 106133330
A22: p060206 | B22: 1 | C22: 060206 | D22: Dinkel, demeter | E22: 001 | F22: DE | G22: 0 | H22: N | I22: N | J22: J | K22: J | L22: S | M22: F | N22: DD | O22: 6*1KG | P22: 6 | Q22: 6.29 | R22: 6 | S22: 0 | T22: ST | U22: KT | W22: N | Y22: 0 | AA22: E | AB22: 71730 | AE22: N | AH22: J | AJ22: 0 | AK22: 0 | AL22: 0 | AM22: 7.02 | AN22: 7.02 | AO22: 0 | AP22: 0 | AQ22: 0 | AR22: 0 | AS22: 6.306 | AT22: 0 | AU22: 0 | AV22: 0 | AW22: 0 | AX22: 0 | AY22: 0 | AZ22: 0 | BA22: 0 | BB22: 0 | BC22: 14.82 | BD22: 0 | BE22: 0 | BF22: 0 | BG22: 0 | BH22: 0 | BI22: 0 | BJ22: 0 | BK22: 0 | BL22: 0 | BM22: 0 | BN22: 0 | BO22: 0 | BP22: 0 | BQ22: 0 | BR22: 0 | BS22: 3.79 | BT22: 0 | BU22: 0 | BV22: 0 | BW22: 0 | BX22: 4712 | BY22: 210911 | BZ22: 0 | CA22: 0 | CB22: 0 | CC22: 0 | CD22: 0 | CE22: 0 | CF22: 1 | CG22: 0 | CH22: 0 | CI22: 240 | CK22: 1 | CL22: B | CM22: 10019900 | CN22: 240 | CO22: 230 | CP22: 220 | CQ22: 15 | CR22: 60 | CS22: 4022381104180 | CT22: 4022381002967 | CV22: 70100 | CW22: 90921 | CX22: TF | CY22: JS | CZ22: 1 | DD22: 01200 | DE22: Dinkel, demeter | DF22: B | DG22: 12 | DH22: 14 | DI22: 5.88 | DJ22: 5.88 | DK22: 90 | DL22: 6.3 | DM22: 0 | DN22: 0 | DO22: 0 | DP22: 0 | DQ22: 8.82 | DR22: 0 | DS22: 0 | DT22: 0 | DU22: 0 | DV22: 0 | DW22: 0 | DX22: 0 | DY22: 0 | DZ22: 0 | EA22: 0 | EB22: 0 | EC22: 0 | ED22: 0 | EE22: 0 | EF22: 0 | EG22: L | EH22: 0 | EI22: 0 | EJ22: B | ES22: D | EU22: 106133330
